Workbook

Sheet START

Sheet Instructions
D2: 2020
X4: Yes
X5: No
W7: Type of Entities Range:
X8: Parent Municipality
X9: Consolidated Information
W17: MTREF Range: | X17: 2008
X18: 2009
X19: 2010
X20: 2011
X21: 2012
X22: 2013
X23: 2014
X24: 2015
X25: 2016
X26: 2017
X27: 2018
X28: 2019
X29: 2020
X30: 2021
X31: 2022
W33: MTREF Linked: | X33: 13
W34: MTREF: | X34: =INDEX(X17:X31,X33,1) -> 2020
W36: Fin Year: | X36: =MTREF&"/"&RIGHT(MTREF,2)+1 -> 2020/21

Sheet Template names (hidden)
A1: Common sheet headings
A2: Head1 | B2: =HLOOKUP(MTREF,Headings,2) -> 2018/19 | C2: Prior year -1
A3: Head1A | B3: =HLOOKUP(MTREF,Headings,3) -> 2017/18 | C3: Prior year -2
A4: Head1B | B4: =HLOOKUP(MTREF,Headings,4) -> 2016/17 | C4: Prior year -3
A5: Head2 | B5: =HLOOKUP(MTREF,Headings,5) -> Current Year 2019/20 | C5: Year in which budget is being prepared
A6: Head2A | B6: =HLOOKUP(MTREF,Headings,6) -> 2019/20 | C6: Year in which budget is being prepared
A7: Head3 | B7: =HLOOKUP(MTREF,Headings,7) -> 2020/21 Medium Term Revenue & Expenditure Framework | C7: MTREF name
A8: Head4 | B8: LTFS | C8: Long term financial strategy
A9: Head5 | B9: Audited Outcome
A10: Head5A | B10: Outcome
A11: Head5B | B11: Pre-audit outcome
A12: Head6 | B12: Original Budget
A13: Head7 | B13: Adjusted Budget
A14: Head8 | B14: Full Year Forecast
A15: Head9 | B15: =HLOOKUP(MTREF,Headings,8) -> Budget Year 2020/21 | C15: 1st year of MTREF | D15: Year1
A16: Head10 | B16: =HLOOKUP(MTREF,Headings,9) -> Budget Year +1 2021/22 | C16: 2nd year of MTREF | D16: Year2
A17: Head11 | B17: =HLOOKUP(MTREF,Headings,10) -> Budget Year +2 2022/23 | C17: 3rd year of MTREF | D17: Year3
A18: Head12 | B18: =HLOOKUP(MTREF,Headings,11) -> Forecast 2023/24 | C18: 1st yr of long term forecast | D18: Year4
A19: Head13 | B19: =HLOOKUP(MTREF,Headings,12) -> Forecast 2024/25 | C19: Next yr of long term forecast | D19: Year5
A20: Head14 | B20: =HLOOKUP(MTREF,Headings,13) -> Forecast 2025/26 | C20: Next yr of long term forecast | D20: Year6
A21: Head15 | B21: =HLOOKUP(MTREF,Headings,14) -> Forecast 2026/27 | C21: Next yr of long term forecast | D21: Year7
A22: Head16 | B22: =HLOOKUP(MTREF,Headings,15) -> Forecast 2027/28 | C22: Next yr of long term forecast | D22: Year8
A23: Head17 | B23: =HLOOKUP(MTREF,Headings,16) -> Forecast 2028/29 | C23: Next yr of long term forecast | D23: Year9
A24: Head18 | B24: =HLOOKUP(MTREF,Headings,17) -> Forecast 2029/30 | C24: Next yr of long term forecast | D24: Year10
A25: Head19 | B25: =HLOOKUP(MTREF,Headings,18) -> Forecast 2030/31 | C25: Next yr of long term forecast | D25: Year11
A26: Head20 | B26: =HLOOKUP(MTREF,Headings,19) -> Forecast 2031/32 | C26: Next yr of long term forecast | D26: Year12
A27: Head21 | B27: =HLOOKUP(MTREF,Headings,20) -> Forecast 2032/33 | C27: Next yr of long term forecast | D27: Year13
A28: Head22 | B28: =HLOOKUP(MTREF,Headings,21) -> Forecast 2033/34 | C28: Next yr of long term forecast | D28: Year14
A29: Head23 | B29: =HLOOKUP(MTREF,Headings,22) -> Forecast 2034/35 | C29: Next yr of long term forecast | D29: Year15
A30: Head24 | B30: Description
A31: Head25
A32: Head26 | B32: Vote Description
A33: Head27 | B33: Ref
A34: Head27a | B34: References
A35: Head28 | B35: Surplus/(Deficit) for the year | D35: Result
A36: Head29 | B36: =HLOOKUP(MTREF,Headings,23) -> Annual target 2020/21
A37: Head30 | B37: =HLOOKUP(MTREF,Headings,24) -> Revised target 2020/21
A38: Head31 | B38: Quarter ended 30 September
A39: Head32 | B39: Quarter ended 31 December
A40: Head33 | B40: Quarter ended 31 March
A41: Head34 | B41: Quarter ended 30 June
A42: Head35 | B42: Variance explanation
A43: Head36 | B43: YTD Actual 31 Dec
A44: Head37 | B44: YTD Budget 31 Dec
A45: Head38 | B45: Monthly actual
A46: Head39 | B46: YTD actual
A47: Head40 | B47: YTD budget
A48: Head41 | B48: YTD variance
A49: Head42 | B49: Surplus/ (Deficit) for the yr/period
A50: Head43 | B50: =Head3&" Summary" -> 2020/21 Medium Term Revenue & Expenditure Framework Summary
A51: Head44 | B51: 2001 Census
A52: Head45 | B52: 2011 Census
A53: Head46 | B53: - Adjustments Budget - January 2007
A54: Head47 | B54: Previous target year to complete
A55: Head48 | B55: Present value
A56: Head49
A57: Head50 | B57: Other Adjusts.
A58: Head51 | B58: Accum. Funds
A59: Head52 | B59: Multi-year capital
A60: Head53 | B60: Unfore. Unavoid.
A61: Head54 | B61: Prior Adjusted
A62: Head55 | B62: Nat. or Prov. Govt
A63: Head56 | B63: Total Adjusts.
A64: SFPerf1 | B64: Budgeted Financial Performance
A65: SFPerf2 | B65: Forecast Financial Performance
A66: SFPos1 | B66: Budgeted Financial Position
A67: SFPos2 | B67: Forecast Financial Position
A68: Cash1 | B68: Budget Cash Flow
A69: Cash2 | B69: Forecast Cash Flow
A70: RandM | B70: Expenditure includes repairs & maintenance of R'000
A71: Depart1 | B71: Department 1 - | D71: DEP1
A72: Depart2 | B72: Department 2 - | D72: DEP2
A73: Depart3 | B73: Department 3 - | D73: DEP3
A74: Depart4 | B74: Department 4 - | D74: DEP4
A75: Depart5 | B75: Department 5 - | D75: DEP5
A76: Depart6 | B76: Department 6 - | D76: DEP6
A77: Depart7 | B77: Department 7 - | D77: DEP7
A78: Depart8 | B78: Department 8 - | D78: DEP8
A79: Depart9 | B79: Department 9 - | D79: DEP9
A80: Depart10 | B80: Department 10 - | D80: DEP10
A81: Depart11 | B81: Department 11 - | D81: DEP11
A82: Depart12 | B82: Department 12 - | D82: DEP12
A83: Depart13 | B83: Department 13 - | D83: DEP13
A84: Depart14 | B84: Department 14 - | D84: DEP14
A87: Base year of forecast column selection names
A88: Choose | B88: ACT
B89: APP
B90: ADJ
A92: Standard nomenclature
A93: Muni | B93: ='Lookup and lists'!B28 -> DC35 Capricorn
A94: Municipal Entities | B94: 2 | C94: Type of report: | D94: 1
A95: =IF((MuniEntities=1)*(MuniType=2),"YES","NO") -> NO | B95: Does this municipality have entities (consolidated budget and entity budgets required)? YES/NO
A96: Entity 1 | B96: (Pty) Ltd Example 1 - Municipal entity - | D96: Ent1
A97: Entity 2 | B97: (Pty) Ltd Example 2 - Municipal entity - | D97: Ent2
A98: Entity 3 | B98: Municipal Entity Example 3 | D98: Ent3
A99: Budget approval tables | C99: Chart x-ref | D99: Sch/Tab/Ch | E99: Alternative for municipalities without entities | F99: Alternative for municipalities without entities
B100: =IF(Consolques="YES",E100,F100) -> Table A1 Budget Summary | D100: Table A1 | E100: =D100&"Consolidated Budget Summary" -> Table A1 Consolidated Budget Summary | F100: =D100&"Budget Summary" -> Table A1 Budget Summary
B101: Table A2 Budgeted Financial Performance (revenue and expenditure by functional classification) | C101: Charts 5, 6 | D101: Table A2 | E101: =D101&"Consolidated Budgeted Financial Performance (revenue and expenditure by functional classification)" -> Table A2 Consolidated Budgeted Financial Performance (revenue and expenditure by functional classification) | F101: =D101&"Budgeted Financial Performance (revenue and expenditure by functional classification)" -> Table A2 Budgeted Financial Performance (revenue and expenditure by functional classification)
B102: Table A3 Budgeted Financial Performance (revenue and expenditure by municipal vote) | D102: Table A3 | E102: =D102&"Consolidated Budgeted Financial Performance (revenue and expenditure by municipal vote)" -> Table A3 Consolidated Budgeted Financial Performance (revenue and expenditure by municipal vote) | F102: =D102&"Budgeted Financial Performance (revenue and expenditure by municipal vote)" -> Table A3 Budgeted Financial Performance (revenue and expenditure by municipal vote)
B103: Table A4 Budgeted Financial Performance (revenue and expenditure) | C103: Charts 1, 2, 3, 4 | D103: Table A4 | E103: =D103&"Consolidated Budgeted Financial Performance (revenue and expenditure)" -> Table A4 Consolidated Budgeted Financial Performance (revenue and expenditure) | F103: =D103&"Budgeted Financial Performance (revenue and expenditure)" -> Table A4 Budgeted Financial Performance (revenue and expenditure)
B104: Table A5 Budgeted Capital Expenditure by vote, functional classification and funding | C104: Charts 7, 8, 9, 10, 20 | D104: Table A5 | E104: =D104&"Consolidated Budgeted Capital Expenditure by vote, functional classification and funding" -> Table A5 Consolidated Budgeted Capital Expenditure by vote, functional classification and funding | F104: =D104&"Budgeted Capital Expenditure by vote, functional classification and funding" -> Table A5 Budgeted Capital Expenditure by vote, functional classification and funding
B105: Table A6 Budgeted Financial Position | D105: Table A6 | E105: =D105&"Consolidated Budgeted Financial Position" -> Table A6 Consolidated Budgeted Financial Position | F105: =D105&"Budgeted Financial Position" -> Table A6 Budgeted Financial Position
B106: Table A7 Budgeted Cash Flows | D106: Table A7 | E106: =D106&"Consolidated Budgeted Cash Flows" -> Table A7 Consolidated Budgeted Cash Flows | F106: =D106&"Budgeted Cash Flows" -> Table A7 Budgeted Cash Flows
B107: Table A8 Cash backed reserves/accumulated surplus reconciliation | D107: Table A8 | E107: =D107&"Consolidated Cash backed reserves/accumulated surplus reconciliation" -> Table A8 Consolidated Cash backed reserves/accumulated surplus reconciliation | F107: =D107&"Cash backed reserves/accumulated surplus reconciliation" -> Table A8 Cash backed reserves/accumulated surplus reconciliation
B108: Table A9 Asset Management | D108: Table A9 | E108: =D108&"Consolidated Asset Management" -> Table A9 Consolidated Asset Management | F108: =D108&"Asset Management" -> Table A9 Asset Management
B109: Table A10 Basic service delivery measurement | D109: Table A10 | E109: =D109&"Consolidated basic service delivery measurement" -> Table A10 Consolidated basic service delivery measurement | F109: =D109&"Basic service delivery measurement" -> Table A10 Basic service delivery measurement
A110: Supportinging Tables to the Budget Approval Tables | C110: =$C$99 -> Chart x-ref | D110: =$D$99 -> Sch/Tab/Ch
A111: Supporting Table SA1 | B111: =A111&" Supportinging detail to 'Budgeted Financial Performance'" -> Supporting Table SA1 Supportinging detail to 'Budgeted Financial Performance'
A112: Supporting Table SA2 | B112: =IF(Consolques="YES",E112,F112) -> Supporting Table SA2 Matrix Financial Performance Budget (revenue source/expenditure type and dept.) | E112: =A112&"Consolidated Matrix Financial Performance Budget (revenue source/expenditure type & dept.)" -> Supporting Table SA2 Consolidated Matrix Financial Performance Budget (revenue source/expenditure type & dept.) | F112: =A112&"Matrix Financial Performance Budget (revenue source/expenditure type and dept.)" -> Supporting Table SA2 Matrix Financial Performance Budget (revenue source/expenditure type and dept.)
A113: Supporting Table SA3 | B113: =A113&"Supportinging detail to 'Budgeted Financial Position'" -> Supporting Table SA3 Supportinging detail to 'Budgeted Financial Position'
A114: Supporting Table SA4 | B114: =A114&"Reconciliation of IDP strategic objectives and budget (revenue)" -> Supporting Table SA4 Reconciliation of IDP strategic objectives and budget (revenue) | C114: Chart 11
A115: Supporting Table SA5 | B115: =A115&"Reconciliation of IDP strategic objectives and budget (operating expenditure)" -> Supporting Table SA5 Reconciliation of IDP strategic objectives and budget (operating expenditure) | C115: Chart 12
A116: Supporting Table SA6 | B116: =A116&"Reconciliation of IDP strategic objectives and budget (capital expenditure)" -> Supporting Table SA6 Reconciliation of IDP strategic objectives and budget (capital expenditure) | C116: Chart 13
A117: Supporting Table SA7 | B117: =A117&" Measureable performance objectives" -> Supporting Table SA7 Measureable performance objectives
A118: Supporting Table SA8 | B118: =A118&" Performance indicators and benchmarks" -> Supporting Table SA8 Performance indicators and benchmarks | C118: Chts 15-19
A119: Supporting Table SA9 | B119: =A119&" Social, economic and demographic statistics and assumptions" -> Supporting Table SA9 Social, economic and demographic statistics and assumptions
A120: Supporting Table SA10 | B120: =A120&" Funding measurement" -> Supporting Table SA10 Funding measurement | C120: Chart 14
A121: Supporting Table SA11 | B121: =A121&" Property rates summary" -> Supporting Table SA11 Property rates summary
A122: Supporting Table SA12a | B122: =A122&" Property rates by category (current year)" -> Supporting Table SA12a Property rates by category (current year)
A123: Supporting Table SA12b | B123: =A123&" Property rates by category (budget year)" -> Supporting Table SA12b Property rates by category (budget year)
A124: Supporting Table SA13a | B124: =A124&" Service Tariffs by category" -> Supporting Table SA13a Service Tariffs by category
A125: Supporting Table SA13b | B125: =A125&" Service Tariffs by category - explanatory" -> Supporting Table SA13b Service Tariffs by category - explanatory
A126: Supporting Table SA14 | B126: =A126&" Household bills" -> Supporting Table SA14 Household bills
A127: Supporting Table SA15 | B127: =A127&" Investment particulars by type" -> Supporting Table SA15 Investment particulars by type
A128: Supporting Table SA16 | B128: =A128&" Investment particulars by maturity" -> Supporting Table SA16 Investment particulars by maturity
A129: Supporting Table SA17 | B129: =A129&" Borrowing" -> Supporting Table SA17 Borrowing
A130: Supporting Table SA18 | B130: =A130&" Transfers and grant receipts" -> Supporting Table SA18 Transfers and grant receipts
A131: Supporting Table SA19 | B131: =A131&" Expenditure on transfers and grant programme" -> Supporting Table SA19 Expenditure on transfers and grant programme
A132: Supporting Table SA20 | B132: =A132&" Reconciliation of transfers, grant receipts and unspent funds" -> Supporting Table SA20 Reconciliation of transfers, grant receipts and unspent funds
A133: Supporting Table SA21 | B133: =A133&" Transfers and grants made by the municipality" -> Supporting Table SA21 Transfers and grants made by the municipality
A134: Supporting Table SA22 | B134: =A134&" Summary councillor and staff benefits" -> Supporting Table SA22 Summary councillor and staff benefits
A135: Supporting Table SA23 | B135: =A135&" Salaries, allowances & benefits (political office bearers/councillors/senior managers)" -> Supporting Table SA23 Salaries, allowances & benefits (political office bearers/councillors/senior managers)
A136: Supporting Table SA24 | B136: =A136&" Summary of personnel numbers" -> Supporting Table SA24 Summary of personnel numbers
A137: Supporting Table SA25 | B137: =IF(Consolques="YES",E137,F137) -> Supporting Table SA25 Budgeted monthly revenue and expenditure | E137: =A137&" Consolidated budgeted monthly revenue and expenditure" -> Supporting Table SA25 Consolidated budgeted monthly revenue and expenditure | F137: =A137&" Budgeted monthly revenue and expenditure" -> Supporting Table SA25 Budgeted monthly revenue and expenditure
A138: Supporting Table SA26 | B138: Supporting Table SA26 Budgeted monthly revenue and expenditure (municipal vote) | E138: =A138&" Consolidated budgeted monthly revenue and expenditure (municipal vote)" -> Supporting Table SA26 Consolidated budgeted monthly revenue and expenditure (municipal vote) | F138: =A138&" Budgeted monthly revenue and expenditure (municipal vote)" -> Supporting Table SA26 Budgeted monthly revenue and expenditure (municipal vote)
A139: Supporting Table SA27 | B139: Supporting Table SA27 Budgeted monthly revenue and expenditure (functional classification) | E139: =A139&" Consolidated budgeted monthly revenue and expenditure (functional classification)" -> Supporting Table SA27 Consolidated budgeted monthly revenue and expenditure (functional classification) | F139: =A139&" Budgeted monthly revenue and expenditure (functional classification)" -> Supporting Table SA27 Budgeted monthly revenue and expenditure (functional classification)
A140: Supporting Table SA28 | B140: Supporting Table SA28 Budgeted monthly capital expenditure (municipal vote) | E140: =A140&" Consolidated budgeted monthly capital expenditure (municipal vote)" -> Supporting Table SA28 Consolidated budgeted monthly capital expenditure (municipal vote) | F140: =A140&" Budgeted monthly capital expenditure (municipal vote)" -> Supporting Table SA28 Budgeted monthly capital expenditure (municipal vote)
A141: Supporting Table SA29 | B141: Supporting Table SA29 Budgeted monthly capital expenditure (functional classification) | E141: =A141&" Consolidated budgeted monthly capital expenditure (functional classification)" -> Supporting Table SA29 Consolidated budgeted monthly capital expenditure (functional classification) | F141: =A141&" Budgeted monthly capital expenditure (functional classification)" -> Supporting Table SA29 Budgeted monthly capital expenditure (functional classification)
A142: Supporting Table SA30 | B142: Supporting Table SA30 Budgeted monthly cash flow | E142: =A142&" Consolidated budgeted monthly cash flow" -> Supporting Table SA30 Consolidated budgeted monthly cash flow | F142: =A142&" Budgeted monthly cash flow" -> Supporting Table SA30 Budgeted monthly cash flow
A143: Supporting Table SA31 | B143: NOT REQUIRED - municipality does not have entities | E143: =A143&" Aggregated entity budget" -> Supporting Table SA31 Aggregated entity budget | F143: NOT REQUIRED - municipality does not have entities
A144: Supporting Table SA32 | B144: =A144&" List of external mechanisms" -> Supporting Table SA32 List of external mechanisms
A145: Supporting Table SA33 | B145: =A145&" Contracts having future budgetary implications" -> Supporting Table SA33 Contracts having future budgetary implications
A146: Supporting Table SA34a | B146: =IF(Consolques="YES",E146,F146) -> Supporting Table SA34a Capital expenditure on new assets by asset class | E146: =A146&" Consolidated capital expenditure on new assets by asset class" -> Supporting Table SA34a Consolidated capital expenditure on new assets by asset class | F146: =A146&" Capital expenditure on new assets by asset class" -> Supporting Table SA34a Capital expenditure on new assets by asset class
A147: Supporting Table SA34b | B147: Supporting Table SA34b Capital expenditure on the renewal of existing assets by asset class | E147: =A147&" Consolidated capital expenditure on the renewal of existing assets by asset class" -> Supporting Table SA34b Consolidated capital expenditure on the renewal of existing assets by asset class | F147: =A147&" Capital expenditure on the renewal of existing assets by asset class" -> Supporting Table SA34b Capital expenditure on the renewal of existing assets by asset class
A148: Supporting Table SA34c | B148: Supporting Table SA34c Repairs and maintenance expenditure by asset class | E148: =A148&" Consolidated repairs and maintenance by asset class" -> Supporting Table SA34c Consolidated repairs and maintenance by asset class | F148: =A148&" Repairs and maintenance expenditure by asset class" -> Supporting Table SA34c Repairs and maintenance expenditure by asset class
A149: Supporting Table SA34d | B149: =IF(Consolques="YES",E149,F149) -> Supporting Table SA34d Depreciation by asset class | E149: =A149&" Consolidated Depreciation by asset class" -> Supporting Table SA34d Consolidated Depreciation by asset class | F149: =A149&" Depreciation by asset class" -> Supporting Table SA34d Depreciation by asset class
A150: Supporting Table SA34e | B150: =IF(Consolques="YES",E150,F150) -> Supporting Table SA34e Capital expenditure on the upgrading of existing assets by asset class | E150: =A150&" Consolidated capital expenditure on the upgrading of existing assets by asset class" -> Supporting Table SA34e Consolidated capital expenditure on the upgrading of existing assets by asset class | F150: =A150&" Capital expenditure on the upgrading of existing assets by asset class" -> Supporting Table SA34e Capital expenditure on the upgrading of existing assets by asset class
A151: Supporting Table SA35 | B151: Supporting Table SA35 Future financial implications of the capital budget | E151: =A151&" Consolidated future financial implications of the capital budget" -> Supporting Table SA35 Consolidated future financial implications of the capital budget | F151: =A151& " Future financial implications of the capital budget" -> Supporting Table SA35 Future financial implications of the capital budget
A152: Supporting Table SA36 | B152: Supporting Table SA36 Detailed capital budget | E152: =A152&" Consolidated detailed capital budget" -> Supporting Table SA36 Consolidated detailed capital budget | F152: =A152& " Detailed capital budget" -> Supporting Table SA36 Detailed capital budget
A153: Supporting Table SA37 | B153: Supporting Table SA37 Projects delayed from previous financial year/s | E153: =A153&" Consolidated projects delayed from previous financial year/s" -> Supporting Table SA37 Consolidated projects delayed from previous financial year/s | F153: =A153& " Projects delayed from previous financial year/s" -> Supporting Table SA37 Projects delayed from previous financial year/s
A154: Supporting Table SA38 | B154: =IF(Consolques="YES",E154,F154) -> Supporting Table SA38 Detailed operational projects | E154: =A154&" Consolidated detailed operational projects" -> Supporting Table SA38 Consolidated detailed operational projects | F154: =A154& " Detailed operational projects" -> Supporting Table SA38 Detailed operational projects
A156: Budget Charts | B156: Charts | C156: Cross reference
A157: Chart A1 | B157: =A157&"Revenue by Municipal Vote" -> Chart A1 Revenue by Municipal Vote
A158: Chart A2 | B158: =A158&"Expenditure by Municipal Vote" -> Chart A2 Expenditure by Municipal Vote
A159: Chart A3 | B159: =A159&"Revenue by Standard Classification" -> Chart A3 Revenue by Standard Classification | C159: A2
A160: Chart A4 | B160: =A160&"Expenditure by Standard Classification" -> Chart A4 Expenditure by Standard Classification | C160: A2
A161: Chart A5 | B161: =A161&"Revenue by Major Source (refer 'Minor' source for 'Other Revenue' allocation" -> Chart A5 Revenue by Major Source (refer 'Minor' source for 'Other Revenue' allocation | C161: A3
A162: Chart A6 | B162: =A162&"Revenue by Minor Source (Other)" -> Chart A6 Revenue by Minor Source (Other) | C162: A3
A163: Chart A7 | B163: =A163&"Expenditure by Major Type" -> Chart A7 Expenditure by Major Type | C163: A3
A164: Chart A8 | B164: =A164&"Expenditure by Minor Type (Other)" -> Chart A8 Expenditure by Minor Type (Other) | C164: A3
A165: Chart A9 | B165: =A165&"Capital Expenditure by Municipal Vote/Appropriation (Major)" -> Chart A9 Capital Expenditure by Municipal Vote/Appropriation (Major) | C165: A5
A166: Chart A10 | B166: =A166&"Capital Expenditure by Municipal Vote/Appropriation (Minor)" -> Chart A10 Capital Expenditure by Municipal Vote/Appropriation (Minor) | C166: A5
A167: Chart A11 | B167: =A166&"Capital Expenditure by Standard Classification" -> Chart A10 Capital Expenditure by Standard Classification | C167: A5
A168: Chart A12 | B168: =A168&"Capital expenditure performance trend" -> Chart A12 Capital expenditure performance trend | C168: A5
A169: Chart A13 | B169: =A169&"Capital funding by Source" -> Chart A13 Capital funding by Source | C169: A5
A170: Chart A14 | B170: =A170&"Cash flow trend" -> Chart A14 Cash flow trend | C170: A7
A171: Chart A15 | B171: =A171&"IDP Strategic Objective - Revenue" -> Chart A15 IDP Strategic Objective - Revenue | C171: Table A4
A172: Chart A16 | B172: =A172&"IDP Strategic Objective - Expenditure" -> Chart A16 IDP Strategic Objective - Expenditure | C172: Table A5
A173: Chart A17 | B173: =A173&"IDP Strategic Objective - Capital Expenditure" -> Chart A17 IDP Strategic Objective - Capital Expenditure | C173: Table A6
A174: Chart A18 | B174: =A174&"Debt (borrowing to Total Revenue)" -> Chart A18 Debt (borrowing to Total Revenue) | C174: Table A8
A175: Chart A19 | B175: =A175&"Debtors' trend analysis" -> Chart A19 Debtors' trend analysis | C175: Table A8
A176: Chart A20 | B176: =A176&"Distribution losses" -> Chart A20 Distribution losses | C176: Table A8
A177: Chart A21 | B177: =A177&"Borrowed funding of capital expenditure" -> Chart A21 Borrowed funding of capital expenditure | C177: Table A8
A178: Chart A22 | B178: =A178&"Expenditure analysis (% of Revenue)" -> Chart A22 Expenditure analysis (% of Revenue) | C178: Table A8
A179: Chart A23 | B179: =A179&"Increases in service charges" -> Chart A23 Increases in service charges | C179: Table A10

Sheet Lookup and lists (hidden)
A1: Description | B1: 2007 | C1: 2008 | D1: 2009 | E1: 2010 | F1: 2011 | G1: 2012 | H1: 2013 | I1: 2014 | J1: 2015 | K1: 2016 | L1: 2017 | M1: 2018 | N1: 2019 | O1: 2020 | Q1: Lists | Y1: Grants: | Z1: National - opex | AA1: Provincial - opex | AB1: National - capex | AC1: Provincial - capex
A2: ='Template names'!C2 -> Prior year -1 | B2: 2005/06 | C2: 2006/07 | D2: 2007/08 | E2: =E1-2&"/"&RIGHT(E1,2)-1 -> 2008/9 | F2: 2009/10 | G2: 2010/11 | H2: 2011/12 | I2: 2012/13 | J2: 2013/14 | K2: 2014/15 | L2: 2015/16 | M2: 2016/17 | N2: 2017/18 | O2: 2018/19 | Q2: Yes | R2: <1 | S2: <4 | T2: Market | U2: Land & impr. | V2: Yes | W2: Uniform | X2: Yrs | Z2: Local Government Equitable Share | AA2: Health subsidy | AB2: Municipal Infrastructure Grant (MIG) | AC2: Agriculture
A3: ='Template names'!C3 -> Prior year -2 | B3: 2004/05 | C3: 2005/06 | D3: 2006/07 | E3: =E1-3&"/"&RIGHT(E1,2)-2 -> 2007/8 | F3: 2008/9 | G3: 2009/10 | H3: 2010/11 | I3: 2011/12 | J3: 2012/13 | K3: 2013/14 | L3: 2014/15 | M3: 2015/16 | N3: 2016/17 | O3: 2017/18 | Q3: No | R3: 1 | S3: 4 | T3: Dep.Replace | U3: Land only | V3: No | W3: Variable | X3: Mths | Z3: RSC Levy Replacement | AA3: Ambulance subsidy | AB3: Public Transport and Systems | AC3: Education
A4: ='Template names'!C4 -> Prior year -3 | B4: 2003/04 | C4: 2004/05 | D4: 2005/06 | E4: =E1-4&"/"&RIGHT(E1,2)-3 -> 2006/7 | F4: 2007/8 | G4: 2008/9 | H4: 2009/10 | I4: 2010/11 | J4: 2011/12 | K4: 2012/13 | L4: 2013/14 | M4: 2014/15 | N4: 2015/16 | O4: 2016/17 | R4: 2 | S4: 5 | T4: Other | U4: Other | Z4: Finance Management | AA4: Housing | AB4: Rural Transport Services and Infrastructure | AC4: Health
A5: ='Template names'!C5 -> Year in which budget is being prepared | B5: Current Year 2006/07 | C5: Current Year 2007/08 | D5: Current Year 2008/09 | E5: ="Current Year "& E1-1&"/"&RIGHT(E1,2) -> Current Year 2009/10 | F5: Current Year 2010/11 | G5: Current Year 2011/12 | H5: Current Year 2012/13 | I5: Current Year 2013/14 | J5: Current Year 2014/15 | K5: Current Year 2015/16 | L5: Current Year 2016/17 | M5: Current Year 2017/18 | N5: Current Year 2018/19 | O5: Current Year 2019/20 | R5: 3 | S5: 6 | Z5: Municipal Systems Improvement | AA5: Sport and Recreation | AB5: Regional Bulk Infrastructure | AC5: Housing and Local Government
A6: ='Template names'!C6 -> Year in which budget is being prepared | B6: 2006/07 | C6: 2007/08 | D6: 2008/09 | E6: =E1-1&"/"&RIGHT(E1,2) -> 2009/10 | F6: 2010/11 | G6: 2011/12 | H6: 2012/13 | I6: 2013/14 | J6: 2014/15 | K6: 2015/16 | L6: 2016/17 | M6: 2017/18 | N6: 2018/19 | O6: 2019/20 | R6: 4 | S6: 6-10 | Z6: Water Services Operating Subsidy | AB6: Rural Households Infrastructure | AC6: Other Departments
A7: ='Template names'!C7 -> MTREF name | B7: 2007/08 Medium Term Revenue & Expenditure Framework | C7: 2008/09 Medium Term Revenue & Expenditure Framework | D7: 2009/10 Medium Term Revenue & Expenditure Framework | E7: =E1&"/"&RIGHT(E1,2)+1&" Medium Term Revenue & Expenditure Framework" -> 2010/11 Medium Term Revenue & Expenditure Framework | F7: 2011/12 Medium Term Revenue & Expenditure Framework | G7: 2012/13 Medium Term Revenue & Expenditure Framework | H7: 2013/14 Medium Term Revenue & Expenditure Framework | I7: 2014/15 Medium Term Revenue & Expenditure Framework | J7: 2015/16 Medium Term Revenue & Expenditure Framework | K7: 2016/17 Medium Term Revenue & Expenditure Framework | L7: 2017/18 Medium Term Revenue & Expenditure Framework | M7: 2018/19 Medium Term Revenue & Expenditure Framework | N7: 2019/20 Medium Term Revenue & Expenditure Framework | O7: 2020/21 Medium Term Revenue & Expenditure Framework | R7: 5 | S7: >10 | Z7: Energy Efficiency and Demand Management | AB7: Neighbourhood Development Partnership | AC7: Public Works, Roads, Transport
A8: ='Template names'!C15 -> 1st year of MTREF | B8: Budget Year 2007/08 | C8: Budget Year 2008/09 | D8: Budget Year 2009/10 | E8: ="Budget Year "&E1&"/"&RIGHT(E1,2)+1 -> Budget Year 2010/11 | F8: Budget Year 2011/12 | G8: Budget Year 2012/13 | H8: Budget Year 2013/14 | I8: Budget Year 2014/15 | J8: Budget Year 2015/16 | K8: Budget Year 2016/17 | L8: Budget Year 2017/18 | M8: Budget Year 2018/19 | N8: Budget Year 2019/20 | O8: Budget Year 2020/21 | R8: >5 | Z8: Integrated National Electrification Programme | AB8: 2010 FIFA World Cup Stadiums Development | AC8: Sport and Recreation
A9: ='Template names'!C16 -> 2nd year of MTREF | B9: Budget Year +1 2008/09 | C9: Budget Year +1 2009/10 | D9: Budget Year +1 2010/11 | E9: ="Budget Year +1 "&E1+1&"/"&RIGHT(E1,2)+2 -> Budget Year +1 2011/12 | F9: Budget Year +1 2012/13 | G9: Budget Year +1 2013/14 | H9: Budget Year +1 2014/15 | I9: Budget Year +1 2015/16 | J9: Budget Year +1 2016/17 | K9: Budget Year +1 2017/18 | L9: Budget Year +1 2018/19 | M9: Budget Year +1 2019/20 | N9: Budget Year +1 2020/21 | O9: Budget Year +1 2021/22 | Z9: Municipal Drought Relief
A10: ='Template names'!C17 -> 3rd year of MTREF | B10: Budget Year +2 2009/10 | C10: Budget Year +2 2010/11 | D10: Budget Year +2 2011/12 | E10: ="Budget Year +2 "&E1+2&"/"&RIGHT(E1,2)+3 -> Budget Year +2 2012/13 | F10: Budget Year +2 2013/14 | G10: Budget Year +2 2014/15 | H10: Budget Year +2 2015/16 | I10: Budget Year +2 2016/17 | J10: Budget Year +2 2017/18 | K10: Budget Year +2 2018/19 | L10: Budget Year +2 2019/20 | M10: Budget Year +2 2020/21 | N10: Budget Year +2 2021/22 | O10: Budget Year +2 2022/23 | Z10: 2010 FIFA World Cup Operating
A11: ='Template names'!C18 -> 1st yr of long term forecast | B11: Forecast 2010/11 | C11: Forecast 2011/12 | D11: Forecast 2012/13 | E11: ="Forecast "&E1+3&"/"&RIGHT(E1,2)+4 -> Forecast 2013/14 | F11: Forecast 2014/15 | G11: Forecast 2015/16 | H11: Forecast 2016/17 | I11: Forecast 2017/18 | J11: Forecast 2018/19 | K11: Forecast 2019/20 | L11: Forecast 2020/21 | M11: Forecast 2021/22 | N11: Forecast 2022/23 | O11: Forecast 2023/24 | Z11: Electricity Demand Side Management
A12: ='Template names'!C19 -> Next yr of long term forecast | B12: Forecast 2011/12 | C12: Forecast 2012/13 | D12: Forecast 2013/14 | E12: ="Forecast "&E1+4&"/"&RIGHT(E1,2)+5 -> Forecast 2014/15 | F12: Forecast 2015/16 | G12: Forecast 2016/17 | H12: Forecast 2017/18 | I12: Forecast 2018/19 | J12: Forecast 2019/20 | K12: Forecast 2020/21 | L12: Forecast 2021/22 | M12: Forecast 2022/23 | N12: Forecast 2023/24 | O12: Forecast 2024/25 | Z12: EPWP Incentive
A13: ='Template names'!C20 -> Next yr of long term forecast | B13: Forecast 2012/13 | C13: Forecast 2013/14 | D13: Forecast 2014/15 | E13: ="Forecast "&E1+5&"/"&RIGHT(E1,2)+6 -> Forecast 2015/16 | F13: Forecast 2016/17 | G13: Forecast 2017/18 | H13: Forecast 2018/19 | I13: Forecast 2019/20 | J13: Forecast 2020/21 | K13: Forecast 2021/22 | L13: Forecast 2022/23 | M13: Forecast 2023/24 | N13: Forecast 2024/25 | O13: Forecast 2025/26
A14: ='Template names'!C21 -> Next yr of long term forecast | B14: Forecast 2013/14 | C14: Forecast 2014/15 | D14: Forecast 2015/16 | E14: ="Forecast "&E1+6&"/"&RIGHT(E1,2)+7 -> Forecast 2016/17 | F14: Forecast 2017/18 | G14: Forecast 2018/19 | H14: Forecast 2019/20 | I14: Forecast 2020/21 | J14: Forecast 2021/22 | K14: Forecast 2022/23 | L14: Forecast 2023/24 | M14: Forecast 2024/25 | N14: Forecast 2025/26 | O14: Forecast 2026/27 | Z14: Asset Class | AA14: Asset sub-class old | AB14: Asset sub-class | AC14: IUDF | AD14: MTSF
A15: ='Template names'!C22 -> Next yr of long term forecast | B15: Forecast 2014/15 | C15: Forecast 2015/16 | D15: Forecast 2016/17 | E15: ="Forecast "&E1+7&"/"&RIGHT(E1,2)+8 -> Forecast 2017/18 | F15: Forecast 2018/19 | G15: Forecast 2019/20 | H15: Forecast 2020/21 | I15: Forecast 2021/22 | J15: Forecast 2022/23 | K15: Forecast 2023/24 | L15: Forecast 2024/25 | M15: Forecast 2025/26 | N15: Forecast 2026/27 | O15: Forecast 2027/28
A16: ='Template names'!C23 -> Next yr of long term forecast | B16: Forecast 2015/16 | C16: Forecast 2016/17 | D16: Forecast 2017/18 | E16: ="Forecast "&E1+8&"/"&RIGHT(E1,2)+9 -> Forecast 2018/19 | F16: Forecast 2019/20 | G16: Forecast 2020/21 | H16: Forecast 2021/22 | I16: Forecast 2022/23 | J16: Forecast 2023/24 | K16: Forecast 2024/25 | L16: Forecast 2025/26 | M16: Forecast 2026/27 | N16: Forecast 2027/28 | O16: Forecast 2028/29 | Z16: Roads Infrastructure | AA16: Roads, Pavements & Bridges | AB16: Roads | AC16: Spatial integration | AD16: Quality basic education
A17: ='Template names'!C24 -> Next yr of long term forecast | B17: Forecast 2016/17 | C17: Forecast 2017/18 | D17: Forecast 2018/19 | E17: ="Forecast "&E1+9&"/"&RIGHT(E1,2)+10 -> Forecast 2019/20 | F17: Forecast 2020/21 | G17: Forecast 2021/22 | H17: Forecast 2022/23 | I17: Forecast 2023/24 | J17: Forecast 2024/25 | K17: Forecast 2025/26 | L17: Forecast 2026/27 | M17: Forecast 2027/28 | N17: Forecast 2028/29 | O17: Forecast 2029/30 | Z17: Storm water Infrastructure | AA17: Storm water | AB17: Road Structures | AC17: Inclusion and access | AD17: A long and healthy life for all South Africans
A18: ='Template names'!C25 -> Next yr of long term forecast | B18: Forecast 2017/18 | C18: Forecast 2018/19 | D18: Forecast 2019/20 | E18: ="Forecast "&E1+10&"/"&RIGHT(E1,2)+11 -> Forecast 2020/21 | F18: Forecast 2021/22 | G18: Forecast 2022/23 | H18: Forecast 2023/24 | I18: Forecast 2024/25 | J18: Forecast 2025/26 | K18: Forecast 2026/27 | L18: Forecast 2027/28 | M18: Forecast 2028/29 | N18: Forecast 2029/30 | O18: Forecast 2030/31 | Z18: Electrical Infrastructure | AA18: Generation | AB18: Road Furniture | AC18: Growth | AD18: All people in South Africa are and feel safe
A19: ='Template names'!C26 -> Next yr of long term forecast | B19: Forecast 2018/19 | C19: Forecast 2019/20 | D19: Forecast 2020/21 | E19: ="Forecast "&E1+11&"/"&RIGHT(E1,2)+12 -> Forecast 2021/22 | F19: Forecast 2022/23 | G19: Forecast 2023/24 | H19: Forecast 2024/25 | I19: Forecast 2025/26 | J19: Forecast 2026/27 | K19: Forecast 2027/28 | L19: Forecast 2028/29 | M19: Forecast 2029/30 | N19: Forecast 2030/31 | O19: Forecast 2031/32 | Z19: Water Supply Infrastructure | AA19: Transmission & Reticulation | AB19: Capital Spares | AC19: Governance | AD19: Decent employment through inclusive growth
A20: ='Template names'!C27 -> Next yr of long term forecast | B20: Forecast 2019/20 | C20: Forecast 2020/21 | D20: Forecast 2021/22 | E20: ="Forecast "&E1+12&"/"&RIGHT(E1,2)+13 -> Forecast 2022/23 | F20: Forecast 2023/24 | G20: Forecast 2024/25 | H20: Forecast 2025/26 | I20: Forecast 2026/27 | J20: Forecast 2027/28 | K20: Forecast 2028/29 | L20: Forecast 2029/30 | M20: Forecast 2030/31 | N20: Forecast 2031/32 | O20: Forecast 2032/33 | Z20: Sanitation Infrastructure | AA20: Street Lighting | AB20: Drainage Collection | AD20: A skilled and capable workforce to support an inclusive growth path
A21: ='Template names'!C28 -> Next yr of long term forecast | B21: Forecast 2020/21 | C21: Forecast 2021/22 | D21: Forecast 2022/23 | E21: ="Forecast "&E1+13&"/"&RIGHT(E1,2)+14 -> Forecast 2023/24 | F21: Forecast 2024/25 | G21: Forecast 2025/26 | H21: Forecast 2026/27 | I21: Forecast 2027/28 | J21: Forecast 2028/29 | K21: Forecast 2029/30 | L21: Forecast 2030/31 | M21: Forecast 2031/32 | N21: Forecast 2032/33 | O21: Forecast 2033/34 | Z21: Solid Waste Infrastructure | AA21: Dams & Reservoirs | AB21: Storm water Conveyance | AD21: An efficient, competitive and responsive economic infrastructure network
A22: ='Template names'!C29 -> Next yr of long term forecast | B22: Forecast 2021/22 | C22: Forecast 2022/23 | D22: Forecast 2023/24 | E22: ="Forecast "&E1+14&"/"&RIGHT(E1,2)+15 -> Forecast 2024/25 | F22: Forecast 2025/26 | G22: Forecast 2026/27 | H22: Forecast 2027/28 | I22: Forecast 2028/29 | J22: Forecast 2029/30 | K22: Forecast 2030/31 | L22: Forecast 2031/32 | M22: Forecast 2032/33 | N22: Forecast 2033/34 | O22: Forecast 2034/35 | Z22: Rail Infrastructure | AA22: Water purification | AB22: Attenuation | AD22: Vibrant, equitable, sustainable rural communities contributing towards food security for all
A23: Adjustments Budget | B23: Annual target 2007/08 | C23: Annual target 2008/09 | D23: Annual target 2009/10 | E23: ="Annual target " & E1&"/"&RIGHT(E1,2)+1 -> Annual target 2010/11 | F23: Annual target 2011/12 | G23: Annual target 2012/13 | H23: Annual target 2013/14 | I23: Annual target 2014/15 | J23: Annual target 2015/16 | K23: Annual target 2016/17 | L23: Annual target 2017/18 | M23: Annual target 2018/19 | N23: Annual target 2019/20 | O23: Annual target 2020/21 | Z23: Coastal Infrastructure | AA23: Reticulation | AB23: Power Plants | AD23: Sustainable human settlements and improved quality of household life
A24: =A23 -> Adjustments Budget | B24: Revised target 2007/08 | C24: Revised target 2008/09 | D24: Revised target 2009/10 | E24: ="Revised target "& E1&"/"&RIGHT(E1,2)+1 -> Revised target 2010/11 | F24: Revised target 2011/12 | G24: Revised target 2012/13 | H24: Revised target 2013/14 | I24: Revised target 2014/15 | J24: Revised target 2015/16 | K24: Revised target 2016/17 | L24: Revised target 2017/18 | M24: Revised target 2018/19 | N24: Revised target 2019/20 | O24: Revised target 2020/21 | Z24: Information and Communication Infrastructure | AA24: Sewerage purification | AB24: HV Substations | AD24: Responsive, accountable, effective and efficient local government
A25: NOTE: This sheet should not be directly amended - select headings from sheet 'S' | Z25: Community Facilities | AA25: Waste Management | AB25: HV Switching Station | AD25: Protect and enhance our environmental assets and natural resources
Z26: Sport and Recreation Facilities | AA26: Transportation | AB26: HV Transmission Conductors | AD26: Create a better South Africa and contribute to a better Africa and a better world
A27: Name link | B27: 144 | Z27: Heritage assets | AA27: Gas | AB27: MV Substations | AD27: An efficient, effective and development-oriented public service
A28: Name of Muni | B28: =INDEX(B29:B307,B27,1) -> DC35 Capricorn | Z28: Revenue Generating | AA28: Parks & gardens | AB28: MV Switching Stations | AD28: A comprehensive, responsive and sustainable social protection system
B29: Choose name from list | C29: Set name on 'Instructions' sheet | Z29: Non-revenue Generating | AA29: Sportsfields & stadia | AB29: MV Networks | AD29: A diverse, socially cohesive society with a common national identity
B30: BUF Buffalo City | C30: EC EASTERN CAPE | Z30: Operational Buildings | AA30: Swimming pools | AB30: LV Networks
B31: NMA Nelson Mandela Bay | C31: EC EASTERN CAPE | Z31: Housing | AA31: Community halls | AB31: Capital Spares
B32: EC101 Dr Beyers Naude | C32: EC EASTERN CAPE | Z32: Biological or Cultivated Assets | AA32: Libraries | AB32: Dams and Weirs
B33: EC102 Blue Crane Route | C33: EC EASTERN CAPE | Z33: Servitudes | AA33: Recreational facilities | AB33: Boreholes
B34: EC104 Makana | C34: EC EASTERN CAPE | Z34: Licences and Rights | AA34: Fire, safety & emergency | AB34: Reservoirs
B35: EC105 Ndlambe | C35: EC EASTERN CAPE | Z35: Computer Equipment | AA35: Security and policing | AB35: Pump Stations
B36: EC106 Sundays River Valley | C36: EC EASTERN CAPE | Z36: Furniture and Office Equipment | AA36: Buses | AB36: Water Treatment Works
B37: EC108 Kouga | C37: EC EASTERN CAPE | Z37: Machinery and Equipment | AA37: Clinics | AB37: Bulk Mains
B38: EC109 Kou-Kamma | C38: EC EASTERN CAPE | Z38: Transport Assets | AA38: Museums & Art Galleries | AB38: Distribution
B39: DC10 Sarah Baartman | C39: EC EASTERN CAPE | Z39: Land | AA39: Cemeteries | AB39: Distribution Points
B40: EC121 Mbhashe | C40: EC EASTERN CAPE | Z40: Zoo's, Marine and Non-biological Animals | AA40: Social rental housing | AB40: PRV Stations
B41: EC122 Mnquma | C41: EC EASTERN CAPE | AA41: Buildings | AB41: Capital Spares
B42: EC123 Great Kei | C42: EC EASTERN CAPE | AA42: Housing development | AB42: Pump Station
B43: EC124 Amahlathi | C43: EC EASTERN CAPE | AA43: General vehicles | AB43: Reticulation
B44: EC126 Ngqushwa | C44: EC EASTERN CAPE | AA44: Specialised vehicles - Refuse | AB44: Waste Water Treatment Works
B45: EC129 Raymond Mhlaba | C45: EC EASTERN CAPE | AA45: Specialised vehicles - Fire | AB45: Outfall Sewers
B46: DC12 Amathole | C46: EC EASTERN CAPE | AA46: Specialised vehicles - Conservancy | AB46: Toilet Facilities
B47: EC131 Inxuba Yethemba | C47: EC EASTERN CAPE | AA47: Specialised vehicles - Ambulances | AB47: Capital Spares
B48: EC135 Intsika Yethu | C48: EC EASTERN CAPE | AA48: Plant & equipment | AB48: Landfill Sites
B49: EC136 Emalahleni (Ec) | C49: EC EASTERN CAPE | AA49: Computers - hardware/equipment | AB49: Waste Transfer Stations
B50: EC137 Engcobo | C50: EC EASTERN CAPE | AA50: Furniture and other office equipment | AB50: Waste Processing Facilities
B51: EC138 Sakhisizwe | C51: EC EASTERN CAPE | AA51: Abattoirs | AB51: Waste Drop-off Points
B52: EC139 Enoch Mgijima | C52: EC EASTERN CAPE | AA52: Markets | AB52: Waste Separation Facilities
B53: DC13 Chris Hani | C53: EC EASTERN CAPE | AA53: Civic Land and Buildings | AB53: Electricity Generation Facilities
B54: EC141 Elundini | C54: EC EASTERN CAPE | AA54: Other Buildings | AB54: Capital Spares
B55: EC142 Senqu | C55: EC EASTERN CAPE | AA55: Other Land | AB55: Rail Lines
B56: EC145 Walter Sisulu | C56: EC EASTERN CAPE | AA56: Surplus Assets - (Investment or Inventory) | AB56: Rail Structures
B57: DC14 Joe Gqabi | C57: EC EASTERN CAPE | AA57: Computers - software & programming | AB57: Rail Furniture
B58: EC153 Ngquza Hills | C58: EC EASTERN CAPE | AA58: Other | AB58: Drainage Collection
B59: EC154 Port St Johns | C59: EC EASTERN CAPE | AB59: Storm water Conveyance
B60: EC155 Nyandeni | C60: EC EASTERN CAPE | Z60: SA16 - Investments | AB60: Attenuation
B61: EC156 Mhlontlo | C61: EC EASTERN CAPE | Z61: Security | AA61: Interest rate | AB61: MV Substations
B62: EC157 King Sabata Dalindyebo | C62: EC EASTERN CAPE | Z62: Yes | AA62: Fixed | AB62: LV Networks
B63: DC15 O .R. Tambo | C63: EC EASTERN CAPE | Z63: No | AA63: Variable | AB63: Capital Spares
B64: EC441 Matatiele | C64: EC EASTERN CAPE | AB64: Sand Pumps
B65: EC442 Umzimvubu | C65: EC EASTERN CAPE | AB65: Piers
B66: EC443 Mbizana | C66: EC EASTERN CAPE | Z66: SA36, SA37 - Capital projects | AB66: Revetments
B67: EC444 Ntabankulu | C67: EC EASTERN CAPE | Z67: Yes | AB67: Promenades
B68: DC44 Alfred Nzo | C68: EC EASTERN CAPE | Z68: No | AB68: Capital Spares
B69: MAN Mangaung | C69: FS FREE STATE | AB69: Data Centres
B70: FS161 Letsemeng | C70: FS FREE STATE | AB70: Core Layers
B71: FS162 Kopanong | C71: FS FREE STATE | AB71: Distribution Layers
B72: FS163 Mohokare | C72: FS FREE STATE | AB72: Capital Spares
B73: DC16 Xhariep | C73: FS FREE STATE | AB73: Halls
B74: FS181 Masilonyana | C74: FS FREE STATE | AB74: Centres
B75: FS182 Tokologo | C75: FS FREE STATE | AB75: Crèches
B76: FS183 Tswelopele | C76: FS FREE STATE | AB76: Clinics/Care Centres
B77: FS184 Matjhabeng | C77: FS FREE STATE | AB77: Fire/Ambulance Stations
B78: FS185 Nala | C78: FS FREE STATE | AB78: Testing Stations
B79: DC18 Lejweleputswa | C79: FS FREE STATE | AB79: Museums
B80: FS191 Setsoto | C80: FS FREE STATE | AB80: Galleries
B81: FS192 Dihlabeng | C81: FS FREE STATE | AB81: Theatres
B82: FS193 Nketoana | C82: FS FREE STATE | AB82: Libraries
B83: FS194 Maluti-a-Phofung | C83: FS FREE STATE | AB83: Cemeteries/Crematoria
B84: FS195 Phumelela | C84: FS FREE STATE | AB84: Police
B85: FS196 Mantsopa | C85: FS FREE STATE | AB85: Purls
B86: DC19 Thabo Mofutsanyana | C86: FS FREE STATE | AB86: Public Open Space
B87: FS201 Moqhaka | C87: FS FREE STATE | AB87: Nature Reserves
B88: FS203 Ngwathe | C88: FS FREE STATE | AB88: Public Ablution Facilities
B89: FS204 Metsimaholo | C89: FS FREE STATE | AB89: Markets
B90: FS205 Mafube | C90: FS FREE STATE | AB90: Stalls
B91: DC20 Fezile Dabi | C91: FS FREE STATE | AB91: Abattoirs
B92: EKU City of Ekurhuleni | C92: GT GAUTENG | AB92: Airports
B93: JHB City Of Johannesburg | C93: GT GAUTENG | AB93: Taxi Ranks/Bus Terminals
B94: TSH City Of Tshwane | C94: GT GAUTENG | AB94: Capital Spares
B95: GT421 Emfuleni | C95: GT GAUTENG | AB95: Indoor Facilities
B96: GT422 Midvaal | C96: GT GAUTENG | AB96: Outdoor Facilities
B97: GT423 Lesedi | C97: GT GAUTENG | AB97: Capital Spares
B98: DC42 Sedibeng | C98: GT GAUTENG | AB98: Monuments
B99: GT481 Mogale City | C99: GT GAUTENG | AB99: Historic Buildings
B100: GT484 Merafong City | C100: GT GAUTENG | AB100: Works of Art
B101: GT485 Rand West City | C101: GT GAUTENG | AB101: Conservation Areas
B102: DC48 West Rand | C102: GT GAUTENG | AB102: Other Heritage
B103: ETH eThekwini | C103: KZN KWAZULU-NATAL | AB103: Improved Property
B104: KZN212 Umdoni | C104: KZN KWAZULU-NATAL | AB104: Unimproved Property
B105: KZN213 Umzumbe | C105: KZN KWAZULU-NATAL | AB105: Municipal Offices
B106: KZN214 uMuziwabantu | C106: KZN KWAZULU-NATAL | AB106: Pay/Enquiry Points
B107: KZN216 Ray Nkonyeni | C107: KZN KWAZULU-NATAL | AB107: Building Plan Offices
B108: DC21 Ugu | C108: KZN KWAZULU-NATAL | AB108: Workshops
B109: KZN221 uMshwathi | C109: KZN KWAZULU-NATAL | AB109: Yards
B110: KZN222 uMngeni | C110: KZN KWAZULU-NATAL | AB110: Stores
B111: KZN223 Mpofana | C111: KZN KWAZULU-NATAL | AB111: Laboratories
B112: KZN224 Impendle | C112: KZN KWAZULU-NATAL | AB112: Training Centres
B113: KZN225 Msunduzi | C113: KZN KWAZULU-NATAL | AB113: Manufacturing Plant
B114: KZN226 Mkhambathini | C114: KZN KWAZULU-NATAL | AB114: Depots
B115: KZN227 Richmond | C115: KZN KWAZULU-NATAL | AB115: Capital Spares
B116: DC22 uMgungundlovu | C116: KZN KWAZULU-NATAL | AB116: Staff Housing
B117: KZN235 Okhahlamba | C117: KZN KWAZULU-NATAL | AB117: Social Housing
B118: KZN237 Inkosi Langalibalele | C118: KZN KWAZULU-NATAL | AB118: Capital Spares
B119: KZN238 Alfred Duma | C119: KZN KWAZULU-NATAL | AB119: Water Rights
B120: DC23 Uthukela | C120: KZN KWAZULU-NATAL | AB120: Effluent Licenses
B121: KZN241 Endumeni | C121: KZN KWAZULU-NATAL | AB121: Solid Waste Licenses
B122: KZN242 Nquthu | C122: KZN KWAZULU-NATAL | AB122: Computer Software and Applications
B123: KZN244 Msinga | C123: KZN KWAZULU-NATAL | AB123: Load Settlement Software Applications
B124: KZN245 Umvoti | C124: KZN KWAZULU-NATAL | AB124: Unspecified
B125: DC24 Umzinyathi | C125: KZN KWAZULU-NATAL
B126: KZN252 Newcastle | C126: KZN KWAZULU-NATAL
B127: KZN253 Emadlangeni | C127: KZN KWAZULU-NATAL
B128: KZN254 Dannhauser | C128: KZN KWAZULU-NATAL
B129: DC25 Amajuba | C129: KZN KWAZULU-NATAL
B130: KZN261 eDumbe | C130: KZN KWAZULU-NATAL
B131: KZN262 uPhongolo | C131: KZN KWAZULU-NATAL
B132: KZN263 Abaqulusi | C132: KZN KWAZULU-NATAL
B133: KZN265 Nongoma | C133: KZN KWAZULU-NATAL
B134: KZN266 Ulundi | C134: KZN KWAZULU-NATAL
B135: DC26 Zululand | C135: KZN KWAZULU-NATAL
B136: KZN271 Umhlabuyalingana | C136: KZN KWAZULU-NATAL
B137: KZN272 Jozini | C137: KZN KWAZULU-NATAL
B138: KZN275 Mtubatuba | C138: KZN KWAZULU-NATAL
B139: KZN276 Hlabisa Big Five | C139: KZN KWAZULU-NATAL
B140: DC27 Umkhanyakude | C140: KZN KWAZULU-NATAL
B141: KZN281 Mfolozi | C141: KZN KWAZULU-NATAL
B142: KZN282 uMhlathuze | C142: KZN KWAZULU-NATAL
B143: KZN284 uMlalazi | C143: KZN KWAZULU-NATAL
B144: KZN285 Mthonjaneni | C144: KZN KWAZULU-NATAL
B145: KZN286 Nkandla | C145: KZN KWAZULU-NATAL
B146: DC28 King Cetshwayo | C146: KZN KWAZULU-NATAL
B147: KZN291 Mandeni | C147: KZN KWAZULU-NATAL
B148: KZN292 KwaDukuza | C148: KZN KWAZULU-NATAL
B149: KZN293 Ndwedwe | C149: KZN KWAZULU-NATAL
B150: KZN294 Maphumulo | C150: KZN KWAZULU-NATAL
B151: DC29 iLembe | C151: KZN KWAZULU-NATAL
B152: KZN433 Greater Kokstad | C152: KZN KWAZULU-NATAL
B153: KZN434 Ubuhlebezwe | C153: KZN KWAZULU-NATAL
B154: KZN435 Umzimkhulu | C154: KZN KWAZULU-NATAL
B155: KZN436 Dr Nkosazana Dlamini Zuma | C155: KZN KWAZULU-NATAL
B156: DC43 Harry Gwala | C156: KZN KWAZULU-NATAL
B157: LIM331 Greater Giyani | C157: LIM LIMPOPO
B158: LIM332 Greater Letaba | C158: LIM LIMPOPO
B159: LIM333 Greater Tzaneen | C159: LIM LIMPOPO
B160: LIM334 Ba-Phalaborwa | C160: LIM LIMPOPO
B161: LIM335 Maruleng | C161: LIM LIMPOPO
B162: DC33 Mopani | C162: LIM LIMPOPO
B163: LIM341 Musina | C163: LIM LIMPOPO
B164: LIM343 Thulamela | C164: LIM LIMPOPO
B165: LIM344 Makhado | C165: LIM LIMPOPO
B166: LIM345 Collins Chabane | C166: LIM LIMPOPO
B167: DC34 Vhembe | C167: LIM LIMPOPO
B168: LIM351 Blouberg | C168: LIM LIMPOPO
B169: LIM353 Molemole | C169: LIM LIMPOPO
B170: LIM354 Polokwane | C170: LIM LIMPOPO
B171: LIM355 Lepelle-Nkumpi | C171: LIM LIMPOPO
B172: DC35 Capricorn | C172: LIM LIMPOPO
B173: LIM361 Thabazimbi | C173: LIM LIMPOPO
B174: LIM362 Lephalale | C174: LIM LIMPOPO
B175: LIM366 Bela Bela | C175: LIM LIMPOPO
B176: LIM367 Mogalakwena | C176: LIM LIMPOPO
B177: LIM368 Modimolle-Mookgopong | C177: LIM LIMPOPO
B178: DC36 Waterberg | C178: LIM LIMPOPO
B179: LIM471 Ephraim Mogale | C179: LIM LIMPOPO
B180: LIM472 Elias Motsoaledi | C180: LIM LIMPOPO
B181: LIM473 Makhuduthamaga | C181: LIM LIMPOPO
B182: LIM476 Tubatse Fetakgomo | C182: LIM LIMPOPO
B183: DC47 Sekhukhune | C183: LIM LIMPOPO
B184: MP301 Albert Luthuli | C184: MP MPUMALANGA
B185: MP302 Msukaligwa | C185: MP MPUMALANGA
B186: MP303 Mkhondo | C186: MP MPUMALANGA
B187: MP304 Pixley Ka Seme (MP) | C187: MP MPUMALANGA
B188: MP305 Lekwa | C188: MP MPUMALANGA
B189: MP306 Dipaleseng | C189: MP MPUMALANGA
B190: MP307 Govan Mbeki | C190: MP MPUMALANGA
B191: DC30 Gert Sibande | C191: MP MPUMALANGA
B192: MP311 Victor Khanye | C192: MP MPUMALANGA
B193: MP312 Emalahleni (Mp) | C193: MP MPUMALANGA
B194: MP313 Steve Tshwete | C194: MP MPUMALANGA
B195: MP314 Emakhazeni | C195: MP MPUMALANGA
B196: MP315 Thembisile Hani | C196: MP MPUMALANGA
B197: MP316 Dr J.S. Moroka | C197: MP MPUMALANGA
B198: DC31 Nkangala | C198: MP MPUMALANGA
B199: MP321 Thaba Chweu | C199: MP MPUMALANGA
B200: MP324 Nkomazi | C200: MP MPUMALANGA
... 87 more rows

Sheet Org structure
A1: Organisational Structure Votes | C1: Organisational Structure Sub-Votes | E1: Display Sub-Votes
A2: Vote 1 - Municipal governance and administration | B2: Vote 1 | C2: Municipal governance and administration
A3: Vote 2 - Community and social services | B3: 1.1 | C3: Executive and council | D3: =CONCATENATE(B3, " - ", C3) -> 1,1 - Executive and council | E3: 1,1 - Executive and council
A4: Vote 3 - Economic and environmental services | B4: 1.2 | C4: Finance and administration | D4: 1,2 - Finance and administration | E4: 1,2 - Finance and administration
A5: Vote 4 - Trading services | B5: 1.3 | C5: Internal audit | D5: 1,3 - Internal audit | E5: 1,3 - Internal audit
B6: 1.4 | D6: 1,4 -
B7: 1.5 | D7: 1,5 -
B8: 1.6 | D8: 1,6 -
B9: 1.7 | D9: 1,7 -
B10: 1.8 | D10: 1,8 -
B11: 1.9 | D11: 1,9 -
B12: 1.10 | D12: 1.10 -
B13: Vote 2 | C13: Community and public safety
B14: 2.1 | C14: Recreational Facilities | D14: =CONCATENATE(B14, " - ", C14) -> 2,1 - Recreational Facilities | E14: 2,1 - Recreational Facilities
B15: 2.2 | C15: Disaster Management | D15: 2,2 - Disaster Management | E15: 2,2 - Disaster Management
B16: 2.3 | C16: Public safety | D16: 2,3 - Public safety | E16: 2,3 - Public safety
B17: 2.4 | C17: Health | D17: 2,4 - Health | E17: 2,4 - Health
B18: 2.5 | D18: 2,5 -
B19: 2.6 | D19: 2,6 -
B20: 2.7 | D20: 2,7 -
B21: 2.8 | D21: 2,8 -
B22: 2.9 | D22: 2,9 -
B23: 2.10 | D23: 2.10 -
B24: Vote 3 | C24: Economic and environmental services
B25: 3.1 | C25: Planning and development | D25: =CONCATENATE(B25, " - ", C25) -> 3,1 - Planning and development | E25: 3,1 - Planning and development
B26: 3.2 | C26: Road transport | D26: 3,2 - Road transport | E26: 3,2 - Road transport
B27: 3.3 | C27: Environmental protection | D27: 3,3 - Environmental protection | E27: 3,3 - Environmental protection
B28: 3.4 | D28: 3,4 -
B29: 3.5 | D29: 3,5 -
B30: 3.6 | D30: 3,6 -
B31: 3.7 | D31: 3,7 -
B32: 3.8 | D32: 3,8 -
B33: 3.9 | D33: 3,9 -
B34: 3.10 | D34: 3.10 -
B35: Vote 4 | C35: Trading services
B36: 4,1 | C36: Energy Sources | D36: =CONCATENATE(B36, " - ", C36) -> 4,1 - Energy Sources | E36: 4,1 - EnergySources
B37: 4,2 | C37: Water Treatment | D37: 4,2 - Water Treatment | E37: 4,2 - Water Treatment
B38: 4,3 | C38: Water Distribution | D38: 4,3 - Water Distribution | E38: 4,2 - Water Distribution
B39: 4.4 | D39: 4,4 -
B40: 4.5 | D40: 4,5 -
B41: 4.6 | D41: 4,6 -
B42: 4.7 | D42: 4,7 -
B43: 4.8 | D43: 4,8 -
B44: 4.9 | D44: 4,9 -
B45: 4.10 | D45: 4.10 -

Sheet Contacts
A1: =muni&" - "&" Contact Information" -> DC35 Capricorn - Contact Information
A3: A. GENERAL INFORMATION
A4: Municipality | B4: Capricorn District Municipality | C4: =IF(B4="Choose name from List","Set name on 'Instructions' sheet", "") -> 
A6: Grade | C6: 1 Grade in terms of the Remuneration of Public Office Bearers Act.
A8: Province | B8: LIM LIMPOPO
A10: Web Address | B10: www.cdm.org.za
A12: e-mail Address | B12: communications@cdm.org.za
A14: B. CONTACT INFORMATION
A15: Postal address:
A16: P.O. Box | B16: 4100
A17: City / Town | B17: Polokwane
A18: Postal Code | B18: 700
A20: Street address
A21: Building | B21: Capricorn District Municipality
A22: Street No. & Name | B22: 41 Biccard street
A23: City / Town | B23: Polokwane
A24: Postal Code | B24: 700
A26: General Contacts
A27: Telephone number | B27: 0152941000
A28: Fax number | B28: 0152957288
A30: C. POLITICAL LEADERSHIP
A31: Speaker: | C31: Secretary/PA to the Speaker:
A32: ID Number | B32: 6709010669083 | C32: ID Number
A33: Title | B33: Mrs | C33: Title
A34: Name | B34: Monica Mohale | C34: Name
A35: Telephone number | B35: 015 294 1229 | C35: Telephone number
A36: Cell number | B36: 082 748 7275 | C36: Cell number
A37: Fax number | B37: 015 291 5959 | C37: Fax number
A38: E-mail address | B38: mohalem@cdm.org.za | C38: E-mail address
A40: Mayor/Executive Mayor: | C40: Secretary/PA to the Mayor/Executive Mayor:
A41: ID Number | B41: 700317 6104 088 | C41: ID Number | D41: 771019 0470 085
A42: Title | B42: Mr | C42: Title | D42: Ms
A43: Name | B43: John Mpe | C43: Name | D43: Tebogo Nkoana
A44: Telephone number | B44: 015 294 1200 | C44: Telephone number | D44: 015 294 1201
A45: Cell number | B45: '082 441 7453 | C45: Cell number | D45: ^072 312 0740
A46: Fax number | B46: 015 295 4010 | C46: Fax number | D46: 015 295 4010
A47: E-mail address | B47: mpej@cdm.org.za | C47: E-mail address | D47: nkoanat@cdm.org.za
A49: Deputy Mayor/Executive Mayor: | C49: Secretary/PA to the Deputy Mayor/Executive Mayor:
A50: ID Number | C50: ID Number
A51: Title | C51: Title
A52: Name | C52: Name
A53: Telephone number | C53: Telephone number
A54: Cell number | C54: Cell number
A55: Fax number | C55: Fax number
A56: E-mail address | C56: E-mail address
A58: D. MANAGEMENT LEADERSHIP
A59: Municipal Manager: | C59: Secretary/PA to the Municipal Manager:
A60: ID Number | B60: 6905300302084 | C60: ID Number | D60: 8008110050080
A61: Title | B61: Ms | C61: Title | D61: Mrs
A62: Name | B62: Nokuthula Mazibuko | C62: Name | D62: Felicity Louw
A63: Telephone number | B63: 015 294 1076 | C63: Telephone number | D63: 015 294 1076
A64: Cell number | B64: '0711209138 | C64: Cell number | D64: 071 612 9549
A65: Fax number | B65: '015 294 1292 | C65: Fax number | D65: 086 292 1660
A66: E-mail address | B66: mazibukon@cdm.org.za | C66: E-mail address | D66: louwf@cdm.org.za
A68: Chief Financial Officer | C68: Secretary/PA to the Chief Financial Officer
A69: ID Number | B69: '8304235461082 | C69: ID Number | D69: 8207310591089
A70: Title | B70: Mr | C70: Title | D70: Ms
A71: Name | B71: Thabo Nonyane | C71: Name | D71: Ruth Mashaphu
A72: Telephone number | B72: 0152941069 | C72: Telephone number | D72: 015 294 1058
A73: Cell number | B73: '0747753294 | C73: Cell number | D73: 071 331 7716
A74: Fax number | B74: 015 295 7288 | C74: Fax number | D74: 015 295 7288
A75: E-mail address | B75: nonyanet@cdm.org.za | C75: E-mail address | D75: mashaphur@cdm.org.za
A77: Official responsible for submitting financial information | C77: Official responsible for submitting financial information
A78: ID Number | B78: 7707050001083 | C78: ID Number | D78: 760114 0305085
A79: Title | B79: Mrs | C79: Title | D79: Mrs
A80: Name | B80: Mariette Venter | C80: Name | D80: Pascaline Ramutsindela
A81: Telephone number | B81: 015 294 1094 | C81: Telephone number | D81: 015 294 1090
A82: Cell number | B82: 082 337 1067 | C82: Cell number | D82: 082 455 1915
A83: Fax number | B83: 086 514 9161 | C83: Fax number | D83: 015 295 7288
A84: E-mail address | B84: venterm@cdm.org.za | C84: E-mail address | D84: ramutsindelap@cdm.org.za
A85: Official responsible for submitting financial information | C85: Official responsible for submitting financial information
A86: ID Number | B86: 8202250540089 | C86: ID Number | D86: 8512300716087
A87: Title | B87: Ms | C87: Title | D87: Mrs
A88: Name | B88: Hilda Bopape | C88: Name | D88: Lindiwe Pholoana
A89: Telephone number | B89: 015 294 1113 | C89: Telephone number | D89: 015 294 1014
A90: Cell number | B90: 072 372 9397 | C90: Cell number | D90: 083 450 9209
A91: Fax number | B91: 015 295 7288 | C91: Fax number | D91: 015 295 7288
A92: E-mail address | B92: bopapeh@cdm.org.za | C92: E-mail address | D92: pholoanal@cdm.org.za
A93: Official responsible for submitting financial information | C93: Official responsible for submitting financial information
A94: ID Number | C94: ID Number
A95: Title | C95: Title
A96: Name | C96: Name
A97: Telephone number | C97: Telephone number
A98: Cell number | C98: Cell number
A99: Fax number | C99: Fax number
A100: E-mail address | C100: E-mail address
A101: Official responsible for submitting financial information | C101: Official responsible for submitting financial information
A102: ID Number | C102: ID Number
A103: Title | C103: Title
A104: Name | C104: Name
A105: Telephone number | C105: Telephone number
A106: Cell number | C106: Cell number
A107: Fax number | C107: Fax number
A108: E-mail address | C108: E-mail address
A109: Official responsible for submitting financial information | C109: Official responsible for submitting financial information
A110: ID Number | C110: ID Number
A111: Title | C111: Title
A112: Name | C112: Name
A113: Telephone number | C113: Telephone number
A114: Cell number | C114: Cell number
A115: Fax number | C115: Fax number
A116: E-mail address | C116: E-mail address
A117: Official responsible for submitting financial information | C117: Official responsible for submitting financial information
A118: ID Number | C118: ID Number
A119: Title | C119: Title
A120: Name | C120: Name
A121: Telephone number | C121: Telephone number
A122: Cell number | C122: Cell number
A123: Fax number | C123: Fax number
A124: E-mail address | C124: E-mail address
A125: Official responsible for submitting financial information | C125: Official responsible for submitting financial information
A126: ID Number | C126: ID Number
A127: Title | C127: Title
A128: Name | C128: Name
A129: Telephone number | C129: Telephone number
A130: Cell number | C130: Cell number
A131: Fax number | C131: Fax number
A132: E-mail address | C132: E-mail address
A133: Official responsible for submitting financial information
A134: ID Number
A135: Title
A136: Name
A137: Telephone number
A138: Cell number
A139: Fax number
A140: E-mail address

Sheet A1-Sum
A1: =muni&" - "&Approve1 -> DC35 Capricorn - Table A1 Budget Summary
A2: =desc -> Description | B2: =head1b -> 2016/17 | C2: =head1A -> 2017/18 | D2: =Head1 -> 2018/19 | E2: =Head2 -> Current Year 2019/20 | I2: =Head3 -> 2020/21 Medium Term Revenue & Expenditure Framework
A3: R thousands | B3: =Head5 -> Audited Outcome | C3: =Head5 -> Audited Outcome | D3: =Head5 -> Audited Outcome | E3: =Head6 -> Original Budget | F3: =Head7 -> Adjusted Budget | G3: =Head8 -> Full Year Forecast | H3: =Head5b -> Pre-audit outcome | I3: =Head9 -> Budget Year 2020/21 | J3: =Head10 -> Budget Year +1 2021/22 | K3: =Head11 -> Budget Year +2 2022/23
A4: Financial Performance
A5: Property rates | B5: ='A4-FinPerf RE'!C5 -> 0 | C5: ='A4-FinPerf RE'!D5 -> 0 | D5: ='A4-FinPerf RE'!E5 -> 0 | E5: ='A4-FinPerf RE'!F5 -> 0 | F5: ='A4-FinPerf RE'!G5 -> 0 | G5: ='A4-FinPerf RE'!H5 -> 0 | H5: ='A4-FinPerf RE'!I5 -> 0 | I5: ='A4-FinPerf RE'!J5 -> 0 | J5: ='A4-FinPerf RE'!K5 -> 0 | K5: ='A4-FinPerf RE'!L5 -> 0
A6: Service charges | B6: =SUM('A4-FinPerf RE'!C6:C9) -> 0 | C6: =SUM('A4-FinPerf RE'!D6:D9) -> 70109503 | D6: =SUM('A4-FinPerf RE'!E6:E9) -> 70928518 | E6: =SUM('A4-FinPerf RE'!F6:F9) -> 68027000 | F6: =SUM('A4-FinPerf RE'!G6:G9) -> 68027000 | G6: =SUM('A4-FinPerf RE'!H6:H9) -> 68027000 | H6: =SUM('A4-FinPerf RE'!I6:I9) -> 55159087 | I6: =SUM('A4-FinPerf RE'!J6:J9) -> 72109000 | J6: =SUM('A4-FinPerf RE'!K6:K9) -> 76436000 | K6: =SUM('A4-FinPerf RE'!L6:L9) -> 80258000
A7: Investment revenue | B7: ='A4-FinPerf RE'!C12 -> 25367411 | C7: ='A4-FinPerf RE'!D12 -> 32028872 | D7: ='A4-FinPerf RE'!E12 -> 29477893 | E7: ='A4-FinPerf RE'!F12 -> 27452000 | F7: ='A4-FinPerf RE'!G12 -> 27542000 | G7: ='A4-FinPerf RE'!H12 -> 27542000 | H7: ='A4-FinPerf RE'!I12 -> 26290140 | I7: ='A4-FinPerf RE'!J12 -> 29470000 | J7: ='A4-FinPerf RE'!K12 -> 31533000 | K7: ='A4-FinPerf RE'!L12 -> 33740000
A8: Transfers recognised - operational | B8: ='A4-FinPerf RE'!C18 -> 548500780 | C8: ='A4-FinPerf RE'!D18 -> 528954873 | D8: ='A4-FinPerf RE'!E18 -> 554926000 | E8: ='A4-FinPerf RE'!F18 -> 596929000 | F8: ='A4-FinPerf RE'!G18 -> 641614928 | G8: ='A4-FinPerf RE'!H18 -> 641614928 | H8: ='A4-FinPerf RE'!I18 -> 595702928 | I8: ='A4-FinPerf RE'!J18 -> 641606000 | J8: ='A4-FinPerf RE'!K18 -> 687464000 | K8: ='A4-FinPerf RE'!L18 -> 734513000
A9: Other own revenue | B9: ='A4-FinPerf RE'!C11+'A4-FinPerf RE'!C13+'A4-FinPerf RE'!C14+'A4-FinPerf RE'!C15+'A4-FinPerf RE'!C16+'A4-FinPerf RE'!C17+'A4-FinPerf RE'!C19+'A4-FinPerf RE'!C20 -> 73925596 | C9: ='A4-FinPerf RE'!D11+'A4-FinPerf RE'!D13+'A4-FinPerf RE'!D14+'A4-FinPerf RE'!D15+'A4-FinPerf RE'!D16+'A4-FinPerf RE'!D17+'A4-FinPerf RE'!D19+'A4-FinPerf RE'!D20 -> 21317720 | D9: ='A4-FinPerf RE'!E11+'A4-FinPerf RE'!E13+'A4-FinPerf RE'!E14+'A4-FinPerf RE'!E15+'A4-FinPerf RE'!E16+'A4-FinPerf RE'!E17+'A4-FinPerf RE'!E19+'A4-FinPerf RE'!E20 -> 19291219 | E9: ='A4-FinPerf RE'!F11+'A4-FinPerf RE'!F13+'A4-FinPerf RE'!F14+'A4-FinPerf RE'!F15+'A4-FinPerf RE'!F16+'A4-FinPerf RE'!F17+'A4-FinPerf RE'!F19+'A4-FinPerf RE'!F20 -> 1344000 | F9: ='A4-FinPerf RE'!G11+'A4-FinPerf RE'!G13+'A4-FinPerf RE'!G14+'A4-FinPerf RE'!G15+'A4-FinPerf RE'!G16+'A4-FinPerf RE'!G17+'A4-FinPerf RE'!G19+'A4-FinPerf RE'!G20 -> 1344000 | G9: ='A4-FinPerf RE'!H11+'A4-FinPerf RE'!H13+'A4-FinPerf RE'!H14+'A4-FinPerf RE'!H15+'A4-FinPerf RE'!H16+'A4-FinPerf RE'!H17+'A4-FinPerf RE'!H19+'A4-FinPerf RE'!H20 -> 1344000 | H9: ='A4-FinPerf RE'!I11+'A4-FinPerf RE'!I13+'A4-FinPerf RE'!I14+'A4-FinPerf RE'!I15+'A4-FinPerf RE'!I16+'A4-FinPerf RE'!I17+'A4-FinPerf RE'!I19+'A4-FinPerf RE'!I20 -> 395278 | I9: ='A4-FinPerf RE'!J11+'A4-FinPerf RE'!J13+'A4-FinPerf RE'!J14+'A4-FinPerf RE'!J15+'A4-FinPerf RE'!J16+'A4-FinPerf RE'!J17+'A4-FinPerf RE'!J19+'A4-FinPerf RE'!J20 -> 1149000 | J9: ='A4-FinPerf RE'!K11+'A4-FinPerf RE'!K13+'A4-FinPerf RE'!K14+'A4-FinPerf RE'!K15+'A4-FinPerf RE'!K16+'A4-FinPerf RE'!K17+'A4-FinPerf RE'!K19+'A4-FinPerf RE'!K20 -> 1206000 | K9: ='A4-FinPerf RE'!L11+'A4-FinPerf RE'!L13+'A4-FinPerf RE'!L14+'A4-FinPerf RE'!L15+'A4-FinPerf RE'!L16+'A4-FinPerf RE'!L17+'A4-FinPerf RE'!L19+'A4-FinPerf RE'!L20 -> 1218000
A10: ='A4-FinPerf RE'!A21 -> Total Revenue (excluding capital transfers and contributions) | B10: =SUM(B5:B9) -> 647793787 | C10: 652410968 | D10: 674623630 | E10: 693752000 | F10: 738527928 | G10: 738527928 | H10: 677547433 | I10: 744334000 | J10: 796639000 | K10: 849729000
A11: Employee costs | B11: ='A4-FinPerf RE'!C24 -> 252540865 | C11: ='A4-FinPerf RE'!D24 -> 292961543 | D11: ='A4-FinPerf RE'!E24 -> 296726424 | E11: ='A4-FinPerf RE'!F24 -> 312371000 | F11: ='A4-FinPerf RE'!G24 -> 314892000 | G11: ='A4-FinPerf RE'!H24 -> 314892000 | H11: ='A4-FinPerf RE'!I24 -> 314892000 | I11: ='A4-FinPerf RE'!J24 -> 328394000 | J11: ='A4-FinPerf RE'!K24 -> 351379000 | K11: ='A4-FinPerf RE'!L24 -> 382993000
A12: Remuneration of councillors | B12: ='A4-FinPerf RE'!C25 -> 12241849 | C12: ='A4-FinPerf RE'!D25 -> 15554135 | D12: ='A4-FinPerf RE'!E25 -> 14190445 | E12: ='A4-FinPerf RE'!F25 -> 15467000 | F12: ='A4-FinPerf RE'!G25 -> 15289000 | G12: ='A4-FinPerf RE'!H25 -> 15289000 | H12: ='A4-FinPerf RE'!I25 -> 13266875 | I12: ='A4-FinPerf RE'!J25 -> 16206000 | J12: ='A4-FinPerf RE'!K25 -> 17178000 | K12: ='A4-FinPerf RE'!L25 -> 18206000
A13: Depreciation & asset impairment | B13: ='A4-FinPerf RE'!C27 -> 44451319 | C13: ='A4-FinPerf RE'!D27 -> 68594915 | D13: ='A4-FinPerf RE'!E27 -> 80541389 | E13: ='A4-FinPerf RE'!F27 -> 65626000 | F13: ='A4-FinPerf RE'!G27 -> 74698000 | G13: ='A4-FinPerf RE'!H27 -> 74698000 | H13: ='A4-FinPerf RE'!I27 -> 67504995 | I13: ='A4-FinPerf RE'!J27 -> 79724000 | J13: ='A4-FinPerf RE'!K27 -> 83710000 | K13: ='A4-FinPerf RE'!L27 -> 87895000
A14: Finance charges | B14: ='A4-FinPerf RE'!C28 -> 912628 | C14: ='A4-FinPerf RE'!D28 -> 473782 | D14: ='A4-FinPerf RE'!E28 -> 298878 | E14: ='A4-FinPerf RE'!F28 -> 470000 | F14: ='A4-FinPerf RE'!G28 -> 470000 | G14: ='A4-FinPerf RE'!H28 -> 470000 | H14: ='A4-FinPerf RE'!I28 -> 101184 | I14: ='A4-FinPerf RE'!J28 -> 470000 | J14: ='A4-FinPerf RE'!K28 -> 470000 | K14: ='A4-FinPerf RE'!L28 -> 470000
A15: Materials and bulk purchases | B15: ='A4-FinPerf RE'!C29+'A4-FinPerf RE'!C30 -> 47965290 | C15: ='A4-FinPerf RE'!D29+'A4-FinPerf RE'!D30 -> 70266272 | D15: ='A4-FinPerf RE'!E29+'A4-FinPerf RE'!E30 -> 70871391 | E15: ='A4-FinPerf RE'!F29+'A4-FinPerf RE'!F30 -> 91395000 | F15: ='A4-FinPerf RE'!G29+'A4-FinPerf RE'!G30 -> 72995928 | G15: ='A4-FinPerf RE'!H29+'A4-FinPerf RE'!H30 -> 72995928 | H15: ='A4-FinPerf RE'!I29+'A4-FinPerf RE'!I30 -> 62057251 | I15: ='A4-FinPerf RE'!J29+'A4-FinPerf RE'!J30 -> 75334000 | J15: ='A4-FinPerf RE'!K29+'A4-FinPerf RE'!K30 -> 83116000 | K15: ='A4-FinPerf RE'!L29+'A4-FinPerf RE'!L30 -> 93233000
A16: Transfers and grants | B16: ='A4-FinPerf RE'!C32 -> 1600000 | C16: ='A4-FinPerf RE'!D32 -> 21745646 | D16: ='A4-FinPerf RE'!E32 -> 3030658 | E16: ='A4-FinPerf RE'!F32 -> 0 | F16: ='A4-FinPerf RE'!G32 -> 3000000 | G16: ='A4-FinPerf RE'!H32 -> 3000000 | H16: ='A4-FinPerf RE'!I32 -> 708158 | I16: ='A4-FinPerf RE'!J32 -> 0 | J16: ='A4-FinPerf RE'!K32 -> 0 | K16: ='A4-FinPerf RE'!L32 -> 0
A17: Other expenditure | B17: ='A4-FinPerf RE'!C26+'A4-FinPerf RE'!C31+'A4-FinPerf RE'!C33+'A4-FinPerf RE'!C34 -> 583636190 | C17: ='A4-FinPerf RE'!D26+'A4-FinPerf RE'!D31+'A4-FinPerf RE'!D33+'A4-FinPerf RE'!D34 -> 259431728 | D17: ='A4-FinPerf RE'!E26+'A4-FinPerf RE'!E31+'A4-FinPerf RE'!E33+'A4-FinPerf RE'!E34 -> 289309863 | E17: ='A4-FinPerf RE'!F26+'A4-FinPerf RE'!F31+'A4-FinPerf RE'!F33+'A4-FinPerf RE'!F34 -> 300703000 | F17: ='A4-FinPerf RE'!G26+'A4-FinPerf RE'!G31+'A4-FinPerf RE'!G33+'A4-FinPerf RE'!G34 -> 285969000 | G17: ='A4-FinPerf RE'!H26+'A4-FinPerf RE'!H31+'A4-FinPerf RE'!H33+'A4-FinPerf RE'!H34 -> 285969000 | H17: ='A4-FinPerf RE'!I26+'A4-FinPerf RE'!I31+'A4-FinPerf RE'!I33+'A4-FinPerf RE'!I34 -> 212432739 | I17: ='A4-FinPerf RE'!J26+'A4-FinPerf RE'!J31+'A4-FinPerf RE'!J33+'A4-FinPerf RE'!J34 -> 311714000 | J17: ='A4-FinPerf RE'!K26+'A4-FinPerf RE'!K31+'A4-FinPerf RE'!K33+'A4-FinPerf RE'!K34 -> 322366000 | K17: ='A4-FinPerf RE'!L26+'A4-FinPerf RE'!L31+'A4-FinPerf RE'!L33+'A4-FinPerf RE'!L34 -> 335567000
A18: ='A4-FinPerf RE'!A35 -> Total Expenditure | B18: =SUM(B11:B17) -> 943348141 | C18: =SUM(C11:C17) -> 729028021 | D18: 754969048 | E18: 786032000 | F18: 767313928 | G18: 767313928 | H18: 670963202 | I18: 811842000 | J18: 858219000 | K18: 918364000
A19: ='A4-FinPerf RE'!A37 -> Surplus/(Deficit) | B19: =B10-B18 -> -295554354 | C19: -76617053 | D19: -80345418 | E19: -92280000 | F19: -28786000 | G19: -28786000 | H19: 6584231 | I19: -67508000 | J19: -61580000 | K19: -68635000
A20: ='A4-FinPerf RE'!A38 -> Transfers and subsidies - capital (monetary allocations) (National / Provincial and District) | B20: ='A4-FinPerf RE'!C38 -> 290991118 | C20: ='A4-FinPerf RE'!D38 -> 326287000 | D20: ='A4-FinPerf RE'!E38 -> 303862000 | E20: ='A4-FinPerf RE'!F38 -> 335788000 | F20: ='A4-FinPerf RE'!G38 -> 405788000 | G20: ='A4-FinPerf RE'!H38 -> 405788000 | H20: ='A4-FinPerf RE'!I38 -> 405788000 | I20: ='A4-FinPerf RE'!J38 -> 309161000 | J20: ='A4-FinPerf RE'!K38 -> 345172000 | K20: ='A4-FinPerf RE'!L38 -> 345547000
A21: ='A4-FinPerf RE'!A39&" & "&'A4-FinPerf RE'!A40 -> Transfers and subsidies - capital (monetary allocations) (National / Provincial Departmental Agencies, Households, Non-profit Institutions, Private Enterprises, Public Corporatons, Higher Educational Institutions) & Transfers and subsidies - capital (in-kind - all) | B21: ='A4-FinPerf RE'!C39+'A4-FinPerf RE'!C40 -> 0 | C21: ='A4-FinPerf RE'!D39+'A4-FinPerf RE'!D40 -> 0 | D21: ='A4-FinPerf RE'!E39+'A4-FinPerf RE'!E40 -> 0 | E21: ='A4-FinPerf RE'!F39+'A4-FinPerf RE'!F40 -> 0 | F21: ='A4-FinPerf RE'!G39+'A4-FinPerf RE'!G40 -> 0 | G21: ='A4-FinPerf RE'!H39+'A4-FinPerf RE'!H40 -> 0 | H21: ='A4-FinPerf RE'!I39+'A4-FinPerf RE'!I40 -> 0 | I21: ='A4-FinPerf RE'!J39+'A4-FinPerf RE'!J40 -> 0 | J21: ='A4-FinPerf RE'!K39+'A4-FinPerf RE'!K40 -> 0 | K21: ='A4-FinPerf RE'!L39+'A4-FinPerf RE'!L40 -> 0
A22: ='A4-FinPerf RE'!A41 -> Surplus/(Deficit) after capital transfers & contributions | B22: =B19+SUM(B20:B21) -> -4563236 | C22: =C19+SUM(C20:C21) -> 249669947 | D22: 223516582 | E22: 243508000 | F22: 377002000 | G22: 377002000 | H22: 412372231 | I22: 241653000 | J22: 283592000 | K22: 276912000
A23: ='A4-FinPerf RE'!A46 -> Share of surplus/ (deficit) of associate | B23: ='A4-FinPerf RE'!C46 -> 0 | C23: ='A4-FinPerf RE'!D46 -> 0 | D23: ='A4-FinPerf RE'!E46 -> 0 | E23: ='A4-FinPerf RE'!F46 -> 0 | F23: ='A4-FinPerf RE'!G46 -> 0 | G23: ='A4-FinPerf RE'!H46 -> 0 | H23: ='A4-FinPerf RE'!I46 -> 0 | I23: ='A4-FinPerf RE'!J46 -> 0 | J23: ='A4-FinPerf RE'!K46 -> 0 | K23: ='A4-FinPerf RE'!L46 -> 0
A24: ='A4-FinPerf RE'!A47 -> Surplus/(Deficit) for the year | B24: =B22+B23 -> -4563236 | C24: =C22+C23 -> 249669947 | D24: 223516582 | E24: 243508000 | F24: 377002000 | G24: 377002000 | H24: 412372231 | I24: 241653000 | J24: 283592000 | K24: 276912000
A26: Capital expenditure & funds sources
A27: Capital expenditure | B27: ='A5-Capex'!C63 -> 1188544276 | C27: ='A5-Capex'!D63 -> 863840229 | D27: ='A5-Capex'!E63 -> 344392651 | E27: ='A5-Capex'!F63 -> 309134000 | F27: ='A5-Capex'!G63 -> 451700000 | G27: ='A5-Capex'!H63 -> 451700000 | H27: ='A5-Capex'!I63 -> 355725908 | I27: ='A5-Capex'!J63 -> 321377000 | J27: ='A5-Capex'!K63 -> 367302000 | K27: ='A5-Capex'!L63 -> 364807000
A28: Transfers recognised - capital | B28: ='A5-Capex'!C70 -> 1188544276 | C28: ='A5-Capex'!D70 -> 863840229 | D28: ='A5-Capex'!E70 -> 344392651 | E28: ='A5-Capex'!F70 -> 309134000 | F28: ='A5-Capex'!G70 -> 451700000 | G28: ='A5-Capex'!H70 -> 451700000 | H28: ='A5-Capex'!I70 -> 355725908 | I28: ='A5-Capex'!J70 -> 239935000 | J28: ='A5-Capex'!K70 -> 270335000 | K28: ='A5-Capex'!L70 -> 269993000
A30: ='A5-Capex'!A72 -> Borrowing | B30: ='A5-Capex'!C72 -> 0 | C30: ='A5-Capex'!D72 -> 0 | D30: ='A5-Capex'!E72 -> 0 | E30: ='A5-Capex'!F72 -> 0 | F30: ='A5-Capex'!G72 -> 0 | G30: ='A5-Capex'!H72 -> 0 | H30: ='A5-Capex'!I72 -> 0 | I30: ='A5-Capex'!J72 -> 0 | J30: ='A5-Capex'!K72 -> 0 | K30: ='A5-Capex'!L72 -> 0
A31: ='A5-Capex'!A73 -> Internally generated funds | B31: ='A5-Capex'!C73 -> 0 | C31: ='A5-Capex'!D73 -> 0 | D31: ='A5-Capex'!E73 -> 0 | E31: ='A5-Capex'!F73 -> 0 | F31: ='A5-Capex'!G73 -> 0 | G31: ='A5-Capex'!H73 -> 0 | H31: ='A5-Capex'!I73 -> 0 | I31: ='A5-Capex'!J73 -> 81442000 | J31: ='A5-Capex'!K73 -> 96967000 | K31: ='A5-Capex'!L73 -> 94814000
A32: Total sources of capital funds | B32: =+B28+B30+B31 -> 1188544276 | C32: =+C28+C30+C31 -> 863840229 | D32: 344392651 | E32: 309134000 | F32: 451700000 | G32: 451700000 | H32: 355725908 | I32: 321377000 | J32: 367302000 | K32: 364807000
A34: Financial position
A35: ='A6-FinPos'!A12 -> Total current assets | B35: ='A6-FinPos'!C12 -> 336109718 | C35: ='A6-FinPos'!D12 -> 331184521 | D35: ='A6-FinPos'!E12 -> 346358828 | E35: ='A6-FinPos'!F12 -> -332409468 | F35: ='A6-FinPos'!G12 -> -350852144 | G35: ='A6-FinPos'!H12 -> -350852144 | H35: ='A6-FinPos'!I12 -> 197428831 | I35: ='A6-FinPos'!J12 -> 406267006 | J35: ='A6-FinPos'!K12 -> 256101206 | K35: ='A6-FinPos'!L12 -> 118089006
A36: ='A6-FinPos'!A24 -> Total non current assets | B36: ='A6-FinPos'!C24 -> 2097208466 | C36: ='A6-FinPos'!D24 -> 2384387097 | D36: ='A6-FinPos'!E24 -> 2611286413 | E36: ='A6-FinPos'!F24 -> 2927425926 | F36: ='A6-FinPos'!G24 -> 3022706864 | G36: ='A6-FinPos'!H24 -> 3022706864 | H36: ='A6-FinPos'!I24 -> 288220913 | I36: ='A6-FinPos'!J24 -> 3139064134 | J36: ='A6-FinPos'!K24 -> 3419927134 | K36: ='A6-FinPos'!L24 -> 3693837134
A37: ='A6-FinPos'!A34 -> Total current liabilities | B37: ='A6-FinPos'!C34 -> 186661802 | C37: ='A6-FinPos'!D34 -> 206095914 | D37: ='A6-FinPos'!E34 -> 136552807 | E37: ='A6-FinPos'!F34 -> 152125683 | F37: ='A6-FinPos'!G34 -> 136634020 | G37: ='A6-FinPos'!H34 -> 136634020 | H37: ='A6-FinPos'!I34 -> 125781679 | I37: ='A6-FinPos'!J34 -> 260964918 | J37: ='A6-FinPos'!K34 -> 260964918 | K37: ='A6-FinPos'!L34 -> 260964918
A38: ='A6-FinPos'!A39 -> Total non current liabilities | B38: ='A6-FinPos'!C39 -> 29040301 | C38: ='A6-FinPos'!D39 -> 38789844 | D38: ='A6-FinPos'!E39 -> 43098617 | E38: ='A6-FinPos'!F39 -> 36841682 | F38: ='A6-FinPos'!G39 -> 43098617 | G38: ='A6-FinPos'!H39 -> 43098617 | H38: ='A6-FinPos'!I39 -> -1 | I38: ='A6-FinPos'!J39 -> 43098617 | J38: ='A6-FinPos'!K39 -> 43098617 | K38: ='A6-FinPos'!L39 -> 43098617
A39: Community wealth/Equity | B39: ='A6-FinPos'!C48 -> 2217616081 | C39: ='A6-FinPos'!D48 -> 2470685860 | D39: ='A6-FinPos'!E48 -> 2777993817 | E39: ='A6-FinPos'!F48 -> 2406049093 | F39: ='A6-FinPos'!G48 -> 2509121083 | G39: ='A6-FinPos'!H48 -> 2492122083 | H39: ='A6-FinPos'!I48 -> 359868066 | I39: ='A6-FinPos'!J48 -> 3241267605 | J39: ='A6-FinPos'!K48 -> 3371964805 | K39: ='A6-FinPos'!L48 -> 3507862605
A41: Cash flows
A42: Net cash from (used) operating | B42: ='A7-CFlow'!C17 -> 394813812 | C42: ='A7-CFlow'!D17 -> 352587957 | D42: ='A7-CFlow'!E17 -> 314127753 | E42: ='A7-CFlow'!F17 -> 257012700 | F42: ='A7-CFlow'!G17 -> 389786430 | G42: ='A7-CFlow'!H17 -> 389786430 | H42: ='A7-CFlow'!I17 -> 0 | I42: ='A7-CFlow'!J17 -> 241425800 | J42: ='A7-CFlow'!K17 -> 282271200 | K42: ='A7-CFlow'!L17 -> 274976600
A43: Net cash from (used) investing | B43: ='A7-CFlow'!C27 -> -342252575 | C43: ='A7-CFlow'!D27 -> 0 | D43: ='A7-CFlow'!E27 -> 0 | E43: ='A7-CFlow'!F27 -> -309134000 | F43: ='A7-CFlow'!G27 -> -451700000 | G43: ='A7-CFlow'!H27 -> -451700000 | H43: ='A7-CFlow'!I27 -> 0 | I43: ='A7-CFlow'!J27 -> -321377000 | J43: ='A7-CFlow'!K27 -> -367302000 | K43: ='A7-CFlow'!L27 -> -364807000
A44: Net cash from (used) financing | B44: ='A7-CFlow'!C36 -> -1449625 | C44: ='A7-CFlow'!D36 -> -1899396 | D44: ='A7-CFlow'!E36 -> -2160458 | E44: ='A7-CFlow'!F36 -> -212295 | F44: ='A7-CFlow'!G36 -> -212295 | G44: ='A7-CFlow'!H36 -> -212295 | H44: ='A7-CFlow'!I36 -> -38973 | I44: ='A7-CFlow'!J36 -> 251269 | J44: ='A7-CFlow'!K36 -> 251269 | K44: ='A7-CFlow'!L36 -> 251269
A45: =LEFT('A7-CFlow'!A40,37) -> Cash/cash equivalents at the year end | B45: ='A7-CFlow'!C40 -> 256662637 | C45: ='A7-CFlow'!D40 -> 597315909 | D45: ='A7-CFlow'!E40 -> 586282586 | E45: ='A7-CFlow'!F40 -> 127994405 | F45: ='A7-CFlow'!G40 -> 118202135 | G45: ='A7-CFlow'!H40 -> 118202135 | H45: ='A7-CFlow'!I40 -> -38973 | I45: ='A7-CFlow'!J40 -> 56780901 | J45: ='A7-CFlow'!K40 -> -27998630 | K45: ='A7-CFlow'!L40 -> -117577761
A47: Cash backing/surplus reconciliation
A48: ='A8-ResRecon'!A4 -> Cash and investments available | B48: ='A8-ResRecon'!C8 -> 246627348 | C48: ='A8-ResRecon'!D8 -> 274317377 | D48: ='A8-ResRecon'!E8 -> 256567349 | E48: ='A8-ResRecon'!F8 -> 255052063 | F48: ='A8-ResRecon'!G8 -> 255052063 | G48: ='A8-ResRecon'!H8 -> 255052063 | H48: ='A8-ResRecon'!I8 -> 123666477.9 | I48: ='A8-ResRecon'!J8 -> 111300830.1 | J48: ='A8-ResRecon'!K8 -> 100171747.1 | K48: ='A8-ResRecon'!L8 -> 90155572.37
A49: ='A8-ResRecon'!A10 -> Application of cash and investments | B49: ='A8-ResRecon'!C18 -> 112741008.9 | C49: ='A8-ResRecon'!D18 -> 238483316 | D49: ='A8-ResRecon'!E18 -> 102040826 | E49: ='A8-ResRecon'!F18 -> 109608082.2 | F49: ='A8-ResRecon'!G18 -> 111003892.2 | G49: ='A8-ResRecon'!H18 -> 111003892.2 | H49: ='A8-ResRecon'!I18 -> 18777800 | I49: ='A8-ResRecon'!J18 -> 48232508 | J49: ='A8-ResRecon'!K18 -> 30916508 | K49: ='A8-ResRecon'!L18 -> 12103508
A50: Balance - surplus (shortfall) | B50: =B48-B49 -> 133886339.1 | C50: =C48-C49 -> 35834061 | D50: 154526523 | E50: 145443980.8 | F50: 144048170.8 | G50: 144048170.8 | H50: 104888677.9 | I50: 63068322.09 | J50: 69255239.08 | K50: 78052064.37
A52: Asset management
A53: Asset register summary (WDV) | B53: ='A9-Asset'!C165 -> 0 | C53: ='A9-Asset'!D165 -> 2445180400 | D53: ='A9-Asset'!E165 -> 2120106137 | E53: ='A9-Asset'!F165 -> 2982947869 | F53: ='A9-Asset'!G165 -> 2203791049 | G53: ='A9-Asset'!H165 -> 2203791049 | H53: ='A9-Asset'!H165 -> 2203791049 | I53: ='A9-Asset'!I165 -> 1978297720 | J53: ='A9-Asset'!J165 -> 1952117720 | K53: ='A9-Asset'!K165 -> 1914326720
A54: ='A9-Asset'!A168 -> Depreciation | B54: ='A9-Asset'!C168 -> 0 | C54: ='A9-Asset'!D168 -> 68594942 | D54: ='A9-Asset'!E168 -> 80541389 | E54: ='A9-Asset'!F168 -> 65626000 | F54: ='A9-Asset'!G168 -> 74698000 | G54: ='A9-Asset'!H168 -> 74698000 | H54: ='A9-Asset'!H168 -> 74698000 | I54: ='A9-Asset'!I168 -> 79724000 | J54: ='A9-Asset'!J168 -> 83710000 | K54: ='A9-Asset'!K168 -> 87895000
A55: Renewal and Upgrading of Existing Assets | B55: ='A9-Asset'!C37+'A9-Asset'!C69 -> 0 | C55: ='A9-Asset'!D37+'A9-Asset'!D69 -> 676850340 | D55: ='A9-Asset'!E37+'A9-Asset'!E69 -> 116293659 | E55: ='A9-Asset'!F37+'A9-Asset'!F69 -> 2000000 | F55: ='A9-Asset'!G37+'A9-Asset'!G69 -> 5250000 | G55: ='A9-Asset'!H37+'A9-Asset'!H69 -> 5250000 | H55: ='A9-Asset'!H37+'A9-Asset'!H69 -> 5250000 | I55: ='A9-Asset'!I37+'A9-Asset'!I69 -> 17047000 | J55: ='A9-Asset'!J37+'A9-Asset'!J69 -> 26747000 | K55: ='A9-Asset'!K37+'A9-Asset'!K69 -> 26747000
A56: Repairs and Maintenance | B56: ='A9-Asset'!C169 -> 0 | C56: ='A9-Asset'!D169 -> 17335993 | D56: ='A9-Asset'!E169 -> 14440910 | E56: ='A9-Asset'!F169 -> 29713000 | F56: ='A9-Asset'!G169 -> 59413114 | G56: ='A9-Asset'!H169 -> 59413114 | H56: ='A9-Asset'!H169 -> 59413114 | I56: ='A9-Asset'!I169 -> 26132000 | J56: ='A9-Asset'!J169 -> 23802000 | K56: ='A9-Asset'!K169 -> 29576000
A58: Free services
A59: Cost of Free Basic Services provided | B59: ='A10-SerDel'!C60 -> 0 | C59: ='A10-SerDel'!D60 -> 0 | D59: ='A10-SerDel'!E60 -> 0 | E59: ='A10-SerDel'!F60 -> 0 | F59: ='A10-SerDel'!G60 -> 0 | G59: ='A10-SerDel'!H60 -> 0 | H59: ='A10-SerDel'!I60 -> 0 | I59: ='A10-SerDel'!I60 -> 0 | J59: ='A10-SerDel'!J60 -> 0 | K59: ='A10-SerDel'!K60 -> 0
A60: Revenue cost of free services provided | B60: ='A10-SerDel'!C79 -> 0 | C60: ='A10-SerDel'!D79 -> 0 | D60: ='A10-SerDel'!E79 -> 0 | E60: ='A10-SerDel'!F79 -> 0 | F60: ='A10-SerDel'!G79 -> 0 | G60: ='A10-SerDel'!H79 -> 0 | H60: ='A10-SerDel'!I79 -> 0 | I60: ='A10-SerDel'!I79 -> 0 | J60: ='A10-SerDel'!J79 -> 0 | K60: ='A10-SerDel'!K79 -> 0
A61: Households below minimum service level
A62: ='A10-SerDel'!A5 -> Water: | B62: ='A10-SerDel'!C14 -> 497131.52 | C62: ='A10-SerDel'!D14 -> 526959.4112 | D62: ='A10-SerDel'!E14 -> 1961220.084 | E62: ='A10-SerDel'!F14 -> 828043.6922 | F62: ='A10-SerDel'!G14 -> 828043.6922 | G62: ='A10-SerDel'!H14 -> 828043.6922 | H62: ='A10-SerDel'!I14 -> 877726.3138 | I62: ='A10-SerDel'!I14 -> 877726.3138 | J62: ='A10-SerDel'!J14 -> 930389.8926 | K62: ='A10-SerDel'!K14 -> 986213.2862
A63: ='A10-SerDel'!A16 -> Sanitation/sewerage: | B63: ='A10-SerDel'!C26 -> 42094.72 | C63: ='A10-SerDel'!D26 -> 44620.4032 | D63: ='A10-SerDel'!E26 -> 168996.693 | E63: ='A10-SerDel'!F26 -> 89286.58611 | F63: ='A10-SerDel'!G26 -> 89286.58611 | G63: ='A10-SerDel'!H26 -> 89286.58611 | H63: ='A10-SerDel'!I26 -> 94643.78128 | I63: ='A10-SerDel'!I26 -> 94643.78128 | J63: ='A10-SerDel'!J26 -> 100322.4082 | K63: ='A10-SerDel'!K26 -> 106341.7526
A64: ='A10-SerDel'!A28 -> Energy: | B64: ='A10-SerDel'!C35 -> 0 | C64: ='A10-SerDel'!D35 -> 0 | D64: ='A10-SerDel'!E35 -> 0 | E64: ='A10-SerDel'!F35 -> 0 | F64: ='A10-SerDel'!G35 -> 0 | G64: ='A10-SerDel'!H35 -> 0 | H64: ='A10-SerDel'!I35 -> 0 | I64: ='A10-SerDel'!I35 -> 0 | J64: ='A10-SerDel'!J35 -> 0 | K64: ='A10-SerDel'!K35 -> 0
A65: ='A10-SerDel'!A37 -> Refuse: | B65: ='A10-SerDel'!C45 -> 0 | C65: ='A10-SerDel'!D45 -> 0 | D65: ='A10-SerDel'!E45 -> 0 | E65: ='A10-SerDel'!F45 -> 0 | F65: ='A10-SerDel'!G45 -> 0 | G65: ='A10-SerDel'!H45 -> 0 | H65: ='A10-SerDel'!I45 -> 0 | I65: ='A10-SerDel'!I45 -> 0 | J65: ='A10-SerDel'!J45 -> 0 | K65: ='A10-SerDel'!K45 -> 0
B66: ='A10-SerDel'!C46 -> 0 | C66: ='A10-SerDel'!D46 -> 0 | D66: ='A10-SerDel'!E46 -> 0 | E66: ='A10-SerDel'!F46 -> 0 | F66: ='A10-SerDel'!G46 -> 0 | G66: ='A10-SerDel'!H46 -> 0 | H66: ='A10-SerDel'!I46 -> 0 | I66: ='A10-SerDel'!I46 -> 0 | J66: ='A10-SerDel'!J46 -> 0 | K66: ='A10-SerDel'!K46 -> 0

Sheet A2-FinPerf SC
A1: =muni&" - "&Approve3 -> DC35 Capricorn - Table A2 Budgeted Financial Performance (revenue and expenditure by functional classification)
A2: ="Functional Classification "&desc -> Functional Classification Description | B2: =head27 -> Ref | C2: =head1b -> 2016/17 | D2: =head1A -> 2017/18 | E2: =Head1 -> 2018/19 | F2: =Head2 -> Current Year 2019/20 | I2: =Head3 -> 2020/21 Medium Term Revenue & Expenditure Framework
A3: R thousand | B3: 1 | C3: =Head5 -> Audited Outcome | D3: =Head5 -> Audited Outcome | E3: =Head5 -> Audited Outcome | F3: =Head6 -> Original Budget | G3: =Head7 -> Adjusted Budget | H3: =Head8 -> Full Year Forecast | I3: =Head9 -> Budget Year 2020/21 | J3: =Head10 -> Budget Year +1 2021/22 | K3: =Head11 -> Budget Year +2 2022/23
A4: Revenue - Functional
A5: Governance and administration | C5: =SUM(C6:C8) -> 67962747 | D5: =SUM(D6:D8) -> 365461970 | E5: 598058852 | F5: 350980000 | G5: 393411000 | H5: 393411000 | I5: 400763000 | J5: 426327000 | K5: 454060000
A6: Executive and council | C6: =A2A!C6 -> 62688324 | D6: =A2A!D6 -> 24390566 | E6: 0 | F6: =A2A!F6 -> 51128000 | G6: =A2A!G6 -> 52508000 | H6: =A2A!H6 -> 52508000 | I6: =A2A!I6 -> 54816000 | J6: =A2A!J6 -> 58431000 | K6: =A2A!K6 -> 62433000
A7: Finance and administration | C7: =A2A!C9 -> 5274423 | D7: =A2A!D9 -> 337371859 | E7: ='[3]C2-FinPerf SC'!$C$8 -> 598058852 | F7: =A2A!F9 -> 293583000 | G7: =A2A!G9 -> 334333000 | H7: =A2A!H9 -> 334333000 | I7: =A2A!I9 -> 339146000 | J7: =A2A!J9 -> 360693000 | K7: =A2A!K9 -> 383875000
A8: Internal audit | C8: =A2A!C23 -> 0 | D8: =A2A!D23 -> 3699545 | E8: =A2A!E23 -> 0 | F8: =A2A!F23 -> 6269000 | G8: =A2A!G23 -> 6570000 | H8: =A2A!H23 -> 6570000 | I8: =A2A!I23 -> 6801000 | J8: =A2A!J23 -> 7203000 | K8: =A2A!K23 -> 7752000
A9: Community and public safety | C9: =SUM(C10:C14) -> 64520814 | D9: =SUM(D10:D14) -> 41168598 | E9: 0 | F9: 91024000 | G9: 90295000 | H9: 90295000 | I9: 79260000 | J9: 83916000 | K9: 91521000
A10: Community and social services | C10: =A2A!C26 -> 17152412 | D10: =A2A!D26 -> 7051484 | E10: =A2A!E26 -> 0 | F10: =A2A!F26 -> 13430000 | G10: =A2A!G26 -> 13703000 | H10: =A2A!H26 -> 13703000 | I10: =A2A!I26 -> 13742000 | J10: =A2A!J26 -> 13975000 | K10: =A2A!K26 -> 15802000
A11: Sport and recreation | C11: =A2A!C48 -> 0 | D11: =A2A!D48 -> 463518 | E11: =A2A!E48 -> 0 | F11: =A2A!F48 -> 4288000 | G11: =A2A!G48 -> 3613000 | H11: =A2A!H48 -> 3613000 | I11: =A2A!I48 -> 3887000 | J11: =A2A!J48 -> 5141000 | K11: =A2A!K48 -> 5492000
A12: Public safety | C12: =A2A!C54 -> 47368402 | D12: =A2A!D54 -> 24797383 | E12: =A2A!E54 -> 0 | F12: =A2A!F54 -> 56374000 | G12: =A2A!G54 -> 55844000 | H12: =A2A!H54 -> 55844000 | I12: =A2A!I54 -> 44158000 | J12: =A2A!J54 -> 46189000 | K12: =A2A!K54 -> 50075000
A13: Housing | C13: =A2A!C63 -> 0 | D13: =A2A!D63 -> 0 | E13: =A2A!E63 -> 0 | F13: =A2A!F63 -> 0 | G13: =A2A!G63 -> 0 | H13: =A2A!H63 -> 0 | I13: =A2A!I63 -> 0 | J13: =A2A!J63 -> 0 | K13: =A2A!K63 -> 0
A14: Health | C14: =A2A!C66 -> 0 | D14: =A2A!D66 -> 8856213 | E14: =A2A!E66 -> 0 | F14: =A2A!F66 -> 16932000 | G14: =A2A!G66 -> 17135000 | H14: =A2A!H66 -> 17135000 | I14: =A2A!I66 -> 17473000 | J14: =A2A!J66 -> 18611000 | K14: =A2A!K66 -> 20152000
A15: Economic and environmental services | C15: =SUM(C16:C18) -> 26946135 | D15: =SUM(D16:D18) -> 24575994 | E15: 6064000 | F15: 37029000 | G15: 39083000 | H15: 39083000 | I15: 37598000 | J15: 37892000 | K15: 39940000
A16: Planning and development | C16: =A2A!C75 -> 15402264 | D16: =A2A!D75 -> 16797522 | E16: ='[3]C2-FinPerf SC'!$C$17 -> 3642000 | F16: =A2A!F75 -> 19880000 | G16: =A2A!G75 -> 20865000 | H16: =A2A!H75 -> 20865000 | I16: =A2A!I75 -> 19196000 | J16: =A2A!J75 -> 18940000 | K16: =A2A!K75 -> 20270000
A17: Road transport | C17: =A2A!C86 -> 6642178 | D17: =A2A!D86 -> 2977104 | E17: ='[3]C2-FinPerf SC'!$C$18 -> 2422000 | F17: =A2A!F86 -> 3366000 | G17: =A2A!G86 -> 2587000 | H17: =A2A!H86 -> 2587000 | I17: =A2A!I86 -> 3212000 | J17: =A2A!J86 -> 3448000 | K17: =A2A!K86 -> 3740000
A18: Environmental protection | C18: =A2A!C91 -> 4901693 | D18: =A2A!D91 -> 4801368 | E18: =A2A!E91 -> 0 | F18: =A2A!F91 -> 13783000 | G18: =A2A!G91 -> 15631000 | H18: =A2A!H91 -> 15631000 | I18: =A2A!I91 -> 15190000 | J18: =A2A!J91 -> 15504000 | K18: =A2A!K91 -> 15930000
A19: Trading services | C19: =SUM(C20:C23) -> 779355209 | D19: =SUM(D20:D23) -> 547491406 | E19: 374790518 | F19: 550507000 | G19: 621526928 | H19: 621526928 | I19: 535874000 | J19: =SUM(J20:J23) -> 593676000 | K19: 609755000
A20: Energy sources | C20: =A2A!C99 -> 0 | D20: =A2A!D99 -> 0 | E20: =A2A!E99 -> 0 | F20: =A2A!F99 -> 0 | G20: =A2A!G99 -> 0 | H20: =A2A!H99 -> 0 | I20: =A2A!I99 -> 0 | J20: =A2A!J99 -> 0 | K20: =A2A!K99 -> 0
A21: Water management | C21: =A2A!C103 -> 779355209 | D21: =A2A!D103 -> 547491406 | E21: ='[3]C2-FinPerf SC'!$C$22 -> 374790518 | F21: =A2A!F103 -> 550507000 | G21: =A2A!G103 -> 621526928 | H21: =A2A!H103 -> 621526928 | I21: =A2A!I103 -> 535874000 | J21: =A2A!J103 -> 593676000 | K21: =A2A!K103 -> 609755000
A22: Waste water management | C22: =A2A!C107 -> 0 | D22: =A2A!D107 -> 0 | E22: =A2A!E107 -> 0 | F22: =A2A!F107 -> 0 | G22: =A2A!G107 -> 0 | H22: =A2A!H107 -> 0 | I22: =A2A!I107 -> 0 | J22: =A2A!J107 -> 0 | K22: =A2A!K107 -> 0
A23: Waste management | C23: =A2A!C112 -> 0 | D23: =A2A!D112 -> 0 | E23: =A2A!E112 -> 0 | F23: =A2A!F112 -> 0 | G23: =A2A!G112 -> 0 | H23: =A2A!H112 -> 0 | I23: =A2A!I112 -> 0 | J23: =A2A!J112 -> 0 | K23: =A2A!K112 -> 0
A24: Other | B24: 4 | C24: =A2A!C117 -> 0 | D24: =A2A!D117 -> 0 | E24: =A2A!E117 -> 0 | F24: =A2A!F117 -> 0 | G24: =A2A!G117 -> 0 | H24: =A2A!H117 -> 0 | I24: =A2A!I117 -> 0 | J24: =A2A!J117 -> 0 | K24: =A2A!K117 -> 0
A25: ="Total "&A4 -> Total Revenue - Functional | B25: 2 | C25: =C5+C9+C15+C19+C24 -> 938784905 | D25: =D5+D9+D15+D19+D24 -> 978697968 | E25: =E5+E9+E15+E19+E24 -> 978913370 | F25: 1029540000 | G25: 1144315928 | H25: 1144315928 | I25: =I5+I9+I15+I19+I24 -> 1053495000 | J25: 1141811000 | K25: 1195276000
A27: Expenditure - Functional
A28: Governance and administration | C28: =SUM(C29:C31) -> 311731717 | D28: =SUM(D29:D31) -> 364435859 | E28: 349516045 | F28: 351949000 | G28: 368770000 | H28: 368770000 | I28: 400424000 | J28: 424631000 | K28: 453822000
A29: Executive and council | C29: =A2A!C128 -> 72580208 | D29: =A2A!D128 -> 40278247 | E29: ='[3]C2-FinPerf SC'!$C$30 -> 86013854 | F29: =A2A!F128 -> 51128000 | G29: =A2A!G128 -> 52508000 | H29: =A2A!H128 -> 52508000 | I29: =A2A!I128 -> 54816000 | J29: =A2A!J128 -> 58431000 | K29: =A2A!K128 -> 62433000
A30: Finance and administration | C30: =A2A!C131 -> 239151509 | D30: =A2A!D131 -> 318673948 | E30: ='[3]C2-FinPerf SC'!$C$31 -> 257618567 | F30: =A2A!F131 -> 294552000 | G30: =A2A!G131 -> 309692000 | H30: =A2A!H131 -> 309692000 | I30: =A2A!I131 -> 338807000 | J30: =A2A!J131 -> 358997000 | K30: =A2A!K131 -> 383637000
A31: Internal audit | C31: =A2A!C145 -> 0 | D31: =A2A!D145 -> 5483664 | E31: =A2A!E145 -> 5883624 | F31: =A2A!F145 -> 6269000 | G31: =A2A!G145 -> 6570000 | H31: =A2A!H145 -> 6570000 | I31: =A2A!I145 -> 6801000 | J31: =A2A!J145 -> 7203000 | K31: =A2A!K145 -> 7752000
A32: Community and public safety | C32: =SUM(C33:C37) -> 62928533 | D32: =SUM(D33:D37) -> 68380764 | E32: 70890673.06 | F32: 75524000 | G32: 74795000 | H32: 74795000 | I32: 77810000 | J32: 83066000 | K32: 89871000
A33: Community and social services | C33: =A2A!C148 -> 17676906 | D33: =A2A!D148 -> 10874061 | E33: ='[3]C2-FinPerf SC'!$C$34 -> 12909422.29 | F33: =A2A!F148 -> 13430000 | G33: =A2A!G148 -> 13703000 | H33: =A2A!H148 -> 13703000 | I33: =A2A!I148 -> 13742000 | J33: =A2A!J148 -> 13975000 | K33: =A2A!K148 -> 15802000
A34: Sport and recreation | C34: =A2A!C170 -> 0 | D34: =A2A!D170 -> 5017451 | E34: ='[3]C2-FinPerf SC'!$C$35 -> 1189821.67 | F34: =A2A!F170 -> 4288000 | G34: =A2A!G170 -> 3613000 | H34: =A2A!H170 -> 3613000 | I34: =A2A!I170 -> 3887000 | J34: =A2A!J170 -> 5141000 | K34: =A2A!K170 -> 5492000
A35: Public safety | C35: =A2A!C176 -> 45251627 | D35: =A2A!D176 -> 38200745 | E35: ='[3]C2-FinPerf SC'!$C$36 -> 41757585.23 | F35: =A2A!F176 -> 40874000 | G35: =A2A!G176 -> 40344000 | H35: =A2A!H176 -> 40344000 | I35: =A2A!I176 -> 42708000 | J35: =A2A!J176 -> 45339000 | K35: =A2A!K176 -> 48425000
A36: Housing | C36: =A2A!C185 -> 0 | D36: =A2A!D185 -> 0 | E36: =A2A!E185 -> 0 | F36: =A2A!F185 -> 0 | G36: =A2A!G185 -> 0 | H36: =A2A!H185 -> 0 | I36: =A2A!I185 -> 0 | J36: =A2A!J185 -> 0 | K36: =A2A!K185 -> 0
A37: Health | C37: =A2A!C188 -> 0 | D37: =A2A!D188 -> 14288507 | E37: ='[3]C2-FinPerf SC'!$C$38 -> 15033843.87 | F37: =A2A!F188 -> 16932000 | G37: =A2A!G188 -> 17135000 | H37: =A2A!H188 -> 17135000 | I37: =A2A!I188 -> 17473000 | J37: =A2A!J188 -> 18611000 | K37: =A2A!K188 -> 20152000
A38: Economic and environmental services | C38: =SUM(C39:C41) -> 27194904 | D38: =SUM(D39:D41) -> 39920524 | E38: 28595754.95 | F38: 37029000 | G38: 39083000 | H38: 39083000 | I38: 37598000 | J38: 37892000 | K38: 39940000
A39: Planning and development | C39: =A2A!C197 -> 14019004 | D39: =A2A!D197 -> 27595504 | E39: ='[3]C2-FinPerf SC'!$C$40 -> 17630154.54 | F39: =A2A!F197 -> 19880000 | G39: =A2A!G197 -> 20865000 | H39: =A2A!H197 -> 20865000 | I39: =A2A!I197 -> 19196000 | J39: =A2A!J197 -> 18940000 | K39: =A2A!K197 -> 20270000
A40: Road transport | C40: =A2A!C208 -> 3673377 | D40: =A2A!D208 -> 3172817 | E40: ='[3]C2-FinPerf SC'!$C$41 -> 3144638.22 | F40: =A2A!F208 -> 3366000 | G40: =A2A!G208 -> 2587000 | H40: =A2A!H208 -> 2587000 | I40: =A2A!I208 -> 3212000 | J40: =A2A!J208 -> 3448000 | K40: =A2A!K208 -> 3740000
A41: Environmental protection | C41: =A2A!C213 -> 9502523 | D41: =A2A!D213 -> 9152203 | E41: ='[3]C2-FinPerf SC'!$C$42 -> 7820962.19 | F41: =A2A!F213 -> 13783000 | G41: =A2A!G213 -> 15631000 | H41: =A2A!H213 -> 15631000 | I41: =A2A!I213 -> 15190000 | J41: =A2A!J213 -> 15504000 | K41: =A2A!K213 -> 15930000
A42: Trading services | C42: =SUM(C43:C46) -> 541492987 | D42: =SUM(D43:D46) -> 256290874 | E42: 312277931.2 | F42: =SUM(F43:F46) -> 321530000 | G42: 284665928 | H42: 284665928 | I42: 296010000 | J42: 312630000 | K42: =SUM(K43:K46) -> 334731000
A43: Energy sources | C43: =A2A!C221 -> 0 | D43: =A2A!D221 -> 226417 | E43: =A2A!E221 -> 0 | F43: =A2A!F221 -> 0 | G43: =A2A!G221 -> 0 | H43: =A2A!H221 -> 0 | I43: =A2A!I221 -> 0 | J43: =A2A!J221 -> 0 | K43: =A2A!K221 -> 0
A44: Water management | C44: =A2A!C225 -> 541492987 | D44: =A2A!D225 -> 256064457 | E44: ='[3]C2-FinPerf SC'!$C$45 -> 312277931.2 | F44: =A2A!F225 -> 321530000 | G44: =A2A!G225 -> 284665928 | H44: =A2A!H225 -> 284665928 | I44: =A2A!I225 -> 296010000 | J44: =A2A!J225 -> 312630000 | K44: =A2A!K225 -> 334731000
A45: Waste water management | C45: =A2A!C229 -> 0 | D45: =A2A!D229 -> 0 | E45: =A2A!E229 -> 0 | F45: =A2A!F229 -> 0 | G45: =A2A!G229 -> 0 | H45: =A2A!H229 -> 0 | I45: =A2A!I229 -> 0 | J45: =A2A!J229 -> 0 | K45: =A2A!K229 -> 0
A46: Waste management | C46: =A2A!C234 -> 0 | D46: =A2A!D234 -> 0 | E46: =A2A!E234 -> 0 | F46: =A2A!F234 -> 0 | G46: =A2A!G234 -> 0 | H46: =A2A!H234 -> 0 | I46: =A2A!I234 -> 0 | J46: =A2A!J234 -> 0 | K46: =A2A!K234 -> 0
A47: Other | B47: 4 | C47: =A2A!C239 -> 0 | D47: =A2A!D239 -> 0 | E47: =A2A!E239 -> 0 | F47: =A2A!F239 -> 0 | G47: =A2A!G239 -> 0 | H47: =A2A!H239 -> 0 | I47: =A2A!I239 -> 0 | J47: =A2A!J239 -> 0 | K47: =A2A!K239 -> 0
A48: ="Total "&A27 -> Total Expenditure - Functional | B48: 3 | C48: =C28+C32+C38+C42+C47 -> 943348141 | D48: =D28+D32+D38+D42+D47 -> 729028021 | E48: =E28+E32+E38+E42+E47 -> 761280404.2 | F48: =F28+F32+F38+F42+F47 -> 786032000 | G48: 767313928 | H48: 767313928 | I48: 811842000 | J48: 858219000 | K48: 918364000
A49: =result -> Surplus/(Deficit) for the year | C49: =C25-C48 -> -4563236 | D49: =D25-D48 -> 249669947 | E49: 217632965.8 | F49: 243508000 | G49: 377002000 | H49: 377002000 | I49: 241653000 | J49: 283592000 | K49: 276912000
A50: =head27a -> References
A51: 1. Government Finance Statistics Functions and Sub-functions are standardised to assist the compilation of national and international accounts for comparison purposes
A52: 2. Total Revenue by functional classification must reconcile to Total Operating Revenue shown in Budgeted Financial Performance (revenue and expenditure)
A53: 3. Total Expenditure by Functional Classification must reconcile to Total Operating Expenditure shown in Budgeted Financial Performance (revenue and expenditure)
A54: 4. All amounts must be classified under a functional classification . The GFS function 'Other' is only for Abbatoirs, Air Transport, Forestry, Licensing and Regulation, Markets and Tourism - and if used must be supported by footnotes. Nothing else may be placed under 'Other'. Assign associate share to relevant classification.
A57: check oprev balance | C57: =C25-'A4-FinPerf RE'!C59 -> 0 | D57: =D25-'A4-FinPerf RE'!D59 -> 0 | E57: =E25-'A4-FinPerf RE'!E59 -> 427740 | F57: =F25-'A4-FinPerf RE'!F59 -> 0 | G57: =G25-'A4-FinPerf RE'!G59 -> 0 | H57: =H25-'A4-FinPerf RE'!H59 -> 0 | I57: =I25-'A4-FinPerf RE'!I59 -> -29840433 | J57: =J25-'A4-FinPerf RE'!J59 -> 88316000 | K57: =K25-'A4-FinPerf RE'!K59 -> 53465000
A58: check opexp balance | C58: =C48-'A3-FinPerf V'!C38 -> 0 | D58: =D48-'A3-FinPerf V'!D38 -> 0 | E58: =E48-'A3-FinPerf V'!E38 -> 6311356.23 | F58: =F48-'A3-FinPerf V'!F38 -> 0 | G58: =G48-'A3-FinPerf V'!G38 -> 0 | H58: =H48-'A3-FinPerf V'!H38 -> 0 | I58: =I48-'A3-FinPerf V'!I38 -> 0 | J58: =J48-'A3-FinPerf V'!J38 -> 0 | K58: =K48-'A3-FinPerf V'!K38 -> 0

Sheet A2A
A1: =muni&" - "&Approve3 -> DC35 Capricorn - Table A2 Budgeted Financial Performance (revenue and expenditure by functional classification)
A2: ="Functional Classification "&desc -> Functional Classification Description | B2: =head27 -> Ref | C2: =head1b -> 2016/17 | D2: =head1A -> 2017/18 | E2: =Head1 -> 2018/19 | F2: =Head2 -> Current Year 2019/20 | I2: =Head3 -> 2020/21 Medium Term Revenue & Expenditure Framework
A3: R thousand | B3: 1 | C3: =Head5 -> Audited Outcome | D3: =Head5 -> Audited Outcome | E3: =Head5 -> Audited Outcome | F3: =Head6 -> Original Budget | G3: =Head7 -> Adjusted Budget | H3: =Head8 -> Full Year Forecast | I3: =Head9 -> Budget Year 2020/21 | J3: =Head10 -> Budget Year +1 2021/22 | K3: =Head11 -> Budget Year +2 2022/23
A4: Revenue - Functional
A5: Municipal governance and administration | C5: =C6+C9+C23 -> 67962747 | D5: 365461970 | E5: 668559630 | F5: 350980000 | G5: 393411000 | H5: 393411000 | I5: 400763000 | J5: 426327000 | K5: 454060000
A6: Executive and council | C6: =SUM(C7:C8) -> 62688324 | D6: =SUM(D7:D8) -> 24390566 | E6: =SUM(E7:E8) -> 0 | F6: =[4]B2B!$C$8 -> 51128000 | G6: =G7+G8 -> 52508000 | H6: =G6 -> 52508000 | I6: 54816000 | J6: 58431000 | K6: 62433000
A7: Mayor and Council | C7: 34201386.78 | D7: 21534840 | F7: 36566000 | G7: 38223000 | H7: 38223000 | I7: 40145000 | J7: 42649000 | K7: 45340000
A8: Municipal Manager, Town Secretary and Chief Executive | C8: 28486937.22 | D8: 2855726 | F8: 14562000 | G8: 14285000 | H8: 14285000 | I8: 14671000 | J8: 15782000 | K8: 17093000
A9: Finance and administration | C9: =SUM(C10:C22) -> 5274423 | D9: 337371859 | E9: 668559630 | F9: 293583000 | G9: 334333000 | H9: 334333000 | I9: 339146000 | J9: 360693000 | K9: 383875000
A10: Administrative and Corporate Support | D10: 25096161 | F10: 56132000 | G10: 73893000 | H10: 73893000 | I10: 67630000 | J10: 72496000 | K10: 75985000
A11: Asset Management | D11: 0 | G11: 0
A12: Finance | C12: 5274423 | D12: 284720905 | E12: 668559630 | F12: 110227000 | G12: 119521000 | H12: 119521000 | I12: 132147000 | J12: 142669000 | K12: 152561000
A13: Fleet Management | G13: 0
A14: Human Resources | D14: 17473864 | F14: 46091000 | G14: 48817000 | H14: 48817000 | I14: 51052000 | J14: 53220000 | K14: 56474000
A15: Information Technology | D15: 10080929 | F15: 22751000 | G15: 29960000 | H15: 29960000 | I15: 23707000 | J15: 23350000 | K15: 24519000
A16: Legal Services | F16: 5423000 | G16: 6695000 | H16: 6695000 | I16: 6044000 | J16: 6184000 | K16: 6370000
A17: Marketing, Customer Relations, Publicity and Media Co-ordination | F17: 10253000 | G17: 11495000 | H17: 11495000 | I17: 11560000 | J17: 11947000 | K17: 12617000
A18: Property Services | G18: 0
A19: Risk Management | F19: 24871000 | G19: 26113000 | H19: 26113000 | I19: 28319000 | J19: 30912000 | K19: 33879000
A20: Security Services | G20: 0
A21: Supply Chain Management | F21: 17835000 | G21: 17839000 | H21: 17839000 | I21: 18687000 | J21: 19915000 | K21: 21470000
A22: Valuation Service | G22: 0
A23: Internal audit | C23: =SUM(C24:C24) -> 0 | D23: 3699545 | E23: 0 | F23: 6269000 | G23: 6570000 | H23: 6570000 | I23: 6801000 | J23: 7203000 | K23: 7752000
A24: Governance Function | D24: 3699545 | F24: =[4]B2B!$C$26 -> 6269000 | G24: 6570000 | H24: =G24 -> 6570000 | I24: 6801000 | J24: 7203000 | K24: 7752000
A25: Community and public safety | C25: =C26+C48+C54+C63+C66 -> 64520814 | D25: 41168598 | E25: 0 | F25: 91024000 | G25: 90295000 | H25: 90295000 | I25: 79260000 | J25: 83916000 | K25: 91521000
A26: Community and social services | C26: =SUM(C27:C47) -> 17152412 | D26: =SUM(D27:D47) -> 7051484 | E26: 0 | F26: 13430000 | G26: 13703000 | H26: 13703000 | I26: 13742000 | J26: 13975000 | K26: 15802000
A27: Aged Care
A28: Agricultural
A29: Animal Care and Diseases
A30: Cemeteries, Funeral Parlours and Crematoriums
A31: Child Care Facilities
A32: Community Halls and Facilities
A33: Consumer Protection
A34: Cultural Matters
A35: Disaster Management | C35: 17152412 | D35: 7051484 | F35: 13430000 | G35: 13703000 | H35: 13703000 | I35: 13742000 | J35: 13975000 | K35: 15802000
A36: Education
A37: Indigenous and Customary Law
A38: Industrial Promotion
A39: Language Policy
A40: Libraries and Archives
A41: Literacy Programmes
A42: Media Services
A43: Museums and Art Galleries
A44: Population Development
A45: Provincial Cultural Matters
A46: Theatres
A47: Zoo's
A48: Sport and recreation | C48: =SUM(C49:C53) -> 0 | D48: =SUM(D49:D53) -> 463518 | E48: 0 | F48: 4288000 | G48: 3613000 | H48: 3613000 | I48: 3887000 | J48: 5141000 | K48: 5492000
A49: Beaches and Jetties
A50: Casinos, Racing, Gambling, Wagering
A51: Community Parks (including Nurseries) | D51: 463518
A52: Recreational Facilities | F52: 4288000 | G52: 3613000 | H52: 3613000 | I52: 3887000 | J52: 5141000 | K52: 5492000
A53: Sports Grounds and Stadiums
A54: Public safety | C54: =SUM(C55:C62) -> 47368402 | D54: 24797383 | E54: 0 | F54: 56374000 | G54: 55844000 | H54: 55844000 | I54: 44158000 | J54: 46189000 | K54: 50075000
A55: Civil Defence
A56: Cleansing
A57: Control of Public Nuisances
A58: Fencing and Fences
A59: Fire Fighting and Protection | C59: 47368402 | D59: 24797383 | F59: 56374000 | G59: 55844000 | H59: 55844000 | I59: 44158000 | J59: 46189000 | K59: 50075000
A60: Licensing and Control of Animals
A61: Police Forces, Traffic and Street Parking Control
A62: Pounds
A63: Housing | C63: =SUM(C64:C65) -> 0 | D63: =SUM(D64:D65) -> 0 | E63: 0 | F63: 0 | G63: 0 | H63: 0 | I63: 0 | J63: 0 | K63: 0
A64: Housing
A65: Informal Settlements
A66: Health | C66: =SUM(C67:C73) -> 0 | D66: =SUM(D67:D73) -> 8856213 | E66: 0 | F66: 16932000 | G66: 17135000 | H66: 17135000 | I66: 17473000 | J66: 18611000 | K66: 20152000
A67: Ambulance
A68: Health Services
A69: Laboratory Services
A70: Food Control | D70: 8856213 | F70: 16932000 | G70: 17135000 | H70: 17135000 | I70: 17473000 | J70: 18611000 | K70: 20152000
A71: Health Surveillance and Prevention of Communicable Diseases including immunizations
A72: Vector Control
A73: Chemical Safety
A74: Economic and environmental services | C74: =C75+C86+C91 -> 26946135 | D74: 24575994 | E74: 6064000 | F74: 37029000 | G74: 39083000 | H74: 39083000 | I74: 37598000 | J74: 37892000 | K74: 39940000
A75: Planning and development | C75: =SUM(C76:C85) -> 15402264 | D75: =SUM(D76:D85) -> 16797522 | E75: 3642000 | F75: 19880000 | G75: 20865000 | H75: 20865000 | I75: 19196000 | J75: 18940000 | K75: 20270000
A76: Billboards
A77: Corporate Wide Strategic Planning (IDPs, LEDs) | C77: 15402264 | D77: 16797522 | E77: 3642000 | F77: 19880000 | G77: 20865000 | H77: 20865000 | I77: 19196000 | J77: 18940000 | K77: 20270000
A78: Central City Improvement District
A79: Development Facilitation
A80: Economic Development/Planning
A81: Regional Planning and Development
A82: Town Planning, Building Regulations and Enforcement, and City Engineer
A83: Project Management Unit
A84: Provincial Planning
A85: Support to Local Municipalities
A86: Road transport | C86: =SUM(C87:C90) -> 6642178 | D86: 2977104 | E86: 2422000 | F86: 3366000 | G86: 2587000 | H86: 2587000 | I86: 3212000 | J86: 3448000 | K86: 3740000
A87: Public Transport | C87: 6642178 | D87: 2977104 | E87: 2422000 | F87: 3366000 | G87: 2587000 | H87: 2587000 | I87: 3212000 | J87: 3448000 | K87: 3740000
A88: Road and Traffic Regulation
A89: Roads
A90: Taxi Ranks
A91: Environmental protection | C91: =SUM(C92:C97) -> 4901693 | D91: =SUM(D92:D97) -> 4801368 | E91: 0 | F91: 13783000 | G91: 15631000 | H91: 15631000 | I91: 15190000 | J91: 15504000 | K91: 15930000
A92: Biodiversity and Landscape
A93: Coastal Protection
A94: Indigenous Forests
A95: Nature Conservation
A96: Pollution Control | C96: 4901693 | D96: 4801368 | F96: 13783000 | G96: 15631000 | H96: 15631000 | I96: 15190000 | J96: 15504000 | K96: 15930000
A97: Soil Conservation
A98: Trading services | C98: =C99+C103+C107+C112 -> 779355209 | D98: =D99+D103+D107+D112 -> 547491406 | E98: 303862000 | F98: 550507000 | G98: 621526928 | H98: 621526928 | I98: 535874000 | J98: 593676000 | K98: =K99+K103+K107+K112 -> 609755000
A99: Energy sources | C99: =SUM(C100:C102) -> 0 | D99: =SUM(D100:D102) -> 0 | E99: 0 | F99: 0 | G99: 0 | H99: 0 | I99: 0 | J99: 0 | K99: 0
A100: Electricity
A101: Street Lighting and Signal Systems
A102: Nonelectric Energy
A103: Water management | C103: =SUM(C104:C106) -> 779355209 | D103: =SUM(D104:D106) -> 547491406 | E103: 303862000 | F103: 550507000 | G103: 621526928 | H103: 621526928 | I103: 535874000 | J103: 593676000 | K103: 609755000
A104: Water Treatment | D104: 222454406 | F104: 15268000 | G104: 16310000 | H104: 16310000 | I104: 18383000 | J104: 19423000 | K104: 17989000
A105: Water Distribution | C105: 779355209 | D105: 325037000 | E105: 303862000 | F105: 535239000 | G105: 605216928 | H105: 605216928 | I105: 517491000 | J105: 574253000 | K105: 591766000
A106: Water Storage
A107: Waste water management | C107: =SUM(C108:C111) -> 0 | D107: =SUM(D108:D111) -> 0 | E107: 0 | F107: 0 | G107: 0 | H107: 0 | I107: 0 | J107: 0 | K107: 0
A108: Public Toilets
A109: Sewerage
A110: Storm Water Management
A111: Waste Water Treatment
A112: Waste management | C112: =SUM(C113:C116) -> 0 | D112: =SUM(D113:D116) -> 0 | E112: 0 | F112: 0 | G112: 0 | H112: 0 | I112: 0 | J112: 0 | K112: 0
A113: Recycling
A114: Solid Waste Disposal (Landfill Sites)
A115: Solid Waste Removal
A116: Street Cleaning
A117: Other | C117: =SUM(C118:C123) -> 0 | D117: =SUM(D118:D123) -> 0 | E117: 0 | F117: 0 | G117: 0 | H117: 0 | I117: 0 | J117: 0 | K117: 0
A118: Abattoirs
A119: Air Transport
A120: Forestry
A121: Licensing and Regulation
A122: Markets
A123: Tourism
A124: ="Total "&A4 -> Total Revenue - Functional | B124: 2 | C124: =C5+C25+C74+C98+C117 -> 938784905 | D124: 978697968 | E124: 978485630 | F124: 1029540000 | G124: 1144315928 | H124: 1144315928 | I124: 1053495000 | J124: 1141811000 | K124: 1195276000
A126: Expenditure - Functional
A127: =A5 -> Municipal governance and administration | C127: =C128+C131+C145 -> 311731717 | D127: 364435859 | E127: 332631122 | F127: 351949000 | G127: 368770000 | H127: 368770000 | I127: 400424000 | J127: 424631000 | K127: 453822000
A128: Executive and council | C128: =SUM(C129:C130) -> 72580208 | D128: 40278247 | E128: =SUM(E129:E130) -> 43366667 | F128: 51128000 | G128: 52508000 | H128: 52508000 | I128: 54816000 | J128: 58431000 | K128: 62433000
A129: Mayor and Council | C129: 50963151.78 | D129: 34918788 | E129: 30379059 | F129: 36566000 | G129: 38223000 | H129: 38223000 | I129: 40145000 | J129: 42649000 | K129: 45340000
A130: Municipal Manager, Town Secretary and Chief Executive | C130: 21617056.22 | D130: 5359459 | E130: 12987608 | F130: 14562000 | G130: 14285000 | H130: 14285000 | I130: 14671000 | J130: 15782000 | K130: 17093000
A131: Finance and administration | C131: =SUM(C132:C144) -> 239151509 | D131: 318673948 | E131: 283380831 | F131: 294552000 | G131: 309692000 | H131: 309692000 | I131: 338807000 | J131: 358997000 | K131: 383637000
A132: Administrative and Corporate Support | C132: 53505214.43 | D132: 56283193 | E132: 51917418 | F132: 54496000 | G132: 54600000 | H132: 54600000 | I132: 64376000 | J132: 66897000 | K132: 71517000
A133: Asset Management | G133: 0 | H133: 0
A134: Finance | C134: 76951908.23 | D134: 198071363 | E134: 163287860 | F134: 110227000 | G134: 119521000 | H134: 119521000 | I134: 132147000 | J134: 142669000 | K134: 152561000
A135: Fleet Management | G135: 0 | H135: 0
A136: Human Resources | C136: 31608990 | D136: 48651468 | E136: 46898762 | F136: 46091000 | G136: 48817000 | H136: 48817000 | I136: 51052000 | J136: 53220000 | K136: 56474000
A137: Information Technology | C137: 24766727 | D137: 15667924 | E137: 21276791 | F137: 25356000 | G137: 24612000 | H137: 24612000 | I137: 26622000 | J137: 27253000 | K137: 28749000
A138: Legal Services | C138: 8193573.57 | F138: 5423000 | G138: 6695000 | H138: 6695000 | I138: 6044000 | J138: 6184000 | K138: 6370000
A139: Marketing, Customer Relations, Publicity and Media Co-ordination | C139: 11308931.75 | F139: 10253000 | G139: 11495000 | H139: 11495000 | I139: 11560000 | J139: 11947000 | K139: 12617000
A140: Property Services | G140: 0 | H140: 0
A141: Risk Management | C141: 19215446.97 | F141: 24871000 | G141: 26113000 | H141: 26113000 | I141: 28319000 | J141: 30912000 | K141: 33879000
A142: Security Services | G142: 0 | H142: 0
A143: Supply Chain Management | C143: 13600717.05 | F143: 17835000 | G143: 17839000 | H143: 17839000 | I143: 18687000 | J143: 19915000 | K143: 21470000
A144: Valuation Service | H144: 0
A145: Internal audit | C145: =SUM(C146:C146) -> 0 | D145: 5483664 | E145: 5883624 | F145: 6269000 | G145: 6570000 | H145: 6570000 | I145: 6801000 | J145: 7203000 | K145: 7752000
A146: Governance Function | D146: 5483664 | E146: 5883624 | F146: 6269000 | G146: 6570000 | H146: 6570000 | I146: 6801000 | J146: 7203000 | K146: 7752000
A147: Community and public safety | C147: =C148+C170+C176+C185+C188 -> 62928533 | D147: 68380764 | E147: 71090673 | F147: 75524000 | G147: 74795000 | H147: 74795000 | I147: 77810000 | J147: 83066000 | K147: 89871000
A148: Community and social services | C148: =SUM(C149:C169) -> 17676906 | D148: =SUM(D149:D169) -> 10874061 | E148: 12909422 | F148: 13430000 | G148: 13703000 | H148: 13703000 | I148: 13742000 | J148: 13975000 | K148: 15802000
A149: Aged Care
A150: Agricultural
A151: Animal Care and Diseases
A152: Cemeteries, Funeral Parlours and Crematoriums
A153: Child Care Facilities
A154: Community Halls and Facilities
A155: Consumer Protection
A156: Cultural Matters
A157: Disaster Management | C157: 17676906 | D157: 10874061 | E157: 12909422 | F157: 13430000 | G157: 13703000 | H157: 13703000 | I157: 13742000 | J157: 13975000 | K157: 15802000
A158: Education
A159: =A37 -> Indigenous and Customary Law
A160: Industrial Promotion
A161: Language Policy
A162: Libraries and Archives
A163: Literacy Programmes
A164: Media Services
A165: Museums and Art Galleries
A166: Population Development
A167: Provincial Cultural Matters
A168: Theatres
A169: Zoo's
A170: Sport and recreation | C170: =SUM(C171:C175) -> 0 | D170: 5017451 | E170: 1189822 | F170: 4288000 | G170: 3613000 | H170: 3613000 | I170: 3887000 | J170: 5141000 | K170: 5492000
A171: Beaches and Jetties
A172: Casinos, Racing, Gambling, Wagering
A173: Community Parks (including Nurseries) | D173: 5017451
A174: Recreational Facilities | E174: 1189822 | F174: 4288000 | G174: 3613000 | H174: 3613000 | I174: 3887000 | J174: 5141000 | K174: 5492000
A175: Sports Grounds and Stadiums
A176: Public safety | C176: =SUM(C177:C184) -> 45251627 | D176: 38200745 | E176: 41957584 | F176: 40874000 | G176: 40344000 | H176: 40344000 | I176: 42708000 | J176: 45339000 | K176: 48425000
A177: Civil Defence
A178: Cleansing
A179: =A57 -> Control of Public Nuisances
A180: Fencing and Fences
A181: Fire Fighting and Protection | C181: 45251627 | D181: 38200745 | E181: 41957584 | F181: 40874000 | G181: 40344000 | H181: 40344000 | I181: 42708000 | J181: 45339000 | K181: 48425000
A182: Licensing and Control of Animals
A183: Police Forces, Traffic and Street Parking Control
A184: Pounds
A185: =A63 -> Housing | C185: =SUM(C186:C187) -> 0 | D185: 0 | E185: 0 | F185: 0 | G185: 0 | H185: 0 | I185: 0 | J185: 0 | K185: 0
A186: Housing
A187: Informal Settlements
A188: Health | C188: =SUM(C189:C195) -> 0 | D188: =SUM(D189:D195) -> 14288507 | E188: 15033845 | F188: 16932000 | G188: 17135000 | H188: 17135000 | I188: 17473000 | J188: 18611000 | K188: 20152000
A189: Ambulance
A190: Health Services
A191: Laboratory Services
A192: Food Control | D192: 14288507 | E192: 15033845 | F192: 16932000 | G192: 17135000 | H192: 17135000 | I192: 17473000 | J192: 18611000 | K192: 20152000
A193: Health Surveillance and Prevention of Communicable Diseases including immunizations
A194: Vector Control
A195: Chemical Safety
A196: Economic and environmental services | C196: =C197+C208+C213 -> 27194904 | D196: 39920524 | E196: 28795756 | F196: 37029000 | G196: 39083000 | H196: 39083000 | I196: 37598000 | J196: 37892000 | K196: 39940000
A197: Planning and development | C197: =SUM(C198:C207) -> 14019004 | D197: =SUM(D198:D207) -> 27595504 | E197: 17630155 | F197: 19880000 | G197: 20865000 | H197: 20865000 | I197: 19196000 | J197: 18940000 | K197: 20270000
A198: Billboards
A199: Corporate Wide Strategic Planning (IDPs, LEDs) | C199: 14019004 | D199: 27595504 | E199: 17630155 | F199: 19880000 | G199: 20865000 | H199: 20865000 | I199: 19196000 | J199: 18940000 | K199: 20270000
A200: Central City Improvement District
A201: Development Facilitation
... 53 more rows

Sheet A3-FinPerf V
A1: =muni&" - "&Approve2 -> DC35 Capricorn - Table A3 Budgeted Financial Performance (revenue and expenditure by municipal vote)
A2: =Vdesc -> Vote Description | B2: =head27 -> Ref | C2: =head1b -> 2016/17 | D2: =head1A -> 2017/18 | E2: =Head1 -> 2018/19 | F2: =Head2 -> Current Year 2019/20 | I2: =Head3 -> 2020/21 Medium Term Revenue & Expenditure Framework | L2: =Head4 -> LTFS
A3: R thousand | C3: =Head5 -> Audited Outcome | D3: =Head5 -> Audited Outcome | E3: =Head5 -> Audited Outcome | F3: =Head6 -> Original Budget | G3: =Head7 -> Adjusted Budget | H3: =Head8 -> Full Year Forecast | I3: =Head9 -> Budget Year 2020/21 | J3: =Head10 -> Budget Year +1 2021/22 | K3: =Head11 -> Budget Year +2 2022/23 | L3: =Head12 -> Forecast 2023/24 | M3: =Head13 -> Forecast 2024/25 | N3: =Head14 -> Forecast 2025/26 | O3: =Head15 -> Forecast 2026/27 | P3: =Head16 -> Forecast 2027/28 | Q3: =Head17 -> Forecast 2028/29 | R3: =Head18 -> Forecast 2029/30 | S3: =Head19 -> Forecast 2030/31 | T3: =Head20 -> Forecast 2031/32 | U3: =Head21 -> Forecast 2032/33 | V3: =Head22 -> Forecast 2033/34 | W3: =Head23 -> Forecast 2034/35
A4: Revenue by Vote | B4: 1
A5: =A3A!A5 -> Vote 1 - Municipal governance and administration | C5: =A3A!C5 -> 67962747 | D5: =A3A!D5 -> 365461970 | E5: =A3A!E5 -> 668559630 | F5: =A3A!F5 -> 350980000 | G5: =A3A!G5 -> 393411000 | H5: =A3A!H5 -> 393411000 | I5: =A3A!I5 -> 400763000 | J5: =A3A!J5 -> 426327000 | K5: =A3A!K5 -> 454060000
A6: =A3A!A16 -> Vote 2 - Community and social services | C6: =A3A!C16 -> 64520814 | D6: =A3A!D16 -> 41168598 | E6: =A3A!E16 -> 0 | F6: =A3A!F16 -> 91024000 | G6: =A3A!G16 -> 90295000 | H6: =A3A!H16 -> 90295000 | I6: =A3A!I16 -> 79260000 | J6: =A3A!J16 -> 83916000 | K6: =A3A!K16 -> 91521000
A7: =A3A!A27 -> Vote 3 - Economic and environmental services | C7: =A3A!C27 -> 26946135 | D7: =A3A!D27 -> 24575994 | E7: =A3A!E27 -> 6064000 | F7: =A3A!F27 -> 37029000 | G7: =A3A!G27 -> 39083000 | H7: =A3A!H27 -> 39083000 | I7: =A3A!I27 -> 36914000 | J7: =A3A!J27 -> 37160000 | K7: =A3A!K27 -> 39142000
A8: =A3A!A38 -> Vote 4 - Trading services | C8: =A3A!C38 -> 779355209 | D8: =A3A!D38 -> 547491406 | E8: =A3A!E38 -> 303862000 | F8: =A3A!F38 -> 550507000 | G8: =A3A!G38 -> 621526928 | H8: =A3A!H38 -> 621526928 | I8: =A3A!I38 -> 536558000 | J8: =A3A!J38 -> 594408000 | K8: =A3A!K38 -> 610553000
A9: =A3A!A49 -> 0 | C9: =A3A!C49 -> 0 | D9: =A3A!D49 -> 0 | E9: =A3A!E49 -> 0 | F9: =A3A!F49 -> 0 | G9: =A3A!G49 -> 0 | H9: =A3A!H49 -> 0 | I9: =A3A!I49 -> 0 | J9: =A3A!J49 -> 0 | K9: =A3A!K49 -> 0
A10: =A3A!A60 -> 0 | C10: =A3A!C60 -> 0 | D10: =A3A!D60 -> 0 | E10: =A3A!E60 -> 0 | F10: =A3A!F60 -> 0 | G10: =A3A!G60 -> 0 | H10: =A3A!H60 -> 0 | I10: =A3A!I60 -> 0 | J10: =A3A!J60 -> 0 | K10: =A3A!K60 -> 0
A11: =A3A!A71 -> 0 | C11: =A3A!C71 -> 0 | D11: =A3A!D71 -> 0 | E11: =A3A!E71 -> 0 | F11: =A3A!F71 -> 0 | G11: =A3A!G71 -> 0 | H11: =A3A!H71 -> 0 | I11: =A3A!I71 -> 0 | J11: =A3A!J71 -> 0 | K11: =A3A!K71 -> 0
A12: =A3A!A82 -> 0 | C12: =A3A!C82 -> 0 | D12: =A3A!D82 -> 0 | E12: =A3A!E82 -> 0 | F12: =A3A!F82 -> 0 | G12: =A3A!G82 -> 0 | H12: =A3A!H82 -> 0 | I12: =A3A!I82 -> 0 | J12: =A3A!J82 -> 0 | K12: =A3A!K82 -> 0
A13: =A3A!A93 -> 0 | C13: =A3A!C93 -> 0 | D13: =A3A!D93 -> 0 | E13: =A3A!E93 -> 0 | F13: =A3A!F93 -> 0 | G13: =A3A!G93 -> 0 | H13: =A3A!H93 -> 0 | I13: =A3A!I93 -> 0 | J13: =A3A!J93 -> 0 | K13: =A3A!K93 -> 0
A14: =A3A!A104 -> 0 | C14: =A3A!C104 -> 0 | D14: =A3A!D104 -> 0 | E14: =A3A!E104 -> 0 | F14: =A3A!F104 -> 0 | G14: =A3A!G104 -> 0 | H14: =A3A!H104 -> 0 | I14: =A3A!I104 -> 0 | J14: =A3A!J104 -> 0 | K14: =A3A!K104 -> 0
A15: =A3A!A115 -> 0 | C15: =A3A!C115 -> 0 | D15: =A3A!D115 -> 0 | E15: =A3A!E115 -> 0 | F15: =A3A!F115 -> 0 | G15: =A3A!G115 -> 0 | H15: =A3A!H115 -> 0 | I15: =A3A!I115 -> 0 | J15: =A3A!J115 -> 0 | K15: =A3A!K115 -> 0 | L15: =A5A!L115 -> 0
A16: =A3A!A126 -> 0 | C16: =A3A!C126 -> 0 | D16: =A3A!D126 -> 0 | E16: =A3A!E126 -> 0 | F16: =A3A!F126 -> 0 | G16: =A3A!G126 -> 0 | H16: =A3A!H126 -> 0 | I16: =A3A!I126 -> 0 | J16: =A3A!J126 -> 0 | K16: =A3A!K126 -> 0 | L16: =A5A!L126 -> 0
A17: =A3A!A137 -> 0 | C17: =A3A!C137 -> 0 | D17: =A3A!D137 -> 0 | E17: =A3A!E137 -> 0 | F17: =A3A!F137 -> 0 | G17: =A3A!G137 -> 0 | H17: =A3A!H137 -> 0 | I17: =A3A!I137 -> 0 | J17: =A3A!J137 -> 0 | K17: =A3A!K137 -> 0 | L17: =A5A!L137 -> 0
A18: =A3A!A148 -> 0 | C18: =A3A!C148 -> 0 | D18: =A3A!D148 -> 0 | E18: =A3A!E148 -> 0 | F18: =A3A!F148 -> 0 | G18: =A3A!G148 -> 0 | H18: =A3A!H148 -> 0 | I18: =A3A!I148 -> 0 | J18: =A3A!J148 -> 0 | K18: =A3A!K148 -> 0 | L18: =A5A!L148 -> 0
A19: =A3A!A159 -> 0 | C19: =A3A!C159 -> 0 | D19: =A3A!D159 -> 0 | E19: =A3A!E159 -> 0 | F19: =A3A!F159 -> 0 | G19: =A3A!G159 -> 0 | H19: =A3A!H159 -> 0 | I19: =A3A!I159 -> 0 | J19: =A3A!J159 -> 0 | K19: =A3A!K159 -> 0 | L19: =A5A!L159 -> 0
A20: Total Revenue by Vote | B20: 2 | C20: =SUM(C5:C19) -> 938784905 | D20: =SUM(D5:D19) -> 978697968 | E20: 978485630 | F20: 1029540000 | G20: 1144315928 | H20: 1144315928 | I20: 1053495000 | J20: 1141811000 | K20: 1195276000
A22: Expenditure by Vote to be appropriated | B22: 1
A23: =A3A!A173 -> Vote 1 - Municipal governance and administration | C23: =A3A!C173 -> 311731717 | D23: =A3A!D173 -> 364435859 | E23: =A3A!E173 -> 332631122 | F23: =A3A!F173 -> 351949000 | G23: =A3A!G173 -> 368770000 | H23: =A3A!H173 -> 368770000 | I23: =A3A!I173 -> 400424000 | J23: =A3A!J173 -> 424631000 | K23: =A3A!K173 -> 453822000
A24: =A3A!A184 -> Vote 2 - Community and social services | C24: =A3A!C184 -> 62928533 | D24: =A3A!D184 -> 68380764 | E24: =A3A!E184 -> 71090673 | F24: =A3A!F184 -> 75524000 | G24: =A3A!G184 -> 90295000 | H24: =A3A!H184 -> 90295000 | I24: =A3A!I184 -> 79260000 | J24: =A3A!J184 -> 83916000 | K24: =A3A!K184 -> 91521000
A25: =A3A!A195 -> Vote 3 - Economic and environmental services | C25: =A3A!C195 -> 27194904 | D25: =A3A!D195 -> 39920524 | E25: =A3A!E195 -> 28795756 | F25: =A3A!F195 -> 37029000 | G25: =A3A!G195 -> 39083000 | H25: =A3A!H195 -> 39083000 | I25: =A3A!I195 -> 36914000 | J25: =A3A!J195 -> 37160000 | K25: =A3A!K195 -> 39142000
A26: =A3A!A206 -> Vote 4 - Trading services | C26: =A3A!C206 -> 541492987 | D26: =A3A!D206 -> 256290874 | E26: =A3A!E206 -> 322451497 | F26: =A3A!F206 -> 321530000 | G26: =A3A!G206 -> 269165928 | H26: =A3A!H206 -> 269165928 | I26: =A3A!I206 -> 295244000 | J26: =A3A!J206 -> 312512000 | K26: =A3A!K206 -> 333879000
A27: =A3A!A218 -> 0 | C27: =A3A!C218 -> 0 | D27: =A3A!D218 -> 0 | E27: =A3A!E218 -> 0 | F27: =A3A!F218 -> 0 | G27: =A3A!G218 -> 0 | H27: =A3A!H218 -> 0 | I27: =A3A!I218 -> 0 | J27: =A3A!J218 -> 0 | K27: =A3A!K218 -> 0
A28: =A3A!A229 -> 0 | C28: =A3A!C229 -> 0 | D28: =A3A!D229 -> 0 | E28: =A3A!E229 -> 0 | F28: =A3A!F229 -> 0 | G28: =A3A!G229 -> 0 | H28: =A3A!H229 -> 0 | I28: =A3A!I229 -> 0 | J28: =A3A!J229 -> 0 | K28: =A3A!K229 -> 0
A29: =A3A!A240 -> 0 | C29: =A3A!C240 -> 0 | D29: =A3A!D240 -> 0 | E29: =A3A!E240 -> 0 | F29: =A3A!F240 -> 0 | G29: =A3A!G240 -> 0 | H29: =A3A!H240 -> 0 | I29: =A3A!I240 -> 0 | J29: =A3A!J240 -> 0 | K29: =A3A!K240 -> 0
A30: =A3A!A251 -> 0 | C30: =A3A!C251 -> 0 | D30: =A3A!D251 -> 0 | E30: =A3A!E251 -> 0 | F30: =A3A!F251 -> 0 | G30: =A3A!G251 -> 0 | H30: =A3A!H251 -> 0 | I30: =A3A!I251 -> 0 | J30: =A3A!J251 -> 0 | K30: =A3A!K251 -> 0
A31: =A3A!A262 -> 0 | C31: =A3A!C262 -> 0 | D31: =A3A!D262 -> 0 | E31: =A3A!E262 -> 0 | F31: =A3A!F262 -> 0 | G31: =A3A!G262 -> 0 | H31: =A3A!H262 -> 0 | I31: =A3A!I262 -> 0 | J31: =A3A!J262 -> 0 | K31: =A3A!K262 -> 0
A32: =A3A!A273 -> 0 | C32: =A3A!C273 -> 0 | D32: =A3A!D273 -> 0 | E32: =A3A!E273 -> 0 | F32: =A3A!F273 -> 0 | G32: =A3A!G273 -> 0 | H32: =A3A!H273 -> 0 | I32: =A3A!I273 -> 0 | J32: =A3A!J273 -> 0 | K32: =A3A!K273 -> 0
A33: =A3A!A284 -> 0 | C33: =A3A!C284 -> 0 | D33: =A3A!D284 -> 0 | E33: =A3A!E284 -> 0 | F33: =A3A!F284 -> 0 | G33: =A3A!G284 -> 0 | H33: =A3A!H284 -> 0 | I33: =A3A!I284 -> 0 | J33: =A3A!J284 -> 0 | K33: =A3A!K284 -> 0 | L33: =A3A!L285 -> 0
A34: =A3A!A295 -> 0 | C34: =A3A!C295 -> 0 | D34: =A3A!D295 -> 0 | E34: =A3A!E295 -> 0 | F34: =A3A!F295 -> 0 | G34: =A3A!G295 -> 0 | H34: =A3A!H295 -> 0 | I34: =A3A!I295 -> 0 | J34: =A3A!J295 -> 0 | K34: =A3A!K295 -> 0 | L34: =A3A!L296 -> 0
A35: =A3A!A306 -> 0 | C35: =A3A!C306 -> 0 | D35: =A3A!D306 -> 0 | E35: =A3A!E306 -> 0 | F35: =A3A!F306 -> 0 | G35: =A3A!G306 -> 0 | H35: =A3A!H306 -> 0 | I35: =A3A!I306 -> 0 | J35: =A3A!J306 -> 0 | K35: =A3A!K306 -> 0 | L35: =A3A!L307 -> 0
A36: =A3A!A317 -> 0 | C36: =A3A!C317 -> 0 | D36: =A3A!D317 -> 0 | E36: =A3A!E317 -> 0 | F36: =A3A!F317 -> 0 | G36: =A3A!G317 -> 0 | H36: =A3A!H317 -> 0 | I36: =A3A!I317 -> 0 | J36: =A3A!J317 -> 0 | K36: =A3A!K317 -> 0 | L36: =A3A!L318 -> 0
A37: =A3A!A328 -> 0 | C37: =A3A!C328 -> 0 | D37: =A3A!D328 -> 0 | E37: =A3A!E328 -> 0 | F37: =A3A!F328 -> 0 | G37: =A3A!G328 -> 0 | H37: =A3A!H328 -> 0 | I37: =A3A!I328 -> 0 | J37: =A3A!J328 -> 0 | K37: =A3A!K328 -> 0 | L37: =A3A!L329 -> 0
A38: Total Expenditure by Vote | B38: 2 | C38: =SUM(C23:C37) -> 943348141 | D38: =SUM(D23:D37) -> 729028021 | E38: 754969048 | F38: 786032000 | G38: 767313928 | H38: 767313928 | I38: 811842000 | J38: 858219000 | K38: 918364000 | L38: =SUM(L23:L29) -> 0 | M38: 0 | N38: 0 | O38: 0 | P38: 0 | Q38: 0 | R38: 0 | S38: 0 | T38: 0 | U38: 0 | V38: 0 | W38: 0
A39: =result -> Surplus/(Deficit) for the year | B39: 2 | C39: =C20-C38 -> -4563236 | D39: 249669947 | E39: 223516582 | F39: 243508000 | G39: 377002000 | H39: 377002000 | I39: 241653000 | J39: 283592000 | K39: 276912000 | L39: 0 | M39: 0 | N39: 0 | O39: 0 | P39: 0 | Q39: 0 | R39: 0 | S39: 0 | T39: 0 | U39: 0 | V39: 0 | W39: 0
A40: =head27a -> References
A41: 1. Insert 'Vote'; e.g. department, if different to functional classification structure
A42: 2. Must reconcile to Budgeted Financial Performance (revenue and expenditure)
A43: 3. Assign share in 'associate' to relevant Vote
A45: ="check "&A39 -> check Surplus/(Deficit) for the year | C45: =C39-A3A!C341 -> 0 | D45: =D39-A3A!D341 -> 0 | E45: =E39-A3A!E341 -> 0 | F45: =F39-A3A!F341 -> 0 | G45: =G39-A3A!G341 -> 0 | H45: =H39-A3A!H341 -> 0 | I45: =I39-A3A!I341 -> 0 | J45: =J39-A3A!J341 -> 0 | K45: =K39-A3A!K341 -> 0

Sheet A3A
A1: =muni&" - "&Approve2&"A" -> DC35 Capricorn - Table A3 Budgeted Financial Performance (revenue and expenditure by municipal vote)A
A2: =Vdesc -> Vote Description | B2: =head27 -> Ref | C2: =head1b -> 2016/17 | D2: =head1A -> 2017/18 | E2: =Head1 -> 2018/19 | F2: =Head2 -> Current Year 2019/20 | I2: =Head3 -> 2020/21 Medium Term Revenue & Expenditure Framework | L2: =Head4 -> LTFS
A3: R thousand | C3: =Head5 -> Audited Outcome | D3: =Head5 -> Audited Outcome | E3: =Head5 -> Audited Outcome | F3: =Head6 -> Original Budget | G3: =Head7 -> Adjusted Budget | H3: =Head8 -> Full Year Forecast | I3: =Head9 -> Budget Year 2020/21 | J3: =Head10 -> Budget Year +1 2021/22 | K3: =Head11 -> Budget Year +2 2022/23 | L3: =Head12 -> Forecast 2023/24 | M3: =Head13 -> Forecast 2024/25 | N3: =Head14 -> Forecast 2025/26 | O3: =Head15 -> Forecast 2026/27 | P3: =Head16 -> Forecast 2027/28 | Q3: =Head17 -> Forecast 2028/29 | R3: =Head18 -> Forecast 2029/30 | S3: =Head19 -> Forecast 2030/31 | T3: =Head20 -> Forecast 2031/32 | U3: =Head21 -> Forecast 2032/33 | V3: =Head22 -> Forecast 2033/34 | W3: =Head23 -> Forecast 2034/35
A4: Revenue by Vote | B4: 1
A5: ='Org structure'!A2 -> Vote 1 - Municipal governance and administration | C5: =SUM(C6:C15) -> 67962747 | D5: =SUM(D6:D15) -> 365461970 | E5: 668559630 | F5: 350980000 | G5: 393411000 | H5: 393411000 | I5: 400763000 | J5: 426327000 | K5: 454060000
A6: ='[5]Org structure'!E3 -> 1.1 - Executive and council | C6: 62688324 | D6: 24390566 | E6: 0 | F6: 51128000 | G6: 52508000 | H6: 52508000 | I6: 54816000 | J6: 58431000 | K6: 62433000
A7: ='[5]Org structure'!E4 -> 1.2 - Finance and administration | C7: 5274423 | D7: 337371859 | E7: 668559630 | F7: 293583000 | G7: 334333000 | H7: 334333000 | I7: 339146000 | J7: 360693000 | K7: 383875000
A8: ='[5]Org structure'!E5 -> 1.3 - Internal audit | D8: 3699545 | F8: 6269000 | G8: 6570000 | H8: 6570000 | I8: 6801000 | J8: 7203000 | K8: 7752000
A9: ='Org structure'!E6 -> 0
A10: ='Org structure'!E7 -> 0
A11: ='Org structure'!E8 -> 0
A12: ='Org structure'!E9 -> 0
A13: ='Org structure'!E10 -> 0
A14: ='Org structure'!E11 -> 0
A15: ='Org structure'!E12 -> 0
A16: ='Org structure'!A3 -> Vote 2 - Community and social services | C16: =SUM(C17:C26) -> 64520814 | D16: =SUM(D17:D26) -> 41168598 | E16: 0 | F16: 91024000 | G16: 90295000 | H16: 90295000 | I16: 79260000 | J16: 83916000 | K16: 91521000
A17: ='[5]Org structure'!E14 -> 2.1 - Recreational Facilities | C17: 0 | D17: 463518 | E17: 0 | F17: 4288000 | G17: 3613000 | H17: 3613000 | I17: 3887000 | J17: 5141000 | K17: 5492000
A18: ='[5]Org structure'!E15 -> 2.2 - Disaster Management | C18: 17152412 | D18: 7051484 | F18: 13430000 | G18: 13703000 | H18: 13703000 | I18: 13742000 | J18: 13975000 | K18: 15802000
A19: ='[5]Org structure'!E16 -> 2.3 - Public safety | C19: 47368402 | D19: 24797383 | E19: 0 | F19: 56374000 | G19: 55844000 | H19: 55844000 | I19: 44158000 | J19: 46189000 | K19: 50075000
A20: ='[5]Org structure'!E17 -> 2.4 - Health | D20: 8856213 | F20: 16932000 | G20: 17135000 | H20: 17135000 | I20: 17473000 | J20: 18611000 | K20: 20152000
A21: ='Org structure'!E18 -> 0
A22: ='Org structure'!E19 -> 0
A23: ='Org structure'!E20 -> 0
A24: ='Org structure'!E21 -> 0
A25: ='Org structure'!E22 -> 0
A26: ='Org structure'!E23 -> 0
A27: ='Org structure'!A4 -> Vote 3 - Economic and environmental services | C27: =SUM(C28:C37) -> 26946135 | D27: 24575994 | E27: 6064000 | F27: 37029000 | G27: 39083000 | H27: 39083000 | I27: 36914000 | J27: 37160000 | K27: 39142000
A28: ='[5]Org structure'!E25 -> 3.1 - Planning and development | C28: 15402264 | D28: 16797522 | E28: 3642000 | F28: 19880000 | G28: 20865000 | H28: 20865000 | I28: 19196000 | J28: 18940000 | K28: 20270000
A29: ='[5]Org structure'!E26 -> 3.2 - Road transport | C29: 6642178 | D29: 2977104 | E29: 2422000 | F29: 3366000 | G29: 2587000 | H29: 2587000 | I29: 2528000 | J29: 2716000 | K29: 2942000 | L29: =A2A!L86 -> 0 | M29: =A2A!M86 -> 0 | N29: =A2A!N86 -> 0 | O29: =A2A!O86 -> 0 | P29: =A2A!P86 -> 0 | Q29: =A2A!Q86 -> 0 | R29: =A2A!R86 -> 0 | S29: =A2A!S86 -> 0 | T29: =A2A!T86 -> 0 | U29: =A2A!U86 -> 0 | V29: =A2A!V86 -> 0 | W29: =A2A!W86 -> 0
A30: ='[5]Org structure'!E27 -> 3.3 - Environmental protection | C30: 4901693 | D30: 4801368 | E30: 0 | F30: 13783000 | G30: 15631000 | H30: 15631000 | I30: 15190000 | J30: 15504000 | K30: 15930000
A31: ='Org structure'!E28 -> 0
A32: ='Org structure'!E29 -> 0
A33: ='Org structure'!E30 -> 0
A34: ='Org structure'!E31 -> 0
A35: ='Org structure'!E32 -> 0
A36: ='Org structure'!E33 -> 0
A37: ='Org structure'!E34 -> 0
A38: ='Org structure'!A5 -> Vote 4 - Trading services | C38: =SUM(C39:C48) -> 779355209 | D38: 547491406 | E38: 303862000 | F38: 550507000 | G38: 621526928 | H38: 621526928 | I38: 536558000 | J38: 594408000 | K38: 610553000
A39: ='[5]Org structure'!E36 -> 4.1 - Water Treatment | D39: 222454406 | F39: 15268000 | G39: 16310000 | H39: 16310000 | I39: 18383000 | J39: 19423000 | K39: 17989000
A40: ='[5]Org structure'!E37 -> 4.2 - Water Distribution | C40: 779355209 | D40: 325037000 | E40: 303862000 | F40: 535239000 | G40: 605216928 | H40: 605216928 | I40: 518175000 | J40: 574985000 | K40: 592564000
A41: ='Org structure'!#REF! -> 
A42: ='Org structure'!E39 -> 0
A43: ='Org structure'!E40 -> 0
A44: ='Org structure'!E41 -> 0
A45: ='Org structure'!E42 -> 0
A46: ='Org structure'!E43 -> 0
A47: ='Org structure'!E44 -> 0
A48: ='Org structure'!E45 -> 0
A49: ='Org structure'!A6 -> 0 | C49: =SUM(C50:C59) -> 0 | D49: =SUM(D50:D59) -> 0 | E49: 0 | F49: 0 | G49: 0 | H49: 0 | I49: 0 | J49: 0 | K49: 0
A50: ='Org structure'!E47 -> 0
A51: ='Org structure'!E48 -> 0
A52: ='Org structure'!E49 -> 0
A53: ='Org structure'!E50 -> 0
A54: ='Org structure'!E51 -> 0
A55: ='Org structure'!E52 -> 0
A56: ='Org structure'!E53 -> 0
A57: ='Org structure'!E54 -> 0
A58: ='Org structure'!E55 -> 0
A59: ='Org structure'!E56 -> 0
A60: ='Org structure'!A7 -> 0 | C60: =SUM(C61:C70) -> 0 | D60: =SUM(D61:D70) -> 0 | E60: 0 | F60: 0 | G60: 0 | H60: 0 | I60: 0 | J60: 0 | K60: 0
A61: ='Org structure'!E58 -> 0
A62: ='Org structure'!E59 -> 0
A63: ='Org structure'!E60 -> 0
A64: ='Org structure'!E61 -> 0
A65: ='Org structure'!E62 -> 0
A66: ='Org structure'!E63 -> 0
A67: ='Org structure'!E64 -> 0
A68: ='Org structure'!E65 -> 0
A69: ='Org structure'!E66 -> 0
A70: ='Org structure'!E67 -> 0
A71: ='Org structure'!A8 -> 0 | C71: =SUM(C72:C81) -> 0 | D71: 0 | E71: 0 | F71: 0 | G71: 0 | H71: 0 | I71: 0 | J71: 0 | K71: 0
A72: ='Org structure'!E69 -> 0
A73: ='Org structure'!E70 -> 0
A74: ='Org structure'!E71 -> 0
A75: ='Org structure'!E72 -> 0
A76: ='Org structure'!E73 -> 0
A77: ='Org structure'!E74 -> 0
A78: ='Org structure'!E75 -> 0
A79: ='Org structure'!E76 -> 0
A80: ='Org structure'!E77 -> 0
A81: ='Org structure'!E78 -> 0
A82: ='Org structure'!A9 -> 0 | C82: =SUM(C83:C92) -> 0 | D82: =SUM(D83:D92) -> 0 | E82: 0 | F82: 0 | G82: 0 | H82: 0 | I82: 0 | J82: 0 | K82: 0
A83: ='Org structure'!E80 -> 0
A84: ='Org structure'!E81 -> 0
A85: ='Org structure'!E82 -> 0
A86: ='Org structure'!E83 -> 0
A87: ='Org structure'!E84 -> 0
A88: ='Org structure'!E85 -> 0
A89: ='Org structure'!E86 -> 0
A90: ='Org structure'!E87 -> 0
A91: ='Org structure'!E88 -> 0
A92: ='Org structure'!E89 -> 0
A93: ='Org structure'!A10 -> 0 | C93: =SUM(C94:C103) -> 0 | D93: =SUM(D94:D103) -> 0 | E93: 0 | F93: 0 | G93: 0 | H93: 0 | I93: 0 | J93: 0 | K93: 0
A94: ='Org structure'!E91 -> 0
A95: ='Org structure'!E92 -> 0
A96: ='Org structure'!E93 -> 0
A97: ='Org structure'!E94 -> 0
A98: ='Org structure'!E95 -> 0
A99: ='Org structure'!E96 -> 0
A100: ='Org structure'!E97 -> 0
A101: ='Org structure'!E98 -> 0
A102: ='Org structure'!E99 -> 0
A103: ='Org structure'!E100 -> 0
A104: ='Org structure'!A11 -> 0 | C104: =SUM(C105:C114) -> 0 | D104: =SUM(D105:D114) -> 0 | E104: 0 | F104: 0 | G104: 0 | H104: 0 | I104: 0 | J104: 0 | K104: 0
A105: ='Org structure'!E102 -> 0
A106: ='Org structure'!E103 -> 0
A107: ='Org structure'!E104 -> 0
A108: ='Org structure'!E105 -> 0
A109: ='Org structure'!E106 -> 0
A110: ='Org structure'!E107 -> 0
A111: ='Org structure'!E108 -> 0
A112: ='Org structure'!E109 -> 0
A113: ='Org structure'!E110 -> 0
A114: ='Org structure'!E111 -> 0
A115: ='Org structure'!A12 -> 0 | C115: =SUM(C116:C125) -> 0 | D115: =SUM(D116:D125) -> 0 | E115: 0 | F115: 0 | G115: 0 | H115: 0 | I115: 0 | J115: 0 | K115: 0
A116: ='Org structure'!E113 -> 0
A117: ='Org structure'!E114 -> 0
A118: ='Org structure'!E115 -> 0
A119: ='Org structure'!E116 -> 0
A120: ='Org structure'!E117 -> 0
A121: ='Org structure'!E118 -> 0
A122: ='Org structure'!E119 -> 0
A123: ='Org structure'!E120 -> 0
A124: ='Org structure'!E121 -> 0
A125: ='Org structure'!E122 -> 0
A126: ='Org structure'!A13 -> 0 | C126: =SUM(C127:C136) -> 0 | D126: =SUM(D127:D136) -> 0 | E126: 0 | F126: 0 | G126: 0 | H126: 0 | I126: 0 | J126: 0 | K126: 0
A127: ='Org structure'!E124 -> 0
A128: ='Org structure'!E125 -> 0
A129: ='Org structure'!E126 -> 0
A130: ='Org structure'!E127 -> 0
A131: ='Org structure'!E128 -> 0
A132: ='Org structure'!E129 -> 0
A133: ='Org structure'!E130 -> 0
A134: ='Org structure'!E131 -> 0
A135: ='Org structure'!E132 -> 0
A136: ='Org structure'!E133 -> 0
A137: ='Org structure'!A14 -> 0 | C137: =SUM(C138:C147) -> 0 | D137: =SUM(D138:D147) -> 0 | E137: 0 | F137: 0 | G137: 0 | H137: 0 | I137: 0 | J137: 0 | K137: 0
A138: ='Org structure'!E135 -> 0
A139: ='Org structure'!E136 -> 0
A140: ='Org structure'!E137 -> 0
A141: ='Org structure'!E138 -> 0
A142: ='Org structure'!E139 -> 0
A143: ='Org structure'!E140 -> 0
A144: ='Org structure'!E141 -> 0
A145: ='Org structure'!E142 -> 0
A146: ='Org structure'!E143 -> 0
A147: ='Org structure'!E144 -> 0
A148: ='Org structure'!A15 -> 0 | C148: =SUM(C149:C158) -> 0 | D148: =SUM(D149:D158) -> 0 | E148: 0 | F148: 0 | G148: 0 | H148: 0 | I148: 0 | J148: 0 | K148: 0
A149: ='Org structure'!E146 -> 0
A150: ='Org structure'!E147 -> 0
A151: ='Org structure'!E148 -> 0
A152: ='Org structure'!E149 -> 0
A153: ='Org structure'!E150 -> 0
A154: ='Org structure'!E151 -> 0
A155: ='Org structure'!E152 -> 0
A156: ='Org structure'!E153 -> 0
A157: ='Org structure'!E154 -> 0
A158: ='Org structure'!E155 -> 0
A159: ='Org structure'!A16 -> 0 | C159: =SUM(C160:C169) -> 0 | D159: =SUM(D160:D169) -> 0 | E159: 0 | F159: 0 | G159: 0 | H159: 0 | I159: 0 | J159: 0 | K159: 0
A160: ='Org structure'!E157 -> 0
A161: ='Org structure'!E158 -> 0
A162: ='Org structure'!E159 -> 0
A163: ='Org structure'!E160 -> 0
A164: ='Org structure'!E161 -> 0
A165: ='Org structure'!E162 -> 0
A166: ='Org structure'!E163 -> 0
A167: ='Org structure'!E164 -> 0
A168: ='Org structure'!E165 -> 0
A169: ='Org structure'!E166 -> 0
A170: Total Revenue by Vote | B170: 2 | C170: =C5+C16+C27+C38+C49+C60+C71+C82+C93+C104+C115+C126+C137+C148+C159 -> 938784905 | D170: =D5+D16+D27+D38+D49+D60+D71+D82+D93+D104+D115+D126+D137+D148+D159 -> 978697968 | E170: =E5+E16+E27+E38+E49+E60+E71+E82+E93+E104+E115+E126+E137+E148+E159 -> 978485630 | F170: 1029540000 | G170: 1144315928 | H170: 1144315928 | I170: =I5+I16+I27+I38+I49+I60+I71+I82+I93+I104+I115+I126+I137+I148+I159 -> 1053495000 | J170: 1141811000 | K170: 1195276000 | L170: =SUM(L78:L81) -> 0 | M170: 0 | N170: 0 | O170: 0 | P170: 0 | Q170: 0 | R170: 0 | S170: 0 | T170: 0 | U170: 0 | V170: 0 | W170: 0
A172: Expenditure by Vote | B172: 1
A173: =A5 -> Vote 1 - Municipal governance and administration | C173: =SUM(C174:C183) -> 311731717 | D173: 364435859 | E173: 332631122 | F173: 351949000 | G173: 368770000 | H173: 368770000 | I173: 400424000 | J173: 424631000 | K173: 453822000
A174: =A6 -> 1.1 - Executive and council | C174: 72580208 | D174: 40278247 | E174: 43366667 | F174: 51128000 | G174: 52508000 | H174: 52508000 | I174: 54816000 | J174: 58431000 | K174: 62433000
A175: 1.2 - Finance and administration | C175: 239151509 | D175: 318673948 | E175: 283380831 | F175: 294552000 | G175: 309692000 | H175: 309692000 | I175: 338807000 | J175: 358997000 | K175: 383637000
A176: 1.3 - Internal audit | D176: 5483664 | E176: 5883624 | F176: 6269000 | G176: 6570000 | H176: 6570000 | I176: 6801000 | J176: 7203000 | K176: 7752000
A177: 0
A178: 0
A179: 0
A180: 0
A181: 0
A182: 0
A183: 0
A184: =A16 -> Vote 2 - Community and social services | C184: =SUM(C185:C194) -> 62928533 | D184: =SUM(D185:D194) -> 68380764 | E184: =SUM(E185:E194) -> 71090673 | F184: 75524000 | G184: 90295000 | H184: 90295000 | I184: 79260000 | J184: 83916000 | K184: 91521000
A185: =A17 -> 2.1 - Recreational Facilities | C185: 0 | D185: 5017451 | E185: 1189822 | F185: 4288000 | G185: 3613000 | H185: 3613000 | I185: 3887000 | J185: 5141000 | K185: 5492000
A186: 2.2 - Disaster Management | C186: 17676906 | D186: 10874061 | E186: 12909422 | F186: 13430000 | G186: 13703000 | H186: 13703000 | I186: 13742000 | J186: 13975000 | K186: 15802000
A187: 2.3 - Public safety | C187: 45251627 | D187: 38200745 | E187: 41957584 | F187: 40874000 | G187: 55844000 | H187: 55844000 | I187: 44158000 | J187: 46189000 | K187: 50075000
A188: 2.4 - Health | C188: 0 | D188: 14288507 | E188: 15033845 | F188: 16932000 | G188: 17135000 | H188: 17135000 | I188: 17473000 | J188: 18611000 | K188: 20152000
A189: 0
A190: 0
A191: 0
A192: 0
A193: 0
A194: 0
A195: =A27 -> Vote 3 - Economic and environmental services | C195: =SUM(C196:C205) -> 27194904 | D195: 39920524 | E195: 28795756 | F195: 37029000 | G195: 39083000 | H195: 39083000 | I195: 36914000 | J195: 37160000 | K195: 39142000
A196: 3.1 - Planning and development | C196: 14019004 | D196: 27595504 | E196: 17630155 | F196: 19880000 | G196: 20865000 | H196: 20865000 | I196: 19196000 | J196: 18940000 | K196: 20270000
A197: 3.2 - Road transport | C197: 3673377 | D197: 3172817 | E197: 3144638 | F197: 3366000 | G197: 2587000 | H197: 2587000 | I197: 2528000 | J197: 2716000 | K197: 2942000
A198: 3.3 - Environmental protection | C198: 9502523 | D198: 9152203 | E198: 8020963 | F198: 13783000 | G198: 15631000 | H198: 15631000 | I198: 15190000 | J198: 15504000 | K198: 15930000
A199: 0
A200: 0
A201: 0
... 145 more rows

Sheet A4-FinPerf RE
A1: =muni&" - "&Approve4 -> DC35 Capricorn - Table A4 Budgeted Financial Performance (revenue and expenditure)
A2: =desc -> Description | B2: =head27 -> Ref | C2: =head1b -> 2016/17 | D2: =head1A -> 2017/18 | E2: =Head1 -> 2018/19 | F2: =Head2 -> Current Year 2019/20 | J2: =Head3 -> 2020/21 Medium Term Revenue & Expenditure Framework | M2: =Head4 -> LTFS
A3: R thousand | B3: 1 | C3: =Head5 -> Audited Outcome | D3: =Head5 -> Audited Outcome | E3: =Head5 -> Audited Outcome | F3: =Head6 -> Original Budget | G3: =Head7 -> Adjusted Budget | H3: =Head8 -> Full Year Forecast | I3: =Head5b -> Pre-audit outcome | J3: =Head9 -> Budget Year 2020/21 | K3: =Head10 -> Budget Year +1 2021/22 | L3: =Head11 -> Budget Year +2 2022/23 | M3: =Head12 -> Forecast 2023/24 | N3: =Head13 -> Forecast 2024/25 | O3: =Head14 -> Forecast 2025/26 | P3: =Head15 -> Forecast 2026/27 | Q3: =Head16 -> Forecast 2027/28 | R3: =Head17 -> Forecast 2028/29 | S3: =Head18 -> Forecast 2029/30 | T3: =Head19 -> Forecast 2030/31 | U3: =Head20 -> Forecast 2031/32 | V3: =Head21 -> Forecast 2032/33 | W3: =Head22 -> Forecast 2033/34 | X3: =Head23 -> Forecast 2034/35
A4: Revenue By Source
A5: Property rates | B5: 2 | C5: ='SA1'!C9 -> 0 | D5: ='SA1'!D9 -> 0 | E5: ='SA1'!E9 -> 0 | F5: ='SA1'!F9 -> 0 | G5: ='SA1'!G9 -> 0 | H5: ='SA1'!H9 -> 0 | I5: ='SA1'!I9 -> 0 | J5: ='SA1'!J9 -> 0 | K5: ='SA1'!K9 -> 0 | L5: ='SA1'!L9 -> 0
A6: Service charges - electricity revenue | B6: 2 | C6: ='SA1'!C15 -> 0 | D6: ='SA1'!D15 -> 0 | E6: ='SA1'!E15 -> 0 | F6: ='SA1'!F15 -> 0 | G6: ='SA1'!G15 -> 0 | H6: ='SA1'!H15 -> 0 | I6: ='SA1'!I15 -> 0 | J6: ='SA1'!J15 -> 0 | K6: ='SA1'!K15 -> 0 | L6: ='SA1'!L15 -> 0
A7: Service charges - water revenue | B7: 2 | C7: ='SA1'!C18 -> 0 | D7: ='SA1'!D18 -> 70109503 | E7: ='SA1'!E18 -> 70928518 | F7: ='SA1'!F21 -> 64626000 | G7: ='SA1'!G21 -> 58027000 | H7: ='SA1'!H21 -> 58027000 | I7: ='SA1'!I21 -> 47727331 | J7: ='SA1'!J21 -> 61293000 | K7: ='SA1'!K21 -> 64971000 | L7: ='SA1'!L21 -> 68219000
A8: Service charges - sanitation revenue | B8: 2 | C8: ='SA1'!C27 -> 0 | D8: ='SA1'!D27 -> 0 | E8: ='SA1'!E27 -> 0 | F8: ='SA1'!F27 -> 3401000 | G8: ='SA1'!G27 -> 10000000 | H8: ='SA1'!H27 -> 10000000 | I8: ='SA1'!I27 -> 7431756 | J8: ='SA1'!J27 -> 10816000 | K8: ='SA1'!K27 -> 11465000 | L8: ='SA1'!L27 -> 12039000
A9: Service charges - refuse revenue | B9: 2 | C9: ='SA1'!C34 -> 0 | D9: ='SA1'!D34 -> 0 | E9: ='SA1'!E34 -> 0 | F9: ='SA1'!F34 -> 0 | G9: ='SA1'!G34 -> 0 | H9: ='SA1'!H34 -> 0 | I9: ='SA1'!I34 -> 0 | J9: ='SA1'!J34 -> 0 | K9: ='SA1'!K34 -> 0 | L9: ='SA1'!L34 -> 0
A11: Rental of facilities and equipment
A12: Interest earned - external investments | C12: 25367411 | D12: 32028872 | E12: 29477893 | F12: 27452000 | G12: 27542000 | H12: 27542000 | I12: 26290140 | J12: 29470000 | K12: 31533000 | L12: 33740000
A13: Interest earned - outstanding debtors | C13: 7838453 | D13: 19484497 | E13: 18038581 | I13: 0
A14: Dividends received | C14: 0 | D14: 0 | I14: 0
A15: Fines, penalties and forfeits | C15: 0 | D15: 0 | I15: 0
A16: Licences and permits | C16: 0 | D16: 0 | I16: 0
A17: Agency services | C17: 0 | D17: 0 | I17: 0
A18: Transfers and subsidies | C18: 548500780 | D18: 528954873 | E18: 554926000 | F18: 596929000 | G18: 641614928 | H18: 641614928 | I18: 595702928 | J18: 641606000 | K18: 687464000 | L18: 734513000
A19: Other revenue | B19: 2 | C19: 66087143 | D19: 1833223 | E19: 1252638 | F19: ='SA1'!F49 -> 1344000 | G19: ='SA1'!G49 -> 1344000 | H19: ='SA1'!H49 -> 1344000 | I19: ='SA1'!I49 -> 395278 | J19: ='SA1'!J49 -> 1149000 | K19: ='SA1'!K49 -> 1206000 | L19: ='SA1'!L49 -> 1218000
A20: Gains
A21: Total Revenue (excluding capital transfers and contributions) | C21: =SUM(C5:C9)+SUM(C11:C20) -> 647793787 | D21: =SUM(D5:D9)+SUM(D11:D20) -> 652410968 | E21: 674623630 | F21: 693752000 | G21: 738527928 | H21: 738527928 | I21: 677547433 | J21: 744334000 | K21: 796639000 | L21: 849729000 | M21: =SUM(M5:M20) -> 0 | N21: 0 | O21: 0 | P21: 0 | Q21: 0 | R21: 0 | S21: 0 | T21: 0 | U21: 0 | V21: 0 | W21: 0 | X21: 0
A23: Expenditure By Type
A24: Employee related costs | B24: 2 | C24: ='SA1'!C65 -> 252540865 | D24: ='SA1'!D65 -> 292961543 | E24: ='SA1'!E65 -> 296726424 | F24: ='SA1'!F65 -> 312371000 | G24: ='SA1'!G65 -> 314892000 | H24: ='SA1'!H65 -> 314892000 | I24: ='SA1'!I65 -> 314892000 | J24: ='SA1'!J65 -> 328394000 | K24: ='SA1'!K65 -> 351379000 | L24: ='SA1'!L65 -> 382993000
A25: Remuneration of councillors | C25: 12241849 | D25: 15554135 | E25: 14190445 | F25: 15467000 | G25: 15289000 | H25: 15289000 | I25: 13266875 | J25: 16206000 | K25: 17178000 | L25: 18206000
A26: Debt impairment | B26: 3 | C26: 49295804 | D26: 78739166 | E26: 44544196 | F26: 9103000 | I26: 0 | J26: 9649000 | K26: 10228000 | L26: 10842000
A27: Depreciation & asset impairment | B27: 2 | C27: ='SA1'!C83 -> 44451319 | D27: ='SA1'!D83 -> 68594915 | E27: ='SA1'!E83 -> 80541389 | F27: ='SA1'!F83 -> 65626000 | G27: ='SA1'!G83 -> 74698000 | H27: ='SA1'!H83 -> 74698000 | I27: ='SA1'!I83 -> 67504995 | J27: ='SA1'!J83 -> 79724000 | K27: ='SA1'!K83 -> 83710000 | L27: ='SA1'!L83 -> 87895000
A28: Finance charges | C28: 912628 | D28: 473782 | E28: 298878 | F28: 470000 | G28: 470000 | H28: 470000 | I28: 101184 | J28: 470000 | K28: 470000 | L28: 470000
A29: Bulk purchases | B29: 2 | C29: ='SA1'!C87 -> 47965290 | D29: ='SA1'!D87 -> 65223237 | E29: ='SA1'!E87 -> 63918892 | F29: ='SA1'!F87 -> 85428000 | G29: ='SA1'!G87 -> 64644928 | H29: ='SA1'!H87 -> 64644928 | I29: ='SA1'!I87 -> 56669947 | J29: ='SA1'!J87 -> 69170000 | K29: ='SA1'!K87 -> 76779000 | L29: ='SA1'!L87 -> 86760000
A30: Other materials | B30: 8 | D30: 5043035 | E30: 6952499 | F30: 5967000 | G30: 8351000 | H30: =G30 -> 8351000 | I30: 5387304 | J30: 6164000 | K30: 6337000 | L30: 6473000
A31: Contracted services | C31: ='SA1'!C100 -> 136193299 | D31: ='SA1'!D100 -> 99750987 | E31: ='SA1'!E100 -> 119757665 | F31: ='SA1'!F100 -> 177506000 | G31: ='SA1'!G100 -> 154590000 | H31: ='SA1'!H100 -> 154590000 | I31: ='SA1'!I100 -> 108433774 | J31: ='SA1'!J100 -> 163778000 | K31: ='SA1'!K100 -> 166745000 | L31: ='SA1'!L100 -> 171775000
A32: Transfers and subsidies | C32: ='SA1'!C91 -> 1600000 | D32: ='SA1'!D91 -> 21745646 | E32: ='SA1'!E91 -> 3030658 | F32: ='SA1'!F91 -> 0 | G32: ='SA1'!G91 -> 3000000 | H32: ='SA1'!H91 -> 3000000 | I32: ='SA1'!I91 -> 708158 | J32: ='SA1'!J91 -> 0 | K32: ='SA1'!K91 -> 0 | L32: ='SA1'!L91 -> 0
A33: Other expenditure | B33: 4, 5 | C33: ='SA1'!C110 -> 106952391 | D33: ='SA1'!D110 -> 80077161 | E33: ='SA1'!E110 -> 85398617 | F33: ='SA1'!F110 -> 114094000 | G33: ='SA1'!G110 -> 131379000 | H33: ='SA1'!H110 -> 131379000 | I33: ='SA1'!I110 -> 103998965 | J33: ='SA1'!J110 -> 138287000 | K33: ='SA1'!K110 -> 145393000 | L33: ='SA1'!L110 -> 152950000
A34: Losses | C34: 291194696 | D34: 864414 | E34: 39609385
A35: Total Expenditure | C35: =SUM(C24:C34) -> 943348141 | D35: =SUM(D24:D34) -> 729028021 | E35: 754969048 | F35: 786032000 | G35: 767313928 | H35: 767313928 | I35: 670963202 | J35: 811842000 | K35: 858219000 | L35: 918364000 | M35: =SUM(M24:M34) -> 0 | N35: 0 | O35: 0 | P35: 0 | Q35: 0 | R35: 0 | S35: 0 | T35: 0 | U35: 0 | V35: 0 | W35: 0 | X35: 0
A37: Surplus/(Deficit) | C37: =C21-C35 -> -295554354 | D37: -76617053 | E37: -80345418 | F37: -92280000 | G37: -28786000 | H37: -28786000 | I37: 6584231 | J37: -67508000 | K37: -61580000 | L37: -68635000 | M37: =M21+M35 -> 0 | N37: 0 | O37: 0 | P37: 0 | Q37: 0 | R37: 0 | S37: 0 | T37: 0 | U37: 0 | V37: 0 | W37: 0 | X37: 0
A38: Transfers and subsidies - capital (monetary allocations) (National / Provincial and District) | C38: 290991118 | D38: 326287000 | E38: 303862000 | F38: 335788000 | G38: 405788000 | H38: =G38 -> 405788000 | I38: =H38 -> 405788000 | J38: 309161000 | K38: 345172000 | L38: 345547000
A39: Transfers and subsidies - capital (monetary allocations) (National / Provincial Departmental Agencies, Households, Non-profit Institutions, Private Enterprises, Public Corporatons, Higher Educational Institutions) | B39: 6 | C39: ='SA1'!C76 -> 0 | D39: ='SA1'!D76 -> 0 | E39: ='SA1'!E76 -> 0 | F39: ='SA1'!F76 -> 0 | G39: ='SA1'!G76 -> 0 | H39: ='SA1'!H76 -> 0 | I39: ='SA1'!I76 -> 0 | J39: ='SA1'!J76 -> 0 | K39: ='SA1'!K76 -> 0 | L39: ='SA1'!L76 -> 0
A40: Transfers and subsidies - capital (in-kind - all)
A41: Surplus/(Deficit) after capital transfers & contributions | C41: =SUM(C37:C40) -> -4563236 | D41: 249669947 | E41: 223516582 | F41: 243508000 | G41: 377002000 | H41: 377002000 | I41: 412372231 | J41: 241653000 | K41: 283592000 | L41: 276912000
A42: Taxation
A43: Surplus/(Deficit) after taxation | C43: =C41-C42 -> -4563236 | D43: 249669947 | E43: 223516582 | F43: 243508000 | G43: 377002000 | H43: 377002000 | I43: 412372231 | J43: 241653000 | K43: 283592000 | L43: 276912000
A44: Attributable to minorities
A45: Surplus/(Deficit) attributable to municipality | C45: =SUM(C43:C44) -> -4563236 | D45: 249669947 | E45: 223516582 | F45: 243508000 | G45: 377002000 | H45: 377002000 | I45: 412372231 | J45: 241653000 | K45: 283592000 | L45: 276912000
A46: Share of surplus/ (deficit) of associate | B46: 7
A47: =result -> Surplus/(Deficit) for the year | C47: =SUM(C45:C46) -> -4563236 | D47: 249669947 | E47: 223516582 | F47: 243508000 | G47: 377002000 | H47: 377002000 | I47: 412372231 | J47: 241653000 | K47: 283592000 | L47: 276912000 | M47: =M25+M46 -> 0 | N47: 0 | O47: 0 | P47: 0 | Q47: 0 | R47: 0 | S47: 0 | T47: 0 | U47: 0 | V47: 0 | W47: 0 | X47: 0
A48: =head27a -> References
A49: 1. Classifications are revenue sources and expenditure type
A50: 2. Detail to be provided in Table SA1
A51: 3. Previously described as 'bad or doubtful debts' - amounts shown should reflect the change in the provision for debt impairment
A52: 4. Expenditure type components previously shown under repairs and maintenance should be allocated back to the originating expenditure group/item; e.g. employee costs
A53: 5. Repairs & maintenance detailed in Table A9 and Table SA34c
A54: 6. Contributions are funds provided by external organisations to assist with infrastructure development; e.g. developer contributions (detail to be provided in Table SA1)
A55: 7. Equity method ( Includes Joint Ventures)
A56: 8. All materials not part of 'bulk' e.g road making materials, pipe, cable etc.
A57: check balance | C57: =C35-A3A!C339 -> 0 | D57: =D35-A3A!D339 -> 0 | E57: =E35-A3A!E339 -> 0 | F57: =F35-A3A!F339 -> 0 | G57: =G35-A3A!G339 -> 0 | H57: =H35-A3A!H339 -> 0 | J57: =J35-A3A!I339 -> 0 | K57: =K35-A3A!J339 -> 0 | L57: =L35-A3A!K339 -> 0
A59: Total revenue | C59: =C21+SUM(C38:C40) -> 938784905 | D59: =D21+SUM(D38:D40) -> 978697968 | E59: 978485630 | F59: 1029540000 | G59: 1144315928 | H59: 1144315928 | I59: 1083335433 | J59: 1053495000 | K59: 1141811000 | L59: 1195276000

Sheet A5-Capex
A2: =Vdesc -> Vote Description | B2: =head27 -> Ref | C2: =head1b -> 2016/17 | D2: =head1A -> 2017/18 | E2: =Head1 -> 2018/19 | F2: =Head2 -> Current Year 2019/20 | J2: =Head3 -> 2020/21 Medium Term Revenue & Expenditure Framework
A3: R thousand | B3: 1 | C3: =Head5 -> Audited Outcome | D3: =Head5 -> Audited Outcome | E3: =Head5 -> Audited Outcome | F3: =Head6 -> Original Budget | G3: =Head7 -> Adjusted Budget | H3: =Head8 -> Full Year Forecast | I3: =Head5b -> Pre-audit outcome | J3: =Head9 -> Budget Year 2020/21 | K3: =Head10 -> Budget Year +1 2021/22 | L3: =Head11 -> Budget Year +2 2022/23
A4: Capital expenditure - Vote
A5: Multi-year expenditure to be appropriated | B5: 2
A6: =A5A!A6 -> Vote 1 - Municipal governance and administration | C6: =A5A!C6 -> 0 | D6: =A5A!D6 -> 0 | E6: =A5A!E6 -> 0 | F6: =A5A!F6 -> 0 | G6: =A5A!G6 -> 0 | H6: =A5A!H6 -> 0 | I6: =A5A!I6 -> 0 | J6: =A5A!J6 -> 0 | K6: =A5A!K6 -> 0 | L6: =A5A!L6 -> 0
A7: =A5A!A17 -> Vote 2 - Community and social services | C7: =A5A!C17 -> 0 | D7: =A5A!D17 -> 0 | E7: =A5A!E17 -> 0 | F7: =A5A!F17 -> 0 | G7: =A5A!G17 -> 0 | H7: =A5A!H17 -> 0 | I7: =A5A!I17 -> 0 | J7: =A5A!J17 -> 0 | K7: =A5A!K17 -> 0 | L7: =A5A!L17 -> 0
A8: =A5A!A28 -> Vote 3 - Economic and environmental services | C8: =[5]A5A!C28 -> 667325 | D8: =A5A!D28 -> 0 | E8: =A5A!E28 -> 0 | F8: =A5A!F28 -> 0 | G8: =A5A!G28 -> 0 | H8: =A5A!H28 -> 0 | I8: =A5A!I28 -> 0 | J8: =A5A!J28 -> 0 | K8: =A5A!K28 -> 0 | L8: =A5A!L28 -> 0
A9: =A5A!A39 -> Vote 4 - Trading services | C9: =[5]A5A!C39 -> 408308468 | D9: =A5A!D39 -> 0 | E9: =A5A!E39 -> 0 | F9: =A5A!F39 -> 0 | G9: =A5A!G39 -> 0 | H9: =A5A!H39 -> 0 | I9: =A5A!I39 -> 0 | J9: =A5A!J39 -> 0 | K9: =A5A!K39 -> 0 | L9: =A5A!L39 -> 0
A10: =A5A!A50 -> 0 | C10: =A5A!C50 -> 0 | D10: =A5A!D50 -> 0 | E10: =A5A!E50 -> 0 | F10: =A5A!F50 -> 0 | G10: =A5A!G50 -> 0 | H10: =A5A!H50 -> 0 | I10: =A5A!I50 -> 0 | J10: =A5A!J50 -> 0 | K10: =A5A!K50 -> 0 | L10: =A5A!L50 -> 0
A11: =A5A!A61 -> 0 | C11: =A5A!C61 -> 0 | D11: =A5A!D61 -> 0 | E11: =A5A!E61 -> 0 | F11: =A5A!F61 -> 0 | G11: =A5A!G61 -> 0 | H11: =A5A!H61 -> 0 | I11: =A5A!I61 -> 0 | J11: =A5A!J61 -> 0 | K11: =A5A!K61 -> 0 | L11: =A5A!L61 -> 0
A12: =A5A!A72 -> 0 | C12: =A5A!C72 -> 0 | D12: =A5A!D72 -> 0 | E12: =A5A!E72 -> 0 | F12: =A5A!F72 -> 0 | G12: =A5A!G72 -> 0 | H12: =A5A!H72 -> 0 | I12: =A5A!I72 -> 0 | J12: =A5A!J72 -> 0 | K12: =A5A!K72 -> 0 | L12: =A5A!L72 -> 0
A13: =A5A!A83 -> 0 | C13: =A5A!C83 -> 0 | D13: =A5A!D83 -> 0 | E13: =A5A!E83 -> 0 | F13: =A5A!F83 -> 0 | G13: =A5A!G83 -> 0 | H13: =A5A!H83 -> 0 | I13: =A5A!I83 -> 0 | J13: =A5A!J83 -> 0 | K13: =A5A!K83 -> 0 | L13: =A5A!L83 -> 0
A14: =A5A!A94 -> 0 | C14: =A5A!C94 -> 0 | D14: =A5A!D94 -> 0 | E14: =A5A!E94 -> 0 | F14: =A5A!F94 -> 0 | G14: =A5A!G94 -> 0 | H14: =A5A!H94 -> 0 | I14: =A5A!I94 -> 0 | J14: =A5A!J94 -> 0 | K14: =A5A!K94 -> 0 | L14: =A5A!L94 -> 0
A15: =A5A!A105 -> 0 | C15: =A5A!C105 -> 0 | D15: =A5A!D105 -> 0 | E15: =A5A!E105 -> 0 | F15: =A5A!F105 -> 0 | G15: =A5A!G105 -> 0 | H15: =A5A!H105 -> 0 | I15: =A5A!I105 -> 0 | J15: =A5A!J105 -> 0 | K15: =A5A!K105 -> 0 | L15: =A5A!L105 -> 0
A16: =A5A!A116 -> 0 | C16: =A5A!C116 -> 0 | D16: =A5A!D116 -> 0 | E16: =A5A!E116 -> 0 | F16: =A5A!F116 -> 0 | G16: =A5A!G116 -> 0 | H16: =A5A!H116 -> 0 | I16: =A5A!I116 -> 0 | J16: =A5A!J116 -> 0 | K16: =A5A!K116 -> 0 | L16: =A5A!L116 -> 0
A17: =A5A!A127 -> 0 | C17: =A5A!C127 -> 0 | D17: =A5A!D127 -> 0 | E17: =A5A!E127 -> 0 | F17: =A5A!F127 -> 0 | G17: =A5A!G127 -> 0 | H17: =A5A!H127 -> 0 | I17: =A5A!I127 -> 0 | J17: =A5A!J127 -> 0 | K17: =A5A!K127 -> 0 | L17: =A5A!L127 -> 0
A18: =A5A!A138 -> 0 | C18: =A5A!C138 -> 0 | D18: =A5A!D138 -> 0 | E18: =A5A!E138 -> 0 | F18: =A5A!F138 -> 0 | G18: =A5A!G138 -> 0 | H18: =A5A!H138 -> 0 | I18: =A5A!I138 -> 0 | J18: =A5A!J138 -> 0 | K18: =A5A!K138 -> 0 | L18: =A5A!L138 -> 0
A19: =A5A!A149 -> 0 | C19: =A5A!C149 -> 0 | D19: =A5A!D149 -> 0 | E19: =A5A!E149 -> 0 | F19: =A5A!F149 -> 0 | G19: =A5A!G149 -> 0 | H19: =A5A!H149 -> 0 | I19: =A5A!I149 -> 0 | J19: =A5A!J149 -> 0 | K19: =A5A!K149 -> 0 | L19: =A5A!L149 -> 0
A20: =A5A!A160 -> 0 | C20: =A5A!C160 -> 0 | D20: =A5A!D160 -> 0 | E20: =A5A!E160 -> 0 | F20: =A5A!F160 -> 0 | G20: =A5A!G160 -> 0 | H20: =A5A!H160 -> 0 | I20: =A5A!I160 -> 0 | J20: =A5A!J160 -> 0 | K20: =A5A!K160 -> 0 | L20: =A5A!L160 -> 0
A21: Capital multi-year expenditure sub-total | B21: 7 | C21: =SUM(C6:C20) -> 408975793 | D21: =SUM(D6:D20) -> 0 | E21: 0 | F21: 0 | G21: 0 | H21: =SUM(H6:H20) -> 0 | I21: 0 | J21: 0 | K21: 0 | L21: 0
A23: Single-year expenditure to be appropriated | B23: 2
A24: =A6 -> Vote 1 - Municipal governance and administration | C24: =A5A!C177 -> 21525718 | D24: =A5A!D177 -> 299789906 | E24: ='[3]C5-Capex'!$C$24 -> 12313952 | F24: ='[4]B5-Capex'!$C$26 -> 17946000 | G24: ='[4]B5-Capex'!$K$26 -> 41457000 | H24: =G24 -> 41457000 | I24: =A5A!I175 -> 7811609 | J24: =A5A!J175 -> 17997000 | K24: =A5A!K175 -> 20237000 | L24: =A5A!L175 -> 19707000
A25: =A7 -> Vote 2 - Community and social services | C25: =[5]A5A!C186 -> 0 | D25: =[5]A5A!D186 -> 0 | E25: =A5A!E186 -> 17930772 | F25: ='[4]B5-Capex'!$C$27 -> 15500000 | G25: ='[4]B5-Capex'!$K$27 -> 15500000 | H25: =G25 -> 15500000 | I25: =A5A!I186 -> 8365530 | J25: =A5A!J186 -> 1450000 | K25: =A5A!K186 -> 850000 | L25: =A5A!L186 -> 1650000
A26: Vote 3 - Economic and environmental services | C26: =[5]A5A!C197 -> 0 | D26: =[5]A5A!D197 -> 0 | E26: =A5A!E197 -> 0 | F26: ='[4]B5-Capex'!$C$28 -> 0 | G26: =A5A!G197 -> 0 | H26: =A5A!H197 -> 0 | I26: =A5A!I197 -> 0 | J26: =A5A!J197 -> 0 | K26: =A5A!K197 -> 0 | L26: =A5A!L197 -> 0
A27: Vote 4 - Trading services | C27: =A5A!C210 -> 583509279.2 | D27: =A5A!D210 -> 550603273 | E27: ='[3]C5-Capex'!$C$27 -> 314147927 | F27: ='[4]B5-Capex'!$C$29 -> 275688000 | G27: =A5A!G210 -> 394743000 | H27: =G27 -> 394743000 | I27: =A5A!I208 -> 331743602 | J27: =A5A!J208 -> 301930000 | K27: =A5A!K208 -> 346215000 | L27: =A5A!L208 -> 343450000
A28: 0 | C28: =A5A!C219 -> 0 | D28: =A5A!D219 -> 0 | E28: =A5A!E219 -> 0 | F28: =A5A!F219 -> 0 | G28: =A5A!G219 -> 0 | H28: =A5A!H219 -> 0 | I28: =A5A!I219 -> 0 | J28: =A5A!J219 -> 0 | K28: =A5A!K219 -> 0 | L28: =A5A!L219 -> 0
A29: 0 | C29: =A5A!C230 -> 0 | D29: =A5A!D230 -> 0 | E29: =A5A!E230 -> 0 | F29: =A5A!F230 -> 0 | G29: =A5A!G230 -> 0 | H29: =A5A!H230 -> 0 | I29: =A5A!I230 -> 0 | J29: =A5A!J230 -> 0 | K29: =A5A!K230 -> 0 | L29: =A5A!L230 -> 0
A30: 0 | C30: =A5A!C241 -> 0 | D30: =A5A!D241 -> 0 | E30: =A5A!E241 -> 0 | F30: =A5A!F241 -> 0 | G30: =A5A!G241 -> 0 | H30: =A5A!H241 -> 0 | I30: =A5A!I241 -> 0 | J30: =A5A!J241 -> 0 | K30: =A5A!K241 -> 0 | L30: =A5A!L241 -> 0
A31: 0 | C31: =A5A!C252 -> 0 | D31: =A5A!D252 -> 0 | E31: =A5A!E252 -> 0 | F31: =A5A!F252 -> 0 | G31: =A5A!G252 -> 0 | H31: =A5A!H252 -> 0 | I31: =A5A!I252 -> 0 | J31: =A5A!J252 -> 0 | K31: =A5A!K252 -> 0 | L31: =A5A!L252 -> 0
A32: 0 | C32: =A5A!C263 -> 0 | D32: =A5A!D263 -> 0 | E32: =A5A!E263 -> 0 | F32: =A5A!F263 -> 0 | G32: =A5A!G263 -> 0 | H32: =A5A!H263 -> 0 | I32: =A5A!I263 -> 0 | J32: =A5A!J263 -> 0 | K32: =A5A!K263 -> 0 | L32: =A5A!L263 -> 0
A33: 0 | C33: =A5A!C274 -> 0 | D33: =A5A!D274 -> 0 | E33: =A5A!E274 -> 0 | F33: =A5A!F274 -> 0 | G33: =A5A!G274 -> 0 | H33: =A5A!H274 -> 0 | I33: =A5A!I274 -> 0 | J33: =A5A!J274 -> 0 | K33: =A5A!K274 -> 0 | L33: =A5A!L274 -> 0
A34: 0 | C34: =A5A!C285 -> 0 | D34: =A5A!D285 -> 0 | E34: =A5A!E285 -> 0 | F34: =A5A!F285 -> 0 | G34: =A5A!G285 -> 0 | H34: =A5A!H285 -> 0 | I34: =A5A!I285 -> 0 | J34: =A5A!J285 -> 0 | K34: =A5A!K285 -> 0 | L34: =A5A!L285 -> 0
A35: 0 | C35: =A5A!C296 -> 0 | D35: =A5A!D296 -> 0 | E35: =A5A!E296 -> 0 | F35: =A5A!F296 -> 0 | G35: =A5A!G296 -> 0 | H35: =A5A!H296 -> 0 | I35: =A5A!I296 -> 0 | J35: =A5A!J296 -> 0 | K35: =A5A!K296 -> 0 | L35: =A5A!L296 -> 0
A36: 0 | C36: =A5A!C307 -> 0 | D36: =A5A!D307 -> 0 | E36: =A5A!E307 -> 0 | F36: =A5A!F307 -> 0 | G36: =A5A!G307 -> 0 | H36: =A5A!H307 -> 0 | I36: =A5A!I307 -> 0 | J36: =A5A!J307 -> 0 | K36: =A5A!K307 -> 0 | L36: =A5A!L307 -> 0
A37: 0 | C37: =A5A!C318 -> 0 | D37: =A5A!D318 -> 0 | E37: =A5A!E318 -> 0 | F37: =A5A!F318 -> 0 | G37: =A5A!G318 -> 0 | H37: =A5A!H318 -> 0 | I37: =A5A!I318 -> 0 | J37: =A5A!J318 -> 0 | K37: =A5A!K318 -> 0 | L37: =A5A!L318 -> 0
A38: =A20 -> 0 | C38: =A5A!C329 -> 0 | D38: =A5A!D329 -> 0 | E38: =A5A!E329 -> 0 | F38: =A5A!F329 -> 0 | G38: =A5A!G329 -> 0 | H38: =A5A!H329 -> 0 | I38: =A5A!I329 -> 0 | J38: =A5A!J329 -> 0 | K38: =A5A!K329 -> 0 | L38: =A5A!L329 -> 0
A39: Capital single-year expenditure sub-total | C39: =SUM(C24:C38) -> 605034997.2 | D39: =SUM(D24:D38) -> 850393179 | E39: 344392651 | F39: 309134000 | G39: 451700000 | H39: 451700000 | I39: 347920741 | J39: 321377000 | K39: 367302000 | L39: 364807000
A40: Total Capital Expenditure - Vote | C40: =C39+C21 -> 1014010790 | D40: =D39+D21 -> 850393179 | E40: 344392651 | F40: 309134000 | G40: 451700000 | H40: 451700000 | I40: 347920741 | J40: 321377000 | K40: 367302000 | L40: 364807000
A42: Capital Expenditure - Functional
A43: Governance and administration | C43: =SUM(C44:C46) -> 21525718 | D43: =SUM(D44:D46) -> 299789906 | E43: 12313952 | F43: 17946000 | G43: 41457000 | H43: 41457000 | I43: 7899062 | J43: 17997000 | K43: 20237000 | L43: 19707000
A44: Executive and council
A45: Finance and administration | C45: 21525718 | D45: 299789906 | E45: 12313952 | F45: 17946000 | G45: 41457000 | H45: 41457000 | I45: 7899062 | J45: 17997000 | K45: 20237000 | L45: 19707000
A46: Internal audit
A47: Community and public safety | C47: =SUM(C48:C52) -> 0 | D47: =SUM(D48:D52) -> 13447050 | E47: 17930772 | F47: 15500000 | G47: 15500000 | H47: 15500000 | I47: 8365530 | J47: 1450000 | K47: 850000 | L47: 1650000
A48: Community and social services
A49: Sport and recreation
A50: Public safety | D50: 13447050 | E50: 17900792 | F50: 15500000 | G50: 15500000 | H50: 15500000 | I50: 8365530 | J50: 1450000 | K50: 850000 | L50: 1650000
A51: Housing
A52: Health | E52: 29980
A53: Economic and environmental services | C53: =SUM(C54:C56) -> 0 | D53: =SUM(D54:D56) -> 0 | E53: 0 | F53: 0 | G53: 0 | H53: 0 | I53: 0 | J53: 0 | K53: 0 | L53: 0
A54: Planning and development
A55: Road transport
A56: Environmental protection
A57: Trading services | C57: =SUM(C58:C61) -> 1167018558 | D57: =SUM(D58:D61) -> 550603273 | E57: 314147927 | F57: 275688000 | G57: 394743000 | H57: 394743000 | I57: 339461316 | J57: 301930000 | K57: 346215000 | L57: 343450000
A58: Energy sources
A59: Water management | C59: 1167018558 | D59: 550603273 | E59: 314147927 | F59: 275688000 | G59: 394743000 | H59: 394743000 | I59: 339461316 | J59: 301930000 | K59: 346215000 | L59: 343450000
A60: Waste water management
A61: Waste management
A62: Other
A63: Total Capital Expenditure - Functional | B63: 3 | C63: =C43+C47+C53+C57+C62 -> 1188544276 | D63: =D43+D47+D53+D57+D62 -> 863840229 | E63: 344392651 | F63: 309134000 | G63: 451700000 | H63: 451700000 | I63: 355725908 | J63: 321377000 | K63: 367302000 | L63: =L43+L47+L53+L57+L62 -> 364807000
A65: Funded by:
A66: National Government | C66: 1188544276 | D66: =D63 -> 863840229 | E66: =E63 -> 344392651 | F66: 309134000 | G66: 451700000 | H66: 451700000 | I66: 355725908 | J66: 239935000 | K66: 270335000 | L66: 269993000
A67: Provincial Government
A68: District Municipality
A69: ='A4-FinPerf RE'!A39 -> Transfers and subsidies - capital (monetary allocations) (National / Provincial Departmental Agencies, Households, Non-profit Institutions, Private Enterprises, Public Corporatons, Higher Educational Institutions)
A70: Transfers recognised - capital | B70: 4 | C70: =SUM(C66:C69) -> 1188544276 | D70: 863840229 | E70: 344392651 | F70: 309134000 | G70: 451700000 | H70: 451700000 | I70: 355725908 | J70: 239935000 | K70: 270335000 | L70: 269993000
A72: Borrowing | B72: 6
A73: Internally generated funds | J73: 81442000 | K73: 96967000 | L73: 94814000
A74: Total Capital Funding | B74: 7 | C74: =+C70+C72+C73 -> 1188544276 | D74: =+D70+D72+D73 -> 863840229 | E74: 344392651 | F74: 309134000 | G74: 451700000 | H74: 451700000 | I74: 355725908 | J74: 321377000 | K74: 367302000 | L74: 364807000
A75: =head27a -> References
A76: 1. Municipalities may choose to appropriate for capital expenditure for three years or for one year (if one year appropriation projected expenditure required for yr2 and yr3).
A77: 2. Include capital component of PPP unitary payment. Note that capital transfers are only appropriated to municipalities for the budget year
A78: 3. Capital expenditure by functional classification must reconcile to the appropriations by vote
A79: 4. Must reconcile to supporting table SA20 and to Budgeted Financial Performance (revenue and expenditure)
A81: 6. Include finance leases and PPP capital funding component of unitary payment - total borrowing/repayments to reconcile to changes in Table SA17
A82: 7. Total Capital Funding must balance with Total Capital Expenditure
A83: 8. Include any capitalised interest (MFMA section 46) as part of relevant capital budget
A85: check balance | C85: =IF((C63-C74)=0,0,"Unbalanced") -> 0 | D85: =IF((D63-D74)=0,0,"Unbalanced") -> 0 | E85: 0 | F85: 0 | G85: 0 | H85: 0 | I85: 0 | J85: 0 | K85: 0 | L85: 0

Sheet A5A
A1: =muni&" - "&Approve5 -> DC35 Capricorn - Table A5 Budgeted Capital Expenditure by vote, functional classification and funding
A2: =Vdesc -> Vote Description | B2: =head27 -> Ref | C2: =head1b -> 2016/17 | D2: =head1A -> 2017/18 | E2: =Head1 -> 2018/19 | F2: =Head2 -> Current Year 2019/20 | J2: =Head3 -> 2020/21 Medium Term Revenue & Expenditure Framework | N2: ="Multi-year appropriation for "&Head9& " in the "&Head2A&" Annual Budget" -> Multi-year appropriation for Budget Year 2020/21 in the 2019/20 Annual Budget | R2: ="Multi-year appropriation for "&RIGHT(Head10,7)& " in the "&Head2A&" Annual Budget" -> Multi-year appropriation for 2021/22 in the 2019/20 Annual Budget | V2: New multi-year appropriations (funds for new and existing projects)
A3: R thousand | B3: 1 | C3: =Head5 -> Audited Outcome | D3: =Head5 -> Audited Outcome | E3: =Head5 -> Audited Outcome | F3: =Head6 -> Original Budget | G3: =Head7 -> Adjusted Budget | H3: =Head8 -> Full Year Forecast | I3: =Head5b -> Pre-audit outcome | J3: =Head9 -> Budget Year 2020/21 | K3: =Head10 -> Budget Year +1 2021/22 | L3: =Head11 -> Budget Year +2 2022/23 | N3: ="Appropriation for "&RIGHT(Head9,7) -> Appropriation for 2020/21 | O3: ="Adjustments in "&Head2A -> Adjustments in 2019/20 | P3: ="Downward adjustments for "&RIGHT(Head9,7) -> Downward adjustments for 2020/21 | Q3: Appropriation carried forward | R3: ="Appropriation for "&RIGHT(Head9,7) -> Appropriation for 2020/21 | S3: ="Adjustments in "&Head2A -> Adjustments in 2019/20 | T3: ="Downward adjustments for "&RIGHT(Head9,7) -> Downward adjustments for 2020/21 | U3: Appropriation carried forward | V3: =Head9 -> Budget Year 2020/21 | W3: =Head10 -> Budget Year +1 2021/22 | X3: =Head11 -> Budget Year +2 2022/23
A4: Capital expenditure - Municipal Vote
A5: Multi-year expenditure appropriation | B5: 2
A6: ='Org structure'!A2 -> Vote 1 - Municipal governance and administration | C6: =SUM(C7:C16) -> 0 | D6: =SUM(D7:D16) -> 0 | E6: 0 | F6: 0 | G6: 0 | H6: 0 | I6: =SUM(I7:I16) -> 0 | J6: 0 | K6: 0 | L6: 0 | N6: =SUM(N7:N16) -> 0 | O6: 0 | P6: 0 | Q6: 0 | R6: 0 | S6: 0 | T6: 0 | U6: 0 | V6: =SUM(V7:V16) -> 0 | W6: =SUM(W7:W16) -> 0 | X6: =SUM(X7:X16) -> 0
A7: ='[5]Org structure'!E3 -> 1.1 - Executive and council | J7: =Q7+V7 -> 0 | K7: =U7+W7 -> 0 | L7: =X7 -> 0 | Q7: =SUM(N7:P7) -> 0 | U7: =SUM(R7:T7) -> 0
A8: ='[5]Org structure'!E4 -> 1.2 - Finance and administration | J8: =Q8+V8 -> 0 | K8: =U8+W8 -> 0 | L8: =X8 -> 0 | Q8: =SUM(N8:P8) -> 0 | U8: =SUM(R8:T8) -> 0
A9: ='[5]Org structure'!E5 -> 1.3 - Internal audit | J9: =Q9+V9 -> 0 | K9: =U9+W9 -> 0 | L9: 0 | Q9: 0 | U9: 0
A10: ='Org structure'!E6 -> 0 | J10: 0 | K10: 0 | L10: 0 | Q10: 0 | U10: 0
A11: ='Org structure'!E7 -> 0 | J11: 0 | K11: 0 | L11: =X11 -> 0 | Q11: 0 | U11: 0
A12: ='Org structure'!E8 -> 0 | J12: 0 | K12: 0 | L12: 0 | Q12: 0 | U12: 0
A13: ='Org structure'!E9 -> 0 | J13: 0 | K13: 0 | L13: 0 | Q13: 0 | U13: 0
A14: ='Org structure'!E10 -> 0 | J14: 0 | K14: 0 | L14: 0 | Q14: 0 | U14: 0
A15: ='Org structure'!E11 -> 0 | J15: 0 | K15: 0 | L15: 0 | Q15: 0 | U15: 0
A16: ='Org structure'!E12 -> 0 | J16: 0 | K16: 0 | L16: 0 | Q16: 0 | U16: 0
A17: ='Org structure'!A3 -> Vote 2 - Community and social services | C17: =SUM(C18:C27) -> 0 | D17: =SUM(D18:D27) -> 0 | E17: 0 | F17: 0 | G17: 0 | H17: 0 | I17: =SUM(I18:I27) -> 0 | J17: 0 | K17: 0 | L17: 0 | N17: =SUM(N18:N27) -> 0 | O17: 0 | P17: 0 | Q17: 0 | R17: 0 | S17: 0 | T17: 0 | U17: 0 | V17: 0 | W17: 0 | X17: 0
A18: ='[5]Org structure'!E14 -> 2.1 - Recreational Facilities | J18: =Q18+V18 -> 0 | K18: =U18+W18 -> 0 | L18: =X18 -> 0 | Q18: =SUM(N18:P18) -> 0 | U18: 0
A19: ='[5]Org structure'!E15 -> 2.2 - Disaster Management | J19: =Q19+V19 -> 0 | K19: =U19+W19 -> 0 | L19: 0 | Q19: 0 | U19: 0
A20: ='[5]Org structure'!E16 -> 2.3 - Public safety | J20: 0 | K20: 0 | L20: 0 | Q20: 0 | U20: 0
A21: ='[5]Org structure'!E17 -> 2.4 - Health | J21: 0 | K21: =U21+W21 -> 0 | L21: 0 | Q21: 0 | U21: 0
A22: ='Org structure'!E18 -> 0 | J22: 0 | K22: 0 | L22: 0 | Q22: 0 | U22: 0
A23: ='Org structure'!E19 -> 0 | J23: 0 | K23: 0 | L23: 0 | Q23: 0 | U23: 0
A24: ='Org structure'!E20 -> 0 | J24: 0 | K24: 0 | L24: 0 | Q24: 0 | U24: 0
A25: ='Org structure'!E21 -> 0 | J25: 0 | K25: 0 | L25: 0 | Q25: 0 | U25: 0
A26: ='Org structure'!E22 -> 0 | J26: 0 | K26: 0 | L26: 0 | Q26: 0 | U26: 0
A27: ='Org structure'!E23 -> 0 | J27: 0 | K27: 0 | L27: 0 | Q27: 0 | U27: 0
A28: ='Org structure'!A4 -> Vote 3 - Economic and environmental services | C28: =SUM(C29:C38) -> 667325 | D28: =SUM(D29:D38) -> 0 | E28: 0 | F28: 0 | G28: 0 | H28: 0 | I28: =SUM(I29:I38) -> 0 | J28: 0 | K28: 0 | L28: 0 | N28: =SUM(N29:N38) -> 0 | O28: 0 | P28: 0 | Q28: 0 | R28: 0 | S28: 0 | T28: 0 | U28: 0 | V28: 0 | W28: 0 | X28: 0
A29: ='[5]Org structure'!E25 -> 3.1 - Planning and development | J29: =Q29+V29 -> 0 | K29: =U29+W29 -> 0 | L29: =X29 -> 0 | Q29: =SUM(N29:P29) -> 0 | U29: 0
A30: ='[5]Org structure'!E26 -> 3.2 - Road transport | C30: 667325 | J30: 0 | K30: 0 | L30: 0 | Q30: 0 | U30: 0
A31: ='[5]Org structure'!E27 -> 3.3 - Environmental protection | J31: 0 | K31: 0 | L31: 0 | Q31: 0 | U31: =SUM(R31:T31) -> 0
A32: ='Org structure'!E28 -> 0 | J32: 0 | K32: =U32+W32 -> 0 | L32: 0 | Q32: 0 | U32: 0
A33: ='Org structure'!E29 -> 0 | J33: =Q33+V33 -> 0 | K33: 0 | L33: 0 | Q33: 0 | U33: 0
A34: ='Org structure'!E30 -> 0 | J34: 0 | K34: 0 | L34: 0 | Q34: 0 | U34: 0
A35: ='Org structure'!E31 -> 0 | J35: 0 | K35: 0 | L35: 0 | Q35: 0 | U35: 0
A36: ='Org structure'!E32 -> 0 | J36: 0 | K36: 0 | L36: 0 | Q36: 0 | U36: 0
A37: ='Org structure'!E33 -> 0 | J37: 0 | K37: 0 | L37: 0 | Q37: 0 | U37: 0
A38: ='Org structure'!E34 -> 0 | J38: 0 | K38: 0 | L38: 0 | Q38: 0 | U38: 0
A39: ='Org structure'!A5 -> Vote 4 - Trading services | C39: =SUM(C40:C49) -> 408308468 | D39: =SUM(D40:D49) -> 0 | E39: 0 | F39: 0 | G39: 0 | H39: 0 | I39: =SUM(I40:I49) -> 0 | J39: =SUM(J40:J49) -> 0 | K39: 0 | L39: 0 | N39: =SUM(N40:N49) -> 0 | O39: 0 | P39: 0 | Q39: 0 | R39: 0 | S39: 0 | T39: 0 | U39: 0 | V39: 0 | W39: 0 | X39: 0
A40: ='[5]Org structure'!E36 -> 4.1 - Water Treatment | J40: =Q40+V40 -> 0 | K40: =U40+W40 -> 0 | L40: =X40 -> 0 | Q40: =SUM(N40:P40) -> 0 | U40: 0
A41: ='[5]Org structure'!E37 -> 4.2 - Water Distribution | C41: 408308468 | J41: 0 | K41: 0 | L41: 0 | Q41: 0 | U41: 0
A42: ='Org structure'!#REF! ->  | J42: 0 | K42: 0 | L42: 0 | Q42: 0 | U42: 0
A43: ='Org structure'!E39 -> 0 | J43: 0 | K43: 0 | L43: 0 | Q43: 0 | U43: 0
A44: ='Org structure'!E40 -> 0 | J44: 0 | K44: 0 | L44: 0 | Q44: 0 | U44: 0
A45: ='Org structure'!E41 -> 0 | J45: 0 | K45: 0 | L45: 0 | Q45: 0 | U45: 0
A46: ='Org structure'!E42 -> 0 | J46: 0 | K46: 0 | L46: 0 | Q46: 0 | U46: 0
A47: ='Org structure'!E43 -> 0 | J47: 0 | K47: 0 | L47: 0 | Q47: 0 | U47: 0
A48: ='Org structure'!E44 -> 0 | J48: 0 | K48: 0 | L48: 0 | Q48: 0 | U48: 0
A49: ='Org structure'!E45 -> 0 | J49: 0 | K49: 0 | L49: 0 | Q49: 0 | U49: 0
A50: ='Org structure'!A6 -> 0 | C50: =SUM(C51:C60) -> 0 | D50: =SUM(D51:D60) -> 0 | E50: 0 | F50: 0 | G50: 0 | H50: 0 | I50: =SUM(I51:I60) -> 0 | J50: 0 | K50: 0 | L50: 0 | N50: =SUM(N51:N60) -> 0 | O50: 0 | P50: 0 | Q50: 0 | R50: 0 | S50: 0 | T50: 0 | U50: 0 | V50: 0 | W50: 0 | X50: 0
A51: ='Org structure'!E47 -> 0 | J51: =Q51+V51 -> 0 | K51: =U51+W51 -> 0 | L51: =X51 -> 0 | Q51: =SUM(N51:P51) -> 0 | U51: 0
A52: ='Org structure'!E48 -> 0 | J52: 0 | K52: 0 | L52: 0 | Q52: 0 | U52: 0
A53: ='Org structure'!E49 -> 0 | J53: 0 | K53: 0 | L53: 0 | Q53: 0 | U53: 0
A54: ='Org structure'!E50 -> 0 | J54: 0 | K54: 0 | L54: 0 | Q54: 0 | U54: 0
A55: ='Org structure'!E51 -> 0 | J55: 0 | K55: 0 | L55: 0 | Q55: 0 | U55: 0
A56: ='Org structure'!E52 -> 0 | J56: 0 | K56: 0 | L56: 0 | Q56: 0 | U56: 0
A57: ='Org structure'!E53 -> 0 | J57: 0 | K57: 0 | L57: 0 | Q57: 0 | U57: 0
A58: ='Org structure'!E54 -> 0 | J58: 0 | K58: 0 | L58: 0 | Q58: 0 | U58: 0
A59: ='Org structure'!E55 -> 0 | J59: 0 | K59: 0 | L59: 0 | Q59: 0 | U59: 0
A60: ='Org structure'!E56 -> 0 | J60: 0 | K60: 0 | L60: 0 | Q60: 0 | U60: 0
A61: ='Org structure'!A7 -> 0 | C61: =SUM(C62:C71) -> 0 | D61: =SUM(D62:D71) -> 0 | E61: 0 | F61: 0 | G61: 0 | H61: 0 | I61: =SUM(I62:I71) -> 0 | J61: 0 | K61: 0 | L61: 0 | N61: =SUM(N62:N71) -> 0 | O61: 0 | P61: 0 | Q61: 0 | R61: 0 | S61: 0 | T61: 0 | U61: 0 | V61: 0 | W61: 0 | X61: 0
A62: ='Org structure'!E58 -> 0 | J62: =Q62+V62 -> 0 | K62: =U62+W62 -> 0 | L62: =X62 -> 0 | Q62: =SUM(N62:P62) -> 0 | U62: 0
A63: ='Org structure'!E59 -> 0 | J63: 0 | K63: 0 | L63: 0 | Q63: 0 | U63: 0
A64: ='Org structure'!E60 -> 0 | J64: 0 | K64: 0 | L64: 0 | Q64: 0 | U64: 0
A65: ='Org structure'!E61 -> 0 | J65: 0 | K65: 0 | L65: 0 | Q65: 0 | U65: 0
A66: ='Org structure'!E62 -> 0 | J66: 0 | K66: 0 | L66: 0 | Q66: 0 | U66: 0
A67: ='Org structure'!E63 -> 0 | J67: 0 | K67: 0 | L67: 0 | Q67: 0 | U67: 0
A68: ='Org structure'!E64 -> 0 | J68: 0 | K68: 0 | L68: 0 | Q68: 0 | U68: 0
A69: ='Org structure'!E65 -> 0 | J69: 0 | K69: 0 | L69: 0 | Q69: 0 | U69: 0
A70: ='Org structure'!E66 -> 0 | J70: 0 | K70: 0 | L70: 0 | Q70: 0 | U70: 0
A71: ='Org structure'!E67 -> 0 | J71: 0 | K71: 0 | L71: 0 | Q71: 0 | U71: 0
A72: ='Org structure'!A8 -> 0 | C72: =SUM(C73:C82) -> 0 | D72: 0 | E72: 0 | F72: 0 | G72: 0 | H72: 0 | I72: 0 | J72: 0 | K72: 0 | L72: 0 | N72: =SUM(N73:N82) -> 0 | O72: 0 | P72: 0 | Q72: 0 | R72: 0 | S72: 0 | T72: 0 | U72: 0 | V72: 0 | W72: 0 | X72: 0
A73: ='Org structure'!E69 -> 0 | J73: =Q73+V73 -> 0 | K73: =U73+W73 -> 0 | L73: =X73 -> 0 | Q73: =SUM(N73:P73) -> 0 | U73: =SUM(R73:T73) -> 0
A74: ='Org structure'!E70 -> 0 | J74: 0 | K74: 0 | L74: 0 | Q74: 0 | U74: 0
A75: ='Org structure'!E71 -> 0 | J75: 0 | K75: 0 | L75: 0 | Q75: 0 | U75: 0
A76: ='Org structure'!E72 -> 0 | J76: 0 | K76: 0 | L76: 0 | Q76: 0 | U76: 0
A77: ='Org structure'!E73 -> 0 | J77: 0 | K77: 0 | L77: 0 | Q77: 0 | U77: 0
A78: ='Org structure'!E74 -> 0 | J78: 0 | K78: 0 | L78: 0 | Q78: 0 | U78: 0
A79: ='Org structure'!E75 -> 0 | J79: 0 | K79: 0 | L79: 0 | Q79: 0 | U79: 0
A80: ='Org structure'!E76 -> 0 | J80: 0 | K80: 0 | L80: 0 | Q80: 0 | U80: 0
A81: ='Org structure'!E77 -> 0 | J81: 0 | K81: 0 | L81: 0 | Q81: 0 | U81: 0
A82: ='Org structure'!E78 -> 0 | J82: 0 | K82: 0 | L82: 0 | Q82: 0 | U82: 0
A83: ='Org structure'!A9 -> 0 | C83: =SUM(C84:C93) -> 0 | D83: 0 | E83: 0 | F83: 0 | G83: 0 | H83: 0 | I83: 0 | J83: 0 | K83: 0 | L83: 0 | N83: =SUM(N84:N93) -> 0 | O83: 0 | P83: 0 | Q83: 0 | R83: 0 | S83: 0 | T83: 0 | U83: 0 | V83: 0 | W83: 0 | X83: 0
A84: ='Org structure'!E80 -> 0 | J84: =Q84+V84 -> 0 | K84: =U84+W84 -> 0 | L84: =X84 -> 0 | Q84: =SUM(N84:P84) -> 0 | U84: 0
A85: ='Org structure'!E81 -> 0 | J85: 0 | K85: 0 | L85: 0 | Q85: 0 | U85: 0
A86: ='Org structure'!E82 -> 0 | J86: 0 | K86: 0 | L86: 0 | Q86: 0 | U86: 0
A87: ='Org structure'!E83 -> 0 | J87: 0 | K87: 0 | L87: 0 | Q87: 0 | U87: 0
A88: ='Org structure'!E84 -> 0 | J88: 0 | K88: 0 | L88: 0 | Q88: 0 | U88: 0
A89: ='Org structure'!E85 -> 0 | J89: 0 | K89: 0 | L89: 0 | Q89: 0 | U89: 0
A90: ='Org structure'!E86 -> 0 | J90: 0 | K90: 0 | L90: 0 | Q90: 0 | U90: 0
A91: ='Org structure'!E87 -> 0 | J91: 0 | K91: 0 | L91: 0 | Q91: 0 | U91: 0
A92: ='Org structure'!E88 -> 0 | J92: 0 | K92: 0 | L92: 0 | Q92: 0 | U92: 0
A93: ='Org structure'!E89 -> 0 | J93: 0 | K93: 0 | L93: 0 | Q93: 0 | U93: 0
A94: ='Org structure'!A10 -> 0 | C94: =SUM(C95:C104) -> 0 | D94: =SUM(D95:D104) -> 0 | E94: 0 | F94: 0 | G94: 0 | H94: 0 | I94: 0 | J94: 0 | K94: 0 | L94: 0 | N94: =SUM(N95:N104) -> 0 | O94: 0 | P94: 0 | Q94: 0 | R94: 0 | S94: 0 | T94: 0 | U94: 0 | V94: 0 | W94: 0 | X94: 0
A95: ='Org structure'!E91 -> 0 | J95: =Q95+V95 -> 0 | K95: =U95+W95 -> 0 | L95: =X95 -> 0 | Q95: =SUM(N95:P95) -> 0 | U95: 0
A96: ='Org structure'!E92 -> 0 | J96: 0 | K96: 0 | L96: 0 | Q96: 0 | U96: 0
A97: ='Org structure'!E93 -> 0 | J97: 0 | K97: 0 | L97: 0 | Q97: 0 | U97: 0
A98: ='Org structure'!E94 -> 0 | J98: 0 | K98: 0 | L98: 0 | Q98: 0 | U98: 0
A99: ='Org structure'!E95 -> 0 | J99: 0 | K99: 0 | L99: 0 | Q99: 0 | U99: 0
A100: ='Org structure'!E96 -> 0 | J100: 0 | K100: 0 | L100: 0 | Q100: 0 | U100: 0
A101: ='Org structure'!E97 -> 0 | J101: 0 | K101: 0 | L101: 0 | Q101: 0 | U101: 0
A102: ='Org structure'!E98 -> 0 | J102: 0 | K102: 0 | L102: 0 | Q102: 0 | U102: 0
A103: ='Org structure'!E99 -> 0 | J103: 0 | K103: 0 | L103: 0 | Q103: 0 | U103: 0
A104: ='Org structure'!E100 -> 0 | J104: 0 | K104: 0 | L104: 0 | Q104: 0 | U104: 0
A105: ='Org structure'!A11 -> 0 | C105: =SUM(C106:C115) -> 0 | D105: =SUM(D106:D115) -> 0 | E105: 0 | F105: 0 | G105: 0 | H105: 0 | I105: 0 | J105: 0 | K105: 0 | L105: 0 | N105: =SUM(N106:N115) -> 0 | O105: 0 | P105: 0 | Q105: 0 | R105: 0 | S105: 0 | T105: 0 | U105: 0 | V105: 0 | W105: 0 | X105: 0
A106: ='Org structure'!E102 -> 0 | J106: =Q106+V106 -> 0 | K106: =U106+W106 -> 0 | L106: =X106 -> 0 | Q106: =SUM(N106:P106) -> 0 | U106: 0
A107: ='Org structure'!E103 -> 0 | J107: 0 | K107: 0 | L107: 0 | Q107: 0 | U107: 0
A108: ='Org structure'!E104 -> 0 | J108: 0 | K108: 0 | L108: 0 | Q108: 0 | U108: 0
A109: ='Org structure'!E105 -> 0 | J109: 0 | K109: 0 | L109: 0 | Q109: 0 | U109: 0
A110: ='Org structure'!E106 -> 0 | J110: 0 | K110: 0 | L110: 0 | Q110: 0 | U110: 0
A111: ='Org structure'!E107 -> 0 | J111: 0 | K111: 0 | L111: 0 | Q111: 0 | U111: 0
A112: ='Org structure'!E108 -> 0 | J112: 0 | K112: 0 | L112: 0 | Q112: 0 | U112: 0
A113: ='Org structure'!E109 -> 0 | J113: 0 | K113: 0 | L113: 0 | Q113: 0 | U113: 0
A114: ='Org structure'!E110 -> 0 | J114: 0 | K114: 0 | L114: 0 | Q114: 0 | U114: 0
A115: ='Org structure'!E111 -> 0 | J115: 0 | K115: 0 | L115: 0 | Q115: 0 | U115: 0
A116: ='Org structure'!A12 -> 0 | C116: =SUM(C117:C126) -> 0 | D116: 0 | E116: 0 | F116: 0 | G116: 0 | H116: 0 | I116: 0 | J116: 0 | K116: 0 | L116: 0 | N116: =SUM(N117:N126) -> 0 | O116: 0 | P116: 0 | Q116: 0 | R116: 0 | S116: 0 | T116: 0 | U116: 0 | V116: 0 | W116: 0 | X116: 0
A117: ='Org structure'!E113 -> 0 | J117: =Q117+V117 -> 0 | K117: =U117+W117 -> 0 | L117: =X117 -> 0 | Q117: =SUM(N117:P117) -> 0 | U117: 0
A118: ='Org structure'!E114 -> 0 | J118: 0 | K118: 0 | L118: 0 | Q118: 0 | U118: 0
A119: ='Org structure'!E115 -> 0 | J119: 0 | K119: 0 | L119: 0 | Q119: 0 | U119: 0
A120: ='Org structure'!E116 -> 0 | J120: 0 | K120: 0 | L120: 0 | Q120: 0 | U120: 0
A121: ='Org structure'!E117 -> 0 | J121: 0 | K121: 0 | L121: 0 | Q121: 0 | U121: 0
A122: ='Org structure'!E118 -> 0 | J122: 0 | K122: 0 | L122: 0 | Q122: 0 | U122: 0
A123: ='Org structure'!E119 -> 0 | J123: 0 | K123: 0 | L123: 0 | Q123: 0 | U123: 0
A124: ='Org structure'!E120 -> 0 | J124: 0 | K124: 0 | L124: 0 | Q124: 0 | U124: 0
A125: ='Org structure'!E121 -> 0 | J125: 0 | K125: 0 | L125: 0 | Q125: 0 | U125: 0
A126: ='Org structure'!E122 -> 0 | J126: 0 | K126: 0 | L126: 0 | Q126: 0 | U126: 0
A127: ='Org structure'!A13 -> 0 | C127: =SUM(C128:C137) -> 0 | D127: 0 | E127: 0 | F127: 0 | G127: 0 | H127: 0 | I127: 0 | J127: 0 | K127: 0 | L127: 0 | N127: =SUM(N128:N137) -> 0 | O127: 0 | P127: 0 | Q127: 0 | R127: 0 | S127: 0 | T127: 0 | U127: 0 | V127: 0 | W127: 0 | X127: 0
A128: ='Org structure'!E124 -> 0 | J128: =Q128+V128 -> 0 | K128: =U128+W128 -> 0 | L128: =X128 -> 0 | Q128: =SUM(N128:P128) -> 0 | U128: 0
A129: ='Org structure'!E125 -> 0 | J129: 0 | K129: 0 | L129: 0 | Q129: 0 | U129: 0
A130: ='Org structure'!E126 -> 0 | J130: 0 | K130: 0 | L130: 0 | Q130: 0 | U130: 0
A131: ='Org structure'!E127 -> 0 | J131: 0 | K131: 0 | L131: 0 | Q131: 0 | U131: 0
A132: ='Org structure'!E128 -> 0 | J132: 0 | K132: 0 | L132: 0 | Q132: 0 | U132: 0
A133: ='Org structure'!E129 -> 0 | J133: =Q133+V133 -> 0 | K133: 0 | L133: 0 | Q133: 0 | U133: 0
A134: ='Org structure'!E130 -> 0 | J134: 0 | K134: 0 | L134: 0 | Q134: 0 | U134: 0
A135: ='Org structure'!E131 -> 0 | J135: 0 | K135: 0 | L135: 0 | Q135: 0 | U135: 0
A136: ='Org structure'!E132 -> 0 | J136: 0 | K136: 0 | L136: 0 | Q136: 0 | U136: =SUM(R136:T136) -> 0
A137: ='Org structure'!E133 -> 0 | J137: 0 | K137: 0 | L137: 0 | Q137: 0 | U137: 0
A138: ='Org structure'!A14 -> 0 | C138: =SUM(C139:C148) -> 0 | D138: 0 | E138: 0 | F138: 0 | G138: 0 | H138: 0 | I138: 0 | J138: 0 | K138: 0 | L138: 0 | N138: =SUM(N139:N148) -> 0 | O138: 0 | P138: 0 | Q138: 0 | R138: 0 | S138: 0 | T138: 0 | U138: 0 | V138: 0 | W138: 0 | X138: 0
A139: ='Org structure'!E135 -> 0 | J139: =Q139+V139 -> 0 | K139: =U139+W139 -> 0 | L139: =X139 -> 0 | Q139: =SUM(N139:P139) -> 0 | U139: 0
A140: ='Org structure'!E136 -> 0 | J140: 0 | K140: 0 | L140: 0 | Q140: 0 | U140: 0
A141: ='Org structure'!E137 -> 0 | J141: 0 | K141: 0 | L141: 0 | Q141: 0 | U141: 0
A142: ='Org structure'!E138 -> 0 | J142: 0 | K142: 0 | L142: 0 | Q142: 0 | U142: 0
A143: ='Org structure'!E139 -> 0 | J143: 0 | K143: 0 | L143: 0 | Q143: 0 | U143: 0
A144: ='Org structure'!E140 -> 0 | J144: 0 | K144: 0 | L144: 0 | Q144: 0 | U144: 0
A145: ='Org structure'!E141 -> 0 | J145: 0 | K145: 0 | L145: 0 | Q145: 0 | U145: 0
A146: ='Org structure'!E142 -> 0 | J146: 0 | K146: 0 | L146: 0 | Q146: 0 | U146: 0
A147: ='Org structure'!E143 -> 0 | J147: 0 | K147: 0 | L147: 0 | Q147: 0 | U147: 0
A148: ='Org structure'!E144 -> 0 | J148: 0 | K148: 0 | L148: 0 | Q148: 0 | U148: 0
A149: ='Org structure'!A15 -> 0 | C149: =SUM(C150:C159) -> 0 | D149: 0 | E149: 0 | F149: 0 | G149: 0 | H149: 0 | I149: 0 | J149: 0 | K149: 0 | L149: 0 | N149: =SUM(N150:N159) -> 0 | O149: 0 | P149: 0 | Q149: 0 | R149: 0 | S149: 0 | T149: 0 | U149: 0 | V149: 0 | W149: 0 | X149: 0
A150: ='Org structure'!E146 -> 0 | J150: =Q150+V150 -> 0 | K150: =U150+W150 -> 0 | L150: =X150 -> 0 | Q150: =SUM(N150:P150) -> 0 | U150: 0
A151: ='Org structure'!E147 -> 0 | J151: 0 | K151: 0 | L151: 0 | Q151: 0 | U151: 0
A152: ='Org structure'!E148 -> 0 | J152: 0 | K152: 0 | L152: 0 | Q152: 0 | U152: 0
A153: ='Org structure'!E149 -> 0 | J153: 0 | K153: 0 | L153: 0 | Q153: 0 | U153: 0
A154: ='Org structure'!E150 -> 0 | J154: 0 | K154: 0 | L154: 0 | Q154: 0 | U154: 0
A155: ='Org structure'!E151 -> 0 | J155: 0 | K155: 0 | L155: 0 | Q155: 0 | U155: 0
A156: ='Org structure'!E152 -> 0 | J156: 0 | K156: 0 | L156: 0 | Q156: 0 | U156: 0
A157: ='Org structure'!E153 -> 0 | J157: 0 | K157: 0 | L157: 0 | Q157: 0 | U157: 0
A158: ='Org structure'!E154 -> 0 | J158: 0 | K158: 0 | L158: 0 | Q158: 0 | U158: 0
A159: ='Org structure'!E155 -> 0 | J159: 0 | K159: 0 | L159: 0 | Q159: 0 | U159: 0
A160: ='Org structure'!A16 -> 0 | C160: =SUM(C161:C170) -> 0 | D160: 0 | E160: 0 | F160: 0 | G160: 0 | H160: 0 | I160: 0 | J160: 0 | K160: 0 | L160: 0 | N160: =SUM(N161:N170) -> 0 | O160: 0 | P160: 0 | Q160: 0 | R160: 0 | S160: 0 | T160: 0 | U160: 0 | V160: 0 | W160: 0 | X160: 0
A161: ='Org structure'!E157 -> 0 | J161: =Q161+V161 -> 0 | K161: =U161+W161 -> 0 | L161: =X161 -> 0 | Q161: =SUM(N161:P161) -> 0 | U161: 0
A162: ='Org structure'!E158 -> 0 | J162: 0 | K162: 0 | L162: 0 | Q162: 0 | U162: 0
A163: ='Org structure'!E159 -> 0 | J163: 0 | K163: 0 | L163: 0 | Q163: 0 | U163: 0
A164: ='Org structure'!E160 -> 0 | J164: 0 | K164: 0 | L164: 0 | Q164: 0 | U164: 0
A165: ='Org structure'!E161 -> 0 | J165: 0 | K165: 0 | L165: 0 | Q165: 0 | U165: 0
A166: ='Org structure'!E162 -> 0 | J166: 0 | K166: 0 | L166: 0 | Q166: 0 | U166: 0
A167: ='Org structure'!E163 -> 0 | J167: 0 | K167: 0 | L167: 0 | Q167: 0 | U167: 0
A168: ='Org structure'!E164 -> 0 | J168: 0 | K168: 0 | L168: 0 | Q168: 0 | U168: 0
A169: ='Org structure'!E165 -> 0 | J169: 0 | K169: 0 | L169: 0 | Q169: 0 | U169: 0
A170: ='Org structure'!E166 -> 0 | J170: 0 | K170: 0 | L170: 0 | Q170: 0 | U170: 0
A171: Capital multi-year expenditure sub-total | C171: =C6+C17+C28+C39+C50+C61+C72+C83+C94+C105+C116+C127+C138+C149+C160 -> 408975793 | D171: =D6+D17+D28+D39+D50+D61+D72+D83+D94+D105+D116+D127+D138+D149+D160 -> 0 | E171: 0 | F171: 0 | G171: 0 | H171: 0 | I171: 0 | J171: 0 | K171: 0 | L171: 0 | N171: =N6+N17+N28+N39+N50+N61+N72+N83+N94+N105+N116+N127+N138+N149+N160 -> 0 | O171: 0 | P171: 0 | Q171: 0 | R171: 0 | S171: 0 | U171: 0 | V171: =V6+V17+V28+V39+V50+V61+V72+V83+V94+V105+V116+V127+V138+V149+V160 -> 0 | W171: =W6+W17+W28+W39+W50+W61+W72+W83+W94+W105+W116+W127+W138+W149+W160 -> 0
A173: Capital expenditure - Municipal Vote
A174: Single-year expenditure appropriation | B174: 2
A175: =A6 -> Vote 1 - Municipal governance and administration | C175: =SUM(C176:C185) -> 21525718 | D175: 299789906 | E175: 170466560 | F175: 17946000 | G175: 41457000 | H175: 41457000 | I175: 7811609 | J175: 17997000 | K175: 20237000 | L175: 19707000
A176: =A7 -> 1.1 - Executive and council
A177: 1.2 - Finance and administration | C177: 21525718 | D177: 299789906 | E177: 170466560 | F177: 17946000 | G177: 41457000 | H177: 41457000 | I177: 7811609 | J177: 17997000 | K177: 20237000 | L177: 19707000
A178: 1.3 - Internal audit
A179: 0
A180: 0
A181: 0
A182: 0
A183: 0
A184: 0
A185: 0
A186: Vote 2 - Community and social services | C186: =SUM(C187:C196) -> 0 | D186: 13447050 | E186: 17930772 | F186: 15500000 | G186: 15500000 | H186: 15500000 | I186: 8365530 | J186: 1450000 | K186: 850000 | L186: 1650000
A187: 2.1 - Recreational Facilities
A188: 2.2 - Disaster Management
A189: 2.3 - Public safety | D189: 13447050 | E189: 17900792 | F189: =[4]B5B!$C$191 -> 15500000 | G189: =[4]B5B!$K$191 -> 15500000 | H189: =G189 -> 15500000 | I189: 8365530 | J189: 1450000 | K189: 850000 | L189: 1650000
A190: 2.4 - Health | E190: 29980
A191: 0
A192: 0
A193: 0
A194: 0
A195: 0
A196: 0
A197: Vote 3 - Economic and environmental services | C197: =SUM(C198:C207) -> 0 | D197: 0 | E197: 0 | F197: 0 | G197: 0 | H197: 0 | I197: 0 | J197: 0 | K197: 0 | L197: 0
A198: 3.1 - Planning and development
A199: 3.2 - Road transport
A200: 3.3 - Environmental protection
A201: 0
... 139 more rows

Sheet A6-FinPos
A1: =muni&" - "&Approve6 -> DC35 Capricorn - Table A6 Budgeted Financial Position
A2: =desc -> Description | B2: =head27 -> Ref | C2: =head1b -> 2016/17 | D2: =head1A -> 2017/18 | E2: =Head1 -> 2018/19 | F2: =Head2 -> Current Year 2019/20 | J2: =Head3 -> 2020/21 Medium Term Revenue & Expenditure Framework
A3: R thousand | C3: =Head5 -> Audited Outcome | D3: =Head5 -> Audited Outcome | E3: =Head5 -> Audited Outcome | F3: =Head6 -> Original Budget | G3: =Head7 -> Adjusted Budget | H3: =Head8 -> Full Year Forecast | I3: =Head5b -> Pre-audit outcome | J3: =Head9 -> Budget Year 2020/21 | K3: =Head10 -> Budget Year +1 2021/22 | L3: =Head11 -> Budget Year +2 2022/23
A4: ASSETS
A5: Current assets
A6: Cash | C6: 2970870 | D6: -15435298 | E6: ='[3]C6-FinPos'!$C$7 -> 1525284 | F6: -752161640 | G6: -687027696 | H6: -687027696 | I6: -8263892 | J6: -178331424 | K6: -316892224 | L6: -442549424
A7: Call investment deposits | B7: 1 | C7: 243656478 | D7: 289752675 | E7: ='[3]C6-FinPos'!$C$8 -> 255042065 | F7: 303650902 | G7: 255042063 | H7: 255042063 | I7: 144744724 | J7: 449786783 | K7: 449786783 | L7: 449786783
A8: Consumer debtors | B8: 1 | C8: 49337408 | D8: 40434237 | E8: 55956657 | F8: 76840100 | G8: 55956656 | H8: 55956656 | I8: 57622860 | J8: 109151262 | K8: 98923262 | L8: 88081262
A9: Other debtors | C9: 35200581 | D9: 10766521 | E9: 29642147 | F9: 41377942 | G9: 28775159 | H9: 28775159 | I9: 3352093 | J9: 22741095 | K9: 22741095 | L9: 22741095
A10: Current portion of long-term receivables | F10: 0 | G10: 0 | J10: 0 | K10: 0 | L10: 0
A11: Inventory | B11: 2 | C11: 4944381 | D11: 5666386 | E11: ='[3]C6-FinPos'!$C$12 -> 4192675 | F11: -2116772 | G11: -3598326 | H11: -3598326 | I11: -26954 | J11: 2919290 | K11: 1542290 | L11: 29290
A12: Total current assets | C12: =SUM(C6:C11) -> 336109718 | D12: 331184521 | E12: 346358828 | F12: -332409468 | G12: -350852144 | H12: -350852144 | I12: 197428831 | J12: 406267006 | K12: 256101206 | L12: 118089006
A14: Non current assets
A15: Long-term receivables
A16: Investments
A17: Investment property
A18: Investment in Associate
A19: Property, plant and equipment | B19: 3 | C19: 2085583636 | D19: 2374194429 | E19: 2605764413 | F19: 2915725013 | G19: 2997501470 | H19: 2997501470 | I19: 291569154 | J19: 3138782368 | K19: 3422034368 | L19: 3698540368
A21: Biological | C21: 0 | D21: 0 | E21: 0 | F21: 0 | G21: 0 | H21: 0 | I21: 0 | J21: 0 | K21: 0 | L21: 0
A22: Intangible | C22: 11624830 | D22: 10192668 | E22: 5522000 | F22: 11700913 | G22: 25205394 | H22: 25205394 | I22: -3348241 | J22: 281766 | K22: -2107234 | L22: -4703234
A23: Other non-current assets
A24: Total non current assets | C24: =SUM(C15:C19)+SUM(C21:C23) -> 2097208466 | D24: =SUM(D15:D19)+SUM(D21:D23) -> 2384387097 | E24: 2611286413 | F24: 2927425926 | G24: 3022706864 | H24: 3022706864 | I24: 288220913 | J24: 3139064134 | K24: 3419927134 | L24: 3693837134
A25: TOTAL ASSETS | C25: =C12+C24 -> 2433318184 | D25: =D12+D24 -> 2715571618 | E25: =E12+E24 -> 2957645241 | F25: =F12+F24 -> 2595016458 | G25: 2671854720 | H25: 2671854720 | I25: 485649744 | J25: 3545331140 | K25: 3676028340 | L25: 3811926140
A27: LIABILITIES
A28: Current liabilities
A29: Bank overdraft | B29: 1
A30: Borrowing | B30: 4 | C30: 0 | D30: 1899396 | E30: 2160458 | F30: 2049285 | G30: 2160456 | H30: 2160456 | I30: -1399454 | J30: 288533 | K30: 288533 | L30: 288533
A31: Consumer deposits | C31: 0 | D31: 0 | E31: 0 | F31: 0 | G31: 0 | H31: 0 | I31: 0 | J31: 0 | K31: 0 | L31: 0
A32: Trade and other payables | B32: 4 | C32: 174790886 | D32: 190666424 | E32: 119626683 | F32: 138138846 | G32: 119707900 | H32: 119707900 | I32: 133112614 | J32: 236017386 | K32: 219090386 | L32: 200648386
A33: Provisions | C33: 11870916 | D33: 13530094 | E33: 14765666 | F33: 11937552 | G33: 14765664 | H33: 14765664 | I33: -5931481 | J33: 24658999 | K33: 41585999 | L33: 60027999
A34: Total current liabilities | C34: =SUM(C29:C33) -> 186661802 | D34: 206095914 | E34: 136552807 | F34: 152125683 | G34: 136634020 | H34: 136634020 | I34: 125781679 | J34: 260964918 | K34: 260964918 | L34: 260964918
A36: Non current liabilities
A37: Borrowing | D37: 1948162 | E37: ='SA3'!E44 -> 0 | F37: ='SA3'!F44 -> 0 | G37: ='SA3'!G44 -> 0 | H37: ='SA3'!H44 -> 0 | I37: ='SA3'!I44 -> -1 | J37: ='SA3'!J44 -> 0 | K37: ='SA3'!K44 -> 0 | L37: ='SA3'!L44 -> 0
A38: Provisions | C38: 29040301 | D38: 36841682 | E38: 43098617 | F38: 36841682 | G38: 43098617 | H38: 43098617 | I38: 0 | J38: 43098617 | K38: 43098617 | L38: 43098617
A39: Total non current liabilities | C39: =SUM(C37:C38) -> 29040301 | D39: =SUM(D37:D38) -> 38789844 | E39: =SUM(E37:E38) -> 43098617 | F39: =SUM(F37:F38) -> 36841682 | G39: 43098617 | H39: 43098617 | I39: -1 | J39: 43098617 | K39: =SUM(K37:K38) -> 43098617 | L39: 43098617
A40: TOTAL LIABILITIES | C40: =C34+C39 -> 215702103 | D40: =D34+D39 -> 244885758 | E40: =E34+E39 -> 179651424 | F40: =F34+F39 -> 188967365 | G40: 179732637 | H40: 179732637 | I40: 125781678 | J40: 304063535 | K40: =K34+K39 -> 304063535 | L40: 304063535
A42: NET ASSETS | B42: 5 | C42: 2217616081 | D42: 2470685860 | E42: =E25-E40 -> 2777993817 | F42: 2406049093 | G42: 2509121083 | H42: 2492122083 | I42: 359868066 | J42: 3241267605 | K42: 3371964805 | L42: 3507862605
A44: COMMUNITY WEALTH/EQUITY
A45: Accumulated Surplus/(Deficit) | C45: 2217616081 | D45: 2470685860 | E45: =E42 -> 2777993817 | F45: 2406049093 | G45: 2509121083 | H45: =H42 -> 2492122083 | I45: =I42 -> 359868066 | J45: =J42 -> 3241267605 | K45: =K42 -> 3371964805 | L45: =L42 -> 3507862605
A46: Reserves | B46: 4 | C46: ='SA3'!C70 -> 0 | D46: ='SA3'!D70 -> 0 | E46: ='SA3'!E70 -> 0 | F46: ='SA3'!F70 -> 0 | G46: ='SA3'!G70 -> 0 | H46: ='SA3'!H70 -> 0 | I46: ='SA3'!I70 -> 0 | J46: ='SA3'!J70 -> 0 | K46: ='SA3'!K70 -> 0 | L46: ='SA3'!L70 -> 0
A48: TOTAL COMMUNITY WEALTH/EQUITY | B48: 5 | C48: =SUM(C45:C46) -> 2217616081 | D48: =SUM(D45:D46) -> 2470685860 | E48: 2777993817 | F48: 2406049093 | G48: 2509121083 | H48: 2492122083 | I48: 359868066 | J48: 3241267605 | K48: 3371964805 | L48: 3507862605
A49: =head27a -> References
A50: 1. Detail to be provided in Table SA3
A51: 2. Include completed low cost housing to be transferred to beneficiaries within 12 months
A52: 3. Include 'Construction-work-in-progress' (disclosed separately in annual financial statements)
A53: 4. Detail to be provided in Table SA3. Includes reserves to be funded by statute.
A54: 5. Net assets must balance with Total Community Wealth/Equity
A55: check balance | C55: =IF((C42-C48)=0,0,"Unbalanced") -> 0 | D55: =IF((D42-D48)=0,0,"Unbalanced") -> 0 | E55: 0 | F55: 0 | G55: 0 | H55: 0 | I55: 0 | J55: 0 | K55: 0 | L55: 0

Sheet A7-CFlow
A1: =muni&" - "&Approve7 -> DC35 Capricorn - Table A7 Budgeted Cash Flows
A2: =desc -> Description | B2: =head27 -> Ref | C2: =head1b -> 2016/17 | D2: =head1A -> 2017/18 | E2: =Head1 -> 2018/19 | F2: =Head2 -> Current Year 2019/20 | J2: =Head3 -> 2020/21 Medium Term Revenue & Expenditure Framework
A3: R thousand | C3: =Head5 -> Audited Outcome | D3: =Head5 -> Audited Outcome | E3: =Head5 -> Audited Outcome | F3: =Head6 -> Original Budget | G3: =Head7 -> Adjusted Budget | H3: =Head8 -> Full Year Forecast | I3: =Head5b -> Pre-audit outcome | J3: =Head9 -> Budget Year 2020/21 | K3: =Head10 -> Budget Year +1 2021/22 | L3: =Head11 -> Budget Year +2 2022/23
A4: CASH FLOW FROM OPERATING ACTIVITIES
A5: Receipts
A6: Property rates | J6: 0 | K6: 0 | L6: 0
A7: Service charges | C7: 20031276 | D7: 7038783 | E7: ='[3]C7-CFlow'!$C$8 -> 11796703 | F7: ='[4]B7-CFlow'!$C$9 -> 6802700 | G7: ='[4]B7-CFlow'!$K$9 -> 6122430 | H7: =G7 -> 6122430 | J7: 14421800 | K7: 15287200 | L7: 16051600
A8: Other revenue | D8: 0 | E8: ='[3]C7-CFlow'!$C$9 -> 1680378 | F8: ='[4]B7-CFlow'!$C$10 -> 1344000 | G8: ='[4]B7-CFlow'!$K$10 -> 1344000 | H8: =G8 -> 1344000 | J8: 1149000 | K8: 1206000 | L8: 1218000
A9: Transfers and Subsidies - Operational | B9: 1 | C9: 585144311 | D9: 619730000 | E9: ='[3]C7-CFlow'!$C$10 -> 632554199 | F9: ='[4]B7-CFlow'!$C$11 -> 596839000 | G9: 641606000 | H9: =G9 -> 641606000 | J9: 639163000 | K9: 684887000 | L9: 731787000
A10: Transfers and Subsidies - Capital | B10: 1 | C10: 314468689 | D10: 235037000 | E10: ='[3]C7-CFlow'!$C$11 -> 225862000 | F10: ='[4]B7-CFlow'!$C$12 -> 335788000 | G10: 405788000 | H10: =G10 -> 405788000 | J10: 309161000 | K10: 345172000 | L10: 345547000
A11: Interest | C11: 33205864 | D11: 51513371 | E11: ='[3]C7-CFlow'!$C$12 -> 29477893 | F11: ='[4]B7-CFlow'!$C$13 -> 27542000 | G11: ='[4]B7-CFlow'!$K$13 -> 27542000 | H11: =G11 -> 27542000 | J11: 0 | K11: 0 | L11: 0
A12: Dividends | J12: 0 | K12: 0 | L12: 0
A13: Payments
A14: Suppliers and employees | C14: -557123700 | D14: -560257415 | E14: -586944542 | F14: ='[4]B7-CFlow'!$C$16 -> -707833000 | G14: -692146000 | H14: =G14 -> -692146000 | J14: -721999000 | K14: -763811000 | L14: -819157000
A15: Finance charges | C15: -912628 | D15: -473782 | E15: -298878 | F15: ='[4]B7-CFlow'!$C$17 -> -470000 | G15: ='[4]B7-CFlow'!$K$17 -> -470000 | H15: =G15 -> -470000 | J15: -470000 | K15: -470000 | L15: -470000
A16: Transfers and Grants | B16: 1 | F16: ='[4]B7-CFlow'!$C$18 -> -3000000 | H16: =G16 -> 0
A17: NET CASH FROM/(USED) OPERATING ACTIVITIES | C17: =SUM(C6:C12)+SUM(C14:C16) -> 394813812 | D17: 352587957 | E17: 314127753 | F17: 257012700 | G17: 389786430 | H17: 389786430 | I17: 0 | J17: 241425800 | K17: 282271200 | L17: 274976600
A19: CASH FLOWS FROM INVESTING ACTIVITIES
A20: Receipts
A21: Proceeds on disposal of PPE | C21: 384995 | J21: ='SA30'!N24+'SA30'!N25 -> 0 | K21: ='SA30'!O24+'SA30'!O25 -> 0 | L21: ='SA30'!P24+'SA30'!P25 -> 0
A23: Decrease (increase) in non-current receivables | J23: ='SA30'!N30 -> 0 | K23: ='SA30'!O30 -> 0 | L23: ='SA30'!P30 -> 0
A24: Decrease (increase) in non-current investments | J24: ='SA30'!N31 -> 0 | K24: ='SA30'!O31 -> 0 | L24: ='SA30'!P31 -> 0
A25: Payments
A26: Capital assets | C26: -342637570 | F26: ='[4]B7-CFlow'!$C$28 -> -309134000 | G26: -451700000 | H26: =G26 -> -451700000 | J26: -321377000 | K26: -367302000 | L26: -364807000
A27: NET CASH FROM/(USED) INVESTING ACTIVITIES | C27: =+C21+C23+C24+C26 -> -342252575 | D27: =+D21+D23+D24+D26 -> 0 | E27: 0 | F27: -309134000 | G27: -451700000 | H27: -451700000 | I27: 0 | J27: -321377000 | K27: -367302000 | L27: -364807000
A29: CASH FLOWS FROM FINANCING ACTIVITIES
A30: Receipts
A31: Short term loans | J31: ='SA30'!N26 -> 0 | K31: ='SA30'!O26 -> 0 | L31: ='SA30'!P26 -> 0
A32: Borrowing long term/refinancing | J32: ='SA30'!N27 -> 0 | K32: ='SA30'!O27 -> 0 | L32: ='SA30'!P27 -> 0
A33: Increase (decrease) in consumer deposits | J33: ='SA30'!N28 -> 0 | K33: ='SA30'!O28 -> 0 | L33: ='SA30'!P28 -> 0
A34: Payments
A35: Repayment of borrowing | C35: -1449625 | D35: -1899396 | E35: -2160458 | F35: -212295 | G35: -212295 | H35: -212295 | I35: -38973 | J35: =-('SA30'!N48) -> 251269 | K35: =-('SA30'!O48) -> 251269 | L35: =-('SA30'!P48) -> 251269
A36: NET CASH FROM/(USED) FINANCING ACTIVITIES | C36: =SUM(C31:C33)+C35 -> -1449625 | D36: =SUM(D31:D33)+D35 -> -1899396 | E36: -2160458 | F36: -212295 | G36: -212295 | H36: -212295 | I36: -38973 | J36: 251269 | K36: 251269 | L36: 251269
A38: NET INCREASE/ (DECREASE) IN CASH HELD | C38: =C17+C27+C36 -> 51111612 | D38: =D17+D27+D36 -> 350688561 | E38: 311967295 | F38: -52333595 | G38: -62125865 | H38: -62125865 | I38: -38973 | J38: -79699931 | K38: -84779531 | L38: -89579131
A39: Cash/cash equivalents at the year begin: | B39: 2 | C39: 205551025 | D39: 246627348 | E39: ='[3]C7-CFlow'!$C$40 -> 274315291 | F39: ='[4]B7-CFlow'!$C$41 -> 180328000 | G39: ='[4]B7-CFlow'!$K$41 -> 180328000 | H39: =G39 -> 180328000 | J39: ='SA30'!N53 -> 136480832 | K39: =J40 -> 56780901 | L39: =K40 -> -27998630
A40: Cash/cash equivalents at the year end: | B40: 2 | C40: =C38+C39 -> 256662637 | D40: =D38+D39 -> 597315909 | E40: =E38+E39 -> 586282586 | F40: =F38+F39 -> 127994405 | G40: 118202135 | H40: 118202135 | I40: -38973 | J40: 56780901 | K40: -27998630 | L40: -117577761
A41: =head27a -> References
A42: 1. Local/District municipalities to include transfers from/to District/Local Municipalities
A43: 2. Cash equivalents includes investments with maturities of 3 months or less
A44: 3. The MTREF is populated directly from SA30.
A45: Total receipts | C45: =SUM(C6:C12)+SUM(C21:C23) -> 953235135 | D45: 913319154 | E45: 901371173 | F45: 968315700 | G45: 1082402430 | H45: 1082402430 | I45: 0 | J45: 963894800 | K45: 1046552200 | L45: 1094603600
A46: Total payments | C46: =SUM(C14:C16)+C26 -> -900673898 | D46: =SUM(D14:D16)+D26 -> -560731197 | E46: -587243420 | F46: -1020437000 | G46: -1144316000 | H46: -1144316000 | I46: 0 | J46: -1043846000 | K46: -1131583000 | L46: -1184434000
C47: =C45+C46 -> 52561237 | D47: =D45+D46 -> 352587957 | E47: 314127753 | F47: -52121300 | G47: -61913570 | H47: -61913570 | I47: 0 | J47: -79951200 | K47: -85030800 | L47: -89830400
A48: Borrowings & investments & c.deposits | C48: =C24+C32+C33 -> 0 | D48: =D24+D32+D33 -> 0 | E48: 0 | F48: 0 | G48: 0 | H48: 0 | I48: 0 | J48: 0 | K48: 0 | L48: 0
A49: =A35 -> Repayment of borrowing | C49: =C35 -> -1449625 | D49: =D35 -> -1899396 | E49: -2160458 | F49: -212295 | G49: -212295 | H49: -212295 | I49: =I35 -> -38973 | J49: 251269 | K49: 251269 | L49: 251269
C50: =C47+C48+C49 -> 51111612 | D50: =D47+D48+D49 -> 350688561 | E50: 311967295 | F50: -52333595 | G50: -62125865 | H50: -62125865 | I50: -38973 | J50: -79699931 | K50: -84779531 | L50: -89579131
C51: =C38-C50 -> 0 | D51: 0 | E51: 0 | F51: 0 | G51: 0 | H51: 0 | I51: 0 | J51: 0 | K51: 0 | L51: 0

Sheet A8-ResRecon
A1: =muni&" - "&Approve8 -> DC35 Capricorn - Table A8 Cash backed reserves/accumulated surplus reconciliation
A2: =desc -> Description | B2: =head27 -> Ref | C2: =head1b -> 2016/17 | D2: =head1A -> 2017/18 | E2: =Head1 -> 2018/19 | F2: =Head2 -> Current Year 2019/20 | J2: =Head3 -> 2020/21 Medium Term Revenue & Expenditure Framework
A3: R thousand | C3: =Head5 -> Audited Outcome | D3: =Head5 -> Audited Outcome | E3: =Head5 -> Audited Outcome | F3: =Head6 -> Original Budget | G3: =Head7 -> Adjusted Budget | H3: =Head8 -> Full Year Forecast | I3: =Head5b -> Pre-audit outcome | J3: =Head9 -> Budget Year 2020/21 | K3: =Head10 -> Budget Year +1 2021/22 | L3: =Head11 -> Budget Year +2 2022/23
A4: Cash and investments available
A5: =LEFT('A7-CFlow'!A40,37) -> Cash/cash equivalents at the year end | B5: 1 | C5: ='A7-CFlow'!C40 -> 256662637 | D5: ='A7-CFlow'!D40 -> 597315909 | E5: ='A7-CFlow'!E40 -> 586282586 | F5: 127994405 | G5: -712865 | H5: -500570 | I5: -38973 | J5: 82842277.88 | K5: 34312477.88 | L5: -22456922.12
A6: Other current investments > 90 days | C6: ='A6-FinPos'!C6+'A6-FinPos'!C7-'A6-FinPos'!C29-'A8-ResRecon'!C5 -> -10035289 | D6: ='A6-FinPos'!D6+'A6-FinPos'!D7-'A6-FinPos'!D29-'A8-ResRecon'!D5 -> -322998532 | E6: ='A6-FinPos'!E6+'A6-FinPos'!E7-'A6-FinPos'!E29-'A8-ResRecon'!E5 -> -329715237 | F6: 127057658 | G6: 255764928 | H6: 255552633 | I6: 123705450.9 | J6: 28458552.21 | K6: 65859269.2 | L6: 112612494.5
A7: ='A6-FinPos'!A14&" - "&'A6-FinPos'!A16 -> Non current assets - Investments | B7: 1 | C7: ='A6-FinPos'!C16 -> 0 | D7: ='A6-FinPos'!D16 -> 0 | E7: ='A6-FinPos'!E16 -> 0 | F7: ='A6-FinPos'!F16 -> 0 | G7: ='A6-FinPos'!G16 -> 0 | H7: ='A6-FinPos'!H16 -> 0 | I7: ='A6-FinPos'!I16 -> 0 | J7: ='A6-FinPos'!J16 -> 0 | K7: ='A6-FinPos'!K16 -> 0 | L7: ='A6-FinPos'!L16 -> 0
A8: Cash and investments available: | C8: =SUM(C5:C7) -> 246627348 | D8: =SUM(D5:D7) -> 274317377 | E8: 256567349 | F8: 255052063 | G8: 255052063 | H8: 255052063 | I8: 123666477.9 | J8: 111300830.1 | K8: 100171747.1 | L8: 90155572.37
A10: Application of cash and investments
A11: ='SA3'!A37 -> Unspent conditional transfers | C11: =[5]SA3!C37 -> 7575100.9 | D11: ='SA3'!D37 -> 371801 | E11: ='SA3'!E37 -> 0 | F11: 0 | G11: ='SA3'!G37 -> 0 | H11: ='SA3'!H37 -> 0
A12: Unspent borrowing | C12: ='SA17'!C67 -> 0 | D12: ='SA17'!D67 -> 0 | E12: ='SA17'!E67 -> 0 | F12: ='SA17'!F67 -> 0 | G12: ='SA17'!G67 -> 0 | H12: ='SA17'!H67 -> 0 | J12: ='SA17'!I67 -> 0 | K12: ='SA17'!J67 -> 0 | L12: ='SA17'!K67 -> 0
A13: Statutory requirements | B13: 2
A14: Other working capital requirements | B14: 3 | C14: =-C32 -> 105165908 | D14: =-D32 -> 238111515 | E14: 102040826 | F14: 109608082.2 | G14: 111003892.2 | H14: 111003892.2 | I14: 18777800 | J14: 48232508 | K14: 30916508 | L14: 12103508
A15: Other provisions
A16: Long term investments committed | B16: 4 | C16: =C52 -> 0 | D16: =D52 -> 0 | E16: 0 | F16: 0 | G16: 0 | H16: 0 | I16: 0 | J16: 0 | K16: 0 | L16: 0
A17: Reserves to be backed by cash/investments | B17: 5
A18: ="Total "&A10&":" -> Total Application of cash and investments: | C18: =SUM(C11:C17) -> 112741008.9 | D18: =SUM(D11:D17) -> 238483316 | E18: 102040826 | F18: 109608082.2 | G18: 111003892.2 | H18: 111003892.2 | I18: 18777800 | J18: 48232508 | K18: 30916508 | L18: 12103508
A19: Surplus(shortfall) | C19: =C8-C18 -> 133886339.1 | D19: =D8-D18 -> 35834061 | E19: 154526523 | F19: 145443980.8 | G19: 144048170.8 | H19: 144048170.8 | I19: 104888677.9 | J19: 63068322.09 | K19: 69255239.08 | L19: 78052064.37
A20: =head27a -> References
A21: 1. Must reconcile with Budgeted Cash Flows
A22: 2. For example: VAT, taxation
A23: 3. Council approval for policy required - include sufficient working capital (e.g. allowing for a % of current debtors > 90 days as uncollectable)
A24: 4. For example: sinking fund requirements for borrowing
A25: 5. Council approval required for each reserve created and basis of cash backing of reserves
A28: Other working capital requirements
A29: Debtors | C29: =IF(ISERROR(ROUND(C35*C36,-3)),0,(ROUND(C35*C36,-3))) -> 22907000 | D29: =IF(ISERROR(ROUND(D35*D36,-3)),0,(ROUND(D35*D36,-3))) -> 3942000 | E29: 12787000 | F29: 13883000 | G29: 9120000 | H29: 9120000 | I29: 0 | J29: 28033000 | K29: 25845000 | L29: 23490000
A31: Creditors due | C31: ='SA3'!C35+'SA3'!C36 -> 128072908 | D31: ='SA3'!D35+'SA3'!D36 -> 242053515 | E31: ='SA3'!E35+'SA3'!E36 -> 114827826 | F31: ='SA3'!F35+'SA3'!F36 -> 93051682 | G31: ='SA3'!G35+'SA3'!G36 -> 114909044 | H31: ='SA3'!H35+'SA3'!H36 -> 114909044 | I31: ='SA3'!I35+'SA3'!I36 -> -18777800 | J31: ='SA3'!J35+'SA3'!J36 -> 76265508 | K31: ='SA3'!K35+'SA3'!K36 -> 56761508 | L31: ='SA3'!L35+'SA3'!L36 -> 35593508
A32: Total | C32: =C29-C31 -> -105165908 | D32: =D29-D31 -> -238111515 | E32: -102040826 | F32: -79168682 | G32: -105789044 | H32: -105789044 | I32: 18777800 | J32: -48232508 | K32: -30916508 | L32: -12103508
A34: Debtors collection assumptions
A35: Balance outstanding - debtors | C35: ='A6-FinPos'!C8+'A6-FinPos'!C9+'A6-FinPos'!C15 -> 84537989 | D35: ='A6-FinPos'!D8+'A6-FinPos'!D9+'A6-FinPos'!D15 -> 51200758 | E35: ='A6-FinPos'!E8+'A6-FinPos'!E9+'A6-FinPos'!E15 -> 85598804 | F35: ='A6-FinPos'!F8+'A6-FinPos'!F9+'A6-FinPos'!F15 -> 118218042 | G35: ='A6-FinPos'!G8+'A6-FinPos'!G9+'A6-FinPos'!G15 -> 84731815 | H35: ='A6-FinPos'!H8+'A6-FinPos'!H9+'A6-FinPos'!H15 -> 84731815 | I35: ='A6-FinPos'!I8+'A6-FinPos'!I9+'A6-FinPos'!I15 -> 60974953 | J35: ='A6-FinPos'!J8+'A6-FinPos'!J9+'A6-FinPos'!J15 -> 131892357 | K35: ='A6-FinPos'!K8+'A6-FinPos'!K9+'A6-FinPos'!K15 -> 121664357 | L35: ='A6-FinPos'!L8+'A6-FinPos'!L9+'A6-FinPos'!L15 -> 110822357
A36: Estimate of debtors collection rate | C36: =IF(ISERROR('SA10'!D10),0,('SA10'!D10)) -> 0.2709653636 | D36: =IF(ISERROR('SA10'!E10),0,('SA10'!E10)) -> 0.07698782451 | E36: =IF(ISERROR('SA10'!F10),0,('SA10'!F10)) -> 0.1493806283 | F36: =IF(ISERROR('SA10'!G10),0,('SA10'!G10)) -> 0.117436681 | G36: =IF(ISERROR('SA10'!H10),0,('SA10'!H10)) -> 0.1076304219 | H36: =IF(ISERROR('SA10'!I10),0,('SA10'!I10)) -> 0.1076304219 | I36: =IF(ISERROR('SA10'!J10),0,('SA10'!J10)) -> 0 | J36: =IF(ISERROR('SA10'!K10),0,('SA10'!K10)) -> 0.2125474351 | K36: =IF(ISERROR('SA10'!L10),0,('SA10'!L10)) -> 0.2124262641 | L36: =IF(ISERROR('SA10'!M10),0,('SA10'!M10)) -> 0.21195935
K39: `
A40: =A16 -> Long term investments committed
A41: Balance (Insert description; eg sinking fund)
C52: =SUM(C41:C51) -> 0 | D52: =SUM(D41:D51) -> 0 | E52: 0 | F52: 0 | G52: 0 | H52: 0 | I52: 0 | J52: 0 | K52: 0 | L52: 0
A53: =A17 -> Reserves to be backed by cash/investments
A54: ='SA3'!A65 -> Housing Development Fund | C54: ='SA3'!C65 -> 0 | D54: ='SA3'!D65 -> 0 | E54: ='SA3'!E65 -> 0 | F54: ='SA3'!F65 -> 0 | G54: ='SA3'!G65 -> 0 | H54: ='SA3'!H65 -> 0 | I54: ='SA3'!I65 -> 0 | J54: ='SA3'!J65 -> 0 | K54: ='SA3'!K65 -> 0 | L54: ='SA3'!L65 -> 0
A55: ='SA3'!A66 -> Capital replacement
A56: ='SA3'!A67 -> Self-insurance
A57: Other (list)
C67: =SUM(C54:C65) -> 0 | D67: 0 | E67: 0 | F67: 0 | G67: 0 | H67: 0 | I67: 0 | J67: 0 | K67: 0 | L67: 0

Sheet A9-Asset
A1: =muni&" - "&Approve9 -> DC35 Capricorn - Table A9 Asset Management
A2: =desc -> Description | B2: =head27 -> Ref | C2: =head1b -> 2016/17 | D2: =head1A -> 2017/18 | E2: =Head1 -> 2018/19 | F2: =Head2 -> Current Year 2019/20 | I2: =Head3 -> 2020/21 Medium Term Revenue & Expenditure Framework
A3: R thousand | C3: =Head5 -> Audited Outcome | D3: =Head5 -> Audited Outcome | E3: =Head5 -> Audited Outcome | F3: =Head6 -> Original Budget | G3: =Head7 -> Adjusted Budget | H3: =Head8 -> Full Year Forecast | I3: =Head9 -> Budget Year 2020/21 | J3: =Head10 -> Budget Year +1 2021/22 | K3: =Head11 -> Budget Year +2 2022/23
A4: CAPITAL EXPENDITURE
A5: Total New Assets | B5: 1 | C5: =C15+C18+C19+C22+C25+C26+SUM(C29:C35) -> 0 | D5: =D15+D18+D19+D22+D25+D26+SUM(D29:D35) -> 173542839 | E5: 228098992 | F5: 309134000 | G5: 448450000 | H5: 448450000 | I5: 304330000 | J5: 340555000 | K5: 338060000
A6: Roads Infrastructure | D6: =[5]SA34a!D7 -> 0 | E6: =SA34a!E7 -> 0 | G6: =SA34a!G7 -> 0 | H6: =SA34a!H7 -> 0 | I6: =SA34a!I7 -> 0 | J6: =SA34a!J7 -> 0 | K6: =SA34a!K7 -> 0
A7: Storm water Infrastructure | C7: =[5]SA34a!C12 -> 0 | D7: =[5]SA34a!D12 -> 0 | E7: =SA34a!E12 -> 0 | F7: =SA34a!F12 -> 0 | G7: =SA34a!G12 -> 0 | H7: =SA34a!H12 -> 0 | I7: =SA34a!I12 -> 0 | J7: =SA34a!J12 -> 0 | K7: =SA34a!K12 -> 0
A8: Electrical Infrastructure | C8: =[5]SA34a!C16 -> 0 | D8: =[5]SA34a!D16 -> 0 | E8: =SA34a!E16 -> 0 | F8: =SA34a!F16 -> 0 | G8: =SA34a!G16 -> 0 | H8: =SA34a!H16 -> 0 | I8: =SA34a!I16 -> 0 | J8: =SA34a!J16 -> 0 | K8: =SA34a!K16 -> 0
A9: Water Supply Infrastructure | C9: =SA34a!C26 -> 0 | D9: =SA34a!D26 -> 144663808 | E9: =SA34a!E26 -> 199378257 | F9: =SA34a!F26 -> 275688000 | G9: =SA34a!G26 -> 370140183 | H9: =SA34a!H26 -> 370140183 | I9: =SA34a!I26 -> 286930000 | J9: =SA34a!J26 -> 321215000 | K9: =SA34a!K26 -> 318450000
A10: Sanitation Infrastructure | C10: =SA34a!C37 -> 0 | D10: =SA34a!D37 -> 0 | E10: =SA34a!E37 -> 0 | F10: =SA34a!F37 -> 0 | G10: =SA34a!G37 -> 3685122 | H10: =SA34a!H37 -> 3685122 | I10: =SA34a!I37 -> 0 | J10: =SA34a!J37 -> 0 | K10: =SA34a!K37 -> 0
A11: Solid Waste Infrastructure | C11: =SA34a!C44 -> 0 | D11: =SA34a!D44 -> 0 | E11: =SA34a!E44 -> 0 | F11: =SA34a!F44 -> 0 | G11: =SA34a!G44 -> 0 | H11: =SA34a!H44 -> 0 | I11: =SA34a!I44 -> 0 | J11: =SA34a!J44 -> 0 | K11: =SA34a!K44 -> 0
A12: Rail Infrastructure | C12: =SA34a!C52 -> 0 | D12: =SA34a!D52 -> 0 | E12: =SA34a!E52 -> 0 | F12: =SA34a!F52 -> 0 | G12: =SA34a!G52 -> 0 | H12: =SA34a!H52 -> 0 | I12: =SA34a!I52 -> 0 | J12: =SA34a!J52 -> 0 | K12: =SA34a!K52 -> 0
A13: Coastal Infrastructure | C13: =SA34a!C62 -> 0 | D13: =SA34a!D62 -> 0 | E13: =SA34a!E62 -> 0 | F13: =SA34a!F62 -> 0 | G13: =SA34a!G62 -> 0 | H13: =SA34a!H62 -> 0 | I13: =SA34a!I62 -> 0 | J13: =SA34a!J62 -> 0 | K13: =SA34a!K62 -> 0
A14: Information and Communication Infrastructure | C14: =SA34a!C68 -> 0 | D14: =SA34a!D68 -> 0 | E14: =SA34a!E68 -> 0 | F14: =SA34a!F68 -> 0 | G14: =SA34a!G68 -> 0 | H14: =SA34a!H68 -> 0 | I14: =SA34a!I68 -> 0 | J14: =SA34a!J68 -> 0 | K14: =SA34a!K68 -> 0
A15: Infrastructure | C15: =SUM(C6:C14) -> 0 | D15: =SUM(D6:D14) -> 144663808 | E15: 199378257 | F15: 275688000 | G15: 373825305 | H15: 373825305 | I15: 286930000 | J15: 321215000 | K15: 318450000
A16: Community Facilities | C16: =SA34a!C75 -> 0 | D16: =SA34a!D75 -> 13484711 | E16: =SA34a!E75 -> 17900792 | I16: =SA34a!I75 -> 1700000 | J16: =SA34a!J75 -> 2000000 | K16: =SA34a!K75 -> 2500000
A17: Sport and Recreation Facilities | C17: =SA34a!C98 -> 0 | D17: =SA34a!D98 -> 0 | E17: =SA34a!E98 -> 0 | F17: =SA34a!F98 -> 0 | G17: =SA34a!G98 -> 0 | H17: =SA34a!H98 -> 0 | I17: =SA34a!I98 -> 0 | J17: =SA34a!J98 -> 0 | K17: =SA34a!K98 -> 0
A18: Community Assets | C18: =SUM(C16:C17) -> 0 | D18: =SUM(D16:D17) -> 13484711 | E18: 17900792 | F18: 0 | G18: 0 | H18: 0 | I18: 1700000 | J18: 2000000 | K18: 2500000
A19: Heritage Assets | C19: =SA34a!C103 -> 0 | D19: =SA34a!D103 -> 0 | E19: =SA34a!E103 -> 0 | F19: =SA34a!F103 -> 0 | G19: =SA34a!G103 -> 0 | H19: =SA34a!H103 -> 0 | I19: =SA34a!I103 -> 0 | J19: =SA34a!J103 -> 0 | K19: =SA34a!K103 -> 0
A20: Revenue Generating | C20: =SA34a!C111 -> 0 | D20: =SA34a!D111 -> 0 | E20: =SA34a!E111 -> 0 | F20: =SA34a!F111 -> 0 | G20: =SA34a!G111 -> 0 | H20: =SA34a!H111 -> 0 | I20: =SA34a!I111 -> 0 | J20: =SA34a!J111 -> 0 | K20: =SA34a!K111 -> 0
A21: Non-revenue Generating | C21: =SA34a!C114 -> 0 | D21: =SA34a!D114 -> 0 | E21: =SA34a!E114 -> 0 | F21: =SA34a!F114 -> 0 | G21: =SA34a!G114 -> 0 | H21: =SA34a!H114 -> 0 | I21: =SA34a!I114 -> 0 | J21: =SA34a!J114 -> 0 | K21: =SA34a!K114 -> 0
A22: Investment properties | C22: =SUM(C20:C21) -> 0 | D22: =SUM(D20:D21) -> 0 | E22: 0 | F22: 0 | G22: 0 | H22: 0 | I22: 0 | J22: 0 | K22: 0
A23: Operational Buildings | C23: =SA34a!C119 -> 0 | D23: =SA34a!D119 -> 2549244 | E23: =SA34a!E119 -> 67592 | F23: =SA34a!F119 -> 0 | G23: =SA34a!G119 -> 0 | H23: =SA34a!H119 -> 0 | I23: =SA34a!I119 -> 7000000 | J23: =SA34a!J119 -> 6000000 | K23: =SA34a!K119 -> 0
A24: Housing | C24: =SA34a!C131 -> 0 | D24: =SA34a!D131 -> 0 | E24: =SA34a!E131 -> 0 | F24: =SA34a!F131 -> 0 | G24: =SA34a!G131 -> 0 | H24: =SA34a!H131 -> 0 | I24: =SA34a!I131 -> 0 | J24: =SA34a!J131 -> 0 | K24: =SA34a!K131 -> 0
A25: Other Assets | C25: =SUM(C23:C24) -> 0 | D25: =SUM(D23:D24) -> 2549244 | E25: 67592 | F25: 0 | G25: 0 | H25: 0 | I25: 7000000 | J25: 6000000 | K25: 0
A26: Biological or Cultivated Assets | C26: =SA34a!C136 -> 0 | D26: =SA34a!D136 -> 0 | E26: =SA34a!E136 -> 0 | F26: =SA34a!F136 -> 0 | G26: =SA34a!G136 -> 0 | H26: =SA34a!H136 -> 0 | I26: =SA34a!I136 -> 0 | J26: =SA34a!J136 -> 0 | K26: =SA34a!K136 -> 0
A27: Servitudes | C27: 0 | D27: =SA34a!D140 -> 0 | E27: =SA34a!E140 -> 0 | F27: =SA34a!F140 -> 0 | G27: =SA34a!G140 -> 0 | H27: =SA34a!H140 -> 0 | I27: =SA34a!I140 -> 0 | J27: =SA34a!J140 -> 0 | K27: =SA34a!K140 -> 0
A28: Licences and Rights | C28: =SA34a!C141 -> 0 | D28: =SA34a!D141 -> 458113 | E28: =SA34a!E141 -> 0 | F28: =SA34a!F141 -> 3803000 | G28: =SA34a!G141 -> 19683394 | H28: =SA34a!H141 -> 19683394 | I28: =SA34a!I141 -> 0 | J28: =SA34a!J141 -> 0 | K28: =SA34a!K141 -> 0
A29: Intangible Assets | C29: =SUM(C27:C28) -> 0 | D29: =SUM(D27:D28) -> 458113 | E29: 0 | F29: 3803000 | G29: 19683394 | H29: 19683394 | I29: 0 | J29: 0 | K29: 0
A30: Computer Equipment | C30: =SA34a!C149 -> 0 | D30: =SA34a!D149 -> 3260672 | E30: =SA34a!E149 -> 2639571 | F30: =SA34a!F149 -> 1793000 | G30: =SA34a!G149 -> 5157593 | H30: =SA34a!H149 -> 5157593 | I30: =SA34a!I149 -> 2600000 | J30: =SA34a!J149 -> 2290000 | K30: =SA34a!K149 -> 2360000
A31: Furniture and Office Equipment | C31: =SA34a!C152 -> 0 | D31: =SA34a!D152 -> 1017060 | E31: =SA34a!E152 -> 165855 | F31: =SA34a!F152 -> 2150000 | G31: =SA34a!G152 -> 4664743 | H31: =SA34a!H152 -> 4664743 | I31: =SA34a!I152 -> 250000 | J31: =SA34a!J152 -> 2250000 | K31: =SA34a!K152 -> 2250000
A32: Machinery and Equipment | C32: =SA34a!C155 -> 0 | D32: =SA34a!D155 -> 3859113 | E32: =SA34a!E155 -> 4676174 | F32: =SA34a!F155 -> 20500000 | G32: =SA34a!G155 -> 26332114 | H32: =SA34a!H155 -> 26332114 | I32: =SA34a!I155 -> 4350000 | J32: =SA34a!J155 -> 3800000 | K32: =SA34a!K155 -> 8500000
A33: Transport Assets | C33: =SA34a!C158 -> 0 | D33: =SA34a!D158 -> 4250118 | E33: =SA34a!E158 -> 3270751 | F33: =SA34a!F158 -> 5200000 | G33: =SA34a!G158 -> 18786851 | H33: =SA34a!H158 -> 18786851 | I33: =SA34a!I158 -> 1500000 | J33: =SA34a!J158 -> 3000000 | K33: =SA34a!K158 -> 4000000
A34: Land | C34: =SA34a!C161 -> 0 | D34: =SA34a!D161 -> 0 | E34: =SA34a!E161 -> 0 | F34: =SA34a!F161 -> 0 | G34: =SA34a!G161 -> 0 | H34: =SA34a!H161 -> 0 | I34: =SA34a!I161 -> 0 | J34: =SA34a!J161 -> 0 | K34: =SA34a!K161 -> 0
A35: Zoo's, Marine and Non-biological Animals | C35: =SA34a!C164 -> 0 | D35: =SA34a!D164 -> 0 | E35: =SA34a!E164 -> 0 | F35: =SA34a!F164 -> 0 | G35: =SA34a!G164 -> 0 | H35: =SA34a!H164 -> 0 | I35: =SA34a!I164 -> 0 | J35: =SA34a!J164 -> 0 | K35: =SA34a!K164 -> 0
A37: Total Renewal of Existing Assets | B37: 2 | C37: =C47+C50+C51+C54+C57+C58+SUM(C61:C67) -> 0 | D37: =D47+D50+D51+D54+D57+D58+SUM(D61:D67) -> 676850340 | E37: 17667185 | F37: 2000000 | G37: 5250000 | H37: 5250000 | I37: 17047000 | J37: 26747000 | K37: 26747000
A38: Roads Infrastructure | C38: =SA34b!C7 -> 0 | D38: =SA34b!D7 -> 0 | E38: =SA34b!E7 -> 0 | F38: =SA34b!F7 -> 0 | G38: =SA34b!G7 -> 0 | H38: =SA34b!H7 -> 0 | I38: =SA34b!I7 -> 0 | J38: =SA34b!J7 -> 0 | K38: =SA34b!K7 -> 0
A39: Storm water Infrastructure | C39: =SA34b!C12 -> 0 | D39: =SA34b!D12 -> 0 | E39: =SA34b!E12 -> 0 | F39: =SA34b!F12 -> 0 | G39: =SA34b!G12 -> 0 | H39: =SA34b!H12 -> 0 | I39: =SA34b!I12 -> 0 | J39: =SA34b!J12 -> 0 | K39: =SA34b!K12 -> 0
A40: Electrical Infrastructure | C40: =SA34b!C16 -> 0 | D40: =SA34b!D16 -> 0 | E40: =SA34b!E16 -> 0 | F40: =SA34b!F16 -> 0 | G40: =SA34b!G16 -> 0 | H40: =SA34b!H16 -> 0 | I40: =SA34b!I16 -> 0 | J40: =SA34b!J16 -> 0 | K40: =SA34b!K16 -> 0
A41: Water Supply Infrastructure | C41: =SA34b!C26 -> 0 | D41: =SA34b!D26 -> 662882957 | E41: =SA34b!E26 -> 3576806 | F41: =SA34b!F26 -> 0 | G41: =SA34b!G26 -> 0 | H41: =SA34b!H26 -> 0 | I41: =SA34b!I26 -> 10000000 | J41: =SA34b!J26 -> 15000000 | K41: =SA34b!K26 -> 10000000
A42: Sanitation Infrastructure | C42: =SA34b!C37 -> 0 | D42: =SA34b!D37 -> 9576557 | E42: =SA34b!E37 -> 3685123 | F42: =SA34b!F37 -> 0 | G42: =SA34b!G37 -> 0 | H42: =SA34b!H37 -> 0 | I42: =SA34b!I37 -> 5000000 | J42: =SA34b!J37 -> 10000000 | K42: =SA34b!K37 -> 15000000
A43: Solid Waste Infrastructure | C43: =SA34b!C44 -> 0 | D43: =SA34b!D44 -> 0 | E43: =SA34b!E44 -> 0 | F43: =SA34b!F44 -> 0 | G43: =SA34b!G44 -> 0 | H43: =SA34b!H44 -> 0 | I43: =SA34b!I44 -> 0 | J43: =SA34b!J44 -> 0 | K43: =SA34b!K44 -> 0
A44: Rail Infrastructure | C44: =SA34b!C52 -> 0 | D44: =SA34b!D52 -> 130101 | E44: =SA34b!E52 -> 0 | F44: =SA34b!F52 -> 0 | G44: =SA34b!G52 -> 0 | H44: =SA34b!H52 -> 0 | I44: =SA34b!I52 -> 0 | J44: =SA34b!J52 -> 0 | K44: =SA34b!K52 -> 0
A45: Coastal Infrastructure | C45: =SA34b!C62 -> 0 | D45: =SA34b!D62 -> 0 | E45: =SA34b!E62 -> 0 | F45: =SA34b!F62 -> 0 | G45: =SA34b!G62 -> 0 | H45: =SA34b!H62 -> 0 | I45: =SA34b!I62 -> 0 | J45: =SA34b!J62 -> 0 | K45: =SA34b!K62 -> 0
A46: Information and Communication Infrastructure | C46: =SA34b!C68 -> 0 | D46: =SA34b!D68 -> 0 | E46: =SA34b!E68 -> 0 | F46: =SA34b!F68 -> 0 | G46: =SA34b!G68 -> 0 | H46: =SA34b!H68 -> 0 | I46: =SA34b!I68 -> 0 | J46: =SA34b!J68 -> 0 | K46: =SA34b!K68 -> 0
A47: Infrastructure | C47: =SUM(C38:C46) -> 0 | D47: =SUM(D38:D46) -> 672589615 | E47: 7261929 | F47: 0 | G47: 0 | H47: 0 | I47: 15000000 | J47: 25000000 | K47: 25000000
A48: Community Facilities | C48: =SA34b!C75 -> 0 | D48: =SA34b!D75 -> -8982945 | E48: =SA34b!E75 -> 10028010 | F48: =SA34b!F75 -> 0 | G48: =SA34b!G75 -> 0 | H48: =SA34b!H75 -> 0 | I48: =SA34b!I75 -> 0 | J48: =SA34b!J75 -> 0 | K48: =SA34b!K75 -> 0
A49: Sport and Recreation Facilities | C49: =SA34b!C98 -> 0 | D49: =SA34b!D98 -> 0 | E49: =SA34b!E98 -> 0 | F49: =SA34b!F98 -> 0 | G49: =SA34b!G98 -> 0 | H49: =SA34b!H98 -> 0 | I49: =SA34b!I98 -> 0 | J49: =SA34b!J98 -> 0 | K49: =SA34b!K98 -> 0
A50: Community Assets | C50: =SUM(C48:C49) -> 0 | D50: =SUM(D48:D49) -> -8982945 | E50: 10028010 | F50: 0 | G50: 0 | H50: 0 | I50: 0 | J50: 0 | K50: 0
A51: Heritage Assets | C51: =SA34b!C103 -> 0 | D51: =SA34b!D103 -> 0 | E51: =SA34b!E103 -> 0 | F51: =SA34b!F103 -> 0 | G51: =SA34b!G103 -> 0 | H51: =SA34b!H103 -> 0 | I51: =SA34b!I103 -> 0 | J51: =SA34b!J103 -> 0 | K51: =SA34b!K103 -> 0
A52: Revenue Generating | C52: =SA34b!C111 -> 0 | D52: =SA34b!D111 -> 0 | E52: =SA34b!E111 -> 0 | F52: =SA34b!F111 -> 0 | G52: =SA34b!G111 -> 0 | H52: =SA34b!H111 -> 0 | I52: =SA34b!I111 -> 0 | J52: =SA34b!J111 -> 0 | K52: =SA34b!K111 -> 0
A53: Non-revenue Generating | C53: =SA34b!C114 -> 0 | D53: =SA34b!D114 -> 0 | E53: =SA34b!E114 -> 0 | F53: =SA34b!F114 -> 0 | G53: =SA34b!G114 -> 0 | H53: =SA34b!H114 -> 0 | I53: =SA34b!I114 -> 0 | J53: =SA34b!J114 -> 0 | K53: =SA34b!K114 -> 0
A54: Investment properties | C54: =SUM(C52:C53) -> 0 | D54: =SUM(D52:D53) -> 0 | E54: 0 | F54: 0 | G54: 0 | H54: 0 | I54: 0 | J54: 0 | K54: 0
A55: Operational Buildings | C55: =SA34b!C119 -> 0 | D55: =SA34b!D119 -> 87000 | E55: =SA34b!E119 -> 0 | F55: ='[4]B9-Asset'!$C$57 -> 2000000 | G55: ='[4]B9-Asset'!$K$57 -> 2000000 | H55: =G55 -> 2000000 | I55: =SA34b!I119 -> 0 | J55: =SA34b!J119 -> 0 | K55: =SA34b!K119 -> 0
A56: Housing | C56: =SA34b!C131 -> 0 | D56: =SA34b!D131 -> 0 | E56: =SA34b!E131 -> 0 | F56: =SA34b!F131 -> 0 | G56: =SA34b!G131 -> 0 | H56: =SA34b!H131 -> 0 | I56: =SA34b!I131 -> 0 | J56: =SA34b!J131 -> 0 | K56: =SA34b!K131 -> 0
A57: Other Assets | C57: =SUM(C55:C56) -> 0 | D57: =SUM(D55:D56) -> 87000 | E57: 0 | F57: 2000000 | G57: 2000000 | H57: 2000000 | I57: 0 | J57: 0 | K57: 0
A58: Biological or Cultivated Assets | C58: =SA34b!C136 -> 0 | D58: =SA34b!D136 -> 0 | E58: =SA34b!E136 -> 0 | F58: =SA34b!F136 -> 0 | G58: =SA34b!G136 -> 0 | H58: =SA34b!H136 -> 0 | I58: =SA34b!I136 -> 0 | J58: =SA34b!J136 -> 0 | K58: =SA34b!K136 -> 0
A59: Servitudes | C59: =SA34b!C140 -> 0 | D59: =SA34b!D140 -> 0 | E59: =SA34b!E140 -> 0 | F59: =SA34b!F140 -> 0 | G59: =SA34b!G140 -> 0 | H59: =SA34b!H140 -> 0 | I59: =SA34b!I140 -> 0 | J59: =SA34b!J140 -> 0 | K59: =SA34b!K140 -> 0
A60: Licences and Rights | C60: =SA34b!C141 -> 0 | D60: =SA34b!D141 -> 3025474 | E60: =SA34b!E141 -> -3991343 | F60: =SA34b!F141 -> 0 | G60: =SA34b!G141 -> 0 | H60: =SA34b!H141 -> 0 | I60: =SA34b!I141 -> 2047000 | J60: =SA34b!J141 -> 1747000 | K60: =SA34b!K141 -> 1747000
A61: Intangible Assets | C61: =SUM(C59:C60) -> 0 | D61: =SUM(D59:D60) -> 3025474 | E61: -3991343 | F61: 0 | G61: 0 | H61: 0 | I61: 2047000 | J61: 1747000 | K61: 1747000
A62: Computer Equipment | C62: =SA34b!C149 -> 0 | D62: =SA34b!D149 -> -580601 | E62: =SA34b!E149 -> -719021 | F62: =SA34b!F149 -> 0 | G62: =SA34b!G149 -> 0 | H62: =SA34b!H149 -> 0 | I62: =SA34b!I149 -> 0 | J62: =SA34b!J149 -> 0 | K62: =SA34b!K149 -> 0
A63: Furniture and Office Equipment | C63: =SA34b!C152 -> 0 | D63: =SA34b!D152 -> 5488602 | E63: =SA34b!E152 -> -32703 | F63: =SA34b!F152 -> 0 | G63: =SA34b!G152 -> 0 | H63: =SA34b!H152 -> 0 | I63: =SA34b!I152 -> 0 | J63: =SA34b!J152 -> 0 | K63: =SA34b!K152 -> 0
A64: Machinery and Equipment | C64: =SA34b!C155 -> 0 | D64: =SA34b!D155 -> -2886037 | E64: =SA34b!E155 -> 1232797 | F64: =SA34b!F155 -> 0 | G64: =SA34b!G155 -> 0 | H64: =SA34b!H155 -> 0 | I64: =SA34b!I155 -> 0 | J64: =SA34b!J155 -> 0 | K64: =SA34b!K155 -> 0
A65: Transport Assets | C65: =SA34b!C158 -> 0 | D65: =SA34b!D158 -> 8109232 | E65: =SA34b!E158 -> 3887516 | F65: =SA34b!F158 -> 0 | G65: =SA34b!G158 -> 3250000 | H65: =SA34b!H158 -> 3250000 | I65: =SA34b!I158 -> 0 | J65: =SA34b!J158 -> 0 | K65: =SA34b!K158 -> 0
A66: Land | C66: =SA34b!C161 -> 0 | D66: =SA34b!D161 -> 0 | E66: =SA34b!E161 -> 0 | F66: =SA34b!F161 -> 0 | G66: =SA34b!G161 -> 0 | H66: =SA34b!H161 -> 0 | I66: =SA34b!I161 -> 0 | J66: =SA34b!J161 -> 0 | K66: =SA34b!K161 -> 0
A67: Zoo's, Marine and Non-biological Animals | C67: =SA34b!C164 -> 0 | D67: =SA34b!D164 -> 0 | E67: =SA34b!E164 -> 0 | F67: =SA34b!F164 -> 0 | G67: =SA34b!G164 -> 0 | H67: =SA34b!H164 -> 0 | I67: =SA34b!I164 -> 0 | J67: =SA34b!J164 -> 0 | K67: =SA34b!K164 -> 0
A69: Total Upgrading of Existing Assets | B69: 6 | C69: =C79+C82+C83+C86+C89+C90+SUM(C93:C99) -> 0 | D69: =D79+D82+D83+D86+D89+D90+SUM(D93:D99) -> 0 | E69: 98626474 | F69: 0 | G69: 0 | H69: 0 | I69: 0 | J69: 0 | K69: 0
A70: Roads Infrastructure | C70: =SA34e!C7 -> 0 | D70: =SA34e!D7 -> 0 | E70: =SA34e!E7 -> 0 | F70: =SA34e!F7 -> 0 | G70: =SA34e!G7 -> 0 | H70: =SA34e!H7 -> 0 | I70: =SA34e!I7 -> 0 | J70: =SA34e!J7 -> 0 | K70: =SA34e!K7 -> 0
A71: Storm water Infrastructure | C71: =SA34e!C12 -> 0 | D71: =SA34e!D12 -> 0 | E71: =SA34e!E12 -> 0 | F71: =SA34e!F12 -> 0 | G71: =SA34e!G12 -> 0 | H71: =SA34e!H12 -> 0 | I71: =SA34e!I12 -> 0 | J71: =SA34e!J12 -> 0 | K71: =SA34e!K12 -> 0
A72: Electrical Infrastructure | C72: =SA34e!C16 -> 0 | D72: =SA34e!D16 -> 0 | E72: =SA34e!E16 -> 0 | F72: =SA34e!F16 -> 0 | G72: =SA34e!G16 -> 0 | H72: =SA34e!H16 -> 0 | I72: =SA34e!I16 -> 0 | J72: =SA34e!J16 -> 0 | K72: =SA34e!K16 -> 0
A73: Water Supply Infrastructure | C73: =SA34e!C26 -> 0 | D73: =SA34e!D26 -> 0 | E73: =SA34e!E26 -> 98626474 | F73: =SA34e!F26 -> 0 | H73: =G73 -> 0 | I73: =SA34e!I26 -> 0 | J73: =SA34e!J26 -> 0 | K73: =SA34e!K26 -> 0
A74: Sanitation Infrastructure | C74: =SA34e!C37 -> 0 | D74: =SA34e!D37 -> 0 | E74: =SA34e!E37 -> 0 | F74: =SA34e!F37 -> 0 | G74: =SA34e!G37 -> 0 | H74: =SA34e!H37 -> 0 | I74: =SA34e!I37 -> 0 | J74: =SA34e!J37 -> 0 | K74: =SA34e!K37 -> 0
A75: Solid Waste Infrastructure | C75: =SA34e!C44 -> 0 | D75: =SA34e!D44 -> 0 | E75: =SA34e!E44 -> 0 | F75: =SA34e!F44 -> 0 | G75: =SA34e!G44 -> 0 | H75: =SA34e!H44 -> 0 | I75: =SA34e!I44 -> 0 | J75: =SA34e!J44 -> 0 | K75: =SA34e!K44 -> 0
A76: Rail Infrastructure | C76: =SA34e!C52 -> 0 | D76: =SA34e!D52 -> 0 | E76: =SA34e!E52 -> 0 | F76: =SA34e!F52 -> 0 | G76: =SA34e!G52 -> 0 | H76: =SA34e!H52 -> 0 | I76: =SA34e!I52 -> 0 | J76: =SA34e!J52 -> 0 | K76: =SA34e!K52 -> 0
A77: Coastal Infrastructure | C77: =SA34e!C62 -> 0 | D77: =SA34e!D62 -> 0 | E77: =SA34e!E62 -> 0 | F77: =SA34e!F62 -> 0 | G77: =SA34e!G62 -> 0 | H77: =SA34e!H62 -> 0 | I77: =SA34e!I62 -> 0 | J77: =SA34e!J62 -> 0 | K77: =SA34e!K62 -> 0
A78: Information and Communication Infrastructure | C78: =SA34e!C68 -> 0 | D78: =SA34e!D68 -> 0 | E78: =SA34e!E68 -> 0 | F78: =SA34e!F68 -> 0 | G78: =SA34e!G68 -> 0 | H78: =SA34e!H68 -> 0 | I78: =SA34e!I68 -> 0 | J78: =SA34e!J68 -> 0 | K78: =SA34e!K68 -> 0
A79: Infrastructure | C79: =SUM(C70:C78) -> 0 | D79: 0 | E79: 98626474 | F79: 0 | G79: 0 | H79: 0 | I79: 0 | J79: 0 | K79: 0
A80: Community Facilities | C80: =SA34e!C75 -> 0 | D80: =SA34e!D75 -> 0 | E80: =SA34e!E75 -> 0 | F80: =SA34e!F75 -> 0 | G80: =SA34e!G75 -> 0 | H80: =SA34e!H75 -> 0 | I80: =SA34e!I75 -> 0 | J80: =SA34e!J75 -> 0 | K80: =SA34e!K75 -> 0
A81: Sport and Recreation Facilities | C81: =SA34e!C98 -> 0 | D81: =SA34e!D98 -> 0 | E81: =SA34e!E98 -> 0 | F81: =SA34e!F98 -> 0 | G81: =SA34e!G98 -> 0 | H81: =SA34e!H98 -> 0 | I81: =SA34e!I98 -> 0 | J81: =SA34e!J98 -> 0 | K81: =SA34e!K98 -> 0
A82: Community Assets | C82: =SUM(C80:C81) -> 0 | D82: 0 | E82: 0 | F82: 0 | G82: 0 | H82: 0 | I82: 0 | J82: 0 | K82: 0
A83: Heritage Assets | C83: =SA34e!C103 -> 0 | D83: =SA34e!D103 -> 0 | E83: =SA34e!E103 -> 0 | F83: =SA34e!F103 -> 0 | G83: =SA34e!G103 -> 0 | H83: =SA34e!H103 -> 0 | I83: =SA34e!I103 -> 0 | J83: =SA34e!J103 -> 0 | K83: =SA34e!K103 -> 0
A84: Revenue Generating | C84: =SA34e!C111 -> 0 | D84: =SA34e!D111 -> 0 | E84: =SA34e!E111 -> 0 | F84: =SA34e!F111 -> 0 | G84: =SA34e!G111 -> 0 | H84: =SA34e!H111 -> 0 | I84: =SA34e!I111 -> 0 | J84: =SA34e!J111 -> 0 | K84: =SA34e!K111 -> 0
A85: Non-revenue Generating | C85: =SA34e!C114 -> 0 | D85: =SA34e!D114 -> 0 | E85: =SA34e!E114 -> 0 | F85: =SA34e!F114 -> 0 | G85: =SA34e!G114 -> 0 | H85: =SA34e!H114 -> 0 | I85: =SA34e!I114 -> 0 | J85: =SA34e!J114 -> 0 | K85: =SA34e!K114 -> 0
A86: Investment properties | C86: =SUM(C84:C85) -> 0 | D86: 0 | E86: 0 | F86: 0 | G86: 0 | H86: 0 | I86: 0 | J86: 0 | K86: 0
A87: Operational Buildings | C87: =SA34e!C119 -> 0 | D87: =SA34e!D119 -> 0 | E87: =SA34e!E119 -> 0 | F87: =SA34e!F119 -> 0 | G87: =SA34e!G119 -> 0 | H87: =SA34e!H119 -> 0 | I87: =SA34e!I119 -> 0 | J87: =SA34e!J119 -> 0 | K87: =SA34e!K119 -> 0
A88: Housing | C88: =SA34e!C131 -> 0 | D88: =SA34e!D131 -> 0 | E88: =SA34e!E131 -> 0 | F88: =SA34e!F131 -> 0 | G88: =SA34e!G131 -> 0 | H88: =SA34e!H131 -> 0 | I88: =SA34e!I131 -> 0 | J88: =SA34e!J131 -> 0 | K88: =SA34e!K131 -> 0
A89: Other Assets | C89: =SUM(C87:C88) -> 0 | D89: 0 | E89: 0 | F89: 0 | G89: 0 | H89: 0 | I89: 0 | J89: 0 | K89: 0
A90: Biological or Cultivated Assets | C90: =SA34e!C136 -> 0 | D90: =SA34e!D136 -> 0 | E90: =SA34e!E136 -> 0 | F90: =SA34e!F136 -> 0 | G90: =SA34e!G136 -> 0 | H90: =SA34e!H136 -> 0 | I90: =SA34e!I136 -> 0 | J90: =SA34e!J136 -> 0 | K90: =SA34e!K136 -> 0
A91: Servitudes | C91: =SA34e!C140 -> 0 | D91: =SA34e!D140 -> 0 | E91: =SA34e!E140 -> 0 | F91: =SA34e!F140 -> 0 | G91: =SA34e!G140 -> 0 | H91: =SA34e!H140 -> 0 | I91: =SA34e!I140 -> 0 | J91: =SA34e!J140 -> 0 | K91: =SA34e!K140 -> 0
A92: Licences and Rights | C92: =SA34e!C141 -> 0 | D92: =SA34e!D141 -> 0 | E92: =SA34e!E141 -> 0 | F92: =SA34e!F141 -> 0 | G92: =SA34e!G141 -> 0 | H92: =SA34e!H141 -> 0 | I92: =SA34e!I141 -> 0 | J92: =SA34e!J141 -> 0 | K92: =SA34e!K141 -> 0
A93: Intangible Assets | C93: =SUM(C91:C92) -> 0 | D93: 0 | E93: 0 | F93: 0 | G93: 0 | H93: 0 | I93: 0 | J93: 0 | K93: 0
A94: Computer Equipment | C94: =SA34e!C149 -> 0 | D94: =SA34e!D149 -> 0 | E94: =SA34e!E149 -> 0 | F94: =SA34e!F149 -> 0 | G94: =SA34e!G149 -> 0 | H94: =SA34e!H149 -> 0 | I94: =SA34e!I149 -> 0 | J94: =SA34e!J149 -> 0 | K94: =SA34e!K149 -> 0
A95: Furniture and Office Equipment | C95: =SA34e!C152 -> 0 | D95: =SA34e!D152 -> 0 | E95: =SA34e!E152 -> 0 | F95: =SA34e!F152 -> 0 | G95: =SA34e!G152 -> 0 | H95: =SA34e!H152 -> 0 | I95: =SA34e!I152 -> 0 | J95: =SA34e!J152 -> 0 | K95: =SA34e!K152 -> 0
A96: Machinery and Equipment | C96: =SA34e!C155 -> 0 | D96: =SA34e!D155 -> 0 | E96: =SA34e!E155 -> 0 | F96: =SA34e!F155 -> 0 | G96: =SA34e!G155 -> 0 | H96: =SA34e!H155 -> 0 | I96: =SA34e!I155 -> 0 | J96: =SA34e!J155 -> 0 | K96: =SA34e!K155 -> 0
A97: Transport Assets | C97: =SA34e!C158 -> 0 | D97: =SA34e!D158 -> 0 | E97: =SA34e!E158 -> 0 | F97: =SA34e!F158 -> 0 | G97: =SA34e!G158 -> 0 | H97: =SA34e!H158 -> 0 | I97: =SA34e!I158 -> 0 | J97: =SA34e!J158 -> 0 | K97: =SA34e!K158 -> 0
A98: Land | C98: =SA34e!C161 -> 0 | D98: =SA34e!D161 -> 0 | E98: =SA34e!E161 -> 0 | F98: =SA34e!F161 -> 0 | G98: =SA34e!G161 -> 0 | H98: =SA34e!H161 -> 0 | I98: =SA34e!I161 -> 0 | J98: =SA34e!J161 -> 0 | K98: =SA34e!K161 -> 0
A99: Zoo's, Marine and Non-biological Animals | C99: =SA34e!C164 -> 0 | D99: =SA34e!D164 -> 0 | E99: =SA34e!E164 -> 0 | F99: =SA34e!F164 -> 0 | G99: =SA34e!G164 -> 0 | H99: =SA34e!H164 -> 0 | I99: =SA34e!I164 -> 0 | J99: =SA34e!J164 -> 0 | K99: =SA34e!K164 -> 0
A101: Total Capital Expenditure | B101: 4 | C101: =+C5+C37+C69 -> 0 | D101: =+D5+D37+D69 -> 850393179 | E101: 344392651 | F101: 311134000 | G101: 453700000 | H101: 453700000 | I101: 321377000 | J101: 367302000 | K101: 364807000
A102: Roads Infrastructure | C102: =+C6+C38+C70 -> 0 | D102: =+D6+D38+D70 -> 0 | E102: 0 | F102: 0 | G102: 0 | H102: 0 | I102: 0 | J102: 0 | K102: 0
A103: Storm water Infrastructure | C103: =+C7+C39+C71 -> 0 | D103: 0 | E103: 0 | F103: 0 | G103: 0 | H103: 0 | I103: 0 | J103: 0 | K103: 0
A104: Electrical Infrastructure | C104: 0 | D104: 0 | E104: 0 | F104: 0 | G104: 0 | H104: 0 | I104: 0 | J104: 0 | K104: 0
A105: Water Supply Infrastructure | C105: 0 | D105: 807546765 | E105: 301581537 | F105: 275688000 | G105: 370140183 | H105: 370140183 | I105: 296930000 | J105: 336215000 | K105: 328450000
A106: Sanitation Infrastructure | C106: 0 | D106: 9576557 | E106: 3685123 | F106: 0 | G106: 3685122 | H106: 3685122 | I106: 5000000 | J106: 10000000 | K106: 15000000
A107: Solid Waste Infrastructure | C107: 0 | D107: 0 | E107: 0 | F107: 0 | G107: 0 | H107: 0 | I107: 0 | J107: 0 | K107: 0
A108: Rail Infrastructure | C108: 0 | D108: 130101 | E108: 0 | F108: 0 | G108: 0 | H108: 0 | I108: 0 | J108: 0 | K108: 0
A109: Coastal Infrastructure | C109: 0 | D109: 0 | E109: 0 | F109: 0 | G109: 0 | H109: 0 | I109: 0 | J109: 0 | K109: 0
A110: Information and Communication Infrastructure | C110: 0 | D110: 0 | E110: 0 | F110: 0 | G110: 0 | H110: 0 | I110: 0 | J110: 0 | K110: 0
A111: Infrastructure | C111: =SUM(C102:C110) -> 0 | D111: =SUM(D102:D110) -> 817253423 | E111: 305266660 | F111: 275688000 | G111: 373825305 | H111: 373825305 | I111: 301930000 | J111: 346215000 | K111: 343450000
A112: Community Facilities | C112: =+C16+C48+C80 -> 0 | D112: =+D16+D48+D80 -> 4501766 | E112: 27928802 | F112: 0 | G112: 0 | H112: 0 | I112: 1700000 | J112: 2000000 | K112: 2500000
A113: Sport and Recreation Facilities | C113: =+C17+C49+C81 -> 0 | D113: =+D17+D49+D81 -> 0 | E113: 0 | F113: 0 | G113: 0 | H113: 0 | I113: 0 | J113: 0 | K113: 0
A114: Community Assets | C114: =SUM(C112:C113) -> 0 | D114: =SUM(D112:D113) -> 4501766 | E114: 27928802 | F114: 0 | G114: 0 | H114: 0 | I114: 1700000 | J114: 2000000 | K114: 2500000
A115: Heritage Assets | C115: =+C19+C51+C83 -> 0 | D115: =+D19+D51+D83 -> 0 | E115: 0 | F115: 0 | G115: 0 | H115: 0 | I115: 0 | J115: 0 | K115: 0
A116: Revenue Generating | C116: =+C20+C52+C84 -> 0 | D116: =+D20+D52+D84 -> 0 | E116: 0 | F116: 0 | G116: 0 | H116: 0 | I116: 0 | J116: 0 | K116: 0
A117: Non-revenue Generating | C117: =+C21+C53+C85 -> 0 | D117: =+D21+D53+D85 -> 0 | E117: 0 | F117: 0 | G117: 0 | H117: 0 | I117: 0 | J117: 0 | K117: 0
A118: Investment properties | C118: =SUM(C116:C117) -> 0 | D118: =SUM(D116:D117) -> 0 | E118: 0 | F118: 0 | G118: 0 | H118: 0 | I118: 0 | J118: 0 | K118: 0
A119: Operational Buildings | C119: =+C23+C55+C87 -> 0 | D119: =+D23+D55+D87 -> 2636244 | E119: 67592 | F119: 2000000 | G119: 2000000 | H119: 2000000 | I119: 7000000 | J119: 6000000 | K119: 0
A120: Housing | C120: =+C24+C56+C88 -> 0 | D120: =+D24+D56+D88 -> 0 | E120: 0 | F120: 0 | G120: 0 | H120: 0 | I120: 0 | J120: 0 | K120: 0
A121: Other Assets | C121: =SUM(C119:C120) -> 0 | D121: 2636244 | E121: 67592 | F121: 2000000 | G121: 2000000 | H121: 2000000 | I121: 7000000 | J121: 6000000 | K121: 0
A122: Biological or Cultivated Assets | C122: =+C26+C58+C90 -> 0 | D122: =+D26+D58+D90 -> 0 | E122: 0 | F122: 0 | G122: 0 | H122: 0 | I122: 0 | J122: 0 | K122: 0
A123: Servitudes | C123: =+C27+C59+C91 -> 0 | D123: =+D27+D59+D91 -> 0 | E123: 0 | F123: 0 | G123: 0 | H123: 0 | I123: 0 | J123: 0 | K123: 0
A124: Licences and Rights | C124: =+C28+C60+C92 -> 0 | D124: =+D28+D60+D92 -> 3483587 | E124: -3991343 | F124: 3803000 | G124: 19683394 | H124: 19683394 | I124: 2047000 | J124: 1747000 | K124: 1747000
A125: Intangible Assets | C125: =SUM(C123:C124) -> 0 | D125: =SUM(D123:D124) -> 3483587 | E125: -3991343 | F125: 3803000 | G125: 19683394 | H125: 19683394 | I125: 2047000 | J125: 1747000 | K125: 1747000
A126: Computer Equipment | C126: =+C30+C62+C94 -> 0 | D126: =+D30+D62+D94 -> 2680071 | E126: 1920550 | F126: 1793000 | G126: 5157593 | H126: 5157593 | I126: 2600000 | J126: 2290000 | K126: 2360000
A127: Furniture and Office Equipment | C127: =+C31+C63+C95 -> 0 | D127: 6505662 | E127: 133152 | F127: 2150000 | G127: 4664743 | H127: 4664743 | I127: 250000 | J127: 2250000 | K127: 2250000
A128: Machinery and Equipment | C128: 0 | D128: 973076 | E128: 5908971 | F128: 20500000 | G128: 26332114 | H128: 26332114 | I128: 4350000 | J128: 3800000 | K128: 8500000
A129: Transport Assets | C129: 0 | D129: 12359350 | E129: 7158267 | F129: 5200000 | G129: 22036851 | H129: 22036851 | I129: 1500000 | J129: 3000000 | K129: 4000000
A130: Land | C130: 0 | D130: 0 | E130: 0 | F130: 0 | G130: 0 | H130: 0 | I130: 0 | J130: 0 | K130: 0
A131: Zoo's, Marine and Non-biological Animals | C131: 0 | D131: 0 | E131: 0 | F131: 0 | G131: 0 | H131: 0 | I131: 0 | J131: 0 | K131: 0
A132: TOTAL CAPITAL EXPENDITURE - Asset class | C132: =+C5+C37+C69 -> 0 | D132: =+D5+D37+D69 -> 850393179 | E132: 344392651 | F132: 311134000 | G132: 453700000 | H132: 453700000 | I132: 321377000 | J132: 367302000 | K132: 364807000
A134: ASSET REGISTER SUMMARY - PPE (WDV) | B134: 5 | C134: =C144+C147+C148+C151+C154+C155+C158+C159+C160+C161+C162+C163+C164 -> 0 | D134: =D144+D147+D148+D151+D154+D155+D158+D159+D160+D161+D162+D163+D164 -> 2445180400 | E134: 2120106137 | F134: 2982947869 | G134: 2203791049 | H134: 2203791049 | I134: 1978297720 | J134: 1952117720 | K134: 1914326720
A135: Roads Infrastructure
A136: Storm water Infrastructure | C136: 0
A137: Electrical Infrastructure
A138: Water Supply Infrastructure | D138: 2211397143 | E138: 1876092285 | F138: 2734992573 | G138: 1920906769 | H138: 1920906769 | I138: 1818498164 | J138: 1795877164 | K138: 1762745164
A139: Sanitation Infrastructure | D139: 44680865 | E139: 45403604 | F139: 43881698 | G139: 45403603 | H139: 45403603 | I139: 40318234 | J139: 36942234 | K139: 33397234
A140: Solid Waste Infrastructure
A141: Rail Infrastructure
A142: Coastal Infrastructure
A143: Information and Communication Infrastructure
A144: Infrastructure | C144: =SUM(C135:C143) -> 0 | D144: =SUM(D135:D143) -> 2256078008 | E144: 1921495889 | F144: 2778874271 | G144: 1966310372 | H144: 1966310372 | I144: 1858816398 | J144: 1832819398 | K144: 1796142398
A147: Community Assets | D147: 49494809 | E147: 57609354 | F147: 67289601 | G147: 59554356 | H147: 59554356 | I147: 54831052 | J147: 52169052 | K147: 49374052
A148: Heritage Assets | I148: =I115 -> 0 | J148: =I148+J115 -> 0 | K148: =J148 -> 0
A151: Investment properties | D151: 57262809 | E151: =D151+E119 -> 57330401 | F151: 55450346.8 | G151: 55450346.8 | H151: =G151 -> 55450346.8 | I151: -11000 | J151: =I151+J119 -> 5989000 | K151: =J151+K119 -> 5989000
A154: Other Assets | D154: 3530494 | E154: =D154 -> 3530494
A155: Biological or Cultivated Assets
A158: Intangible Assets | D158: 10192668 | E158: 5522000 | F158: 11700913 | G158: 25205394 | H158: 25205394 | I158: 281766 | J158: -2107234 | K158: -4703234
A159: Computer Equipment | D159: 10121017 | E159: 9142519 | F159: 10931140 | G159: 12181518 | H159: 12181518 | I159: 3356635 | J159: -886365 | K159: -5522365
A160: Furniture and Office Equipment | D160: 15593428 | E160: 8585113 | F160: 16538438 | G160: 13134109 | H160: 13134109 | I160: 8285439 | J160: 9121439 | K160: 9886439
A161: Machinery and Equipment | D161: 1409422 | E161: 8657164 | F161: 4058566 | G161: 16329164 | H161: 16329164 | I161: 7673923 | J161: 8018923 | K161: 11070923
A162: Transport Assets | D162: 33729745 | E162: 36371703 | F162: 30124094 | G162: 43764289 | H162: 43764289 | I162: 33202007 | J162: 35132007 | K162: 40228007
A163: Land | D163: 7768000 | E163: 11861500 | F163: 7980499 | G163: 11861500 | H163: 11861500 | I163: 11861500 | J163: 11861500 | K163: 11861500
A164: Zoo's, Marine and Non-biological Animals
A165: TOTAL ASSET REGISTER SUMMARY - PPE (WDV) | B165: 5 | C165: =C144+C147+C148+C151+C154+C155+C158+C159+C160+C161+C162+C163+C164 -> 0 | D165: =D144+D147+D148+D151+D154+D155+D158+D159+D160+D161+D162+D163+D164 -> 2445180400 | E165: 2120106137 | F165: 2982947869 | G165: 2203791049 | H165: 2203791049 | I165: 1978297720 | J165: 1952117720 | K165: 1914326720
A167: EXPENDITURE OTHER ITEMS | C167: =SUM(C168:C169) -> 0 | D167: =SUM(D168:D169) -> 85930935 | E167: 94982299 | F167: 95339000 | G167: 134111114 | H167: 134111114 | I167: 105856000 | J167: 107512000 | K167: 117471000
A168: Depreciation | B168: 7 | C168: =SA34d!C166 -> 0 | D168: =SA34d!D166 -> 68594942 | E168: =SA34d!E166 -> 80541389 | F168: =SA34d!F166 -> 65626000 | G168: =SA34d!G166 -> 74698000 | H168: =SA34d!H166 -> 74698000 | I168: =SA34d!I166 -> 79724000 | J168: =SA34d!J166 -> 83710000 | K168: =SA34d!K166 -> 87895000
A169: Repairs and Maintenance by Asset Class | B169: 3 | C169: =C179+C182+C189+C194+C195+C196+C197 -> 0 | D169: =D179+D182+D183+D186+D189+D190+SUM(D193:D199) -> 17335993 | E169: 14440910 | F169: 29713000 | G169: 59413114 | H169: 59413114 | I169: 26132000 | J169: 23802000 | K169: 29576000
A170: Roads Infrastructure | C170: =SA34c!C7 -> 0 | D170: =SA34c!D7 -> 0 | E170: =SA34c!E7 -> 0 | F170: =SA34c!F7 -> 0 | G170: =SA34c!G7 -> 0 | H170: =SA34c!H7 -> 0 | I170: =SA34c!I7 -> 0 | J170: =SA34c!J7 -> 0 | K170: =SA34c!K7 -> 0
A171: Storm water Infrastructure | C171: =SA34c!C12 -> 0 | D171: =SA34c!D12 -> 0 | E171: =SA34c!E12 -> 0 | F171: =SA34c!F12 -> 0 | G171: =SA34c!G12 -> 0 | H171: =SA34c!H12 -> 0 | I171: =SA34c!I12 -> 0 | J171: =SA34c!J12 -> 0 | K171: =SA34c!K12 -> 0
A172: Electrical Infrastructure | C172: =SA34c!C16 -> 0 | D172: =SA34c!D16 -> 0 | E172: =SA34c!E16 -> 0 | F172: =SA34c!F16 -> 0 | G172: =SA34c!G16 -> 0 | H172: =SA34c!H16 -> 0 | I172: =SA34c!I16 -> 0 | J172: =SA34c!J16 -> 0 | K172: =SA34c!K16 -> 0
A173: Water Supply Infrastructure | C173: =SA34c!C26 -> 0 | D173: =SA34c!D26 -> 139243 | E173: =SA34c!E26 -> 443000 | F173: =SA34c!F26 -> 800000 | G173: =SA34c!G26 -> 23650000 | H173: =SA34c!H26 -> 23650000 | I173: =SA34c!I26 -> 11512000 | J173: =SA34c!J26 -> 8756000 | K173: =SA34c!K26 -> 8756000
A174: Sanitation Infrastructure | C174: =SA34c!C37 -> 0 | D174: =SA34c!D37 -> 0 | E174: =SA34c!E37 -> 0 | F174: =SA34c!F37 -> 0 | G174: =SA34c!G37 -> 0 | H174: =SA34c!H37 -> 0 | I174: =SA34c!I37 -> 0 | J174: =SA34c!J37 -> 0 | K174: =SA34c!K37 -> 0
A175: Solid Waste Infrastructure | C175: =SA34c!C44 -> 0 | D175: =SA34c!D44 -> 0 | E175: =SA34c!E44 -> 0 | F175: =SA34c!F44 -> 0 | G175: =SA34c!G44 -> 0 | H175: =SA34c!H44 -> 0 | I175: =SA34c!I44 -> 0 | J175: =SA34c!J44 -> 0 | K175: =SA34c!K44 -> 0
A176: Rail Infrastructure | C176: =SA34c!C52 -> 0 | D176: =SA34c!D52 -> 0 | E176: =SA34c!E52 -> 0 | F176: =SA34c!F52 -> 0 | G176: =SA34c!G52 -> 0 | H176: =SA34c!H52 -> 0 | I176: =SA34c!I52 -> 0 | J176: =SA34c!J52 -> 0 | K176: =SA34c!K52 -> 0
A177: Coastal Infrastructure | C177: =SA34c!C62 -> 0 | D177: =SA34c!D62 -> 0 | E177: =SA34c!E62 -> 0 | F177: =SA34c!F62 -> 0 | G177: =SA34c!G62 -> 0 | H177: =SA34c!H62 -> 0 | I177: =SA34c!I62 -> 0 | J177: =SA34c!J62 -> 0 | K177: =SA34c!K62 -> 0
A178: Information and Communication Infrastructure | C178: =SA34c!C68 -> 0 | D178: =SA34c!D68 -> 0 | E178: =SA34c!E68 -> 0 | F178: =SA34c!F68 -> 0 | G178: =SA34c!G68 -> 0 | H178: =SA34c!H68 -> 0 | I178: =SA34c!I68 -> 0 | J178: =SA34c!J68 -> 0 | K178: =SA34c!K68 -> 0
A179: Infrastructure | C179: =SUM(C170:C178) -> 0 | D179: =SUM(D170:D178) -> 139243 | E179: 443000 | F179: 800000 | G179: 23650000 | H179: 23650000 | I179: 11512000 | J179: 8756000 | K179: 8756000
A180: Community Facilities | C180: =SA34c!C75 -> 0 | D180: =SA34c!D75 -> 0 | E180: =SA34c!E75 -> 0 | F180: =SA34c!F75 -> 0 | G180: =SA34c!G75 -> 0 | H180: =SA34c!H75 -> 0 | I180: =SA34c!I75 -> 0 | J180: =SA34c!J75 -> 0 | K180: =SA34c!K75 -> 0
A181: Sport and Recreation Facilities | C181: =SA34c!C98 -> 0 | D181: =SA34c!D98 -> 0 | E181: =SA34c!E98 -> 0 | F181: =SA34c!F98 -> 0 | G181: =SA34c!G98 -> 0 | H181: =SA34c!H98 -> 0 | I181: =SA34c!I98 -> 0 | J181: =SA34c!J98 -> 0 | K181: =SA34c!K98 -> 0
A182: Community Assets | C182: =SUM(C180:C181) -> 0 | D182: 0 | E182: 0 | F182: 0 | G182: 0 | H182: 0 | I182: 0 | J182: 0 | K182: 0
A183: Heritage Assets | C183: =SA34c!C103 -> 0 | D183: =SA34c!D103 -> 0 | E183: =SA34c!E103 -> 0 | F183: =SA34c!F103 -> 0 | G183: =SA34c!G103 -> 0 | H183: =SA34c!H103 -> 0 | I183: =SA34c!I103 -> 0 | J183: =SA34c!J103 -> 0 | K183: =SA34c!K103 -> 0
A184: Revenue Generating | C184: =SA34c!C111 -> 0 | D184: =SA34c!D111 -> 0 | E184: =SA34c!E111 -> 0 | F184: =SA34c!F111 -> 0 | G184: =SA34c!G111 -> 0 | H184: =SA34c!H111 -> 0 | I184: =SA34c!I111 -> 0 | J184: =SA34c!J111 -> 0 | K184: =SA34c!K111 -> 0
A185: Non-revenue Generating | C185: =SA34c!C114 -> 0 | D185: =SA34c!D114 -> 0 | E185: =SA34c!E114 -> 0 | F185: =SA34c!F114 -> 0 | G185: =SA34c!G114 -> 0 | H185: =SA34c!H114 -> 0 | I185: =SA34c!I114 -> 0 | J185: =SA34c!J114 -> 0 | K185: =SA34c!K114 -> 0
A186: Investment properties | C186: =SUM(C184:C185) -> 0 | D186: 0 | E186: 0 | F186: 0 | G186: 0 | H186: 0 | I186: 0 | J186: 0 | K186: 0
A187: Operational Buildings | C187: =SA34c!C120 -> 0 | D187: =SA34c!D118 -> 819554 | E187: =SA34c!E118 -> 767799 | F187: =SA34c!F118 -> 660000 | G187: =SA34c!G118 -> 1610000 | H187: =SA34c!H118 -> 1610000 | I187: =SA34c!I118 -> 1771000 | J187: =SA34c!J118 -> 1948000 | K187: =SA34c!K118 -> 2143000
A188: Housing | C188: =SA34c!C131 -> 0 | D188: =SA34c!D131 -> 0 | E188: =SA34c!E131 -> 0 | F188: =SA34c!F131 -> 0 | G188: =SA34c!G131 -> 0 | H188: =SA34c!H131 -> 0 | I188: =SA34c!I131 -> 0 | J188: =SA34c!J131 -> 0 | K188: =SA34c!K131 -> 0
A189: Other Assets | C189: =SUM(C187:C188) -> 0 | D189: 819554 | E189: 767799 | F189: 660000 | G189: 1610000 | H189: 1610000 | I189: 1771000 | J189: 1948000 | K189: 2143000
A190: Biological or Cultivated Assets | C190: =SA34c!C136 -> 0 | D190: =SA34c!D136 -> 0 | E190: =SA34c!E136 -> 0 | F190: =SA34c!F136 -> 0 | G190: =SA34c!G136 -> 0 | H190: =SA34c!H136 -> 0 | I190: =SA34c!I136 -> 0 | J190: =SA34c!J136 -> 0 | K190: =SA34c!K136 -> 0
A191: Servitudes | C191: =SA34c!C140 -> 0 | D191: =SA34c!D140 -> 0 | E191: =SA34c!E140 -> 0 | F191: =SA34c!F140 -> 0 | G191: =SA34c!G140 -> 0 | H191: =SA34c!H140 -> 0 | I191: =SA34c!I140 -> 0 | J191: =SA34c!J140 -> 0 | K191: =SA34c!K140 -> 0
A192: Licences and Rights | C192: =SA34c!C141 -> 0 | D192: =SA34c!D141 -> 0 | E192: =SA34c!E141 -> 0 | F192: =SA34c!F141 -> 0 | G192: =SA34c!G141 -> 0 | H192: =SA34c!H141 -> 0 | I192: =SA34c!I141 -> 0 | J192: =SA34c!J141 -> 0 | K192: =SA34c!K141 -> 0
A193: Intangible Assets | C193: =SUM(C191:C192) -> 0 | D193: 0 | E193: 0 | F193: 0 | G193: 0 | H193: 0 | I193: 0 | J193: 0 | K193: 0
A194: Computer Equipment | C194: =SA34c!C149 -> 0 | D194: =SA34c!D149 -> 173161 | E194: =SA34c!E149 -> 580383 | F194: =SA34c!F149 -> 493000 | G194: =SA34c!G149 -> 625000 | H194: =SA34c!H149 -> 625000 | I194: =SA34c!I149 -> 513000 | J194: =SA34c!J149 -> 513000 | K194: =SA34c!K149 -> 513000
A195: Furniture and Office Equipment | C195: =SA34c!C152 -> 0 | D195: =SA34c!D153 -> 0 | E195: =SA34c!E153 -> 0 | F195: =SA34c!F152 -> 0 | G195: =SA34c!G152 -> 0 | H195: =SA34c!H152 -> 0 | I195: =SA34c!I152 -> 0 | J195: =SA34c!J152 -> 0 | K195: =SA34c!K152 -> 0
A196: Machinery and Equipment | C196: =SA34c!C155 -> 0 | D196: =SA34a!D155 -> 3859113 | E196: =SA34a!E155 -> 4676174 | F196: =SA34a!F155 -> 20500000 | G196: =SA34a!G155 -> 26332114 | H196: =SA34a!H155 -> 26332114 | I196: =SA34a!I155 -> 4350000 | J196: =SA34a!J155 -> 3800000 | K196: =SA34a!K155 -> 8500000
A197: Transport Assets | C197: =SA34c!C158 -> 0 | D197: =SA34c!D158 -> 12344922 | E197: =SA34c!E158 -> 7973554 | F197: =SA34c!F158 -> 7260000 | G197: =SA34c!G158 -> 7196000 | H197: =SA34c!H158 -> 7196000 | I197: =SA34c!I158 -> 7986000 | J197: =SA34c!J158 -> 8785000 | K197: =SA34c!K158 -> 9664000
A198: Land | C198: =SA34c!C161 -> 0 | D198: =SA34c!D161 -> 0 | E198: =SA34c!E161 -> 0 | F198: =SA34c!F161 -> 0 | G198: =SA34c!G161 -> 0 | H198: =SA34c!H161 -> 0 | I198: =SA34c!I161 -> 0 | J198: =SA34c!J161 -> 0 | K198: =SA34c!K161 -> 0
A199: Zoo's, Marine and Non-biological Animals | C199: =SA34c!C164 -> 0 | D199: =SA34c!D164 -> 0 | E199: =SA34c!E164 -> 0 | F199: =SA34c!F164 -> 0 | G199: =SA34c!G164 -> 0 | H199: =SA34c!H164 -> 0 | I199: =SA34c!I164 -> 0 | J199: =SA34c!J164 -> 0 | K199: =SA34c!K164 -> 0
A201: TOTAL EXPENDITURE OTHER ITEMS | C201: =SUM(C168:C169) -> 0 | D201: 85930935 | E201: 94982299 | F201: 95339000 | G201: 134111114 | H201: 134111114 | I201: 105856000 | J201: 107512000 | K201: 117471000
A203: Renewal and upgrading of Existing Assets as % of total capex | C203: =IF(ISERROR((C37+C69)/C132),0,((C37+C69)/C132)) -> 0 | D203: =IF(ISERROR((D37+D69)/D132),0,((D37+D69)/D132)) -> 0.7959263511 | E203: 0.3376775279 | F203: 0.006428098504 | G203: 0.01157152303 | H203: 0.01157152303 | I203: 0.05304362167 | J203: 0.07282018611 | K203: 0.07331822032
A204: Renewal and upgrading of Existing Assets as % of deprecn | C204: =IF(ISERROR((C37+C69)/C168),0,((C37+C69)/C168)) -> 0 | D204: =IF(ISERROR((D37+D69)/D168),0,((D37+D69)/D168)) -> 9.867350569 | E204: 1.443899347 | F204: 0.03047572608 | G204: 0.07028300624 | H204: 0.07028300624 | I204: 0.2138251969 | J204: 0.3195197706 | K204: 0.3043062745
A205: R&M as a % of PPE | C205: =IF(ISERROR(ROUND(C169/'A6-FinPos'!C19,3)),0,(ROUND(C169/'A6-FinPos'!C19,3))) -> 0 | D205: =IF(ISERROR(ROUND(D169/'A6-FinPos'!D19,3)),0,(ROUND(D169/'A6-FinPos'!D19,3))) -> 0.007 | E205: =IF(ISERROR(ROUND(E169/'A6-FinPos'!E19,3)),0,(ROUND(E169/'A6-FinPos'!E19,3))) -> 0.006 | F205: =IF(ISERROR(ROUND(F169/'A6-FinPos'!F19,3)),0,(ROUND(F169/'A6-FinPos'!F19,3))) -> 0.01 | G205: =IF(ISERROR(ROUND(G169/'A6-FinPos'!G19,3)),0,(ROUND(G169/'A6-FinPos'!G19,3))) -> 0.02 | H205: =IF(ISERROR(ROUND(H169/'A6-FinPos'!H19,3)),0,(ROUND(H169/'A6-FinPos'!H19,3))) -> 0.02 | I205: =IF(ISERROR(ROUND(I169/'A6-FinPos'!J19,3)),0,(ROUND(I169/'A6-FinPos'!J19,3))) -> 0.008 | J205: =IF(ISERROR(ROUND(J169/'A6-FinPos'!K19,3)),0,(ROUND(J169/'A6-FinPos'!K19,3))) -> 0.007 | K205: =IF(ISERROR(ROUND(K169/'A6-FinPos'!L19,3)),0,(ROUND(K169/'A6-FinPos'!L19,3))) -> 0.008
A206: Renewal and upgrading and R&M as a % of PPE | C206: =IF(ISERROR(ROUND((C37+C69+C169)/C165,2)),0,(ROUND((C37+C69+C169)/C165,2))) -> 0 | D206: =IF(ISERROR(ROUND((D37+D69+D169)/D165,2)),0,(ROUND((D37+D69+D169)/D165,2))) -> 0.28 | E206: 0.06 | F206: 0.01 | G206: 0.03 | H206: 0.03 | I206: 0.02 | J206: 0.03 | K206: 0.03
A208: =head27a -> References
A209: 1. Detail of new assets provided in Table SA34a
A210: 2. Detail of renewal of existing assets provided in Table SA34b
A211: 3. Detail of Repairs and Maintenance by Asset Class provided in Table SA34c
A212: 4. Must reconcile to total capital expenditure on Budgeted Capital Expenditure
A213: 5. Must reconcile to 'Budgeted Financial Position' (written down value)
A214: 6. Detail of upgrading of existing assets provided in Table SA34e
A215: 7. Detail of depreciation provided in Table SA34d
A217: Check balance to A6 | C217: =C165-'A6-FinPos'!D17-'A6-FinPos'!D19-'A6-FinPos'!D20-'A6-FinPos'!D21-'A6-FinPos'!D22-C148 -> -2384387097 | D217: =D165-'A6-FinPos'!E17-'A6-FinPos'!E19-'A6-FinPos'!E20-'A6-FinPos'!E21-'A6-FinPos'!E22-D148 -> -166106013 | E217: =E165-'A6-FinPos'!F17-'A6-FinPos'!F19-'A6-FinPos'!F20-'A6-FinPos'!F21-'A6-FinPos'!F22-E148 -> -807319789 | F217: =F165-'A6-FinPos'!G17-'A6-FinPos'!G19-'A6-FinPos'!G20-'A6-FinPos'!G21-'A6-FinPos'!G22-F148 -> -39758995.2 | G217: =G165-'A6-FinPos'!H17-'A6-FinPos'!H19-'A6-FinPos'!H20-'A6-FinPos'!H21-'A6-FinPos'!H22-G148 -> -818915815.2 | H217: =H165-'A6-FinPos'!I17-'A6-FinPos'!I19-'A6-FinPos'!I20-'A6-FinPos'!I21-'A6-FinPos'!I22-H148 -> 1915570136 | I217: =I165-'A6-FinPos'!J17-'A6-FinPos'!J19-'A6-FinPos'!J20-'A6-FinPos'!J21-'A6-FinPos'!J22-I148 -> -1160766414 | J217: =J165-'A6-FinPos'!K17-'A6-FinPos'!K19-'A6-FinPos'!K20-'A6-FinPos'!K21-'A6-FinPos'!K22-J148 -> -1467809414 | K217: =K165-'A6-FinPos'!L17-'A6-FinPos'!L19-'A6-FinPos'!L20-'A6-FinPos'!L21-'A6-FinPos'!L22-K148 -> -1779510414

Sheet A10-SerDel
A1: =muni&" - "&Approve10 -> DC35 Capricorn - Table A10 Basic service delivery measurement
A2: =desc -> Description | B2: =head27 -> Ref | C2: =head1b -> 2016/17 | D2: =head1A -> 2017/18 | E2: =Head1 -> 2018/19 | F2: =Head2 -> Current Year 2019/20 | I2: =Head3 -> 2020/21 Medium Term Revenue & Expenditure Framework
C3: =Head5A -> Outcome | D3: =Head5A -> Outcome | E3: =Head5A -> Outcome | F3: =Head6 -> Original Budget | G3: =Head7 -> Adjusted Budget | H3: =Head8 -> Full Year Forecast | I3: =Head9 -> Budget Year 2020/21 | J3: =Head10 -> Budget Year +1 2021/22 | K3: =Head11 -> Budget Year +2 2022/23
A4: Household service targets | B4: 1
A5: Water:
A6: Piped water inside dwelling | C6: =[5]SA9!E67 -> 156710.4 | D6: =[5]SA9!F67 -> 166113.024 | E6: ='SA9'!G67 -> 680586.224 | F6: ='SA9'!H67 -> 295833.4193 | G6: ='SA9'!I67 -> 295833.4193 | H6: ='SA9'!J67 -> 295833.4193 | I6: ='SA9'!K67 -> 313583.4244 | J6: ='SA9'!L67 -> 332398.4299 | K6: ='SA9'!M67 -> 352342.3357
A7: Piped water inside yard (but not in dwelling) | C7: =[5]SA9!E68 -> 371689 | D7: =[5]SA9!F68 -> 393990.34 | E7: ='SA9'!G68 -> 1301423.32 | F7: ='SA9'!H68 -> 788384.9068 | G7: ='SA9'!I68 -> 788384.9068 | H7: ='SA9'!J68 -> 788384.9068 | I7: ='SA9'!K68 -> 835688.0012 | J7: ='SA9'!L68 -> 885829.2813 | K7: ='SA9'!M68 -> 938979.0382
A8: Using public tap (at least min.service level) | B8: 2 | C8: =[5]SA9!E69 -> 81333.8 | D8: =[5]SA9!F69 -> 86213.828 | E8: ='SA9'!G69 -> 509890.8275 | F8: ='SA9'!H69 -> 172516.1098 | G8: ='SA9'!I69 -> 172516.1098 | H8: ='SA9'!J69 -> 172516.1098 | I8: ='SA9'!K69 -> 182867.0764 | J8: ='SA9'!L69 -> 193839.101 | K8: ='SA9'!M69 -> 205469.447
A9: Other water supply (at least min.service level) | B9: 4 | C9: =[5]SA9!E70 -> 0 | D9: =[5]SA9!F70 -> 0 | E9: ='SA9'!G70 -> 0 | F9: ='SA9'!H70 -> 0 | G9: ='SA9'!I70 -> 0 | H9: ='SA9'!J70 -> 0 | I9: ='SA9'!K70 -> 0 | J9: ='SA9'!L70 -> 0 | K9: ='SA9'!M70 -> 0
A10: Minimum Service Level and Above sub-total | C10: =SUM(C6:C9) -> 609733.2 | D10: =SUM(D6:D9) -> 646317.192 | E10: =SUM(E6:E9) -> 2491900.372 | F10: 1256734.436 | G10: 1256734.436 | H10: 1256734.436 | I10: 1332138.502 | J10: 1412066.812 | K10: 1496790.821
A11: Using public tap (< min.service level) | B11: 3 | C11: =[5]SA9!E72 -> 326456.68 | D11: =[5]SA9!F72 -> 346044.0808 | E11: ='SA9'!G72 -> 1276015.775 | F11: ='SA9'!H72 -> 481195.9242 | G11: ='SA9'!I72 -> 481195.9242 | H11: ='SA9'!J72 -> 481195.9242 | I11: ='SA9'!K72 -> 510067.6797 | J11: ='SA9'!L72 -> 540671.7404 | K11: ='SA9'!M72 -> 573112.0449
A12: Other water supply (< min.service level) | B12: =B9 -> 4 | C12: =[5]SA9!E73 -> 96132.46 | D12: =[5]SA9!F73 -> 101900.4076 | E12: ='SA9'!G73 -> 385940.7504 | F12: ='SA9'!H73 -> 241107.9773 | G12: ='SA9'!I73 -> 241107.9773 | H12: ='SA9'!J73 -> 241107.9773 | I12: ='SA9'!K73 -> 255574.456 | J12: ='SA9'!L73 -> 270908.9233 | K12: ='SA9'!M73 -> 287163.4587
A13: No water supply | C13: =[5]SA9!E74 -> 74542.38 | D13: =[5]SA9!F74 -> 79014.9228 | E13: ='SA9'!G74 -> 299263.5586 | F13: ='SA9'!H74 -> 105739.7907 | G13: ='SA9'!I74 -> 105739.7907 | H13: ='SA9'!J74 -> 105739.7907 | I13: ='SA9'!K74 -> 112084.1781 | J13: ='SA9'!L74 -> 118809.2288 | K13: ='SA9'!M74 -> 125937.7826
A14: Below Minimum Service Level sub-total | C14: =SUM(C11:C13) -> 497131.52 | D14: =SUM(D11:D13) -> 526959.4112 | E14: =SUM(E11:E13) -> 1961220.084 | F14: 828043.6922 | G14: 828043.6922 | H14: 828043.6922 | I14: 877726.3138 | J14: 930389.8926 | K14: 986213.2862
A15: Total number of households | B15: 5 | C15: =C10+C14 -> 1106864.72 | D15: =D10+D14 -> 1173276.603 | E15: 4453120.455 | F15: 2084778.128 | G15: 2084778.128 | H15: 2084778.128 | I15: 2209864.816 | J15: 2342456.705 | K15: 2483004.107
A16: Sanitation/sewerage:
A17: Flush toilet (connected to sewerage) | C17: =[5]SA9!E78 -> 193163.8 | D17: =[5]SA9!F78 -> 204753.628 | E17: ='SA9'!G78 -> 690183.5293 | F17: ='SA9'!H78 -> 364646.9646 | G17: ='SA9'!I78 -> 364646.9646 | H17: ='SA9'!J78 -> 364646.9646 | I17: ='SA9'!K78 -> 386525.7825 | J17: ='SA9'!L78 -> 409717.3295 | K17: ='SA9'!M78 -> 434300.3692
A18: Flush toilet (with septic tank) | C18: =[5]SA9!E79 -> 14231.56 | D18: =[5]SA9!F79 -> 15085.4536 | E18: ='SA9'!G79 -> 50850.04699 | F18: ='SA9'!H79 -> 26865.77483 | G18: ='SA9'!I79 -> 26865.77483 | H18: ='SA9'!J79 -> 26865.77483 | I18: ='SA9'!K79 -> 28477.72132 | J18: ='SA9'!L79 -> 30186.3846 | K18: ='SA9'!M79 -> 31997.56767
A19: Chemical toilet | C19: =[5]SA9!E80 -> 4208.2 | D19: =[5]SA9!F80 -> 4460.692 | E19: ='SA9'!G80 -> 15036.10059 | F19: ='SA9'!H80 -> 7944.073147 | G19: ='SA9'!I80 -> 7944.073147 | H19: ='SA9'!J80 -> 7944.073147 | I19: ='SA9'!K80 -> 8420.717536 | J19: ='SA9'!L80 -> 8925.960588 | K19: ='SA9'!M80 -> 9461.518223
A20: Pit toilet (ventilated) | C20: =[5]SA9!E81 -> 80063.92 | D20: =[5]SA9!F81 -> 84867.7552 | E20: ='SA9'!G81 -> 286072.2292 | F20: ='SA9'!H81 -> 151141.4944 | G20: ='SA9'!I81 -> 151141.4944 | H20: ='SA9'!J81 -> 151141.4944 | I20: ='SA9'!K81 -> 160209.9841 | J20: ='SA9'!L81 -> 169822.5832 | K20: ='SA9'!M81 -> 180011.9381
A21: Other toilet provisions (> min.service level) | C21: =[5]SA9!E82 -> 393054.36 | D21: =[5]SA9!F82 -> 416637.6216 | E21: ='SA9'!G82 -> 1404402.095 | F21: ='SA9'!H82 -> 741992.4401 | G21: ='SA9'!I82 -> 741992.4401 | H21: ='SA9'!J82 -> 741992.4401 | I21: ='SA9'!K82 -> 786511.9865 | J21: ='SA9'!L82 -> 833702.7057 | K21: ='SA9'!M82 -> 883724.8681
A22: =$A$10 -> Minimum Service Level and Above sub-total | C22: =SUM(C17:C21) -> 684721.84 | D22: =SUM(D17:D21) -> 725805.1504 | E22: 2446544.001 | F22: 1292590.747 | G22: 1292590.747 | H22: 1292590.747 | I22: 1370146.192 | J22: 1452354.964 | K22: 1539496.261
A23: Bucket toilet | C23: =[5]SA9!E84 -> 4286.64 | D23: =[5]SA9!F84 -> 4543.8384 | E23: ='SA9'!G84 -> 17209.47387 | F23: ='SA9'!H84 -> 9092.338695 | G23: ='SA9'!I84 -> 9092.338695 | H23: ='SA9'!J84 -> 9092.338695 | I23: ='SA9'!K84 -> 9637.879016 | J23: ='SA9'!L84 -> 10216.15176 | K23: ='SA9'!M84 -> 10829.12086
A24: Other toilet provisions (< min.service level) | C24: =[5]SA9!E85 -> 0 | D24: =[5]SA9!F85 -> 0 | E24: ='SA9'!G85 -> 0 | F24: ='SA9'!H85 -> 0 | G24: ='SA9'!I85 -> 0 | H24: ='SA9'!J85 -> 0 | I24: ='SA9'!K85 -> 0 | J24: ='SA9'!L85 -> 0 | K24: ='SA9'!M85 -> 0
A25: No toilet provisions | C25: =[5]SA9!E86 -> 37808.08 | D25: =[5]SA9!F86 -> 40076.5648 | E25: ='SA9'!G86 -> 151787.2191 | F25: ='SA9'!H86 -> 80194.24742 | G25: ='SA9'!I86 -> 80194.24742 | H25: ='SA9'!J86 -> 80194.24742 | I25: ='SA9'!K86 -> 85005.90226 | J25: ='SA9'!L86 -> 90106.2564 | K25: ='SA9'!M86 -> 95512.63178
A26: =$A$14 -> Below Minimum Service Level sub-total | C26: =SUM(C23:C25) -> 42094.72 | D26: =SUM(D23:D25) -> 44620.4032 | E26: 168996.693 | F26: 89286.58611 | G26: 89286.58611 | H26: 89286.58611 | I26: 94643.78128 | J26: 100322.4082 | K26: 106341.7526
A27: =$A$15 -> Total number of households | B27: =$B$15 -> 5 | C27: =C22+C26 -> 726816.56 | D27: =D22+D26 -> 770425.5536 | E27: 2615540.694 | F27: 1381877.333 | G27: 1381877.333 | H27: 1381877.333 | I27: 1464789.973 | J27: 1552677.372 | K27: 1645838.014
A28: Energy:
A29: Electricity (at least min.service level) | C29: ='SA9'!E90 -> 0 | D29: ='SA9'!F90 -> 0 | E29: ='SA9'!G90 -> 0 | F29: ='SA9'!H90 -> 0 | G29: ='SA9'!I90 -> 0 | H29: ='SA9'!J90 -> 0 | I29: ='SA9'!K90 -> 0 | J29: ='SA9'!L90 -> 0 | K29: ='SA9'!M90 -> 0
A30: Electricity - prepaid (min.service level) | C30: ='SA9'!E91 -> 0 | D30: ='SA9'!F91 -> 0 | E30: ='SA9'!G91 -> 0 | F30: ='SA9'!H91 -> 0 | G30: ='SA9'!I91 -> 0 | H30: ='SA9'!J91 -> 0 | I30: ='SA9'!K91 -> 0 | J30: ='SA9'!L91 -> 0 | K30: ='SA9'!M91 -> 0
A31: =$A$10 -> Minimum Service Level and Above sub-total | C31: =SUM(C29:C30) -> 0 | D31: =SUM(D29:D30) -> 0 | E31: 0 | F31: 0 | G31: 0 | H31: 0 | I31: 0 | J31: 0 | K31: 0
A32: Electricity (< min.service level) | C32: ='SA9'!E93 -> 0 | D32: ='SA9'!F93 -> 0 | E32: ='SA9'!G93 -> 0 | F32: ='SA9'!H93 -> 0 | G32: ='SA9'!I93 -> 0 | H32: ='SA9'!J93 -> 0 | I32: ='SA9'!K93 -> 0 | J32: ='SA9'!L93 -> 0 | K32: ='SA9'!M93 -> 0
A33: Electricity - prepaid (< min. service level) | C33: ='SA9'!E94 -> 0 | D33: ='SA9'!F94 -> 0 | E33: ='SA9'!G94 -> 0 | F33: ='SA9'!H94 -> 0 | G33: ='SA9'!I94 -> 0 | H33: ='SA9'!J94 -> 0 | I33: ='SA9'!K94 -> 0 | J33: ='SA9'!L94 -> 0 | K33: ='SA9'!M94 -> 0
A34: Other energy sources | C34: ='SA9'!E95 -> 0 | D34: ='SA9'!F95 -> 0 | E34: ='SA9'!G95 -> 0 | F34: ='SA9'!H95 -> 0 | G34: ='SA9'!I95 -> 0 | H34: ='SA9'!J95 -> 0 | I34: ='SA9'!K95 -> 0 | J34: ='SA9'!L95 -> 0 | K34: ='SA9'!M95 -> 0
A35: =$A$14 -> Below Minimum Service Level sub-total | C35: =SUM(C32:C34) -> 0 | D35: =SUM(D32:D34) -> 0 | E35: 0 | F35: 0 | G35: 0 | H35: 0 | I35: 0 | J35: 0 | K35: 0
A36: =$A$15 -> Total number of households | B36: =$B$15 -> 5 | C36: =C31+C35 -> 0 | D36: =D31+D35 -> 0 | E36: 0 | F36: 0 | G36: 0 | H36: 0 | I36: 0 | J36: 0 | K36: 0
A37: Refuse:
A38: Removed at least once a week | C38: ='SA9'!E99 -> 0 | D38: ='SA9'!F99 -> 0 | E38: ='SA9'!G99 -> 0 | F38: ='SA9'!H99 -> 0 | G38: ='SA9'!I99 -> 0 | H38: ='SA9'!J99 -> 0 | I38: ='SA9'!K99 -> 0 | J38: ='SA9'!L99 -> 0 | K38: ='SA9'!M99 -> 0
A39: =$A$10 -> Minimum Service Level and Above sub-total | C39: =SUM(C38) -> 0 | D39: =SUM(D38) -> 0 | E39: 0 | F39: 0 | G39: 0 | H39: 0 | I39: 0 | J39: 0 | K39: 0
A40: Removed less frequently than once a week | C40: ='SA9'!E101 -> 0 | D40: ='SA9'!F101 -> 0 | E40: ='SA9'!G101 -> 0 | F40: ='SA9'!H101 -> 0 | G40: ='SA9'!I101 -> 0 | H40: ='SA9'!J101 -> 0 | I40: ='SA9'!K101 -> 0 | J40: ='SA9'!L101 -> 0 | K40: ='SA9'!M101 -> 0
A41: Using communal refuse dump | C41: ='SA9'!E102 -> 0 | D41: ='SA9'!F102 -> 0 | E41: ='SA9'!G102 -> 0 | F41: ='SA9'!H102 -> 0 | G41: ='SA9'!I102 -> 0 | H41: ='SA9'!J102 -> 0 | I41: ='SA9'!K102 -> 0 | J41: ='SA9'!L102 -> 0 | K41: ='SA9'!M102 -> 0
A42: Using own refuse dump | C42: ='SA9'!E103 -> 0 | D42: ='SA9'!F103 -> 0 | E42: ='SA9'!G103 -> 0 | F42: ='SA9'!H103 -> 0 | G42: ='SA9'!I103 -> 0 | H42: ='SA9'!J103 -> 0 | I42: ='SA9'!K103 -> 0 | J42: ='SA9'!L103 -> 0 | K42: ='SA9'!M103 -> 0
A43: Other rubbish disposal | C43: ='SA9'!E104 -> 0 | D43: ='SA9'!F104 -> 0 | E43: ='SA9'!G104 -> 0 | F43: ='SA9'!H104 -> 0 | G43: ='SA9'!I104 -> 0 | H43: ='SA9'!J104 -> 0 | I43: ='SA9'!K104 -> 0 | J43: ='SA9'!L104 -> 0 | K43: ='SA9'!M104 -> 0
A44: No rubbish disposal | C44: ='SA9'!E105 -> 0 | D44: ='SA9'!F105 -> 0 | E44: ='SA9'!G105 -> 0 | F44: ='SA9'!H105 -> 0 | G44: ='SA9'!I105 -> 0 | H44: ='SA9'!J105 -> 0 | I44: ='SA9'!K105 -> 0 | J44: ='SA9'!L105 -> 0 | K44: ='SA9'!M105 -> 0
A45: =$A$14 -> Below Minimum Service Level sub-total | C45: =SUM(C40:C44) -> 0 | D45: 0 | E45: 0 | F45: 0 | G45: 0 | H45: 0 | I45: 0 | J45: 0 | K45: 0
A46: =$A$15 -> Total number of households | B46: =$B$15 -> 5 | C46: =C39+C45 -> 0 | D46: =D39+D45 -> 0 | E46: 0 | F46: 0 | G46: 0 | H46: 0 | I46: 0 | J46: 0 | K46: 0
A48: Households receiving Free Basic Service | B48: 7
A49: Water (6 kilolitres per household per month) | C49: ='SA9'!E263 -> 0 | D49: ='SA9'!F263 -> 0 | E49: ='SA9'!G263 -> 0 | F49: ='SA9'!H263 -> 0 | G49: ='SA9'!I263 -> 0 | H49: ='SA9'!J263 -> 0 | I49: ='SA9'!K263 -> 0 | J49: ='SA9'!L263 -> 0 | K49: ='SA9'!M263 -> 0
A50: Sanitation (free minimum level service) | C50: ='SA9'!E275 -> 0 | D50: ='SA9'!F275 -> 0 | E50: ='SA9'!G275 -> 0 | F50: ='SA9'!H275 -> 0 | G50: ='SA9'!I275 -> 0 | H50: ='SA9'!J275 -> 0 | I50: ='SA9'!K275 -> 0 | J50: ='SA9'!L275 -> 0 | K50: ='SA9'!M275 -> 0
A51: Electricity/other energy (50kwh per household per month) | C51: ='SA9'!E251 -> 0 | D51: ='SA9'!F251 -> 0 | E51: ='SA9'!G251 -> 0 | F51: ='SA9'!H251 -> 0 | G51: ='SA9'!I251 -> 0 | H51: ='SA9'!J251 -> 0 | I51: ='SA9'!K251 -> 0 | J51: ='SA9'!L251 -> 0 | K51: ='SA9'!M251 -> 0
A52: Refuse (removed at least once a week) | C52: ='SA9'!E287 -> 0 | D52: ='SA9'!F287 -> 0 | E52: ='SA9'!G287 -> 0 | F52: ='SA9'!H287 -> 0 | G52: ='SA9'!I287 -> 0 | H52: ='SA9'!J287 -> 0 | I52: ='SA9'!K287 -> 0 | J52: ='SA9'!L287 -> 0 | K52: ='SA9'!M287 -> 0
A54: Cost of Free Basic Services provided - Formal Settlements (R'000) | B54: 8
A55: Water (6 kilolitres per indigent household per month) | C55: ='SA1'!C20 -> 0 | D55: ='SA1'!D20 -> 0 | E55: ='SA1'!E20 -> 0 | F55: ='SA1'!F20 -> 0 | G55: ='SA1'!G20 -> 0 | H55: ='SA1'!H20 -> 0 | I55: ='SA1'!J20 -> 0 | J55: ='SA1'!K20 -> 0 | K55: ='SA1'!L20 -> 0
A56: Sanitation (free sanitation service to indigent households) | C56: ='SA1'!C26 -> 0 | D56: ='SA1'!D26 -> 0 | E56: ='SA1'!E26 -> 0 | F56: ='SA1'!F26 -> 0 | G56: ='SA1'!G26 -> 0 | H56: ='SA1'!H26 -> 0 | I56: ='SA1'!J26 -> 0 | J56: ='SA1'!K26 -> 0 | K56: ='SA1'!L26 -> 0
A57: Electricity/other energy (50kwh per indigent household per month) | C57: ='SA1'!C14 -> 0 | D57: ='SA1'!D14 -> 0 | E57: ='SA1'!E14 -> 0 | F57: ='SA1'!F14 -> 0 | G57: ='SA1'!G14 -> 0 | H57: ='SA1'!H14 -> 0 | I57: ='SA1'!J14 -> 0 | J57: ='SA1'!K14 -> 0 | K57: ='SA1'!L14 -> 0
A58: Refuse (removed once a week for indigent households) | C58: ='SA1'!C33 -> 0 | D58: ='SA1'!D33 -> 0 | E58: ='SA1'!E33 -> 0 | F58: ='SA1'!F33 -> 0 | G58: ='SA1'!G33 -> 0 | H58: ='SA1'!H33 -> 0 | I58: ='SA1'!J33 -> 0 | J58: ='SA1'!K33 -> 0 | K58: ='SA1'!L33 -> 0
A59: Cost of Free Basic Services provided - Informal Formal Settlements (R'000) | C59: ='SA9'!E260+'SA9'!E272+'SA9'!E284+'SA9'!E296 -> 0 | D59: ='SA9'!F260+'SA9'!F272+'SA9'!F284+'SA9'!F296 -> 0 | E59: ='SA9'!G260+'SA9'!G272+'SA9'!G284+'SA9'!G296 -> 0 | F59: ='SA9'!H260+'SA9'!H272+'SA9'!H284+'SA9'!H296 -> 0 | G59: ='SA9'!I260+'SA9'!I272+'SA9'!I284+'SA9'!I296 -> 0 | H59: ='SA9'!J260+'SA9'!J272+'SA9'!J284+'SA9'!J296 -> 0 | I59: ='SA9'!K260+'SA9'!K272+'SA9'!K284+'SA9'!K296 -> 0 | J59: ='SA9'!L260+'SA9'!L272+'SA9'!L284+'SA9'!L296 -> 0 | K59: ='SA9'!M260+'SA9'!M272+'SA9'!M284+'SA9'!M296 -> 0
A60: Total cost of FBS provided | C60: =SUM(C55:C59) -> 0 | D60: 0 | E60: 0 | F60: 0 | G60: 0 | H60: 0 | I60: 0 | J60: 0 | K60: 0
A62: Highest level of free service provided per household
A63: Property rates (R value threshold)
A64: Water (kilolitres per household per month)
A65: Sanitation (kilolitres per household per month)
A66: Sanitation (Rand per household per month)
A67: Electricity (kwh per household per month)
A68: Refuse (average litres per week)
A69: Revenue cost of subsidised services provided (R'000) | B69: 9
A70: Property rates (tariff adjustment) ( impermissable values per section 17 of MPRA)
A71: Property rates exemptions, reductions and rebates and impermissable values in excess of section 17 of MPRA) | C71: ='SA1'!C8 -> 0 | D71: ='SA1'!D8 -> 0 | E71: ='SA1'!E8 -> 0 | F71: ='SA1'!F8 -> 0 | G71: ='SA1'!G8 -> 0 | H71: ='SA1'!H8 -> 0 | I71: ='SA1'!J8 -> 0 | J71: ='SA1'!K8 -> 0 | K71: ='SA1'!L8 -> 0
A72: Water (in excess of 6 kilolitres per indigent household per month) | C72: ='SA1'!C19 -> 0 | D72: ='SA1'!D19 -> 0 | E72: ='SA1'!E19 -> 0 | F72: ='SA1'!F19 -> 0 | G72: ='SA1'!G19 -> 0 | H72: ='SA1'!H19 -> 0 | I72: ='SA1'!J19 -> 0 | J72: ='SA1'!K19 -> 0 | K72: ='SA1'!L19 -> 0
A73: Sanitation (in excess of free sanitation service to indigent households) | C73: ='SA1'!C25 -> 0 | D73: ='SA1'!D25 -> 0 | E73: ='SA1'!E25 -> 0 | F73: ='SA1'!F25 -> 0 | G73: ='SA1'!G25 -> 0 | H73: ='SA1'!H25 -> 0 | I73: ='SA1'!J25 -> 0 | J73: ='SA1'!K25 -> 0 | K73: ='SA1'!L25 -> 0
A74: Electricity/other energy (in excess of 50 kwh per indigent household per month) | C74: ='SA1'!C13 -> 0 | D74: ='SA1'!D13 -> 0 | E74: ='SA1'!E13 -> 0 | F74: ='SA1'!F13 -> 0 | G74: ='SA1'!G13 -> 0 | H74: ='SA1'!H13 -> 0 | I74: ='SA1'!J13 -> 0 | J74: ='SA1'!K13 -> 0 | K74: ='SA1'!L13 -> 0
A75: Refuse (in excess of one removal a week for indigent households) | C75: ='SA1'!C32 -> 0 | D75: ='SA1'!D32 -> 0 | E75: ='SA1'!E32 -> 0 | F75: ='SA1'!F32 -> 0 | G75: ='SA1'!G32 -> 0 | H75: ='SA1'!H32 -> 0 | I75: ='SA1'!J32 -> 0 | J75: ='SA1'!K32 -> 0 | K75: ='SA1'!L32 -> 0
A76: Municipal Housing - rental rebates
A77: Housing - top structure subsidies | B77: 6
A78: Other
A79: Total revenue cost of subsidised services provided | C79: =SUM(C70:C78) -> 0 | D79: =SUM(D70:D78) -> 0 | E79: 0 | F79: 0 | G79: 0 | H79: 0 | I79: 0 | J79: =SUM(J70:J78) -> 0 | K79: =SUM(K70:K78) -> 0
A80: =head27a -> References
A81: 1. Include services provided by another entity; e.g. Eskom
A82: 2. Stand distance <= 200m from dwelling
A83: 3. Stand distance > 200m from dwelling
A84: 4. Borehole, spring, rain-water tank etc.
A85: 5. Must agree to total number of households in municipal area (informal settlements receiving services must be included)
A86: 6. Include value of subsidy provided by municipality above provincial subsidy level
A87: 7. Show number of households receiving at least these levels of services completely free (informal settlements must be included)
A88: 8. Must reflect the cost to the municipality of providing the Free Basic Service
A89: 9. Reflect the cost to the municipality in terms of 'revenue foregone' of providing free services (note this will not equal 'Revenue Foregone' on SA1)

Sheet SA1
A1: =muni&" - "&TableA1 -> DC35 Capricorn - Supporting Table SA1 Supportinging detail to 'Budgeted Financial Performance'
A2: =desc -> Description | B2: =head27 -> Ref | C2: =head1b -> 2016/17 | D2: =head1A -> 2017/18 | E2: =Head1 -> 2018/19 | F2: =Head2 -> Current Year 2019/20 | J2: =Head3 -> 2020/21 Medium Term Revenue & Expenditure Framework
C3: =Head5 -> Audited Outcome | D3: =Head5 -> Audited Outcome | E3: =Head5 -> Audited Outcome | F3: =Head6 -> Original Budget | G3: =Head7 -> Adjusted Budget | H3: =Head8 -> Full Year Forecast | I3: =Head5b -> Pre-audit outcome | J3: =Head9 -> Budget Year 2020/21 | K3: =Head10 -> Budget Year +1 2021/22 | L3: =Head11 -> Budget Year +2 2022/23
A4: R thousand
A5: REVENUE ITEMS:
A6: ='A4-FinPerf RE'!A5 -> Property rates | B6: 6
A7: Total Property Rates
A8: less Revenue Foregone (exemptions, reductions and rebates and impermissable values in excess of section 17 of MPRA)
A9: Net Property Rates | C9: =C7-C8 -> 0 | D9: =D7-D8 -> 0 | E9: 0 | F9: 0 | G9: 0 | H9: 0 | I9: 0 | J9: 0 | K9: 0 | L9: 0
A11: ='A4-FinPerf RE'!A6 -> Service charges - electricity revenue | B11: 6
A12: ="Total "&A11 -> Total Service charges - electricity revenue
A13: less Revenue Foregone (in excess of 50 kwh per indigent household per month)
A14: less Cost of Free Basis Services (50 kwh per indigent household per month) | C14: ='SA9'!E250 -> 0 | D14: ='SA9'!F250 -> 0 | E14: ='SA9'!G250 -> 0 | F14: ='SA9'!H250 -> 0 | G14: ='SA9'!I250 -> 0 | H14: ='SA9'!J250 -> 0 | J14: ='SA9'!K250 -> 0 | K14: ='SA9'!L250 -> 0 | L14: ='SA9'!M250 -> 0
A15: ="Net "& A11 -> Net Service charges - electricity revenue | C15: =C12-C13-C14 -> 0 | D15: =D12-D13-D14 -> 0 | E15: 0 | F15: 0 | G15: 0 | H15: 0 | I15: 0 | J15: 0 | K15: 0 | L15: 0
A17: ='A4-FinPerf RE'!A7 -> Service charges - water revenue | B17: 6
A18: ="Total "&A17 -> Total Service charges - water revenue | D18: 70109503 | E18: 70928518 | F18: 64626000 | G18: 58027000 | H18: 58027000 | I18: 47727331 | J18: 61293000 | K18: 64971000 | L18: 68219000
A19: less Revenue Foregone (in excess of 6 kilolitres per indigent household per month)
A20: less Cost of Free Basis Services (6 kilolitres per indigent household per month) | C20: ='SA9'!E262 -> 0 | D20: ='SA9'!F262 -> 0 | E20: ='SA9'!G262 -> 0 | F20: ='SA9'!H262 -> 0 | G20: ='SA9'!I262 -> 0 | H20: ='SA9'!J262 -> 0 | J20: ='SA9'!K262 -> 0 | K20: ='SA9'!L262 -> 0 | L20: ='SA9'!M262 -> 0
A21: ="Net "& A17 -> Net Service charges - water revenue | C21: =C18-C19-C20 -> 0 | D21: =D18-D19-D20 -> 70109503 | E21: 70928518 | F21: 64626000 | G21: 58027000 | H21: 58027000 | I21: 47727331 | J21: 61293000 | K21: 64971000 | L21: 68219000
A23: ='A4-FinPerf RE'!A8 -> Service charges - sanitation revenue
A24: ="Total "&A23 -> Total Service charges - sanitation revenue | F24: 3401000 | G24: 10000000 | H24: 10000000 | I24: 7431756 | J24: 10816000 | K24: 11465000 | L24: 12039000
A25: less Revenue Foregone (in excess of free sanitation service to indigent households)
A26: less Cost of Free Basis Services (free sanitation service to indigent households) | C26: ='SA9'!E274 -> 0 | D26: ='SA9'!F274 -> 0 | E26: ='SA9'!G274 -> 0 | F26: ='SA9'!H274 -> 0 | G26: ='SA9'!I274 -> 0 | H26: ='SA9'!J274 -> 0 | J26: ='SA9'!K274 -> 0 | K26: ='SA9'!L274 -> 0 | L26: ='SA9'!M274 -> 0
A27: ="Net "& A23 -> Net Service charges - sanitation revenue | C27: =C24-C25-C26 -> 0 | D27: =D24-D25-D26 -> 0 | E27: 0 | F27: 3401000 | G27: 10000000 | H27: 10000000 | I27: 7431756 | J27: 10816000 | K27: 11465000 | L27: 12039000
A29: ='A4-FinPerf RE'!A9 -> Service charges - refuse revenue | B29: 6
A30: Total refuse removal revenue
A31: Total landfill revenue
A32: less Revenue Foregone (in excess of one removal a week to indigent households)
A33: less Cost of Free Basis Services (removed once a week to indigent households) | C33: ='SA9'!E286 -> 0 | D33: ='SA9'!F286 -> 0 | E33: ='SA9'!G286 -> 0 | F33: ='SA9'!H286 -> 0 | G33: ='SA9'!I286 -> 0 | H33: ='SA9'!J286 -> 0 | J33: ='SA9'!K286 -> 0 | K33: ='SA9'!L286 -> 0 | L33: ='SA9'!M286 -> 0
A34: ="Net "& A29 -> Net Service charges - refuse revenue | C34: =SUM(C30:C31)-C32-C33 -> 0 | D34: =SUM(D30:D31)-D32-D33 -> 0 | E34: 0 | F34: 0 | G34: 0 | H34: 0 | I34: 0 | J34: 0 | K34: 0 | L34: 0
A36: Other Revenue by source
A37: Fuel Levy
A38: Tender document, access card, donations etc) | C38: 66087143 | D38: 1833223 | E38: 1680378 | F38: 1344000 | G38: 1344000 | H38: 1344000 | I38: 395278 | J38: 1149000 | K38: 1206000 | L38: 1218000
A39: License fees
A49: Total 'Other' Revenue | B49: 1 | C49: =SUM(C37:C38) -> 66087143 | D49: =SUM(D37:D38) -> 1833223 | E49: =SUM(E37:E38) -> 1680378 | F49: 1344000 | G49: =SUM(G37:G48) -> 1344000 | H49: =SUM(H37:H48) -> 1344000 | I49: 395278 | J49: 1149000 | K49: 1206000 | L49: 1218000
A51: EXPENDITURE ITEMS:
A52: ='A4-FinPerf RE'!A24 -> Employee related costs
A53: Basic Salaries and Wages | B53: 2 | C53: =252540865-C54-C55-C56-C57-C58-C60-C61-C62-C63-C64 -> 161125532.2 | D53: 167332219 | E53: 181193782 | F53: 192204000 | G53: 204580000 | H53: 204580000 | I53: =H53 -> 204580000 | J53: 213357000 | K53: 228293000 | L53: 248840000
A54: Pension and UIF Contributions | C54: 30203275.1 | D54: 32061721 | E54: 33572582 | F54: 37593000 | G54: 38046000 | H54: 38046000 | I54: =H54 -> 38046000 | J54: 39632000 | K54: 42407000 | L54: 46225000
A55: Medical Aid Contributions | C55: 12963416.16 | D55: 13060131 | E55: 13567610 | F55: 14321000 | G55: 15105000 | H55: 15105000 | I55: =H55 -> 15105000 | J55: 15727000 | K55: 16824000 | L55: 18334000
A56: Overtime | C56: 13931744.55 | D56: 0 | E56: 0 | F56: 0 | G56: 22568000 | H56: 22568000 | I56: =H56 -> 22568000 | J56: 23472000 | K56: 25115000 | L56: 27375000
A57: Performance Bonus | C57: 4788849.706 | D57: 16036440 | E57: 14780457 | F57: 19996000 | G57: 6411000 | H57: 6411000 | I57: =H57 -> 6411000 | J57: 6667000 | K57: 7134000 | L57: 7776000
A58: Motor Vehicle Allowance | C58: 17732152.69 | D58: 31115170 | E58: 17280822 | F58: 18618000 | G58: 20617000 | H58: 20617000 | I58: =H58 -> 20617000 | J58: 21665000 | K58: 23185000 | L58: 25271000
A59: Cellphone Allowance | C59: 0 | D59: 47373 | E59: 90686 | F59: 130000 | G59: 122000 | H59: 122000 | I59: =H59 -> 122000 | J59: 140000 | K59: 148000 | L59: 163000
A60: Housing Allowances | C60: 3635694.697 | D60: 2481441 | E60: 2177649 | F60: 2681000 | G60: 2411000 | H60: 2411000 | I60: =H60 -> 2411000 | J60: 2503000 | K60: 2680000 | L60: 2917000
A61: Other benefits and allowances | C61: 4706481.491 | D61: 19536351 | E61: 24564460 | F61: 22222000 | G61: 119000 | H61: 119000 | I61: =H61 -> 119000 | J61: 122000 | K61: 127000 | L61: 134000
A62: Payments in lieu of leave | C62: 1133999.61 | D62: 9404137 | E62: 6346459 | F62: 1626000 | G62: 1626000 | H62: 1626000 | I62: =H62 -> 1626000 | J62: 1691000 | K62: 1809000 | L62: 1972000
A63: Long service awards | C63: 2061120.914 | D63: 1918894 | E63: 2202980 | F63: 2759000 | G63: 2759000 | H63: 2759000 | I63: =H63 -> 2759000 | J63: 2869000 | K63: 3070000 | L63: 3346000
A64: Post-retirement benefit obligations | B64: 4 | C64: 258597.8841 | D64: -32334 | E64: 948937 | F64: 221000 | G64: 528000 | H64: 528000 | I64: =H64 -> 528000 | J64: 549000 | K64: 587000 | L64: 640000
A65: sub-total | B65: 5 | C65: =SUM(C53:C64) -> 252540865 | D65: =SUM(D53:D64) -> 292961543 | E65: 296726424 | F65: 312371000 | G65: 314892000 | H65: 314892000 | I65: 314892000 | J65: 328394000 | K65: 351379000 | L65: 382993000
A66: Less: Employees costs capitalised to PPE
A67: ="Total "&A52 -> Total Employee related costs | B67: 1 | C67: =C65-C66 -> 252540865 | D67: =D65-D66 -> 292961543 | E67: 296726424 | F67: 312371000 | G67: 314892000 | H67: 314892000 | I67: 314892000 | J67: 328394000 | K67: 351379000 | L67: 382993000
A78: ='A4-FinPerf RE'!A27 -> Depreciation & asset impairment
A79: Depreciation of Property, Plant & Equipment | C79: 44451319 | D79: 64204728 | E79: 75870721 | F79: 60575000 | G79: =74698000-G80 -> 70947000 | H79: =74698000-H80 -> 70947000 | I79: 64069301 | J79: 75785000 | K79: 79574000 | L79: 83552000
A80: Lease amortisation | D80: 4390187 | E80: 4670668 | F80: 5051000 | G80: 3751000 | H80: 3751000 | I80: 3435694 | J80: 3939000 | K80: 4136000 | L80: 4343000
A81: Capital asset impairment
A83: ="Total "&LEFT(A78,35) -> Total Depreciation & asset impairment | B83: 1 | C83: =SUM(C79:C81) -> 44451319 | D83: =SUM(D79:D81) -> 68594915 | E83: 80541389 | F83: 65626000 | G83: 74698000 | H83: 74698000 | I83: 67504995 | J83: 79724000 | K83: 83710000 | L83: 87895000
A85: ='A4-FinPerf RE'!A29 -> Bulk purchases
A86: Electricity Bulk Purchases
A87: Water Bulk Purchases | C87: 47965290 | D87: 65223237 | E87: 63918892 | F87: 85428000 | G87: 64644928 | H87: 64644928 | I87: 56669947 | J87: 69170000 | K87: 76779000 | L87: 86760000
A88: Total bulk purchases | B88: 1 | C88: =SUM(C86:C87) -> 47965290 | D88: =SUM(D86:D87) -> 65223237 | E88: 63918892 | F88: 85428000 | G88: 64644928 | H88: 64644928 | I88: 56669947 | J88: 69170000 | K88: 76779000 | L88: 86760000
A90: Transfers and grants
A91: Cash transfers and grants | C91: ='SA21'!C35 -> 1600000 | D91: 21745646 | E91: 3030658 | G91: =[4]SB1!$K$92 -> 3000000 | H91: =G91 -> 3000000 | I91: ='SA21'!I35 -> 708158
A92: Non-cash transfers and grants | C92: ='SA21'!C68 -> 0 | D92: ='SA21'!D68 -> 0 | E92: ='SA21'!E68 -> 0 | F92: ='SA21'!F68 -> 0 | G92: ='SA21'!G68 -> 0 | H92: ='SA21'!H68 -> 0 | I92: ='SA21'!I68 -> 0 | J92: ='SA21'!J68 -> 0 | K92: ='SA21'!K68 -> 0 | L92: ='SA21'!L68 -> 0
A93: Total transfers and grants | B93: 1 | C93: =SUM(C91:C92) -> 1600000 | D93: =SUM(D91:D92) -> 21745646 | E93: 3030658 | F93: 0 | G93: 3000000 | H93: 3000000 | I93: 708158 | J93: 0 | K93: 0 | L93: 0
A95: ='A4-FinPerf RE'!A31 -> Contracted services
A96: Outsourced Services | C96: 136193299 | D96: 79542983 | E96: 97376103 | F96: 147443000 | G96: 105503000 | H96: 105503000 | I96: 66803965 | J96: =163778000-J97-J98 -> 113999000 | K96: =166745000-K97-K98 -> 119774000 | L96: =171775000-L97-L98 -> 125629000
A97: Consultants and Professional Services | D97: 8908303 | E97: 9125790 | F97: 10586000 | G97: 14344000 | H97: 14344000 | I97: 9095587 | J97: 14635000 | K97: 14839000 | L97: 13339000
A98: Contractors | D98: 11299701 | E98: 13255772 | F98: 19477000 | G98: 34743000 | H98: 34743000 | I98: 32534222 | J98: 35144000 | K98: 32132000 | L98: 32807000
A100: Total contracted services | C100: =SUM(C96:C98) -> 136193299 | D100: 99750987 | E100: 119757665 | F100: 177506000 | G100: 154590000 | H100: 154590000 | I100: 108433774 | J100: 163778000 | K100: 166745000 | L100: 171775000
A102: Other Expenditure By Type
A103: Collection costs | C103: 32975213 | E103: 26690129 | F103: 45318000 | G103: 58318000 | H103: 58318000 | I103: 55158755 | J103: 62460000 | K103: 66208000 | L103: 69416000
A104: Contributions to 'other' provisions | F104: 0 | G104: 0 | H104: =G104 -> 0 | I104: 0 | J104: 0 | K104: 0 | L104: 0
C105: 0 | D105: 0 | H105: 0
A106: Audit fees | C106: 2570577 | F106: 4263000 | G106: 4263000 | H106: 4263000 | I106: 3798792 | J106: 4902000 | K106: 5637000 | L106: 6483000
H107: 0
H108: 0
A109: Other Expenditure | C109: =106952391-C106-C103 -> 71406601 | D109: 80077161 | E109: 58708488 | F109: 64513000 | G109: 68798000 | H109: 68798000 | I109: 45041418 | J109: =138287000-J103-J106 -> 70925000 | K109: =145393000-K103-K106 -> 73548000 | L109: =152950000-L103-L106 -> 77051000
A110: Total 'Other' Expenditure | B110: 1 | C110: =+C103+C104+C106+C109 -> 106952391 | D110: 80077161 | E110: 85398617 | F110: 114094000 | G110: 131379000 | H110: 131379000 | I110: 103998965 | J110: 138287000 | K110: 145393000 | L110: 152950000
A112: Repairs and Maintenance by Expenditure Item | B112: 8
A113: Employee related costs | F113: 0 | G113: 0 | I113: 0 | J113: 0 | K113: 0 | L113: 0
A114: Other materials | F114: 615000 | G114: 675000 | H114: 675000 | I114: 673642 | J114: 700000 | K114: 750000 | L114: 750000
A115: Contracted Services | F115: 15096000 | G115: 34067100 | H115: 34067100 | I115: 29292758 | J115: =23164000-J114 -> 22464000 | K115: =21476000-K114 -> 20726000 | L115: =22651000-L114 -> 21901000
A116: Other Expenditure | D116: 13476880 | E116: 17905572 | F116: 0 | G116: 0 | I116: 0 | J116: 0 | K116: 0 | L116: 0
A117: Total Repairs and Maintenance Expenditure | B117: 9 | C117: =SUM(C113:C116) -> 0 | D117: =SUM(D113:D116) -> 13476880 | E117: 17905572 | F117: 15711000 | G117: 34742100 | H117: 34742100 | I117: 29966400 | J117: 23164000 | K117: 21476000 | L117: 22651000
A119: check | C119: =C117-SA34c!C167 -> 0 | D119: =D117-SA34c!D167 -> 0 | E119: =E117-SA34c!E167 -> 0 | F119: =F117-SA34c!F167 -> 0 | G119: =G117-SA34c!G167 -> 0 | H119: =H117-SA34c!H167 -> 0 | J119: =J117-SA34c!I167 -> 0 | K119: =K117-SA34c!J167 -> 0 | L119: =L117-SA34c!K167 -> 0
A122: =head27a -> References
A123: 1. Must reconcile with 'Budgeted Financial Performance (Revenue and Expenditure)
A124: 2. Must reconcile to supporting documentation on staff salaries
A126: 4. Expenditure to meet any 'unfunded obligations'
A127: 5 This sub-total must agree with the total on SA22, but excluding councillor and board member items
A128: 6. Include a note for each revenue item that is affected by 'revenue foregone'
A129: 7. Special consideration may have to be given to including 'goodwill arising' or 'joint venture' budgets where circumstances require this (include separately under relevant notes)
A130: 8. Repairs and Maintenance is not a GRAP item. However to facilitate transparency, municipalities must provide a breakdown of the amounts included in the relevant GRAP items that will be spent on Repairs and Maintenance.
A131: 9. Must reconcile with Repairs and Maintenance by Asset Class (Total Repairs and Maintenance) on Table SA34c.
A132: 10. Only applicable to municipalities that have adopted the 'revaluation method' in GRAP 17. The aim is to prevent overstating 'depreciation and asset impairment'

Sheet SA2
A1: =muni&" - "&TableA2 -> DC35 Capricorn - Supporting Table SA2 Matrix Financial Performance Budget (revenue source/expenditure type and dept.)
A2: =desc -> Description | B2: =head27 -> Ref | C2: ='A3-FinPerf V'!A5 -> Vote 1 - Municipal governance and administration | D2: ='A3-FinPerf V'!A6 -> Vote 2 - Community and social services | E2: ='A3-FinPerf V'!A7 -> Vote 3 - Economic and environmental services | F2: ='A3-FinPerf V'!A8 -> Vote 4 - Trading services | G2: ='A3-FinPerf V'!A9 -> 0 | H2: ='A3-FinPerf V'!A10 -> 0 | I2: ='A3-FinPerf V'!A11 -> 0 | J2: ='A3-FinPerf V'!A12 -> 0 | K2: ='A3-FinPerf V'!A13 -> 0 | L2: ='A3-FinPerf V'!A14 -> 0 | M2: ='A3-FinPerf V'!A15 -> 0 | N2: ='A3-FinPerf V'!A16 -> 0 | O2: ='A3-FinPerf V'!A17 -> 0 | P2: ='A3-FinPerf V'!A18 -> 0 | Q2: ='A3-FinPerf V'!A19 -> 0 | R2: Total
A3: R thousand | B3: 1 | C3: R'000 | D3: R'000 | E3: R'000 | F3: R'000 | G3: R'000 | H3: R'000 | Q3: R'000 | R3: R'000
A4: ='A4-FinPerf RE'!A4 -> Revenue By Source
A5: ='A4-FinPerf RE'!A5 -> Property rates | R5: =SUM(C5:Q5) -> 0
A6: ='A4-FinPerf RE'!A6 -> Service charges - electricity revenue | R6: =SUM(C6:Q6) -> 0
A7: ='A4-FinPerf RE'!A7 -> Service charges - water revenue | C7: 61293000 | D7: 0 | E7: 0 | F7: 0 | R7: 61293000
A8: ='A4-FinPerf RE'!A8 -> Service charges - sanitation revenue | C8: 10816000 | D8: 0 | E8: 0 | F8: 0 | R8: 10816000
A9: ='A4-FinPerf RE'!A9 -> Service charges - refuse revenue | C9: 0 | D9: 0 | E9: 0 | F9: 0 | R9: 0
A11: ='A4-FinPerf RE'!A11 -> Rental of facilities and equipment | C11: 0 | D11: 0 | E11: 0 | F11: 0 | R11: 0
A12: ='A4-FinPerf RE'!A12 -> Interest earned - external investments | C12: 29470000 | D12: 0 | E12: 0 | F12: 0 | R12: 29470000
A13: ='A4-FinPerf RE'!A13 -> Interest earned - outstanding debtors | C13: 0 | D13: 0 | E13: 0 | F13: 0 | R13: 0
A14: ='A4-FinPerf RE'!A14 -> Dividends received | C14: 0 | D14: 0 | E14: 0 | F14: 0 | R14: 0
A15: ='A4-FinPerf RE'!A15 -> Fines, penalties and forfeits | C15: 0 | D15: 0 | E15: 0 | F15: 0 | R15: 0
A16: ='A4-FinPerf RE'!A16 -> Licences and permits | C16: 0 | D16: 0 | E16: 0 | F16: 0 | R16: 0
A17: ='A4-FinPerf RE'!A17 -> Agency services | C17: 0 | D17: 0 | E17: 0 | F17: 0 | R17: 0
A18: ='A4-FinPerf RE'!A19 -> Other revenue | C18: 1149000 | D18: 0 | E18: 0 | F18: 0 | R18: 1149000
A19: ='A4-FinPerf RE'!A18 -> Transfers and subsidies | C19: 263766000 | D19: 75201000 | E19: 40132000 | F19: 250291000 | R19: 629390000
A20: ='A4-FinPerf RE'!A20 -> Gains | C20: 0 | D20: 0 | E20: 0 | F20: 0 | R20: 0
A21: ='A4-FinPerf RE'!A21 -> Total Revenue (excluding capital transfers and contributions) | C21: =SUM(C5:C9)+SUM(C11:C20) -> 366494000 | D21: =SUM(D5:D9)+SUM(D11:D20) -> 75201000 | E21: 40132000 | F21: 250291000 | G21: 0 | H21: 0 | I21: 0 | J21: 0 | K21: 0 | L21: 0 | M21: 0 | N21: 0 | O21: 0 | P21: 0 | Q21: 0 | R21: =SUM(R5:R9)+SUM(R11:R20) -> 732118000
A23: ='A4-FinPerf RE'!A23 -> Expenditure By Type
A24: ='A4-FinPerf RE'!A24 -> Employee related costs | C24: 135309000 | D24: 65178000 | E24: 21873000 | F24: 106034000 | R24: =SUM(C24:Q24) -> 328394000
A25: ='A4-FinPerf RE'!A25 -> Remuneration of councillors | C25: 16206000 | D25: 0 | E25: 0 | F25: 0 | R25: =SUM(C25:Q25) -> 16206000
A26: ='A4-FinPerf RE'!A26 -> Debt impairment | C26: 9649000 | D26: 0 | E26: 0 | F26: 0 | R26: 9649000
A27: ='A4-FinPerf RE'!A27 -> Depreciation & asset impairment | C27: 19968000 | D27: 0 | E27: 0 | F27: 59756000 | R27: 79724000
A28: ='A4-FinPerf RE'!A28 -> Finance charges | C28: 470000 | D28: 0 | E28: 0 | F28: 0 | R28: 470000
A29: ='A4-FinPerf RE'!A29 -> Bulk purchases | C29: 0 | D29: 0 | E29: 0 | F29: 69170000 | R29: 69170000
A30: ='A4-FinPerf RE'!A30 -> Other materials | C30: 1232000 | D30: 0 | E30: 22000 | F30: 4910000 | R30: 6164000
A31: ='A4-FinPerf RE'!A31 -> Contracted services | C31: 98438000 | D31: 5124000 | E31: 16987000 | F31: 36152000 | R31: 156701000
A32: ='A4-FinPerf RE'!A32 -> Transfers and subsidies | C32: 1200000 | D32: 0 | E32: 0 | F32: 0 | R32: 1200000
A33: ='A4-FinPerf RE'!A33 -> Other expenditure | C33: 121791000 | D33: 3649000 | E33: 1250000 | F33: 6920000 | R33: 133610000
A34: ='A4-FinPerf RE'!A34 -> Losses | C34: 0 | D34: 0 | E34: 0 | F34: 0 | R34: 0
A35: Total Expenditure | C35: =SUM(C24:C34) -> 404263000 | D35: 73951000 | E35: 40132000 | F35: 282942000 | G35: 0 | H35: 0 | I35: 0 | J35: 0 | K35: 0 | L35: 0 | M35: 0 | N35: 0 | O35: 0 | P35: 0 | Q35: 0 | R35: 801288000
A37: ='A4-FinPerf RE'!A37 -> Surplus/(Deficit) | C37: =C21-C35 -> -37769000 | D37: 1250000 | E37: 0 | F37: -32651000 | G37: 0 | H37: 0 | I37: =I21-I35 -> 0 | J37: 0 | K37: 0 | L37: 0 | M37: 0 | N37: 0 | O37: 0 | P37: 0 | Q37: 0 | R37: =R21-R35 -> -69170000
A38: ='A4-FinPerf RE'!A38 -> Transfers and subsidies - capital (monetary allocations) (National / Provincial and District) | F38: 309161000 | R38: =SUM(C38:Q38) -> 309161000
A39: ='A4-FinPerf RE'!A39 -> Transfers and subsidies - capital (monetary allocations) (National / Provincial Departmental Agencies, Households, Non-profit Institutions, Private Enterprises, Public Corporatons, Higher Educational Institutions) | R39: =SUM(C39:Q39) -> 0
A40: ='A4-FinPerf RE'!A40 -> Transfers and subsidies - capital (in-kind - all) | R40: =SUM(C40:Q40) -> 0
A41: ='A4-FinPerf RE'!A41 -> Surplus/(Deficit) after capital transfers & contributions | C41: =SUM(C37:C40) -> -37769000 | D41: 1250000 | E41: 0 | F41: 276510000 | G41: 0 | H41: 0 | I41: 0 | J41: 0 | K41: 0 | L41: 0 | M41: 0 | N41: 0 | O41: 0 | P41: 0 | Q41: =SUM(Q37:Q40) -> 0 | R41: =SUM(R37:R40) -> 239991000
A42: =head27a -> References
A43: 1. Departmental columns to be based on municipal organisation structure
A44: check balance | R44: ='A4-FinPerf RE'!J41-'SA2'!R41 -> 1662000

Sheet SA3
A1: =muni&" - "&TableA3 -> DC35 Capricorn - Supporting Table SA3 Supportinging detail to 'Budgeted Financial Position'
A2: =desc -> Description | B2: =head27 -> Ref | C2: =head1b -> 2016/17 | D2: =head1A -> 2017/18 | E2: =Head1 -> 2018/19 | F2: =Head2 -> Current Year 2019/20 | J2: =Head3 -> 2020/21 Medium Term Revenue & Expenditure Framework
C3: =Head5 -> Audited Outcome | D3: =Head5 -> Audited Outcome | E3: =Head5 -> Audited Outcome | F3: =Head6 -> Original Budget | G3: =Head7 -> Adjusted Budget | H3: =Head8 -> Full Year Forecast | I3: =Head5b -> Pre-audit outcome | J3: =Head9 -> Budget Year 2020/21 | K3: =Head10 -> Budget Year +1 2021/22 | L3: =Head11 -> Budget Year +2 2022/23
A4: R thousand
A5: ASSETS
A6: ='[5]A6-FinPos'!A7 -> Call investment deposits
A7: Call deposits | F7: 123656477.9 | G7: =[4]SB2!$K$8 -> 123656477.9 | H7: =G7 -> 123656477.9 | I7: =H7 -> 123656477.9 | J7: =I7*0.9 -> 111290830.1 | K7: =J7*0.9 -> 100161747.1 | L7: =K7*0.9 -> 90145572.37
A8: Other current investments | C8: 243656478 | D8: 269752675
A9: ="Total "&A6 -> Total Call investment deposits | D9: =SUM(D7:D8) -> 269752675 | F9: =SUM(F7:F8) -> 123656477.9 | G9: =SUM(G7:G8) -> 123656477.9 | H9: 123656477.9 | I9: 123656477.9 | J9: 111290830.1 | K9: 100161747.1 | L9: 90145572.37
A11: ='A6-FinPos'!A8 -> Consumer debtors
A12: =A11 -> Consumer debtors | C12: 49337408 | D12: 275003195 | E12: 273464467 | F12: 175245246 | G12: 273464465 | H12: 273464465 | I12: 57622860 | J12: 312029068 | K12: 364005868 | L12: 418581068
A13: Less: Provision for debt impairment | D13: -234568958 | E13: -217507810 | F13: -98405146 | G13: -217507809 | H13: -217507809 | I13: 0 | J13: -202877806 | K13: -265082606 | L13: -330499806
A14: ="Total "&A11 -> Total Consumer debtors | B14: 2 | C14: =SUM(C12:C13) -> 49337408 | D14: =SUM(D12:D13) -> 40434237 | E14: 55956657 | F14: =SUM(F12:F13) -> 76840100 | G14: 55956656 | H14: 55956656 | I14: 57622860 | J14: 109151262 | K14: 98923262 | L14: 88081262
A16: Debt impairment provision
A17: Balance at the beginning of the year | D17: -6633877 | E17: -144194410 | F17: -98405146 | G17: -144194410 | H17: -144194410 | I17: 0 | J17: -144194406 | K17: -202877806 | L17: -265082606
A18: Contributions to the provision | D18: -91771270 | E18: 0 | F18: 0 | G18: 0 | H18: 0 | I18: 0 | J18: -58683400 | K18: -62204800 | L18: -65417200
A19: Bad debts written off | D19: -136163811 | E19: -73313400 | F19: 0 | G19: -73313399 | H19: -73313399 | I19: 0 | J19: 0 | K19: 0 | L19: 0
A20: Balance at end of year | C20: =SUM(C17:C19) -> 0 | D20: =SUM(D17:D19) -> -234568958 | E20: -217507810 | F20: -98405146 | G20: -217507809 | H20: -217507809 | I20: 0 | J20: -202877806 | K20: -265082606 | L20: -330499806
A22: ='A6-FinPos'!A19&" (PPE)" -> Property, plant and equipment (PPE)
A23: PPE at cost/valuation (excl. finance leases) | C23: 2084470222 | D23: 2877920026 | E23: 3181079012 | F23: 3463229163 | G23: 3581049063 | H23: 3581049063 | I23: 355638455 | J23: 3856432218 | K23: 4221987218 | L23: 4585047218
A24: Leases recognised as PPE | B24: 3 | D24: 10260644 | E24: 5295742 | F24: 10260643 | G24: 5295741 | H24: 5295741 | I24: 0 | J24: 5295741 | K24: 5295741 | L24: 5295741
A25: Less: Accumulated depreciation | D25: -513986241 | E25: -580610341 | F25: -557764793 | G25: -588843334 | H25: -588843334 | I25: -64069301 | J25: -722945591 | K25: -805248591 | L25: -891802591
A26: ="Total "&A22 -> Total Property, plant and equipment (PPE) | B26: 2 | C26: =SUM(C23:C24)-C25 -> 2084470222 | D26: =SUM(D23:D24)-D25 -> 3402166911 | E26: 3766985095 | F26: 4031254599 | G26: 4175188138 | H26: 4175188138 | I26: 419707756 | J26: 4584673550 | K26: 5032531550 | L26: 5482145550
A28: LIABILITIES
A29: ='A6-FinPos'!A28&" - "&'A6-FinPos'!A30 -> Current liabilities - Borrowing
A30: Short term loans (other than bank overdraft) | C30: 353141 | D30: 140262 | E30: 212296 | F30: 150205 | G30: 212295 | H30: 212295 | I30: 42870 | J30: 288533 | K30: 288533 | L30: 288533
A31: Current portion of long-term liabilities | D31: 1759134 | E31: 1948162 | F31: 1899080 | G31: 1948161 | H31: 1948161 | I31: -1442324 | J31: 0 | K31: 0 | L31: 0
A32: ="Total "&A29 -> Total Current liabilities - Borrowing | C32: =SUM(C30:C31) -> 353141 | D32: =SUM(D30:D31) -> 1899396 | E32: 2160458 | F32: 2049285 | G32: 2160456 | H32: 2160456 | I32: -1399454 | J32: 288533 | K32: 288533 | L32: 288533
A34: ='A6-FinPos'!A32 -> Trade and other payables
A35: Trade Payables | B35: 5 | C35: 128072908 | D35: 242053515 | E35: 114827826 | F35: 93051682 | G35: 114909044 | H35: 114909044 | I35: 40147677 | J35: 137633984 | K35: 120706984 | L35: 102264984
A36: Other creditors | D36: 0 | E36: 0 | F36: 0 | G36: 0 | H36: 0 | I36: -58925477 | J36: -61368476 | K36: -63945476 | L36: -66671476
A37: Unspent conditional transfers | C37: 0 | D37: 371801 | E37: 0 | F37: 50537329 | G37: 0 | H37: 0 | I37: 151846042 | J37: 154289047 | K37: 156866047 | L37: 159592047
A38: VAT | D38: -51758892 | E38: 4798857 | F38: -5450165 | G38: 4798856 | H38: 4798856 | I38: 44372 | J38: 5462831 | K38: 5462831 | L38: 5462831
A39: ="Total "&A34 -> Total Trade and other payables | B39: 2 | C39: =SUM(C35:C38) -> 128072908 | D39: 190666424 | E39: 119626683 | F39: 138138846 | G39: 119707900 | H39: 119707900 | I39: 133112614 | J39: 236017386 | K39: 219090386 | L39: =SUM(L35:L38) -> 200648386
A41: ='A6-FinPos'!A36&" - "&'A6-FinPos'!A37 -> Non current liabilities - Borrowing
A42: Borrowing | B42: 4 | D42: 0 | E42: 0 | F42: 0 | G42: 0 | H42: 0 | I42: 0 | J42: 0 | K42: 0 | L42: 0
A43: Finance leases (including PPP asset element) | C43: 14115 | D43: 1948162 | E43: 0 | F43: 0 | G43: 0 | H43: 0 | I43: -1 | J43: 0 | K43: 0 | L43: 0
A44: ="Total "&A41 -> Total Non current liabilities - Borrowing | C44: =SUM(C42:C43) -> 14115 | D44: =SUM(D42:D43) -> 1948162 | E44: 0 | F44: 0 | G44: 0 | H44: 0 | I44: -1 | J44: 0 | K44: 0 | L44: 0
A46: ='A6-FinPos'!A38&" - non-current" -> Provisions - non-current
A47: Retirement benefits | C47: 29040301 | D47: 393000 | E47: 401000 | F47: 392999 | G47: 401000 | H47: 401000 | I47: 0 | J47: 401000 | K47: 401000 | L47: 401000
C48: 14115
A49: Refuse landfill site rehabilitation | D49: 0 | E49: 0 | F49: 0 | G49: 0 | H49: 0 | I49: 0 | J49: 0 | K49: 0 | L49: 0
A50: Other | D50: 36448682 | E50: 42697617 | F50: 36448683 | G50: 42697617 | H50: 42697617 | I50: 0 | J50: 42697617 | K50: 42697617 | L50: 42697617
A51: ="Total "&A46 -> Total Provisions - non-current | C51: =+C47+C49+C50 -> 29040301 | D51: 36841682 | E51: 43098617 | F51: 36841682 | G51: 43098617 | H51: 43098617 | I51: =+I47+I49+I50 -> 0 | J51: =+J47+J49+J50 -> 43098617 | K51: 43098617 | L51: 43098617
A53: CHANGES IN NET ASSETS
A54: ='A6-FinPos'!A45 -> Accumulated Surplus/(Deficit)
A55: =A54&" - opening balance" -> Accumulated Surplus/(Deficit) - opening balance | C55: 2191740956 | D55: 2485765477 | E55: 2597054823 | F55: 2162541093 | G55: 2135855626 | H55: 2118856626 | I55: 0 | J55: 2999614605 | K55: 3088372805 | L55: 3230950605
A56: GRAP adjustments | C56: -272411631.6 | D56: 0 | E56: 0 | F56: 0 | G56: 0 | H56: 0 | I56: 0 | J56: 0 | K56: 0 | L56: 0
A57: Restated balance | C57: =SUM(C55:C56) -> 1919329324 | D57: =SUM(D55:D56) -> 2485765477 | E57: =SUM(E55:E56) -> 2597054823 | F57: =SUM(F55:F56) -> 2162541093 | G57: 2135855626 | H57: 2118856626 | I57: 0 | J57: 2999614605 | K57: 3088372805 | L57: 3230950605
A58: ='A4-FinPerf RE'!A37 -> Surplus/(Deficit) | C58: ='[5]A4-FinPerf RE'!C45 -> 298286756.5 | D58: ='[5]A4-FinPerf RE'!D45 -> 25875124.72 | E58: ='A4-FinPerf RE'!E45 -> 223516582 | F58: ='A4-FinPerf RE'!F45 -> 243508000 | G58: ='A4-FinPerf RE'!G45 -> 377002000 | H58: ='A4-FinPerf RE'!H45 -> 377002000 | I58: ='A4-FinPerf RE'!I45 -> 412372231 | J58: ='A4-FinPerf RE'!J45 -> 241653000 | K58: ='A4-FinPerf RE'!K45 -> 283592000 | L58: ='A4-FinPerf RE'!L45 -> 276912000
A60: Transfers to/from Reserves
A61: Depreciation offsets | D61: -2781 | E61: 0 | F61: 0 | G61: 0 | H61: 0 | I61: 0 | J61: 0 | K61: 0 | L61: 0
A62: Other adjustments | D62: -40951961 | E62: -42577588 | F62: 0 | G62: -3736543 | H62: -3736543 | I62: 0 | J62: 0 | K62: 0 | L62: 0
A63: Accumulated Surplus/(Deficit) | B63: 1 | C63: =SUM(C57:C62) -> 2217616081 | D63: =SUM(D57:D62) -> 2470685860 | E63: =SUM(E57:E62) -> 2777993817 | F63: 2406049093 | G63: 2509121083 | H63: 2492122083 | I63: 412372231 | J63: 3241267605 | K63: 3371964805 | L63: 3507862605
A64: Reserves
A65: Housing Development Fund
A66: Capital replacement
A67: Self-insurance
A68: Other reserves
A69: Revaluation
A70: Total Reserves | B70: 2 | C70: =SUM(C65:C69) -> 0 | D70: 0 | E70: 0 | F70: 0 | G70: 0 | H70: 0 | I70: 0 | J70: 0 | K70: 0 | L70: 0
A71: ='A6-FinPos'!A48 -> TOTAL COMMUNITY WEALTH/EQUITY | B71: 2 | C71: =C63+C70 -> 2217616081 | D71: 2470685860 | E71: 2777993817 | F71: 2406049093 | G71: 2509121083 | H71: 2492122083 | I71: 412372231 | J71: 3241267605 | K71: 3371964805 | L71: 3507862605
A77: =head27a -> References
A78: ="1. Must reconcile with "&'Template names'!F103 -> 1. Must reconcile with Table A4 Budgeted Financial Performance (revenue and expenditure)
A79: ="2. Must reconcile with "&'Template names'!F105 -> 2. Must reconcile with Table A6 Budgeted Financial Position
A80: 3. Leases treated as assets to be depreciated as the same as purchased/constructed assets. Includes PPP asset element accounted for as finance leases
A81: 4. Borrowing must reconcile to Table A17
A82: 5. Trade Payable should only include Trade Payables from Exchance Transactions ("True Creditors")
A83: check | C83: =C71-'A6-FinPos'!C48 -> 0 | D83: =D71-'A6-FinPos'!D48 -> 0 | E83: =E71-'A6-FinPos'!E48 -> 0 | F83: =F71-'A6-FinPos'!F48 -> 0 | G83: =G71-'A6-FinPos'!G48 -> 0 | H83: =H71-'A6-FinPos'!H48 -> 0 | I83: 0 | J83: =J71-'A6-FinPos'!J48 -> 0 | K83: =K71-'A6-FinPos'!K48 -> 0 | L83: =L71-'A6-FinPos'!L48 -> 0
C84: =TREND(D84:H84) -> 0 | D84: =TREND(E84:H84) -> 0 | E84: =E74 -> 0 | F84: =H74 -> 0 | G84: =J74 -> 0 | H84: =K74 -> 0 | I84: =L74 -> 0

Sheet SA4
A1: =muni&" - "&TableA4 -> DC35 Capricorn - Supporting Table SA4 Reconciliation of IDP strategic objectives and budget (revenue)
A2: Strategic Objective | B2: Goal | C2: Goal Code | D2: =head27 -> Ref | E2: =head1b -> 2016/17 | F2: =head1A -> 2017/18 | G2: =Head1 -> 2018/19 | H2: =Head2 -> Current Year 2019/20 | K2: =Head3 -> 2020/21 Medium Term Revenue & Expenditure Framework
A3: R thousand | E3: =Head5 -> Audited Outcome | F3: =Head5 -> Audited Outcome | G3: =Head5 -> Audited Outcome | H3: =Head6 -> Original Budget | I3: =Head7 -> Adjusted Budget | J3: =Head8 -> Full Year Forecast | K3: =Head9 -> Budget Year 2020/21 | L3: =Head10 -> Budget Year +1 2021/22 | M3: =Head11 -> Budget Year +2 2022/23
A4: Good governance & Administration | B4: To have an enhanced productivity & technical capacity | E4: 278074346.6 | F4: 373003170 | G4: 598058852 | H4: 350980000 | I4: 443154928 | J4: 443154928 | K4: 366494000 | L4: 383610000 | M4: 414976000
A5: Trading Services | B5: To provide sustainable basic water services and infrastructure development | E5: 514715531.8 | F5: 497726341 | G5: 374362778 | H5: 550507000 | I5: 576189000 | J5: 576189000 | K5: 571668000 | L5: 636000000 | M5: 647697000
A6: Fire & Rescue | B6: To ensure provision of effective fire fighting and rescue services in the district | E6: 45251627 | F6: 40127693 | H6: 56374000 | I6: 52024000 | J6: 52024000 | K6: 41470000 | L6: 44514000 | M6: 48740000
A7: Planning, economic & Development | B7: To create an environment that stimulate economic growth and development | E7: 14019004 | F7: 30841210 | G7: 3642000 | H7: 19880000 | I7: 22888000 | J7: 22888000 | K7: 21056000 | L7: 21125000 | M7: 22821000
A8: Enviromental management | B8: To provide municipal health and enviroment to communities | E8: 9502523 | F8: 9152204 | H8: 13783000 | I8: 15161000 | J8: 15161000 | K8: 14921000 | L8: 15336000 | M8: 15793000
A9: Municpal Roads and Transport | B9: To coordinate and promote reliable, safe road network, efficient ,accessible and affordable transport services | E9: 3673377 | F9: 3172818 | G9: 2422000 | H9: 3366000 | I9: 3386000 | J9: 3386000 | K9: 4155000 | L9: 4468000 | M9: 4812000
A10: Sports and recreation | B10: To improve access to sports facilities and recreational facilities | E10: 0 | F10: 0 | H10: 4288000 | I10: 3858000 | J10: 3858000 | K10: 4747000 | L10: 5094000 | M10: 5477000
A11: Community and social services | B11: To promote and sustain an integrated approach disaster management continuum in CDM | E11: 32917509.09 | F11: 24674532 | H11: 13430000 | I11: 12383000 | J11: 12383000 | K11: 12680000 | L11: 13882000 | M11: 15555000
A13: Health | B13: To ensure provision of effective Municipal Health services in the District that efficiently address all the felt needs and aspirationa of local communities | H13: 16932000 | I13: 15272000 | J13: 15272000 | K13: 16304000 | L13: 17782000 | M13: 19405000
A21: Allocations to other priorities | D21: 2
A22: ='A4-FinPerf RE'!A21 -> Total Revenue (excluding capital transfers and contributions) | D22: 1 | E22: =SUM(E4:E21) -> 898153918.5 | F22: 978697968 | G22: 978485630 | H22: 1029540000 | I22: 1144315928 | J22: 1144315928 | K22: 1053495000 | L22: 1141811000 | M22: 1195276000
A23: =head27a -> References
A24: ="1. Total revenue must reconcile to "&'Template names'!F103 -> 1. Total revenue must reconcile to Table A4 Budgeted Financial Performance (revenue and expenditure)
A25: 2. Balance of allocations not directly linked to an IDP strategic objective
A26: check op revenue balance | E26: =E22-'A4-FinPerf RE'!C59 -> -40630986.46 | F26: =F22-'A4-FinPerf RE'!D59 -> 0 | G26: =G22-'A4-FinPerf RE'!E59 -> 0 | H26: =H22-'A4-FinPerf RE'!F59 -> 0 | I26: =I22-'A4-FinPerf RE'!G59 -> 0 | J26: =J22-'A4-FinPerf RE'!H59 -> 0 | K26: =K22-'A4-FinPerf RE'!J59 -> 0 | L26: =L22-'A4-FinPerf RE'!K59 -> 0 | M26: =M22-'A4-FinPerf RE'!L59 -> 0

Sheet SA5
A1: =muni&" - "&TableA5 -> DC35 Capricorn - Supporting Table SA5 Reconciliation of IDP strategic objectives and budget (operating expenditure)
A2: Strategic Objective | B2: Goal | C2: Goal Code | D2: =head27 -> Ref | E2: =head1b -> 2016/17 | F2: =head1A -> 2017/18 | G2: =Head1 -> 2018/19 | H2: =Head2 -> Current Year 2019/20 | K2: =Head3 -> 2020/21 Medium Term Revenue & Expenditure Framework
A3: R thousand | E3: =Head5 -> Audited Outcome | F3: =Head5 -> Audited Outcome | G3: =Head5 -> Audited Outcome | H3: =Head6 -> Original Budget | I3: =Head7 -> Adjusted Budget | J3: =Head8 -> Full Year Forecast | K3: =Head9 -> Budget Year 2020/21 | L3: =Head10 -> Budget Year +1 2021/22 | M3: =Head11 -> Budget Year +2 2022/23
A4: Good governance & Administration | B4: To have an enhanced productivity & technical capacity | E4: 365918778.1 | F4: 400317885 | G4: 343632421 | H4: 351960000 | I4: 379011928 | J4: 379011928 | K4: 355708000 | L4: 377802000 | M4: 415560000
A6: Trading Services | B6: To provide sustainable basic water services and infrastructure development | E6: 450476258.4 | F6: 219629971 | G6: 351459584 | H6: 321519000 | I6: -278830000 | J6: 278830000 | K6: 343051000 | L6: 359066000 | M6: 371051000
A8: Fire & Rescue | B8: To ensure provision of effective fire fighting and rescue services in the district | E8: 43569253.75 | F8: 40127693 | G8: 41757585.23 | H8: 40874000 | I8: 36524000 | J8: 36524000 | K8: 40220000 | L8: 43664000 | M8: 47890000
A10: Planning, economic & Development | B10: To create an environment that stimulate economic growth and development | E10: 14019004 | F10: 30841210 | G10: 17630154.54 | H10: 19880000 | I10: 22888000 | J10: 22888000 | K10: 21056000 | L10: 21125000 | M10: 22821000
A11: Enviromental management | B11: To provide municipal health and enviroment to communities | E11: 9502523 | F11: 9152204 | G11: 7820962.19 | H11: 13783000 | I11: 15161000 | J11: 15161000 | K11: 14921000 | L11: 15336000 | M11: 15793000
A12: Municpal Roads and Transport | B12: To coordinate and promote reliable, safe road network, efficient ,accessible and affordable transport services | E12: 3673377 | F12: 3172818 | G12: 3144638.22 | H12: 3366000 | I12: 3386000 | J12: 3386000 | K12: 4155000 | L12: 4468000 | M12: 4812000
A13: Sports and recreation | B13: To improve access to sports facilities and recreational facilities | E13: 0 | F13: 0 | G13: 1189821.67 | H13: 4288000 | I13: 3858000 | J13: 3858000 | K13: 4747000 | L13: 5094000 | M13: 5477000
A15: Community and social services | B15: To promote and sustain an integrated approach disaster management continuum in CDM | E15: 56188946.74 | F15: 25786240 | G15: 12909422.29 | H15: 13430000 | I15: 12383000 | J15: 12383000 | K15: 12680000 | L15: 13882000 | M15: 15555000
A16: Health | B16: To ensure provision of effective Municipal Health services in the District that efficiently address all the felt needs and aspirationa of local communities | G16: 15033843.87 | H16: 16932000 | I16: 15272000 | J16: 15272000 | K16: 15304000 | L16: 17782000 | M16: 19405000
A22: Allocations to other priorities
A23: ='A4-FinPerf RE'!A35 -> Total Expenditure | D23: 1 | E23: =SUM(E4:E22) -> 943348141 | F23: 729028021 | G23: 794578433 | H23: 786032000 | I23: 209653928 | J23: 767313928 | K23: 811842000 | L23: 858219000 | M23: 918364000
A24: =head27a -> References
A25: ="1. Total expenditure must reconcile to "&'Template names'!F103 -> 1. Total expenditure must reconcile to Table A4 Budgeted Financial Performance (revenue and expenditure)
A26: 2. Balance of allocations not directly linked to an IDP strategic objective
A27: check op expenditure balance | E27: =E23-'A4-FinPerf RE'!C35 -> 0 | F27: =F23-'A4-FinPerf RE'!D35 -> 0 | G27: =G23-'A4-FinPerf RE'!E35 -> 39609385 | H27: =H23-'A4-FinPerf RE'!F35 -> 0 | I27: =I23-'A4-FinPerf RE'!G35 -> -557660000 | J27: =J23-'A4-FinPerf RE'!H35 -> 0 | K27: =K23-'A4-FinPerf RE'!J35 -> 0 | L27: =L23-'A4-FinPerf RE'!K35 -> 0 | M27: =M23-'A4-FinPerf RE'!L35 -> 0

Sheet SA6
A1: =muni&" - "&TableA6 -> DC35 Capricorn - Supporting Table SA6 Reconciliation of IDP strategic objectives and budget (capital expenditure)
A2: Strategic Objective | B2: Goal | C2: Goal Code | D2: =head27 -> Ref | E2: =head1b -> 2016/17 | F2: =head1A -> 2017/18 | G2: =Head1 -> 2018/19 | H2: =Head2 -> Current Year 2019/20 | K2: =Head3 -> 2020/21 Medium Term Revenue & Expenditure Framework
A3: R thousand | E3: =Head5 -> Audited Outcome | F3: =Head5 -> Audited Outcome | G3: =Head5 -> Audited Outcome | H3: =Head6 -> Original Budget | I3: =Head7 -> Adjusted Budget | J3: =Head8 -> Full Year Forecast | K3: =Head9 -> Budget Year 2020/21 | L3: =Head10 -> Budget Year +1 2021/22 | M3: =Head11 -> Budget Year +2 2022/23
A4: Good governance & Administration | B4: To have an enhanced productivity & technical capacity | C4: A | E4: 19097421.82 | F4: 17710000 | G4: 12313952 | H4: 17946000 | I4: 41457000 | J4: 41457000 | K4: 17997000 | L4: 20237000 | M4: 19707000
C5: B
A6: Trading Services | B6: To provide sustainable basic water services and infrastructure development | C6: C | E6: 994913368.4 | F6: 822683179 | G6: 332078699 | H6: 275688000 | I6: 394743000 | J6: 394743000 | K6: 301930000 | L6: 346215000 | M6: 343450000
C7: D
A8: Fire & Rescue | B8: To ensure provision of effective fire fighting and rescue services in the district | C8: E | E8: 0 | F8: 10000000 | H8: 15500000 | I8: 15500000 | J8: 15500000 | K8: 1450000 | L8: 850000 | M8: 1650000
C9: F
A10: Planning, economic & Development | B10: To create an environment that stimulate economic growth and development | C10: G
A11: Enviromental management | B11: To provide municipal health and enviroment to communities | C11: H
A12: Municpal Roads and Transport | B12: To coordinate and promote reliable, safe road network, efficient ,accessible and affordable transport services | C12: I
A13: Sports, Arts & Culture | B13: To improve access to sports facilities and recreational facilities | C13: J
C14: K
C15: L
C16: M
C17: N
C18: O
C19: P
